Workbook

Sheet CA State
A1: Data inputs | B1: Start field: | C1: End field:
A2: Fields to assess | B2: 1 | C2: 157
A3: 1 Inputs
A5: Variables | E5: Unit | G5: Default | H5: Field 1 | I5: Field 2 | J5: Field 3 | K5: Field 4 | L5: Field 5 | M5: Field 6 | N5: Field 7 | O5: Field 8 | P5: Field 9 | Q5: Field 10 | R5: Field 11 | S5: Field 12 | T5: Field 13 | U5: Field 14 | V5: Field 15 | W5: Field 16 | X5: Field 17 | Y5: Field 18 | Z5: Field 19 | AA5: Field 20 | AB5: Field 21 | AC5: Field 22 | AD5: Field 23 | AE5: Field 24 | AF5: Field 25 | AG5: Field 26 | AH5: Field 27 | AI5: Field 28 | AJ5: Field 29 | AK5: Field 30 | AL5: Field 31 | AM5: Field 32 | AN5: Field 33 | AO5: Field 34 | AP5: Field 35 | AQ5: Field 36 | AR5: Field 37 | AS5: Field 38 | AT5: Field 39 | AU5: Field 40 | AV5: Field 41 | AW5: Field 42 | AX5: Field 43 | AY5: Field 44 | AZ5: Field 45 | BA5: Field 46 | BB5: Field 47 | BC5: Field 48 | BD5: Field 49 | BE5: Field 50 | BF5: Field 51 | BG5: Field 52 | BH5: Field 53 | BI5: Field 54 | BJ5: Field 55 | BK5: Field 56 | BL5: Field 57 | BM5: Field 58 | BN5: Field 59 | BO5: Field 60 | BP5: Field 61 | BQ5: Field 62 | BR5: Field 63 | BS5: Field 64 | BT5: Field 65 | BU5: Field 66 | BV5: Field 67 | BW5: Field 68 | BX5: Field 69 | BY5: Field 70 | BZ5: Field 71 | CA5: Field 72 | CB5: Field 73 | CC5: Field 74 | CD5: Field 75 | CE5: Field 76 | CF5: Field 77 | CG5: Field 78 | CH5: Field 79 | CI5: Field 80 | CJ5: Field 81 | CK5: Field 82 | CL5: Field 83 | CM5: Field 84 | CN5: Field 85 | CO5: Field 86 | CP5: Field 87 | CQ5: Field 88 | CR5: Field 89 | CS5: Field 90 | CT5: Field 91 | CU5: Field 92 | CV5: Field 93 | CW5: Field 94 | CX5: Field 95 | CY5: Field 96 | CZ5: Field 97 | DA5: Field 98 | DB5: Field 99 | DC5: Field 100 | DD5: Field 101 | DE5: Field 102 | DF5: Field 103 | DG5: Field 104 | DH5: Field 105 | DI5: Field 106 | DJ5: Field 107 | DK5: Field 108 | DL5: Field 109 | DM5: Field 110 | DN5: Field 111 | DO5: Field 112 | DP5: Field 113 | DQ5: Field 114 | DR5: Field 115 | DS5: Field 116 | DT5: Field 117 | DU5: Field 118 | DV5: Field 119 | DW5: Field 120 | DX5: Field 121 | DY5: Field 122 | DZ5: Field 123 | EA5: Field 124 | EB5: Field 125 | EC5: Field 126 | ED5: Field 127 | EE5: Field 128 | EF5: Field 129 | EG5: Field 130 | EH5: Field 131 | EI5: Field 132 | EJ5: Field 133 | EK5: Field 134 | EL5: Field 135 | EM5: Field 136 | EN5: Field 137 | EO5: Field 138 | EP5: Field 139 | EQ5: Field 140 | ER5: Field 141 | ES5: Field 142 | ET5: Field 143 | EU5: Field 144 | EV5: Field 145 | EW5: Field 146 | EX5: Field 147 | EY5: Field 148 | EZ5: Field 149 | FA5: Field 150 | FB5: Field 151 | FC5: Field 152 | FD5: Field 153 | FE5: Field 154 | FF5: Field 155 | FG5: Field 156 | FH5: Field 157
G6: =IF(G21="","NA",G21) -> Generic | H6: =IF(H21="","NA",H21) -> Aliso Canyon | I6: Ant Hill | J6: Antelope Hills | K6: Antelope Hills, North | L6: Arroyo Grande | M6: Asphalto | N6: Bandini | O6: Bardsdale | P6: Barham Ranch | Q6: Beer Nose | R6: Belgian Anticline | S6: Bellevue | T6: Bellevue, West | U6: Belmont, Offshore | V6: Belridge, North | W6: Belridge, South | X6: Beverly Hills | Y6: Big Mountain | Z6: Blackwells Corner | AA6: Brea-Olinda | AB6: Buena Vista | AC6: Burrel | AD6: Cabrillo | AE6: Canal | AF6: Canfield Ranch | AG6: Carneros Creek | AH6: Cascade | AI6: Casmalia | AJ6: Castaic Hills | AK6: Cat Canyon | AL6: Cheviot Hills | AM6: Chico-Martinez | AN6: Cienaga Canyon | AO6: Coalinga | AP6: Coles Levee, N | AQ6: Coles Levee, S | AR6: Comanche Point | AS6: Coyote, East | AT6: Cuyama, South | AU6: Cymric | AV6: Deer Creek | AW6: Del Valle | AX6: Devils Den | AY6: Dominguez | AZ6: Edison | BA6: El Segundo | BB6: Elk Hills | BC6: Elwood, S., Offshore | BD6: Fruitvale | BE6: Greeley | BF6: Hasley Canyon | BG6: Helm | BH6: Holser | BI6: Honor Rancho | BJ6: Huntington Beach | BK6: Hyperion | BL6: Inglewood | BM6: Jacalitos | BN6: Jasmin | BO6: Kern Bluff | BP6: Kern Front | BQ6: Kern River | BR6: Kettleman Middle Dome | BS6: Kettleman North Dome | BT6: Landslide | BU6: Las Cienegas | BV6: =IF(BV21="","NA",BV21) -> Livermore | BW6: Lompoc | BX6: Long Beach | BY6: Long Beach Airport | BZ6: Los Angeles Downtown | CA6: Los Angeles, East | CB6: Lost Hills | CC6: Lost Hills, Northwest | CD6: Lynch Canyon | CE6: Mahala | CF6: McCool Ranch | CG6: McDonald Anticline | CH6: McKittrick | CI6: Midway-Sunset | CJ6: Montalvo, West | CK6: Montebello | CL6: Monument Junction | CM6: Mount Poso | CN6: Mountain View | CO6: Newhall-Potrero | CP6: Newport, West | CQ6: Oak Canyon | CR6: Oak Park | CS6: Oakridge | CT6: Oat Mountain | CU6: Ojai | CV6: Olive | CW6: Orcutt | CX6: Oxnard | CY6: Paloma | CZ6: Placerita | DA6: Playa Del Rey | DB6: Pleito | DC6: Poso Creek | DD6: Pyramid Hills | DE6: Railroad Gap | DF6: Raisin City | DG6: Ramona | DH6: Richfield | DI6: Rincon | DJ6: Rio Bravo | DK6: Rio Viejo | DL6: Riverdale | DM6: Rose | DN6: Rosecrans | DO6: Rosecrans, South | DP6: Rosedale | DQ6: Rosedale Ranch | DR6: Round Mountain | DS6: Russell Ranch | DT6: Salt Lake | DU6: Salt Lake, South | DV6: San Ardo | DW6: San Miguelito | DX6: San Vicente | DY6: Sansinena | DZ6: Santa Clara Avenue | EA6: Santa Fe Springs | EB6: Santa Maria Valley | EC6: Santa Susana | ED6: Sargent | EE6: Saticoy | EF6: Sawtelle | EG6: Seal Beach | EH6: =IF(EH21="","NA",EH21) -> Semitropic | EI6: Sespe | EJ6: Shafter, North | EK6: Shiells Canyon | EL6: South Mountain | EM6: Stockdale | EN6: Tapia | EO6: Tapo Canyon, South | EP6: Tejon | EQ6: Tejon Hills | ER6: Tejon, North | ES6: Temescal | ET6: Ten Section | EU6: Timber Canyon | EV6: Torrance | EW6: Torrey Canyon | EX6: Union Avenue | EY6: Vallecitos | EZ6: Ventura | FA6: Wayside Canyon | FB6: West Mountain | FC6: Wheeler Ridge | FD6: White Wolf | FE6: Whittier | FF6: Wilmington | FG6: Yowlumne | FH6: Zaca
A7: 1.1 Production methods
A8: Notes: Enter "1" where applicable and "0" where not applicable | FI8: Sources and assumptions
B9: 1.1.1 Downhole pump | E9: NA | G9: 1 | FI9: Assumed
B10: 1.1.2 Water reinjection | E10: NA | G10: 1 | H10: 0 | I10: 1 | J10: 0 | K10: 1 | L10: 1 | M10: 1 | N10: 0 | O10: 1 | P10: 0 | Q10: 0 | R10: 1 | S10: 1 | T10: 0 | U10: 1 | V10: 0 | W10: 1 | X10: 1 | Y10: 0 | Z10: 1 | AA10: 1 | AB10: 0 | AC10: 1 | AD10: 0 | AE10: 1 | AF10: 1 | AG10: 0 | AH10: 1 | AI10: 0 | AJ10: 0 | AK10: 1 | AL10: 0 | AM10: 0 | AN10: 0 | AO10: 1 | AP10: 0 | AQ10: 0 | AR10: 1 | AS10: 1 | AT10: 1 | AU10: 1 | AV10: 1 | AW10: 1 | AX10: 1 | AY10: 0 | AZ10: 1 | BA10: 1 | BB10: 0 | BC10: 1 | BD10: 0 | BE10: 0 | BF10: 1 | BG10: 1 | BH10: 1 | BI10: 0 | BJ10: 1 | BK10: 0 | BL10: 0 | BM10: 0 | BN10: 1 | BO10: 1 | BP10: 1 | BQ10: 1 | BR10: 1 | BS10: 1 | BT10: 1 | BU10: 1 | BV10: 1 | BW10: 0 | BX10: 1 | BY10: 1 | BZ10: 0 | CA10: 0 | CB10: 1 | CC10: 1 | CD10: 0 | CE10: 1 | CF10: 1 | CG10: 1 | CH10: 1 | CI10: 1 | CJ10: 1 | CK10: 1 | CL10: 0 | CM10: 1 | CN10: 1 | CO10: 0 | CP10: 1 | CQ10: 1 | CR10: 0 | CS10: 0 | CT10: 0 | CU10: 1 | CV10: 0 | CW10: 1 | CX10: 0 | CY10: 1 | CZ10: 1 | DA10: 1 | DB10: 1 | DC10: 1 | DD10: 1 | DE10: 0 | DF10: 1 | DG10: 1 | DH10: 1 | DI10: 1 | DJ10: 1 | DK10: 1 | DL10: 1 | DM10: 1 | DN10: 1 | DO10: 0 | DP10: 0 | DQ10: 1 | DR10: 1 | DS10: 1 | DT10: 0 | DU10: 0 | DV10: 1 | DW10: 0 | DX10: 1 | DY10: 0 | DZ10: 0 | EA10: 1 | EB10: 0 | EC10: 0 | ED10: 1 | EE10: 1 | EF10: 1 | EG10: 1 | EH10: 1 | EI10: 1 | EJ10: 1 | EK10: 1 | EL10: 1 | EM10: 0 | EN10: 1 | EO10: 0 | EP10: 1 | EQ10: 1 | ER10: 0 | ES10: 0 | ET10: 0 | EU10: 0 | EV10: 1 | EW10: 0 | EX10: 1 | EY10: 1 | EZ10: 0 | FA10: 0 | FB10: 0 | FC10: 1 | FD10: 0 | FE10: 0 | FF10: 0 | FG10: 1 | FH10: 1 | FI10: Consistent with injection data from DOGGR http://opi.consrv.ca.gov/opi/opi.dll - accessed June 2013
B11: 1.1.3 Natural gas reinjection | E11: NA | G11: 1 | H11: 0 | I11: 0 | J11: 1 | K11: 0 | L11: 1 | M11: 0 | N11: 0 | O11: 0 | P11: 0 | Q11: 0 | R11: 0 | S11: 1 | T11: 0 | U11: 0 | V11: 0 | W11: 1 | X11: 0 | Y11: 0 | Z11: 0 | AA11: 0 | AB11: 0 | AC11: 0 | AD11: 0 | AE11: 0 | AF11: 0 | AG11: 0 | AH11: 0 | AI11: 0 | AJ11: 0 | AK11: 1 | AL11: 0 | AM11: 0 | AN11: 0 | AO11: 0 | AP11: 0 | AQ11: 0 | AR11: 0 | AS11: 0 | AT11: 1 | AU11: 1 | AV11: 0 | AW11: 0 | AX11: 0 | AY11: 0 | AZ11: 0 | BA11: 0 | BB11: 1 | BC11: 1 | BD11: 0 | BE11: 0 | BF11: 0 | BG11: 0 | BH11: 0 | BI11: 0 | BJ11: 1 | BK11: 0 | BL11: 0 | BM11: 0 | BN11: 0 | BO11: 0 | BP11: 0 | BQ11: 0 | BR11: 0 | BS11: 0 | BT11: 0 | BU11: 0 | BV11: 0 | BW11: 1 | BX11: 0 | BY11: 0 | BZ11: 0 | CA11: 0 | CB11: 1 | CC11: 0 | CD11: 0 | CE11: 0 | CF11: 0 | CG11: 0 | CH11: 0 | CI11: 1 | CJ11: 0 | CK11: 1 | CL11: 0 | CM11: 0 | CN11: 0 | CO11: 0 | CP11: 1 | CQ11: 0 | CR11: 0 | CS11: 0 | CT11: 0 | CU11: 0 | CV11: 0 | CW11: 0 | CX11: 0 | CY11: 0 | CZ11: 0 | DA11: 0 | DB11: 1 | DC11: 0 | DD11: 0 | DE11: 0 | DF11: 0 | DG11: 0 | DH11: 1 | DI11: 0 | DJ11: 0 | DK11: 0 | DL11: 0 | DM11: 0 | DN11: 0 | DO11: 0 | DP11: 0 | DQ11: 0 | DR11: 1 | DS11: 1 | DT11: 0 | DU11: 0 | DV11: 1 | DW11: 0 | DX11: 0 | DY11: 0 | DZ11: 0 | EA11: 0 | EB11: 0 | EC11: 0 | ED11: 1 | EE11: 0 | EF11: 0 | EG11: 0 | EH11: 0 | EI11: 0 | EJ11: 0 | EK11: 0 | EL11: 0 | EM11: 0 | EN11: 0 | EO11: 0 | EP11: 0 | EQ11: 0 | ER11: 0 | ES11: 0 | ET11: 0 | EU11: 0 | EV11: 0 | EW11: 0 | EX11: 0 | EY11: 0 | EZ11: 0 | FA11: 0 | FB11: 0 | FC11: 0 | FD11: 0 | FE11: 0 | FF11: 0 | FG11: 0 | FH11: 0 | FI11: Consistent with injection data from DOGGR http://opi.consrv.ca.gov/opi/opi.dll - accessed June 2013
B12: 1.1.4 Water flooding | E12: NA | G12: 0 | H12: 1 | I12: 0 | J12: 0 | K12: 0 | L12: 0 | M12: 0 | N12: 0 | O12: 0 | P12: 1 | Q12: 0 | R12: 0 | S12: 0 | T12: 0 | U12: 0 | V12: 1 | W12: 0 | X12: 0 | Y12: 0 | Z12: 0 | AA12: 0 | AB12: 1 | AC12: 0 | AD12: 0 | AE12: 0 | AF12: 0 | AG12: 0 | AH12: 0 | AI12: 0 | AJ12: 0 | AK12: 0 | AL12: 0 | AM12: 0 | AN12: 0 | AO12: 0 | AP12: 1 | AQ12: 1 | AR12: 0 | AS12: 0 | AT12: 0 | AU12: 0 | AV12: 0 | AW12: 0 | AX12: 0 | AY12: 0 | AZ12: 0 | BA12: 0 | BB12: 1 | BC12: 0 | BD12: 1 | BE12: 1 | BF12: 0 | BG12: 0 | BH12: 0 | BI12: 1 | BJ12: 0 | BL12: 1 | BM12: 1 | BN12: 0 | BO12: 0 | BP12: 0 | BQ12: 0 | BR12: 0 | BS12: 0 | BT12: 0 | BU12: 0 | BV12: 0 | BW12: 1 | BX12: 0 | BY12: 0 | BZ12: 1 | CA12: 0 | CB12: 0 | CC12: 0 | CD12: 1 | CF12: 0 | CG12: 0 | CH12: 0 | CI12: 0 | CJ12: 0 | CK12: 0 | CL12: 0 | CM12: 0 | CN12: 0 | CO12: 1 | CP12: 0 | CQ12: 0 | CR12: 1 | CS12: 1 | CT12: 0 | CU12: 0 | CV12: 0 | CW12: 0 | CX12: 1 | CY12: 0 | CZ12: 0 | DA12: 0 | DB12: 0 | DC12: 0 | DD12: 0 | DE12: 0 | DF12: 0 | DG12: 0 | DH12: 0 | DI12: 0 | DJ12: 0 | DK12: 0 | DL12: 0 | DM12: 0 | DN12: 0 | DO12: 0 | DP12: 1 | DQ12: 0 | DR12: 0 | DS12: 0 | DT12: 0 | DU12: 0 | DV12: 0 | DW12: 1 | DX12: 0 | DY12: 1 | DZ12: 1 | EA12: 0 | EB12: 1 | EC12: 0 | ED12: 0 | EE12: 0 | EF12: 0 | EG12: 0 | EH12: 0 | EI12: 0 | EJ12: 0 | EK12: 0 | EL12: 0 | EM12: 0 | EN12: 0 | EO12: 0 | EP12: 0 | EQ12: 0 | ER12: 1 | ES12: 1 | ET12: 1 | EU12: 0 | EV12: 0 | EW12: 0 | EX12: 0 | EY12: 0 | EZ12: 1 | FA12: 0 | FB12: 0 | FC12: 0 | FD12: 0 | FE12: 0 | FF12: 1 | FG12: 0 | FH12: 0 | FI12: Consistent with injection data from DOGGR http://opi.consrv.ca.gov/opi/opi.dll - accessed June 2013
B13: 1.1.5 Gas lifting | E13: NA | G13: 0
B14: 1.1.6 Gas flooding | E14: NA | G14: 0 | FI14: Consistent with injection data from DOGGR http://opi.consrv.ca.gov/opi/opi.dll - accessed June 2013
B15: 1.1.7 Steam flooding | E15: NA | G15: 0 | H15: 0 | I15: 0 | J15: 0 | K15: 1 | L15: 1 | M15: 0 | N15: 0 | O15: 0 | P15: 0 | Q15: 0 | R15: 0 | S15: 0 | T15: 0 | U15: 0 | V15: 1 | W15: 1 | X15: 0 | Y15: 0 | Z15: 0 | AA15: 0 | AB15: 0 | AC15: 0 | AD15: 0 | AE15: 0 | AF15: 0 | AG15: 0 | AH15: 0 | AI15: 0 | AJ15: 0 | AK15: 1 | AL15: 0 | AM15: 1 | AN15: 0 | AO15: 1 | AP15: 0 | AQ15: 0 | AR15: 0 | AS15: 0 | AT15: 0 | AU15: 1 | AV15: 0 | AW15: 0 | AX15: 0 | AY15: 0 | AZ15: 1 | BA15: 0 | BB15: 0 | BC15: 0 | BD15: 0 | BE15: 0 | BF15: 0 | BG15: 0 | BH15: 0 | BI15: 0 | BJ15: 0 | BL15: 0 | BM15: 0 | BN15: 1 | BO15: 0 | BP15: 1 | BQ15: 1 | BR15: 0 | BS15: 0 | BT15: 0 | BU15: 0 | BV15: 0 | BW15: 0 | BX15: 0 | BY15: 0 | BZ15: 0 | CA15: 0 | CB15: 1 | CC15: 0 | CD15: 1 | CF15: 0 | CG15: 0 | CH15: 1 | CI15: 1 | CJ15: 0 | CK15: 0 | CL15: 0 | CM15: 1 | CN15: 0 | CO15: 0 | CP15: 0 | CQ15: 0 | CR15: 0 | CS15: 0 | CT15: 0 | CU15: 0 | CV15: 0 | CW15: 1 | CX15: 1 | CY15: 0 | CZ15: 1 | DA15: 0 | DB15: 0 | DC15: 1 | DD15: 0 | DE15: 0 | DF15: 0 | DG15: 0 | DH15: 0 | DI15: 0 | DJ15: 0 | DK15: 0 | DL15: 0 | DM15: 0 | DN15: 0 | DO15: 0 | DP15: 0 | DQ15: 0 | DR15: 1 | DS15: 0 | DT15: 0 | DU15: 0 | DV15: 1 | DW15: 0 | DX15: 0 | DY15: 0 | DZ15: 0 | EA15: 0 | EB15: 0 | EC15: 0 | ED15: 0 | EE15: 0 | EF15: 0 | EG15: 0 | EH15: 0 | EI15: 0 | EJ15: 0 | EK15: 0 | EL15: 0 | EM15: 0 | EN15: 0 | EO15: 0 | EP15: 0 | EQ15: 0 | ER15: 0 | ES15: 0 | ET15: 0 | EU15: 0 | EV15: 0 | EW15: 0 | EX15: 0 | EY15: 0 | EZ15: 0 | FA15: 0 | FB15: 0 | FC15: 0 | FD15: 0 | FE15: 0 | FF15: 0 | FG15: 0 | FH15: 0 | FI15: Consistent with injection data from DOGGR http://opi.consrv.ca.gov/opi/opi.dll - accessed June 2013
B16: 1.1.8 Oil sands mine (integrated with upgrader) | E16: NA | G16: 0
B17: 1.1.9 Oil sands mine (non-integrated with upgrader) | E17: NA | G17: 0
A19: 1.2 Field properties
B20: 1.2.1 Field location (Country) | E20: NA | G20: Generic | H20: California | I20: California | J20: California | K20: California | L20: California | M20: California | N20: California | O20: California | P20: California | Q20: California | R20: California | S20: California | T20: California | U20: California | V20: California | W20: California | X20: California | Y20: California | Z20: California | AA20: California | AB20: California | AC20: California | AD20: California | AE20: California | AF20: California | AG20: California | AH20: California | AI20: California | AJ20: California | AK20: California | AL20: California | AM20: California | AN20: California | AO20: California | AP20: California | AQ20: California | AR20: California | AS20: California | AT20: California | AU20: California | AV20: California | AW20: California | AX20: California | AY20: California | AZ20: California | BA20: California | BB20: California | BC20: California | BD20: California | BE20: California | BF20: California | BG20: California | BH20: California | BI20: California | BJ20: California | BK20: California | BL20: California | BM20: California | BN20: California | BO20: California | BP20: California | BQ20: California | BR20: California | BS20: California | BT20: California | BU20: California | BV20: California | BW20: California | BX20: California | BY20: California | BZ20: California | CA20: California | CB20: California | CC20: California | CD20: California | CE20: California | CF20: California | CG20: California | CH20: California | CI20: California | CJ20: California | CK20: California | CL20: California | CM20: California | CN20: California | CO20: California | CP20: California | CQ20: California | CR20: California | CS20: California | CT20: California | CU20: California | CV20: California | CW20: California | CX20: California | CY20: California | CZ20: California | DA20: California | DB20: California | DC20: California | DD20: California | DE20: California | DF20: California | DG20: California | DH20: California | DI20: California | DJ20: California | DK20: California | DL20: California | DM20: California | DN20: California | DO20: California | DP20: California | DQ20: California | DR20: California | DS20: California | DT20: California | DU20: California | DV20: California | DW20: California | DX20: California | DY20: California | DZ20: California | EA20: California | EB20: California | EC20: California | ED20: California | EE20: California | EF20: California | EG20: California | EH20: California | EI20: California | EJ20: California | EK20: California | EL20: California | EM20: California | EN20: California | EO20: California | EP20: California | EQ20: California | ER20: California | ES20: California | ET20: California | EU20: California | EV20: California | EW20: California | EX20: California | EY20: California | EZ20: California | FA20: California | FB20: California | FC20: California | FD20: California | FE20: California | FF20: California | FG20: California | FH20: California
B21: 1.2.2 Field name | E21: NA | G21: Generic | H21: Aliso Canyon | I21: Ant Hill | J21: Antelope Hills | K21: Antelope Hills, North | L21: Arroyo Grande | M21: Asphalto | N21: Bandini | O21: Bardsdale | P21: Barham Ranch | Q21: Beer Nose | R21: Belgian Anticline | S21: Bellevue | T21: Bellevue, West | U21: Belmont, Offshore | V21: Belridge, North | W21: Belridge, South | X21: Beverly Hills | Y21: Big Mountain | Z21: Blackwells Corner | AA21: Brea-Olinda | AB21: Buena Vista | AC21: Burrel | AD21: Cabrillo | AE21: Canal | AF21: Canfield Ranch | AG21: Carneros Creek | AH21: Cascade | AI21: Casmalia | AJ21: Castaic Hills | AK21: Cat Canyon | AL21: Cheviot Hills | AM21: Chico-Martinez | AN21: Cienaga Canyon | AO21: Coalinga | AP21: Coles Levee, N | AQ21: Coles Levee, S | AR21: Comanche Point | AS21: Coyote, East | AT21: Cuyama, South | AU21: Cymric | AV21: Deer Creek | AW21: Del Valle | AX21: Devils Den | AY21: Dominguez | AZ21: Edison | BA21: El Segundo | BB21: Elk Hills | BC21: Elwood, S., Offshore | BD21: Fruitvale | BE21: Greeley | BF21: Hasley Canyon | BG21: Helm | BH21: Holser | BI21: Honor Rancho | BJ21: Huntington Beach | BK21: Hyperion | BL21: Inglewood | BM21: Jacalitos | BN21: Jasmin | BO21: Kern Bluff | BP21: Kern Front | BQ21: Kern River | BR21: Kettleman Middle Dome | BS21: Kettleman North Dome | BT21: Landslide | BU21: Las Cienegas | BV21: Livermore | BW21: Lompoc | BX21: Long Beach | BY21: Long Beach Airport | BZ21: Los Angeles Downtown | CA21: Los Angeles, East | CB21: Lost Hills | CC21: Lost Hills, Northwest | CD21: Lynch Canyon | CE21: Mahala | CF21: McCool Ranch | CG21: McDonald Anticline | CH21: McKittrick | CI21: Midway-Sunset | CJ21: Montalvo, West | CK21: Montebello | CL21: Monument Junction | CM21: Mount Poso | CN21: Mountain View | CO21: Newhall-Potrero | CP21: Newport, West | CQ21: Oak Canyon | CR21: Oak Park | CS21: Oakridge | CT21: Oat Mountain | CU21: Ojai | CV21: Olive | CW21: Orcutt | CX21: Oxnard | CY21: Paloma | CZ21: Placerita | DA21: Playa Del Rey | DB21: Pleito | DC21: Poso Creek | DD21: Pyramid Hills | DE21: Railroad Gap | DF21: Raisin City | DG21: Ramona | DH21: Richfield | DI21: Rincon | DJ21: Rio Bravo | DK21: Rio Viejo | DL21: Riverdale | DM21: Rose | DN21: Rosecrans | DO21: Rosecrans, South | DP21: Rosedale | DQ21: Rosedale Ranch | DR21: Round Mountain | DS21: Russell Ranch | DT21: Salt Lake | DU21: Salt Lake, South | DV21: San Ardo | DW21: San Miguelito | DX21: San Vicente | DY21: Sansinena | DZ21: Santa Clara Avenue | EA21: Santa Fe Springs | EB21: Santa Maria Valley | EC21: Santa Susana | ED21: Sargent | EE21: Saticoy | EF21: Sawtelle | EG21: Seal Beach | EH21: Semitropic | EI21: Sespe | EJ21: Shafter, North | EK21: Shiells Canyon | EL21: South Mountain | EM21: Stockdale | EN21: Tapia | EO21: Tapo Canyon, South | EP21: Tejon | EQ21: Tejon Hills | ER21: Tejon, North | ES21: Temescal | ET21: Ten Section | EU21: Timber Canyon | EV21: Torrance | EW21: Torrey Canyon | EX21: Union Avenue | EY21: Vallecitos | EZ21: Ventura | FA21: Wayside Canyon | FB21: West Mountain | FC21: Wheeler Ridge | FD21: White Wolf | FE21: Whittier | FF21: Wilmington | FG21: Yowlumne | FH21: Zaca
B22: 1.2.3 Field age | E22: yr. | G22: 35
B23: 1.2.4 Field depth | E23: ft | G23: 7240 | H23: 7422 | I23: 2300 | J23: 2205 | K23: 1701 | L23: 750 | M23: 5915 | N23: 5040 | O23: 5000 | P23: 3561 | Q23: 11100 | R23: 3965 | S23: 6975 | T23: 8165 | V23: 2264 | W23: 779 | X23: 7545 | Y23: 6917 | Z23: 1133 | AA23: 3000 | AB23: 3858 | AC23: 6500 | AE23: 8242 | AF23: 8400 | AG23: 3457 | AH23: 2733 | AI23: 2914 | AJ23: 5546 | AK23: 3301 | AL23: 8225 | AM23: 2340 | AN23: 3015 | AO23: 2650 | AP23: 10542 | AQ23: 8256 | AR23: 650 | AS23: 4014 | AT23: 3799 | AU23: 2572 | AV23: 715 | AW23: 6700 | AX23: 1987 | AY23: 5268 | AZ23: 3646 | BA23: 6121 | BB23: 5683 | BC23: 3400 | BD23: 3817 | BE23: 10519 | BF23: 5063 | BG23: 7393 | BH23: 4400 | BI23: 6395 | BJ23: 3478 | BK23: 9811 | BL23: 4300 | BM23: 3400 | BN23: 2228 | BO23: 2005 | BP23: 2290 | BQ23: 850 | BR23: 11924 | BS23: 8015 | BT23: 12190 | BU23: 4078 | BV23: 3375 | BW23: 2500 | BX23: 4770 | BY23: 8200 | BZ23: 3260 | CA23: 8390 | CB23: 1128 | CC23: 2543 | CD23: 1800 | CE23: 3800 | CF23: 2200 | CG23: 1300 | CH23: 3473 | CI23: 2698 | CJ23: 10100 | CK23: 5559 | CL23: 4550 | CM23: 1628 | CN23: 6763 | CO23: 8810 | CP23: 1225 | CQ23: 4105 | CR23: 1150 | CS23: 2500 | CT23: 8046 | CU23: 2278 | CV23: 4900 | CW23: 5544 | CX23: 2573 | CY23: 9920 | CZ23: 1608 | DA23: 7800 | DB23: 8607 | DC23: 2272 | DD23: 861 | DE23: 6278 | DF23: 4719 | DG23: 5648 | DH23: 4030 | DI23: 7114 | DJ23: 10914 | DK23: 14100 | DL23: 7226 | DN23: 6146 | DO23: 7367 | DP23: 6342 | DQ23: 4315 | DR23: 1652 | DS23: 3200 | DT23: 2420 | DU23: 1750 | DV23: 2024 | DW23: 10130 | DX23: 3133 | DY23: 3501 | DZ23: 8815 | EA23: 5688 | EB23: 4354 | EC23: 6198 | EE23: 7889 | EF23: 9500 | EG23: 5277 | EH23: 9437 | EI23: 1953 | EJ23: 7575 | EK23: 4411 | EL23: 5500 | EM23: 8925 | EN23: 1050 | EO23: 2020 | EP23: 3710 | EQ23: 1366 | ER23: 8979 | ES23: 2583 | ET23: 7865 | EU23: 5500 | EV23: 3433 | EW23: 6335 | EX23: 4550 | EY23: 2039 | EZ23: 8819 | FA23: 1548 | FB23: 4500 | FC23: 5978 | FD23: 1795 | FE23: 1871 | FF23: 2824 | FG23: 11676 | FH23: 3500 | FI23: See "Depth" spreadsheet
B24: 1.2.5 Oil production volume | E24: bbl/d | G24: 1500 | H24: 533.2 | I24: 117.1753425 | J24: 306.2328767 | K24: 914.0383562 | L24: 1364.632877 | M24: 615.5643836 | N24: 16.19178082 | O24: 735.309589 | P24: 277.2356164 | Q24: 10.15342466 | R24: 98.55890411 | S24: 86.32328767 | T24: 25.10684932 | U24: 1703.654795 | V24: 6382.230137 | W24: 62744.9863 | X24: 1837.353425 | Y24: 69.00821918 | Z24: 32.32054795 | AA24: 2936.413699 | AB24: 3262.769863 | AC24: 40.65753425 | AD24: 62.23013699 | AE24: 65.28493151 | AF24: 249.2794521 | AG24: 53.27945205 | AH24: 437.8931507 | AI24: 543.3917808 | AJ24: 15.92328767 | AK24: 3531.972603 | AL24: 85.40547945 | AM24: 545.3808219 | AN24: 63.59452055 | AO24: 18574.64932 | AP24: 576.0493151 | AQ24: 195.3041096 | AR24: 62.9260274 | AS24: 655.2958904 | AT24: 527.0246575 | AU24: 45330.78082 | AV24: 106.6465753 | AW24: 120.3561644 | AX24: 36.54246575 | AY24: 80.15890411 | AZ24: 2036.99726 | BA24: 69.36438356 | BB24: 30967.15342 | BC24: 1362.339726 | BD24: 1262.70411 | BE24: 297.8931507 | BF24: 71.63835616 | BG24: 129.7643836 | BH24: 55.16438356 | BI24: 192.6273973 | BJ24: 6773.241096 | BK24: 28.40821918 | BL24: 6511.819178 | BM24: 311.8767123 | BN24: 307.3315068 | BO24: 31.32054795 | BP24: 13734.73699 | BQ24: 70387.78904 | BR24: 241.0438356 | BS24: 470.2465753 | BT24: 85.44931507 | BU24: 765.9863014 | BV24: 26.53972603 | BW24: 947.9013699 | BX24: 4492.482192 | BY24: 27.6739726 | BZ24: 116.4164384 | CA24: 33.31780822 | CB24: 30711.56164 | CC24: 44.81643836 | CD24: 736.4767123 | CE24: 19.99452055 | CF24: 76.36438356 | CG24: 164.5506849 | CH24: 9135.509589 | CI24: 77205.42466 | CJ24: 1094.435616 | CK24: 1391.375342 | CL24: 275.309589 | CM24: 3576.668493 | CN24: 261.9424658 | CO24: 295.0410959 | CP24: 234.8739726 | CQ24: 61.70410959 | CR24: 38.15068493 | CS24: 312.2465753 | CT24: 204.5945205 | CU24: 652.969863 | CV24: 187.630137 | CW24: 3123.810959 | CX24: 957.6547945 | CY24: 46.86575342 | CZ24: 2414.589041 | DA24: 127.3424658 | DB24: 3424.536986 | DC24: 11335.93699 | DD24: 153.1315068 | DE24: 228.0986301 | DF24: 307.0739726 | DG24: 113.9890411 | DH24: 813.4328767 | DI24: 741.2 | DJ24: 902.490411 | DK24: 116.5123288 | DL24: 150.4712329 | DM24: 1095.630137 | DN24: 405.2328767 | DO24: 25.9369863 | DP24: 47.04383562 | DQ24: 408.339726 | DR24: 9891.010959 | DS24: 133.7835616 | DT24: 127.0657534 | DU24: 45.70684932 | DV24: 21357.97534 | DW24: 1158.39726 | DX24: 621.6027397 | DY24: 381.2054795 | DZ24: 121.5232877 | EA24: 2574.019178 | EB24: 557.1150685 | EC24: 38.18082192 | ED24: 73.38082192 | EE24: 93.47671233 | EF24: 514.660274 | EG24: 1151.909589 | EH24: 96.15342466 | EI24: 1109.438356 | EJ24: 1638.843836 | EK24: 199.8054795 | EL24: 1757.808219 | EM24: 349.4027397 | EN24: 51.47671233 | EO24: 26.84931507 | EP24: 1000.378082 | EQ24: 35.19452055 | ER24: 93.88493151 | ES24: 190.7945205 | ET24: 224.4794521 | EU24: 75.58630137 | EV24: 999.830137 | EW24: 340.5041096 | EX24: 14.41917808 | EY24: 35.51780822 | EZ24: 13004.70137 | FA24: 74.6 | FB24: 26.24383562 | FC24: 280.6767123 | FD24: 31.93972603 | FE24: 263.8767123 | FF24: 37425.39178 | FG24: 278.9835616 | FH24: 636.9315068 | FI24: See "DOGGR Data 2015"
B25: 1.2.6 Number of producing wells | E25: [-] | G25: 8 | H25: 26 | I25: 5 | J25: 85 | K25: 66 | L25: 175 | M25: 98 | N25: 4 | O25: 40 | P25: 25 | Q25: 2 | R25: 32 | S25: 8 | T25: 1 | U25: 43 | V25: 804 | W25: 5277 | X25: 91 | Y25: 8 | Z25: 25 | AA25: 385 | AB25: 350 | AC25: 2 | AD25: 6 | AE25: 11 | AF25: 25 | AG25: 17 | AH25: 19 | AI25: 111 | AJ25: 3 | AK25: 284 | AL25: 11 | AM25: 60 | AN25: 27 | AO25: 1727 | AP25: 59 | AQ25: 32 | AR25: 39 | AS25: 52 | AT25: 67 | AU25: 1602 | AV25: 56 | AW25: 26 | AX25: 67 | AY25: 4 | AZ25: 872 | BA25: 4 | BB25: 2992 | BC25: 1 | BD25: 183 | BE25: 17 | BF25: 8 | BG25: 12 | BH25: 13 | BI25: 11 | BJ25: 245 | BK25: 1 | BL25: 440 | BM25: 58 | BN25: 35 | BO25: 20 | BP25: 1145 | BQ25: 9928 | BR25: 9 | BS25: 14 | BT25: 4 | BU25: 35 | BV25: 5 | BW25: 67 | BX25: 267 | BY25: 3 | BZ25: 9 | CA25: 4 | CB25: 2733 | CC25: 16 | CD25: 29 | CE25: 21 | CF25: 10 | CG25: 40 | CH25: 534 | CI25: 10060 | CJ25: 39 | CK25: 99 | CL25: 36 | CM25: 513 | CN25: 105 | CO25: 33 | CP25: 68 | CQ25: 1 | CR25: 11 | CS25: 25 | CT25: 9 | CU25: 161 | CV25: 4 | CW25: 231 | CX25: 20 | CY25: 16 | CZ25: 122 | DA25: 7 | DB25: 46 | DC25: 843 | DD25: 129 | DE25: 40 | DF25: 27 | DG25: 45 | DH25: 106 | DI25: 82 | DJ25: 21 | DK25: 4 | DL25: 16 | DM25: 35 | DN25: 44 | DO25: 4 | DP25: 6 | DQ25: 35 | DR25: 459 | DS25: 36 | DT25: 5 | DU25: 4 | DV25: 556 | DW25: 59 | DX25: 29 | DY25: 51 | DZ25: 18 | EA25: 122 | EB25: 66 | EC25: 8 | ED25: 12 | EE25: 10 | EF25: 11 | EG25: 108 | EH25: 49 | EI25: 197 | EJ25: 63 | EK25: 35 | EL25: 267 | EM25: 12 | EN25: 16 | EO25: 12 | EP25: 127 | EQ25: 54 | ER25: 18 | ES25: 13 | ET25: 35 | EU25: 26 | EV25: 103 | EW25: 40 | EX25: 2 | EY25: 10 | EZ25: 414 | FA25: 7 | FB25: 7 | FC25: 18 | FD25: 4 | FE25: 27 | FF25: 1338 | FG25: 3 | FH25: 39 | FI25: December 2015 Monthly Oil and Gas Production and Injection Report, California Department of Conservation (ftp://ftp.consrv.ca.gov/pub/oil/monthly_production_reports/)
B26: 1.2.7 Number of water injecting wells | E26: [-] | G26: 5 | H26: 6 | I26: 1 | J26: 0 | K26: 2 | L26: 6 | M26: 17 | N26: 0 | O26: 4 | P26: 1 | Q26: 0 | R26: 1 | S26: 3 | T26: 0 | U26: 14 | V26: 228 | W26: 1113 | X26: 13 | Y26: 0 | Z26: 1 | AA26: 19 | AB26: 85 | AC26: 2 | AD26: 0 | AE26: 1 | AF26: 4 | AG26: 0 | AH26: 2 | AI26: 6 | AJ26: 0 | AK26: 13 | AL26: 1 | AM26: 0 | AN26: 0 | AO26: 37 | AP26: 6 | AQ26: 4 | AR26: 2 | AS26: 17 | AT26: 14 | AU26: 12 | AV26: 6 | AW26: 2 | AX26: 2 | AY26: 0 | AZ26: 12 | BA26: 1 | BB26: 255 | BC26: 0 | BD26: 27 | BE26: 4 | BF26: 1 | BG26: 4 | BH26: 1 | BI26: 4 | BJ26: 65 | BK26: 0 | BL26: 236 | BM26: 7 | BN26: 2 | BO26: 2 | BP26: 11 | BQ26: 15 | BR26: 1 | BS26: 2 | BT26: 5 | BU26: 14 | BV26: 1 | BW26: 6 | BX26: 64 | BY26: 1 | BZ26: 4 | CA26: 0 | CB26: 692 | CC26: 1 | CD26: 3 | CE26: 0 | CF26: 2 | CG26: 4 | CH26: 12 | CI26: 107 | CJ26: 3 | CK26: 62 | CL26: 0 | CM26: 62 | CN26: 6 | CO26: 2 | CP26: 3 | CQ26: 1 | CR26: 3 | CS26: 4 | CT26: 0 | CU26: 11 | CV26: 0 | CW26: 59 | CX26: 4 | CY26: 1 | CZ26: 9 | DA26: 0 | DB26: 1 | DC26: 56 | DD26: 3 | DE26: 0 | DF26: 11 | DG26: 3 | DH26: 30 | DI26: 18 | DJ26: 7 | DK26: 0 | DL26: 3 | DM26: 6 | DN26: 9 | DO26: 0 | DP26: 2 | DQ26: 20 | DR26: 112 | DS26: 2 | DT26: 0 | DU26: 0 | DV26: 19 | DW26: 21 | DX26: 4 | DY26: 2 | DZ26: 1 | EA26: 73 | EB26: 7 | EC26: 0 | ED26: 1 | EE26: 3 | EF26: 3 | EG26: 9 | EH26: 0 | EI26: 9 | EJ26: 9 | EK26: 5 | EL26: 8 | EM26: 0 | EN26: 1 | EO26: 0 | EP26: 13 | EQ26: 4 | ER26: 1 | ES26: 3 | ET26: 5 | EU26: 0 | EV26: 36 | EW26: 0 | EX26: 0 | EY26: 1 | EZ26: 345 | FA26: 0 | FB26: 0 | FC26: 2 | FD26: 0 | FE26: 0 | FF26: 798 | FG26: 11 | FH26: 5 | FI26: December 2015 Monthly Oil and Gas Production and Injection Report, California Department of Conservation (ftp://ftp.consrv.ca.gov/pub/oil/monthly_production_reports/)
B27: 1.2.8 Well diameter | E27: in | G27: 2.775
B28: 1.2.9 Productivity index | E28: bbl/psi-d | G28: 3
B29: 1.2.10 Reservoir pressure | E29: psi | G29: 1556.6
B30: 1.2.11 Reservoir temperature | E30: ◦F | G30: 150
B31: 1.2.12 Offshore? | E31: [0-1] | G31: 0 | T31: 1 | AX31: 1
A33: 1.3 Fluid properties
B34: 1.3.1 API gravity | E34: deg. API | G34: 30 | H34: 30.7 | I34: 14 | J34: 17.6 | K34: 15.4 | L34: 14 | M34: 35.8 | N34: 37.4 | O34: 29.2 | P34: 27.1 | Q34: 31 | R34: 33.9 | S34: 34 | T34: 31.7 | V34: 27.2 | W34: 21.4 | X34: 33.1 | Y34: 20.3 | Z34: 13.3 | AA34: 23.6 | AB34: 20.2 | AC34: 30 | AE34: 35.9 | AF34: 28 | AG34: 26.2 | AH34: 19.5 | AI34: 16.5 | AJ34: 32.5 | AK34: 11.5 | AL34: 31 | AM34: 18 | AN34: 26 | AO34: 21 | AP34: 41 | AQ34: 43 | AR34: 15 | AS34: 22.1 | AT34: 34.6 | AU34: 21.7 | AV34: 12 | AW34: 32.3 | AX34: 25.3 | AY34: 31 | AZ34: 24.3 | BA34: 23 | BB34: 36.4 | BC34: 38 | BD34: 19.2 | BE34: 35.7 | BF34: 15.5 | BG34: 40.9 | BH34: 26.8 | BI34: 36.5 | BJ34: 19.3 | BK34: 16.5 | BL34: 23.6 | BM34: 35 | BN34: 14 | BO34: 15.3 | BP34: 14 | BQ34: 13 | BR34: 41.6 | BS34: 39.1 | BT34: 30.7 | BU34: 32.7 | BV34: 26 | BW34: 20.5 | BX34: 24.8 | BY34: 34 | BZ34: 33.8 | CA34: 34.5 | CB34: 22.4 | CC34: 26.4 | CD34: 11 | CE34: 24 | CF34: 11.7 | CG34: 20 | CH34: 21.8 | CI34: 19 | CJ34: 22 | CK34: 33.2 | CL34: 26 | CM34: 15.2 | CN34: 31.6 | CO34: 34 | CP34: 18 | CQ34: 28.8 | CR34: 22 | CS34: 21 | CT34: 17.8 | CU34: 22.4 | CV34: 14 | CW34: 27 | CX34: 8.4 | CY34: 27 | CZ34: 20.5 | DA34: 22.5 | DB34: 20.8 | DC34: 13.5 | DD34: 17.3 | DE34: 37.7 | DF34: 26 | DG34: 20.6 | DH34: 18.5 | DI34: 29.1 | DJ34: 35 | DK34: 29.5 | DL34: 36.4 | DN34: 34.3 | DO34: 33.3 | DP34: 30.8 | DQ34: 24 | DR34: 21.1 | DS34: 34.8 | DT34: 16.9 | DU34: 24 | DV34: 13 | DW34: 29.7 | DX34: 23.7 | DY34: 21.4 | DZ34: 24.3 | EA34: 33.3 | EB34: 13.7 | EC34: 39.8 | EE34: 34.3 | EF34: 22.5 | EG34: 23.5 | EI34: 32 | EJ34: 27.5 | EK34: 32.1 | EL34: 27.5 | EM34: 27 | EN34: 17 | EO34: 21.5 | EP34: 22.2 | EQ34: 30.8 | ER34: 41.8 | ES34: 22 | ET34: 34.5 | EU34: 35.5 | EV34: 23.3 | EW34: 26.9 | EX34: 39.5 | EY34: 36 | EZ34: 29.9 | FA34: 21.5 | FB34: 20 | FC34: 36.8 | FD34: 14.7 | FE34: 17 | FF34: 19.5 | FG34: 32.2 | FH34: 8 | FI34: See "API gravity" spreadsheet
B35: 1.3.2 Gas composition
C36: N2 | E36: mol% | G36: 2
C37: CO2 | E37: mol% | G37: 6
C38: C1 | E38: mol% | G38: 84
C39: C2 | E39: mol% | G39: 4
C40: C3 | E40: mol% | G40: 2
C41: C4+ | E41: mol% | G41: 1
C42: H2S | E42: mol% | G42: 1
A44: 1.4 Production practices
A45: Notes: Enter "NA" where not applicable
B46: 1.4.1 Gas-to-oil ratio (GOR) | E46: scf/bbl oil | G46: 908 | H46: 1910.305691 | I46: 211.1809956 | J46: 0 | K46: 0 | L46: 1961.075386 | M46: 20677.95675 | N46: 0 | O46: 1380.926122 | P46: 3177.901197 | Q46: 2196.438208 | R46: 3379.551899 | S46: 474.2287673 | T46: 607.0493234 | U46: 460.69369 | V46: 1106.362958 | W46: 356.0577454 | X46: 1257.827668 | Y46: 4470.422423 | Z46: 0 | AA46: 854.5873216 | AB46: 11771.08533 | AC46: 1107.210243 | AD46: 2822.840539 | AE46: 589.5757271 | AF46: 1531.482519 | AG46: 1439.913611 | AH46: 1397.88902 | AI46: 556.5398461 | AJ46: 299.2085341 | AK46: 464.5531621 | AL46: 404.9337568 | AM46: 0 | AN46: 2562.467689 | AO46: 36.31300696 | AP46: 649.8682571 | AQ46: 11920.26485 | AR46: 0 | AS46: 426.2677531 | AT46: 1093.926098 | AU46: 173.2986779 | AV46: 0 | AW46: 1757.250171 | AX46: 81.49647623 | AY46: 1645.874633 | AZ46: 178.9929846 | BA46: 193.6961845 | BB46: 9692.39515 | BC46: 722.1782027 | BD46: 305.3438261 | BE46: 2071.883823 | BF46: 194.4699403 | BG46: 693.2480365 | BH46: 1464.911845 | BI46: 203.070187 | BJ46: 458.8722018 | BK46: 0 | BL46: 448.2908633 | BM46: 194.8961216 | BN46: 0 | BO46: 0 | BP46: 4.378060309 | BQ46: 10.52400784 | BR46: 1670.178789 | BS46: 777.5460266 | BT46: 988.457469 | BU46: 918.5113651 | BV46: 87.43677093 | BW46: 878.7256058 | BX46: 436.4405436 | BY46: 67.51806752 | BZ46: 853.7842417 | CA46: 17.76169723 | CB46: 574.5642175 | CC46: 438.4399071 | CD46: 0 | CE46: 95.23157029 | CF46: 0 | CG46: 666.3558715 | CH46: 659.3356468 | CI46: 186.9409772 | CJ46: 485.6697266 | CK46: 927.5970165 | CL46: 3318.037975 | CM46: 36.8277206 | CN46: 422.7530881 | CO46: 1514.99675 | CP46: 531.0688332 | CQ46: 2058.342954 | CR46: 430.448833 | CS46: 866.236729 | CT46: 1168.592739 | CU46: 5372.200357 | CV46: 106.5196758 | CW46: 769.6429809 | CX46: 39.57441695 | CY46: 3154.565649 | CZ46: 0 | DA46: 1036.897064 | DB46: 307.2516153 | DC46: 59.31312637 | DD46: 0.2146959369 | DE46: 21694.64063 | DF46: 446.994165 | DG46: 2514.517137 | DH46: 177.091508 | DI46: 873.6702423 | DJ46: 1474.519518 | DK46: 181.343617 | DL46: 554.4044281 | DM46: 470.964354 | DN46: 696.9440876 | DO46: 1044.047745 | DP46: 0 | DQ46: 550.8977215 | DR46: 0 | DS46: 1285.228646 | DT46: 924.5132495 | DU46: 2670.023377 | DV46: 131.1727126 | DW46: 837.6287502 | DX46: 1068.616259 | DY46: 1134.059221 | DZ46: 675.3088646 | EA46: 330.0994021 | EB46: 596.6943205 | EC46: 4786.380597 | ED46: 974.7237157 | EE46: 986.517776 | EF46: 359.4604234 | EG46: 826.4156957 | EH46: 616.0531115 | EI46: 2266.858462 | EJ46: 779.5773165 | EK46: 5004.058742 | EL46: 1301.388716 | EM46: 318.8611486 | EN46: 144.7655543 | EO46: 196.8367347 | EP46: 267.2688134 | EQ46: 0 | ER46: 7752.597175 | ES46: 1353.518093 | ET46: 492.6099957 | EU46: 3458.407336 | EV46: 174.8269569 | EW46: 1436.226707 | EX46: 1586.547596 | EY46: 1449.475471 | EZ46: 575.178081 | FA46: 418.7447207 | FB46: 1136.861885 | FC46: 401.3880348 | FD46: 178.8471436 | FE46: 2503.649483 | FF46: 316.3489179 | FG46: 859.8434631 | FH46: 8.194253269 | FI46: See "DOGGR Data 2015"; See "Oil-Gas Fields 2015" for gas fields
B47: 1.4.2 Water-to-oil ratio (WOR) | E47: bbl water/bbl oil | G47: 4.308369057 | H47: 10.49677823 | I47: 76.18214127 | J47: 6.32509953 | K47: 9.595994293 | L47: 20.84588158 | M47: 44.81484416 | N47: 3.377834179 | O47: 2.281648211 | P47: 1.549307745 | Q47: 0.009713977334 | R47: 4.408378273 | S47: 20.99796877 | T47: 22.84864688 | U47: 16.52460142 | V47: 14.12157901 | W47: 13.60751343 | X47: 14.0367339 | Y47: 2.950929014 | Z47: 3.67025515 | AA47: 6.426639149 | AB47: 40.07066607 | AC47: 115.9222372 | AD47: 1.571277626 | AE47: 7.082966134 | AF47: 7.117950916 | AG47: 1.8366329 | AH47: 1.128973729 | AI47: 64.14461677 | AJ47: 1.349277357 | AK47: 10.68694586 | AL47: 6.049754595 | AM47: 8.636533979 | AN47: 14.87584008 | AO47: 10.83145728 | AP47: 4.885103064 | AQ47: 1.099486575 | AR47: 25.96085859 | AS47: 29.76602016 | AT47: 73.04118234 | AU47: 6.650032773 | AV47: 96.62084468 | AW47: 14.19148646 | AX47: 5.507272455 | AY47: 2.168774352 | AZ47: 13.94844816 | BA47: 15.00019749 | BB47: 14.98086634 | BC47: 4.565554023 | BD47: 15.35269166 | BE47: 22.88661927 | BF47: 1.973841212 | BG47: 5.807659826 | BH47: 1.031090142 | BI47: 8.242133305 | BJ47: 30.8462657 | BK47: 0.02941460122 | BL47: 52.15258283 | BM47: 2.42753986 | BN47: 111.1721045 | BO47: 88.61485304 | BP47: 32.29107758 | BQ47: 11.07202043 | BR47: 2.368295427 | BS47: 3.148992076 | BT47: 36.88136843 | BU47: 16.55902498 | BV47: 3.113038092 | BW47: 64.65709686 | BX47: 24.43285281 | BY47: 12.91258291 | BZ47: 25.24044526 | CA47: 53.73184771 | CB47: 12.10464954 | CC47: 22.62354811 | CD47: 15.11568594 | CE47: 1.023020005 | CF47: 65.06246188 | CG47: 15.52959491 | CH47: 9.046055719 | CI47: 9.584796405 | CJ47: 2.764940458 | CK47: 75.62077928 | CL47: 8.745521853 | CM47: 27.30300027 | CN47: 4.51312115 | CO47: 1.120763302 | CP47: 23.32956176 | CQ47: 5.752775064 | CR47: 3.6605386 | CS47: 6.917592349 | CT47: 1.279269387 | CU47: 2.798904059 | CV47: 0.5570562897 | CW47: 29.26353567 | CX47: 0.9413578834 | CY47: 1.856073892 | CZ47: 36.27949508 | DA47: 23.70130636 | DB47: 1.107470183 | DC47: 44.56854465 | DD47: 4.836580609 | DE47: 20.69390795 | DF47: 44.97608001 | DG47: 1.258784791 | DH47: 22.10675877 | DI47: 11.44836585 | DJ47: 17.54788121 | DK47: 2.684976603 | DL47: 5.220986126 | DM47: 4.580917968 | DN47: 18.01813941 | DO47: 1.530474279 | DP47: 1.134529148 | DQ47: 40.36323502 | DR47: 49.55728254 | DS47: 27.25455141 | DT47: 4.55162897 | DU47: 34.77725829 | DV47: 15.3768876 | DW47: 11.59859277 | DX47: 3.726914516 | DY47: 0.9528819894 | DZ47: 3.242244567 | EA47: 53.19919384 | EB47: 18.20705985 | EC47: 4.653272101 | ED47: 0.979801374 | EE47: 3.134060201 | EF47: 3.104939553 | EG47: 17.56583351 | EH47: 0.8664805106 | EI47: 1.037447061 | EJ47: 3.126114635 | EK47: 4.20681759 | EL47: 1.404359414 | EM47: 0.4798874008 | EN47: 38.36122199 | EO47: 0.7735714286 | EP47: 61.24977954 | EQ47: 26.72575121 | ER47: 2.885607564 | ES47: 3.804796094 | ET47: 26.17932507 | EU47: 0.09518286274 | EV47: 16.19959281 | EW47: 1.111776254 | EX47: 16.91582747 | EY47: 7.877892626 | EZ47: 9.634774021 | FA47: 2.843879687 | FB47: 0.9676375405 | FC47: 3.776362412 | FD47: 0.2526162292 | FE47: 1.351596325 | FF47: 43.57671548 | FG47: 34.45684432 | FH47: 38.04177994 | FI47: See "DOGGR Data 2015"; See "Oil-Gas Fields 2015" for gas fields
B48: 1.4.3 Water injection ratio | E48: bbl water/bbl oil | G48: 5.308369057 | H48: 7.673694108 | P48: 1.620401024 | V48: 14.90977388 | AB48: 43.7293215 | AH48: 1.128979985 | AP48: 5.679099012 | AQ48: 1.558202172 | AR48: 25.98719958 | BB48: 16.58387743 | BD48: 18.17170152 | BE48: 22.93453569 | BH48: 1.201936926 | BI48: 10.06519791 | BL48: 54.99182856 | BM48: 4.312803619 | BR48: 2.371716621 | BS48: 5.183232347 | BU48: 16.5590536 | BW48: 72.81164158 | BZ48: 25.40313471 | CD48: 16.77758227 | CO48: 1.219231126 | CR48: 9.151238779 | CS48: 8.790988857 | CX48: 3.318829675 | DG48: 1.633658607 | DH48: 22.68609276 | DP48: 2.903325374 | DS48: 27.31377608 | DW48: 13.02941239 | DX48: 6.006531943 | DY48: 1.145012218 | DZ48: 3.334813779 | EB48: 20.73750781 | EJ48: 3.722754765 | EK48: 5.956135419 | EL48: 1.568720387 | EQ48: 26.72754165 | ER48: 2.885782654 | ES48: 5.295663412 | ET48: 27.74821505 | EZ48: 11.41663078 | FF48: 45.50809933 | FI48: See "DOGGR Data 2015"; See "Oil-Gas Fields 2015" for gas fields
B49: 1.4.4 Gas lifting injection ratio | E49: scf/bbl liquid | G49: 1500
B50: 1.4.5 Gas flooding injection ratio | E50: scf/bbl oil | G50: 1362 | BI50: 484593.5513
B51: 1.4.6 Flood gas | E51: NA | G51: 1
C52: 1= Natural gas
C53: 2= Nitrogen (N2)
C54: 3= Carbon Dioxide (CO2)
B57: 1.4.7 Carbon dioxide flooding and sequestration parameters
C58: 1.4.7.1 Percentage of newly acquired CO2 (total injected CO2 includes both new and recycled) | E58: % | G58: 41
C59: 1.4.7.2 Source of CO2 | E59: NA | G59: 1
D60: 1= Natural subsurface reservoir
D61: 2= Anthropogenic
C62: 1.4.7.3 Percentage of sequestration credit assigned to the oilfield | E62: % | G62: 0
B63: 1.4.8 Steam-to-oil ratio (SOR) | E63: bbl steam/bbl oil | G63: 3 | H63: 0 | I63: 0 | J63: 0 | K63: 5.204613577 | L63: 6.640762431 | M63: 0 | N63: 0 | O63: 0 | P63: 0 | Q63: 0 | R63: 0 | S63: 0 | T63: 0 | U63: 0 | V63: 0.01707824035 | W63: 3.56638736 | X63: 0 | Y63: 0 | Z63: 0 | AA63: 0 | AB63: 0 | AC63: 0 | AD63: 0 | AE63: 0 | AF63: 0 | AG63: 0 | AH63: 0 | AI63: 0 | AJ63: 0 | AK63: 1.263178634 | AL63: 0 | AM63: 10.50720371 | AN63: 0 | AO63: 5.585386888 | AP63: 0 | AQ63: 0 | AR63: 0 | AS63: 0 | AT63: 0 | AU63: 3.559495483 | AV63: 0 | AW63: 0 | AX63: 0 | AY63: 0 | AZ63: 2.254462653 | BA63: 0 | BB63: 0 | BC63: 0 | BD63: 0 | BE63: 0 | BF63: 0 | BG63: 0 | BH63: 0 | BI63: 0 | BJ63: 0 | BK63: 0 | BL63: 0 | BM63: 0 | BN63: 0 | BO63: 0 | BP63: 7.223620581 | BQ63: 3.572760967 | BR63: 0 | BS63: 0 | BT63: 0 | BU63: 0 | BV63: 0 | BW63: 0 | BX63: 0 | BY63: 0 | BZ63: 0 | CA63: 0 | CB63: 2.455230015 | CC63: 0 | CD63: 4.789545931 | CE63: 0 | CF63: 1.970042694 | CG63: 0 | CH63: 5.356198498 | CI63: 6.573379789 | CJ63: 0 | CK63: 0 | CL63: 0 | CM63: 0.06390426846 | CN63: 0 | CO63: 0 | CP63: 0.4719756442 | CQ63: 0 | CR63: 0 | CS63: 0 | CT63: 0 | CU63: 0 | CV63: 0 | CW63: 0.9928082225 | CX63: 0.8864978372 | CY63: 0 | CZ63: 8.000003404 | DA63: 0 | DB63: 0 | DC63: 4.071454656 | DD63: 0 | DE63: 0 | DF63: 0 | DG63: 0 | DH63: 0 | DI63: 0 | DJ63: 0 | DK63: 0 | DL63: 0 | DM63: 0 | DN63: 0 | DO63: 0 | DP63: 0 | DQ63: 0 | DR63: 4.33189427 | DS63: 0 | DT63: 0 | DU63: 0 | DV63: 6.03331738 | DW63: 0 | DX63: 0 | DY63: 0 | DZ63: 0 | EA63: 0 | EB63: 0 | EC63: 0 | ED63: 0 | EE63: 0 | EF63: 0 | EG63: 0 | EH63: 0 | EI63: 0 | EJ63: 0 | EK63: 0 | EL63: 0 | EM63: 0 | EN63: 0 | EO63: 0 | EP63: 0 | EQ63: 0 | ER63: 0 | ES63: 0 | ET63: 0 | EU63: 0 | EV63: 0 | EW63: 0 | EX63: 0 | EY63: 0 | EZ63: 0 | FA63: 0 | FB63: 0 | FC63: 0 | FD63: 0 | FE63: 0 | FF63: 0 | FG63: 0 | FH63: 0
B64: 1.4.9 Fraction of required electricity generated onsite | E64: [-] | G64: 0
B65: 1.4.10 Fraction of remaining natural gas reinjected | E65: [-] | G65: 0 | H65: 0.7068397142 | I65: 0 | J65: 0 | K65: 0 | L65: 0.7689379746 | M65: 0 | N65: 0 | O65: 0 | P65: 0 | Q65: 0 | R65: 0 | S65: 0 | T65: 0 | U65: 0 | V65: 0 | W65: 0 | X65: 0 | Y65: 0 | Z65: 0 | AA65: 0 | AB65: 0 | AC65: 0 | AD65: 0 | AE65: 0 | AF65: 0 | AG65: 0 | AH65: 0 | AI65: 0 | AJ65: 0 | AK65: 0 | AL65: 0 | AM65: 0 | AN65: 0 | AO65: 0 | AP65: 0 | AQ65: 0 | AR65: 0 | AS65: 0 | AT65: 0.2849043872 | AU65: 0.07216339524 | AV65: 0 | AW65: 0 | AX65: 0 | AY65: 0 | AZ65: 0 | BA65: 0 | BB65: 0.2962750835 | BC65: 0.05864285197 | BD65: 0 | BE65: 0 | BF65: 0 | BG65: 0 | BH65: 0 | BI65: 1 | BJ65: 0.003290613246 | BK65: 0 | BL65: 0 | BM65: 0 | BN65: 0 | BO65: 0 | BP65: 0 | BQ65: 0.1137185718 | BR65: 0.0002109647213 | BS65: 0 | BT65: 0 | BU65: 0.002005436095 | BV65: 0 | BW65: 0.2248367733 | BX65: 0 | BY65: 0 | BZ65: 0 | CA65: 0 | CB65: 0 | CC65: 0 | CD65: 0 | CE65: 0 | CF65: 0 | CG65: 0 | CH65: 0.03163024004 | CI65: 0.8671015698 | CJ65: 0 | CK65: 0.1401688029 | CL65: 0 | CM65: 0 | CN65: 0 | CO65: 0 | CP65: 0 | CQ65: 0 | CR65: 0 | CS65: 0 | CT65: 0 | CU65: 0 | CV65: 0 | CW65: 0 | CX65: 0 | CY65: 0 | CZ65: 0 | DA65: 0.8596434415 | DB65: 0 | DC65: 0 | DD65: 0 | DE65: 0 | DF65: 0 | DG65: 0 | DH65: 0.0002282279998 | DI65: 0 | DJ65: 0 | DK65: 0 | DL65: 0 | DM65: 0 | DN65: 0 | DO65: 0 | DP65: 0 | DQ65: 0 | DR65: 0 | DS65: 0.9421915582 | DT65: 0 | DU65: 0 | DV65: 0 | DW65: 0 | DX65: 0 | DY65: 1.901225023e-05 | DZ65: 0 | EA65: 0 | EB65: 0 | EC65: 0 | ED65: 0.6796644578 | EE65: 0 | EF65: 0 | EG65: 0 | EH65: 0 | EI65: 0 | EJ65: 0 | EK65: 0 | EL65: 0 | EM65: 0 | EN65: 0 | EO65: 0 | EP65: 0 | EQ65: 0 | ER65: 0 | ES65: 0 | ET65: 0 | EU65: 0 | EV65: 0 | EW65: 0 | EX65: 0 | EY65: 0 | EZ65: 0 | FA65: 0 | FB65: 0 | FC65: 0 | FD65: 0 | FE65: 0 | FF65: 0 | FG65: 0 | FH65: 0 | FI65: See "DOGGR Data 2015"
B66: 1.4.11 Fraction of produced water reinjected | E66: [-] | G66: 1 | H66: 1 | I66: 0.9220455007 | J66: 0 | K66: 0.3598065129 | L66: 0.131473929 | M66: 0.7630723433 | N66: 0 | O66: 0.5923620966 | P66: 1 | Q66: 0 | R66: 0.5141405033 | S66: 0.9957406545 | T66: 0.8874370179 | U66: 0.8049305152 | V66: 1 | W66: 0.8488703618 | X66: 0.7913000792 | Y66: 0 | Z66: 0.9998614255 | AA66: 0.7002358009 | AB66: 1 | AC66: 1 | AD66: 0 | AE66: 0.5160030809 | AF66: 0.7925085039 | AG66: 0 | AH66: 1 | AI66: 0.9982592791 | AJ66: 0 | AK66: 0.8752192195 | AL66: 0.05983912105 | AM66: 0 | AN66: 0 | AO66: 0.1876811511 | AP66: 1 | AQ66: 1 | AR66: 1 | AS66: 0.9927214256 | AT66: 0.9995109069 | AU66: 0.04686401887 | AV66: 0.4930744314 | AW66: 0.9630320548 | AX66: 0.1846956001 | AY66: 0 | AZ66: 0.6204666269 | BA66: 0.09558291093 | BB66: 1 | BC66: 0.891833903 | BD66: 1 | BE66: 1 | BF66: 0.5861427575 | BG66: 0.9934381294 | BH66: 1 | BI66: 1 | BJ66: 0.9712997479 | BK66: 0 | BL66: 1 | BM66: 1 | BN66: 0.03885471406 | BO66: 0.9780621789 | BP66: 0.3124068544 | BQ66: 0.03619926575 | BR66: 1 | BS66: 1 | BT66: 0.9997948349 | BU66: 1 | BV66: 0.9997015519 | BW66: 1 | BX66: 0.6322677086 | BY66: 0.8004676838 | BZ66: 1 | CA66: 0 | CB66: 0.7634857367 | CC66: 0.9951199213 | CD66: 1 | CE66: 0 | CF66: 0.385038539 | CG66: 0.9611020635 | CH66: 0.7346952564 | CI66: 0.1875695631 | CJ66: 0.8751308275 | CK66: 0.945770568 | CL66: 0 | CM66: 0.6468124318 | CN66: 0.3757726045 | CO66: 1 | CP66: 0.2979920201 | CQ66: 0.9951992838 | CR66: 1 | CS66: 1 | CT66: 0 | CU66: 0.9410170386 | CV66: 0 | CW66: 0.9185864242 | CX66: 1 | CY66: 0.8379212598 | CZ66: 0.6933267647 | DA66: 0.3278841956 | DB66: 0.9199068981 | DC66: 0.8081794778 | DD66: 0.9046280301 | DE66: 0 | DF66: 0.9962285328 | DG66: 1 | DH66: 1 | DI66: 0.8626816065 | DJ66: 1 | DK66: 0.7864849716 | DL66: 0.8354193767 | DM66: 0.856283421 | DN66: 0.9344754702 | DO66: 0 | DP66: 1 | DQ66: 0.9930241503 | DR66: 0.9568984401 | DS66: 1 | DT66: 0 | DU66: 0 | DV66: 0.3448497407 | DW66: 1 | DX66: 1 | DY66: 1 | DZ66: 1 | EA66: 0.8269795851 | EB66: 1 | EC66: 0 | ED66: 1 | EE66: 0.7326219712 | EF66: 0.9999982855 | EG66: 0.221457255 | EH66: 0 | EI66: 0.7565060496 | EJ66: 1 | EK66: 1 | EL66: 1 | EM66: 0 | EN66: 0.999178655 | EO66: 0 | EP66: 0.9120043254 | EQ66: 1 | ER66: 1 | ES66: 1 | ET66: 1 | EU66: 0 | EV66: 0.8776977821 | EW66: 0 | EX66: 0.9994271465 | EY66: 0.9918044826 | EZ66: 1 | FA66: 0 | FB66: 0 | FC66: 0.9755503687 | FD66: 0 | FE66: 0 | FF66: 1 | FG66: 0.9611608952 | FH66: 0.9978947197 | FI66: See "DOGGR Data 2015"
B67: 1.4.12 Fraction of steam generation via cogeneration | E67: [-] | G67: 0 | L67: 0.07874157498 | W67: 0.1165146642 | AO67: 0.2735339126 | AU67: 0.0910772504 | BP67: 0.1820183373 | BQ67: 0.6368739966 | CB67: 0.0480445765 | CH67: 0.1682659868 | CI67: 0.2349317924 | CM67: 1 | CZ67: 0.8524764233 | DC67: 0.3448938826 | DV67: 0.228319527 | FI67: See "Cogen Data 2015"
B68: 1.4.13 Fraction of steam generation via solar thermal | E68: [-] | G68: 0
A69: 1.5 Processing practices
B70: 1.5.1 Heater/treater | E70: NA | G70: 0
B71: 1.5.2 Stabilizer column | E71: NA | G71: 1
B72: 1.5.3 Upgrader type | G72: 0
C73: 0 = None
C74: 1 = Delayed coking
C75: 2 = Hydroconversion
C76: 3 = Combined hydroconversion and fluid coking
B77: 1.5.3 Associated Gas Processing Path | E77: NA | G77: 5 | BQ77: 6
C78: 1= None
C79: 2= Minimal: Dehydrator
C80: 3= Acid Gas: Dehydrator + Amine Process
C81: 4= Wet Gas: Dehydrator + Demethanizer
C82: 5= Acid Wet Gas: Dehydrator + Amine Process + Demethanizer
C83: 6= CO2-EOR Membrane: Dehydrator + Compressor + Membrane + Amine Process + Demethanizer
C84: 7= CO2-EOR Ryan Holmes: Dehydrator + Ryan Holmes Process (Demethanizer Included)
C85: Notes: Choose paths 6 or 7 only if gas flooding is ON and CO2 is the flood gas
B86: 1.5.4 Flaring-to-oil ratio | E86: scf/bbl oil | G86: 181.5280918 | H86: 13 | I86: 13 | J86: 13 | K86: 13 | L86: 13 | M86: 13 | N86: 13 | O86: 13 | P86: 13 | Q86: 13 | R86: 13 | S86: 13 | T86: 13 | U86: 13 | V86: 13 | W86: 13 | X86: 13 | Y86: 13 | Z86: 13 | AA86: 13 | AB86: 13 | AC86: 13 | AD86: 13 | AE86: 13 | AF86: 13 | AG86: 13 | AH86: 13 | AI86: 13 | AJ86: 13 | AK86: 13 | AL86: 13 | AM86: 13 | AN86: 13 | AO86: 13 | AP86: 13 | AQ86: 13 | AR86: 13 | AS86: 13 | AT86: 13 | AU86: 13 | AV86: 13 | AW86: 13 | AX86: 13 | AY86: 13 | AZ86: 13 | BA86: 13 | BB86: 13 | BC86: 13 | BD86: 13 | BE86: 13 | BF86: 13 | BG86: 13 | BH86: 13 | BI86: 13 | BJ86: 13 | BK86: 13 | BL86: 13 | BM86: 13 | BN86: 13 | BO86: 13 | BP86: 13 | BQ86: 13 | BR86: 13 | BS86: 13 | BT86: 13 | BU86: 13 | BV86: 13 | BW86: 13 | BX86: 13 | BY86: 13 | BZ86: 13 | CA86: 13 | CB86: 13 | CC86: 13 | CD86: 13 | CE86: 13 | CF86: 13 | CG86: 13 | CH86: 13 | CI86: 13 | CJ86: 13 | CK86: 13 | CL86: 13 | CM86: 13 | CN86: 13 | CO86: 13 | CP86: 13 | CQ86: 13 | CR86: 13 | CS86: 13 | CT86: 13 | CU86: 13 | CV86: 13 | CW86: 13 | CX86: 13 | CY86: 13 | CZ86: 13 | DA86: 13 | DB86: 13 | DC86: 13 | DD86: 13 | DE86: 13 | DF86: 13 | DG86: 13 | DH86: 13 | DI86: 13 | DJ86: 13 | DK86: 13 | DL86: 13 | DM86: 13 | DN86: 13 | DO86: 13 | DP86: 13 | DQ86: 13 | DR86: 13 | DS86: 13 | DT86: 13 | DU86: 13 | DV86: 13 | DW86: 13 | DX86: 13 | DY86: 13 | DZ86: 13 | EA86: 13 | EB86: 13 | EC86: 13 | ED86: 13 | EE86: 13 | EF86: 13 | EG86: 13 | EH86: 13 | EI86: 13 | EJ86: 13 | EK86: 13 | EL86: 13 | EM86: 13 | EN86: 13 | EO86: 13 | EP86: 13 | EQ86: 13 | ER86: 13 | ES86: 13 | ET86: 13 | EU86: 13 | EV86: 13 | EW86: 13 | EX86: 13 | EY86: 13 | EZ86: 13 | FA86: 13 | FB86: 13 | FC86: 13 | FD86: 13 | FE86: 13 | FF86: 13 | FG86: 13 | FH86: 13
B87: 1.5.5 Venting-to-oil ratio | E87: scf/bbl oil | G87: 0
B88: 1.5.6 Volume fraction of diluent | E88: [-] | G88: 0
A90: 1.6 Land use impacts
B91: 1.6.1 Crude ecosystem carbon richness
C92: 1.6.1.1 Low carbon richness (semi-arid grasslands) | E92: NA | G92: 0 | H92: 1 | I92: 1 | J92: 1 | K92: 1 | L92: 1 | M92: 1 | N92: 1 | O92: 1 | P92: 1 | Q92: 1 | R92: 1 | S92: 1 | T92: 1 | U92: 1 | V92: 1 | W92: 1 | X92: 1 | Y92: 1 | Z92: 1 | AA92: 1 | AB92: 1 | AC92: 1 | AD92: 1 | AE92: 1 | AF92: 1 | AG92: 1 | AH92: 1 | AI92: 1 | AJ92: 1 | AK92: 1 | AL92: 1 | AM92: 1 | AN92: 1 | AO92: 1 | AP92: 1 | AQ92: 1 | AR92: 1 | AS92: 1 | AT92: 1 | AU92: 1 | AV92: 1 | AW92: 1 | AX92: 1 | AY92: 1 | AZ92: 1 | BA92: 1 | BB92: 1 | BC92: 1 | BD92: 1 | BE92: 1 | BF92: 1 | BG92: 1 | BH92: 1 | BI92: 1 | BJ92: 1 | BK92: 1 | BL92: 1 | BM92: 1 | BN92: 1 | BO92: 1 | BP92: 1 | BQ92: 1 | BR92: 1 | BS92: 1 | BT92: 1 | BU92: 1 | BV92: 1 | BW92: 1 | BX92: 1 | BY92: 1 | BZ92: 1 | CA92: 1 | CB92: 1 | CC92: 1 | CD92: 1 | CE92: 1 | CF92: 1 | CG92: 1 | CH92: 1 | CI92: 1 | CJ92: 1 | CK92: 1 | CL92: 1 | CM92: 1 | CN92: 1 | CO92: 1 | CP92: 1 | CQ92: 1 | CR92: 1 | CS92: 1 | CT92: 1 | CU92: 1 | CV92: 1 | CW92: 1 | CX92: 1 | CY92: 1 | CZ92: 1 | DA92: 1 | DB92: 1 | DC92: 1 | DD92: 1 | DE92: 1 | DF92: 1 | DG92: 1 | DH92: 1 | DI92: 1 | DJ92: 1 | DK92: 1 | DL92: 1 | DM92: 1 | DN92: 1 | DO92: 1 | DP92: 1 | DQ92: 1 | DR92: 1 | DS92: 1 | DT92: 1 | DU92: 1 | DV92: 1 | DW92: 1 | DX92: 1 | DY92: 1 | DZ92: 1 | EA92: 1 | EB92: 1 | EC92: 1 | ED92: 1 | EE92: 1 | EF92: 1 | EG92: 1 | EH92: 1 | EI92: 1 | EJ92: 1 | EK92: 1 | EL92: 1 | EM92: 1 | EN92: 1 | EO92: 1 | EP92: 1 | EQ92: 1 | ER92: 1 | ES92: 1 | ET92: 1 | EU92: 1 | EV92: 1 | EW92: 1 | EX92: 1 | EY92: 1 | EZ92: 1 | FA92: 1 | FB92: 1 | FC92: 1 | FD92: 1 | FE92: 1 | FF92: 1 | FG92: 1 | FH92: 1 | FI92: Assumed low ecosystem carbon richness (grassland) for all California fields
C93: 1.6.1.2 Moderate carbon richness (mixed) | E93: NA | G93: 1 | H93: 0 | I93: 0 | J93: 0 | K93: 0 | L93: 0 | M93: 0 | N93: 0 | O93: 0 | P93: 0 | Q93: 0 | R93: 0 | S93: 0 | T93: 0 | U93: 0 | V93: 0 | W93: 0 | X93: 0 | Y93: 0 | Z93: 0 | AA93: 0 | AB93: 0 | AC93: 0 | AD93: 0 | AE93: 0 | AF93: 0 | AG93: 0 | AH93: 0 | AI93: 0 | AJ93: 0 | AK93: 0 | AL93: 0 | AM93: 0 | AN93: 0 | AO93: 0 | AP93: 0 | AQ93: 0 | AR93: 0 | AS93: 0 | AT93: 0 | AU93: 0 | AV93: 0 | AW93: 0 | AX93: 0 | AY93: 0 | AZ93: 0 | BA93: 0 | BB93: 0 | BC93: 0 | BD93: 0 | BE93: 0 | BF93: 0 | BG93: 0 | BH93: 0 | BI93: 0 | BJ93: 0 | BK93: 0 | BL93: 0 | BM93: 0 | BN93: 0 | BO93: 0 | BP93: 0 | BQ93: 0 | BR93: 0 | BS93: 0 | BT93: 0 | BU93: 0 | BV93: 0 | BW93: 0 | BX93: 0 | BY93: 0 | BZ93: 0 | CA93: 0 | CB93: 0 | CC93: 0 | CD93: 0 | CE93: 0 | CF93: 0 | CG93: 0 | CH93: 0 | CI93: 0 | CJ93: 0 | CK93: 0 | CL93: 0 | CM93: 0 | CN93: 0 | CO93: 0 | CP93: 0 | CQ93: 0 | CR93: 0 | CS93: 0 | CT93: 0 | CU93: 0 | CV93: 0 | CW93: 0 | CX93: 0 | CY93: 0 | CZ93: 0 | DA93: 0 | DB93: 0 | DC93: 0 | DD93: 0 | DE93: 0 | DF93: 0 | DG93: 0 | DH93: 0 | DI93: 0 | DJ93: 0 | DK93: 0 | DL93: 0 | DM93: 0 | DN93: 0 | DO93: 0 | DP93: 0 | DQ93: 0 | DR93: 0 | DS93: 0 | DT93: 0 | DU93: 0 | DV93: 0 | DW93: 0 | DX93: 0 | DY93: 0 | DZ93: 0 | EA93: 0 | EB93: 0 | EC93: 0 | ED93: 0 | EE93: 0 | EF93: 0 | EG93: 0 | EH93: 0 | EI93: 0 | EJ93: 0 | EK93: 0 | EL93: 0 | EM93: 0 | EN93: 0 | EO93: 0 | EP93: 0 | EQ93: 0 | ER93: 0 | ES93: 0 | ET93: 0 | EU93: 0 | EV93: 0 | EW93: 0 | EX93: 0 | EY93: 0 | EZ93: 0 | FA93: 0 | FB93: 0 | FC93: 0 | FD93: 0 | FE93: 0 | FF93: 0 | FG93: 0 | FH93: 0
C94: 1.6.1.3 High carbon richness (forested) | E94: NA | G94: 0 | H94: 0 | I94: 0 | J94: 0 | K94: 0 | L94: 0 | M94: 0 | N94: 0 | O94: 0 | P94: 0 | Q94: 0 | R94: 0 | S94: 0 | T94: 0 | U94: 0 | V94: 0 | W94: 0 | X94: 0 | Y94: 0 | Z94: 0 | AA94: 0 | AB94: 0 | AC94: 0 | AD94: 0 | AE94: 0 | AF94: 0 | AG94: 0 | AH94: 0 | AI94: 0 | AJ94: 0 | AK94: 0 | AL94: 0 | AM94: 0 | AN94: 0 | AO94: 0 | AP94: 0 | AQ94: 0 | AR94: 0 | AS94: 0 | AT94: 0 | AU94: 0 | AV94: 0 | AW94: 0 | AX94: 0 | AY94: 0 | AZ94: 0 | BA94: 0 | BB94: 0 | BC94: 0 | BD94: 0 | BE94: 0 | BF94: 0 | BG94: 0 | BH94: 0 | BI94: 0 | BJ94: 0 | BK94: 0 | BL94: 0 | BM94: 0 | BN94: 0 | BO94: 0 | BP94: 0 | BQ94: 0 | BR94: 0 | BS94: 0 | BT94: 0 | BU94: 0 | BV94: 0 | BW94: 0 | BX94: 0 | BY94: 0 | BZ94: 0 | CA94: 0 | CB94: 0 | CC94: 0 | CD94: 0 | CE94: 0 | CF94: 0 | CG94: 0 | CH94: 0 | CI94: 0 | CJ94: 0 | CK94: 0 | CL94: 0 | CM94: 0 | CN94: 0 | CO94: 0 | CP94: 0 | CQ94: 0 | CR94: 0 | CS94: 0 | CT94: 0 | CU94: 0 | CV94: 0 | CW94: 0 | CX94: 0 | CY94: 0 | CZ94: 0 | DA94: 0 | DB94: 0 | DC94: 0 | DD94: 0 | DE94: 0 | DF94: 0 | DG94: 0 | DH94: 0 | DI94: 0 | DJ94: 0 | DK94: 0 | DL94: 0 | DM94: 0 | DN94: 0 | DO94: 0 | DP94: 0 | DQ94: 0 | DR94: 0 | DS94: 0 | DT94: 0 | DU94: 0 | DV94: 0 | DW94: 0 | DX94: 0 | DY94: 0 | DZ94: 0 | EA94: 0 | EB94: 0 | EC94: 0 | ED94: 0 | EE94: 0 | EF94: 0 | EG94: 0 | EH94: 0 | EI94: 0 | EJ94: 0 | EK94: 0 | EL94: 0 | EM94: 0 | EN94: 0 | EO94: 0 | EP94: 0 | EQ94: 0 | ER94: 0 | ES94: 0 | ET94: 0 | EU94: 0 | EV94: 0 | EW94: 0 | EX94: 0 | EY94: 0 | EZ94: 0 | FA94: 0 | FB94: 0 | FC94: 0 | FD94: 0 | FE94: 0 | FF94: 0 | FG94: 0 | FH94: 0
B95: 1.6.2 Field development intensity
C96: 1.6.2.1 Low intensity development and low oxidation | E96: NA | G96: 0 | H96: 0 | I96: 0 | J96: 0 | K96: 0 | L96: 0 | M96: 0 | N96: 0 | O96: 0 | P96: 0 | Q96: 0 | R96: 0 | S96: 0 | T96: 0 | U96: 0 | V96: 0 | W96: 0 | X96: 0 | Y96: 0 | Z96: 0 | AA96: 0 | AB96: 0 | AC96: 0 | AD96: 0 | AE96: 0 | AF96: 0 | AG96: 0 | AH96: 0 | AI96: 0 | AJ96: 0 | AK96: 0 | AL96: 0 | AM96: 0 | AN96: 0 | AO96: 0 | AP96: 0 | AQ96: 0 | AR96: 0 | AS96: 0 | AT96: 0 | AU96: 0 | AV96: 0 | AW96: 0 | AX96: 0 | AY96: 0 | AZ96: 0 | BA96: 0 | BB96: 0 | BC96: 0 | BD96: 0 | BE96: 0 | BF96: 0 | BG96: 0 | BH96: 0 | BI96: 0 | BJ96: 0 | BK96: 0 | BL96: 0 | BM96: 0 | BN96: 0 | BO96: 0 | BP96: 0 | BQ96: 0 | BR96: 0 | BS96: 0 | BT96: 0 | BU96: 0 | BV96: 0 | BW96: 0 | BX96: 0 | BY96: 0 | BZ96: 0 | CA96: 0 | CB96: 0 | CC96: 0 | CD96: 0 | CE96: 0 | CF96: 0 | CG96: 0 | CH96: 0 | CI96: 0 | CJ96: 0 | CK96: 0 | CL96: 0 | CM96: 0 | CN96: 0 | CO96: 0 | CP96: 0 | CQ96: 0 | CR96: 0 | CS96: 0 | CT96: 0 | CU96: 0 | CV96: 0 | CW96: 0 | CX96: 0 | CY96: 0 | CZ96: 0 | DA96: 0 | DB96: 0 | DC96: 0 | DD96: 0 | DE96: 0 | DF96: 0 | DG96: 0 | DH96: 0 | DI96: 0 | DJ96: 0 | DK96: 0 | DL96: 0 | DM96: 0 | DN96: 0 | DO96: 0 | DP96: 0 | DQ96: 0 | DR96: 0 | DS96: 0 | DT96: 0 | DU96: 0 | DV96: 0 | DW96: 0 | DX96: 0 | DY96: 0 | DZ96: 0 | EA96: 0 | EB96: 0 | EC96: 0 | ED96: 0 | EE96: 0 | EF96: 0 | EG96: 0 | EH96: 0 | EI96: 0 | EJ96: 0 | EK96: 0 | EL96: 0 | EM96: 0 | EN96: 0 | EO96: 0 | EP96: 0 | EQ96: 0 | ER96: 0 | ES96: 0 | ET96: 0 | EU96: 0 | EV96: 0 | EW96: 0 | EX96: 0 | EY96: 0 | EZ96: 0 | FA96: 0 | FB96: 0 | FC96: 0 | FD96: 0 | FE96: 0 | FF96: 0 | FG96: 0 | FH96: 0
C97: 1.6.2.2 Moderate intensity development and moderate oxidation | E97: NA | G97: 1 | H97: 1 | I97: 1 | J97: 1 | K97: 1 | L97: 1 | M97: 1 | N97: 1 | O97: 1 | P97: 1 | Q97: 1 | R97: 1 | S97: 1 | T97: 1 | U97: 1 | V97: 1 | W97: 1 | X97: 1 | Y97: 1 | Z97: 1 | AA97: 1 | AB97: 1 | AC97: 1 | AD97: 1 | AE97: 1 | AF97: 1 | AG97: 1 | AH97: 1 | AI97: 1 | AJ97: 1 | AK97: 1 | AL97: 1 | AM97: 1 | AN97: 1 | AO97: 1 | AP97: 1 | AQ97: 1 | AR97: 1 | AS97: 1 | AT97: 1 | AU97: 1 | AV97: 1 | AW97: 1 | AX97: 1 | AY97: 1 | AZ97: 1 | BA97: 1 | BB97: 1 | BC97: 1 | BD97: 1 | BE97: 1 | BF97: 1 | BG97: 1 | BH97: 1 | BI97: 1 | BJ97: 1 | BK97: 1 | BL97: 1 | BM97: 1 | BN97: 1 | BO97: 1 | BP97: 1 | BQ97: 1 | BR97: 1 | BS97: 1 | BT97: 1 | BU97: 1 | BV97: 1 | BW97: 1 | BX97: 1 | BY97: 1 | BZ97: 1 | CA97: 1 | CB97: 1 | CC97: 1 | CD97: 1 | CE97: 1 | CF97: 1 | CG97: 1 | CH97: 1 | CI97: 1 | CJ97: 1 | CK97: 1 | CL97: 1 | CM97: 1 | CN97: 1 | CO97: 1 | CP97: 1 | CQ97: 1 | CR97: 1 | CS97: 1 | CT97: 1 | CU97: 1 | CV97: 1 | CW97: 1 | CX97: 1 | CY97: 1 | CZ97: 1 | DA97: 1 | DB97: 1 | DC97: 1 | DD97: 1 | DE97: 1 | DF97: 1 | DG97: 1 | DH97: 1 | DI97: 1 | DJ97: 1 | DK97: 1 | DL97: 1 | DM97: 1 | DN97: 1 | DO97: 1 | DP97: 1 | DQ97: 1 | DR97: 1 | DS97: 1 | DT97: 1 | DU97: 1 | DV97: 1 | DW97: 1 | DX97: 1 | DY97: 1 | DZ97: 1 | EA97: 1 | EB97: 1 | EC97: 1 | ED97: 1 | EE97: 1 | EF97: 1 | EG97: 1 | EH97: 1 | EI97: 1 | EJ97: 1 | EK97: 1 | EL97: 1 | EM97: 1 | EN97: 1 | EO97: 1 | EP97: 1 | EQ97: 1 | ER97: 1 | ES97: 1 | ET97: 1 | EU97: 1 | EV97: 1 | EW97: 1 | EX97: 1 | EY97: 1 | EZ97: 1 | FA97: 1 | FB97: 1 | FC97: 1 | FD97: 1 | FE97: 1 | FF97: 1 | FG97: 1 | FH97: 1 | FI97: Assumed moderate development intensity for all California fields
C98: 1.6.2.3 High intensity development and high oxidation | E98: NA | G98: 0 | H98: 0 | I98: 0 | J98: 0 | K98: 0 | L98: 0 | M98: 0 | N98: 0 | O98: 0 | P98: 0 | Q98: 0 | R98: 0 | S98: 0 | T98: 0 | U98: 0 | V98: 0 | W98: 0 | X98: 0 | Y98: 0 | Z98: 0 | AA98: 0 | AB98: 0 | AC98: 0 | AD98: 0 | AE98: 0 | AF98: 0 | AG98: 0 | AH98: 0 | AI98: 0 | AJ98: 0 | AK98: 0 | AL98: 0 | AM98: 0 | AN98: 0 | AO98: 0 | AP98: 0 | AQ98: 0 | AR98: 0 | AS98: 0 | AT98: 0 | AU98: 0 | AV98: 0 | AW98: 0 | AX98: 0 | AY98: 0 | AZ98: 0 | BA98: 0 | BB98: 0 | BC98: 0 | BD98: 0 | BE98: 0 | BF98: 0 | BG98: 0 | BH98: 0 | BI98: 0 | BJ98: 0 | BK98: 0 | BL98: 0 | BM98: 0 | BN98: 0 | BO98: 0 | BP98: 0 | BQ98: 0 | BR98: 0 | BS98: 0 | BT98: 0 | BU98: 0 | BV98: 0 | BW98: 0 | BX98: 0 | BY98: 0 | BZ98: 0 | CA98: 0 | CB98: 0 | CC98: 0 | CD98: 0 | CE98: 0 | CF98: 0 | CG98: 0 | CH98: 0 | CI98: 0 | CJ98: 0 | CK98: 0 | CL98: 0 | CM98: 0 | CN98: 0 | CO98: 0 | CP98: 0 | CQ98: 0 | CR98: 0 | CS98: 0 | CT98: 0 | CU98: 0 | CV98: 0 | CW98: 0 | CX98: 0 | CY98: 0 | CZ98: 0 | DA98: 0 | DB98: 0 | DC98: 0 | DD98: 0 | DE98: 0 | DF98: 0 | DG98: 0 | DH98: 0 | DI98: 0 | DJ98: 0 | DK98: 0 | DL98: 0 | DM98: 0 | DN98: 0 | DO98: 0 | DP98: 0 | DQ98: 0 | DR98: 0 | DS98: 0 | DT98: 0 | DU98: 0 | DV98: 0 | DW98: 0 | DX98: 0 | DY98: 0 | DZ98: 0 | EA98: 0 | EB98: 0 | EC98: 0 | ED98: 0 | EE98: 0 | EF98: 0 | EG98: 0 | EH98: 0 | EI98: 0 | EJ98: 0 | EK98: 0 | EL98: 0 | EM98: 0 | EN98: 0 | EO98: 0 | EP98: 0 | EQ98: 0 | ER98: 0 | ES98: 0 | ET98: 0 | EU98: 0 | EV98: 0 | EW98: 0 | EX98: 0 | EY98: 0 | EZ98: 0 | FA98: 0 | FB98: 0 | FC98: 0 | FD98: 0 | FE98: 0 | FF98: 0 | FG98: 0 | FH98: 0
A100: 1.8 Crude oil transport
B101: 1.8.1 Fraction of oil transported by each mode
C102: 1.8.1.1 Ocean tanker | E102: [-] | G102: 1 | H102: 0 | I102: 0 | J102: 0 | K102: 0 | L102: 0 | M102: 0 | N102: 0 | O102: 0 | P102: 0 | Q102: 0 | R102: 0 | S102: 0 | T102: 0 | U102: 0 | V102: 0 | W102: 0 | X102: 0 | Y102: 0 | Z102: 0 | AA102: 0 | AB102: 0 | AC102: 0 | AD102: 0 | AE102: 0 | AF102: 0 | AG102: 0 | AH102: 0 | AI102: 0 | AJ102: 0 | AK102: 0 | AL102: 0 | AM102: 0 | AN102: 0 | AO102: 0 | AP102: 0 | AQ102: 0 | AR102: 0 | AS102: 0 | AT102: 0 | AU102: 0 | AV102: 0 | AW102: 0 | AX102: 0 | AY102: 0 | AZ102: 0 | BA102: 0 | BB102: 0 | BC102: 0 | BD102: 0 | BE102: 0 | BF102: 0 | BG102: 0 | BH102: 0 | BI102: 0 | BJ102: 0 | BK102: 0 | BL102: 0 | BM102: 0 | BN102: 0 | BO102: 0 | BP102: 0 | BQ102: 0 | BR102: 0 | BS102: 0 | BT102: 0 | BU102: 0 | BV102: 0 | BW102: 0 | BX102: 0 | BY102: 0 | BZ102: 0 | CA102: 0 | CB102: 0 | CC102: 0 | CD102: 0 | CE102: 0 | CF102: 0 | CG102: 0 | CH102: 0 | CI102: 0 | CJ102: 0 | CK102: 0 | CL102: 0 | CM102: 0 | CN102: 0 | CO102: 0 | CP102: 0 | CQ102: 0 | CR102: 0 | CS102: 0 | CT102: 0 | CU102: 0 | CV102: 0 | CW102: 0 | CX102: 0 | CY102: 0 | CZ102: 0 | DA102: 0 | DB102: 0 | DC102: 0 | DD102: 0 | DE102: 0 | DF102: 0 | DG102: 0 | DH102: 0 | DI102: 0 | DJ102: 0 | DK102: 0 | DL102: 0 | DM102: 0 | DN102: 0 | DO102: 0 | DP102: 0 | DQ102: 0 | DR102: 0 | DS102: 0 | DT102: 0 | DU102: 0 | DV102: 0 | DW102: 0 | DX102: 0 | DY102: 0 | DZ102: 0 | EA102: 0 | EB102: 0 | EC102: 0 | ED102: 0 | EE102: 0 | EF102: 0 | EG102: 0 | EH102: 0 | EI102: 0 | EJ102: 0 | EK102: 0 | EL102: 0 | EM102: 0 | EN102: 0 | EO102: 0 | EP102: 0 | EQ102: 0 | ER102: 0 | ES102: 0 | ET102: 0 | EU102: 0 | EV102: 0 | EW102: 0 | EX102: 0 | EY102: 0 | EZ102: 0 | FA102: 0 | FB102: 0 | FC102: 0 | FD102: 0 | FE102: 0 | FF102: 0 | FG102: 0 | FH102: 0
C103: 1.8.1.2 Barge | E103: [-] | G103: 0 | H103: 0 | I103: 0 | J103: 0 | K103: 0 | L103: 0 | M103: 0 | N103: 0 | O103: 0 | P103: 0 | Q103: 0 | R103: 0 | S103: 0 | T103: 0 | U103: 0 | V103: 0 | W103: 0 | X103: 0 | Y103: 0 | Z103: 0 | AA103: 0 | AB103: 0 | AC103: 0 | AD103: 0 | AE103: 0 | AF103: 0 | AG103: 0 | AH103: 0 | AI103: 0 | AJ103: 0 | AK103: 0 | AL103: 0 | AM103: 0 | AN103: 0 | AO103: 0 | AP103: 0 | AQ103: 0 | AR103: 0 | AS103: 0 | AT103: 0 | AU103: 0 | AV103: 0 | AW103: 0 | AX103: 0 | AY103: 0 | AZ103: 0 | BA103: 0 | BB103: 0 | BC103: 0 | BD103: 0 | BE103: 0 | BF103: 0 | BG103: 0 | BH103: 0 | BI103: 0 | BJ103: 0 | BK103: 0 | BL103: 0 | BM103: 0 | BN103: 0 | BO103: 0 | BP103: 0 | BQ103: 0 | BR103: 0 | BS103: 0 | BT103: 0 | BU103: 0 | BV103: 0 | BW103: 0 | BX103: 0 | BY103: 0 | BZ103: 0 | CA103: 0 | CB103: 0 | CC103: 0 | CD103: 0 | CE103: 0 | CF103: 0 | CG103: 0 | CH103: 0 | CI103: 0 | CJ103: 0 | CK103: 0 | CL103: 0 | CM103: 0 | CN103: 0 | CO103: 0 | CP103: 0 | CQ103: 0 | CR103: 0 | CS103: 0 | CT103: 0 | CU103: 0 | CV103: 0 | CW103: 0 | CX103: 0 | CY103: 0 | CZ103: 0 | DA103: 0 | DB103: 0 | DC103: 0 | DD103: 0 | DE103: 0 | DF103: 0 | DG103: 0 | DH103: 0 | DI103: 0 | DJ103: 0 | DK103: 0 | DL103: 0 | DM103: 0 | DN103: 0 | DO103: 0 | DP103: 0 | DQ103: 0 | DR103: 0 | DS103: 0 | DT103: 0 | DU103: 0 | DV103: 0 | DW103: 0 | DX103: 0 | DY103: 0 | DZ103: 0 | EA103: 0 | EB103: 0 | EC103: 0 | ED103: 0 | EE103: 0 | EF103: 0 | EG103: 0 | EH103: 0 | EI103: 0 | EJ103: 0 | EK103: 0 | EL103: 0 | EM103: 0 | EN103: 0 | EO103: 0 | EP103: 0 | EQ103: 0 | ER103: 0 | ES103: 0 | ET103: 0 | EU103: 0 | EV103: 0 | EW103: 0 | EX103: 0 | EY103: 0 | EZ103: 0 | FA103: 0 | FB103: 0 | FC103: 0 | FD103: 0 | FE103: 0 | FF103: 0 | FG103: 0 | FH103: 0
C104: 1.8.1.3 Pipeline | E104: [-] | G104: 1 | H104: 1 | I104: 1 | J104: 1 | K104: 1 | L104: 1 | M104: 1 | N104: 1 | O104: 1 | P104: 1 | Q104: 1 | R104: 1 | S104: 1 | T104: 1 | U104: 1 | V104: 1 | W104: 1 | X104: 1 | Y104: 1 | Z104: 1 | AA104: 1 | AB104: 1 | AC104: 1 | AD104: 1 | AE104: 1 | AF104: 1 | AG104: 1 | AH104: 1 | AI104: 1 | AJ104: 1 | AK104: 1 | AL104: 1 | AM104: 1 | AN104: 1 | AO104: 1 | AP104: 1 | AQ104: 1 | AR104: 1 | AS104: 1 | AT104: 1 | AU104: 1 | AV104: 1 | AW104: 1 | AX104: 1 | AY104: 1 | AZ104: 1 | BA104: 1 | BB104: 1 | BC104: 1 | BD104: 1 | BE104: 1 | BF104: 1 | BG104: 1 | BH104: 1 | BI104: 1 | BJ104: 1 | BK104: 1 | BL104: 1 | BM104: 1 | BN104: 1 | BO104: 1 | BP104: 1 | BQ104: 1 | BR104: 1 | BS104: 1 | BT104: 1 | BU104: 1 | BV104: 1 | BW104: 1 | BX104: 1 | BY104: 1 | BZ104: 1 | CA104: 1 | CB104: 1 | CC104: 1 | CD104: 1 | CE104: 1 | CF104: 1 | CG104: 1 | CH104: 1 | CI104: 1 | CJ104: 1 | CK104: 1 | CL104: 1 | CM104: 1 | CN104: 1 | CO104: 1 | CP104: 1 | CQ104: 1 | CR104: 1 | CS104: 1 | CT104: 1 | CU104: 1 | CV104: 1 | CW104: 1 | CX104: 1 | CY104: 1 | CZ104: 1 | DA104: 1 | DB104: 1 | DC104: 1 | DD104: 1 | DE104: 1 | DF104: 1 | DG104: 1 | DH104: 1 | DI104: 1 | DJ104: 1 | DK104: 1 | DL104: 1 | DM104: 1 | DN104: 1 | DO104: 1 | DP104: 1 | DQ104: 1 | DR104: 1 | DS104: 1 | DT104: 1 | DU104: 1 | DV104: 1 | DW104: 1 | DX104: 1 | DY104: 1 | DZ104: 1 | EA104: 1 | EB104: 1 | EC104: 1 | ED104: 1 | EE104: 1 | EF104: 1 | EG104: 1 | EH104: 1 | EI104: 1 | EJ104: 1 | EK104: 1 | EL104: 1 | EM104: 1 | EN104: 1 | EO104: 1 | EP104: 1 | EQ104: 1 | ER104: 1 | ES104: 1 | ET104: 1 | EU104: 1 | EV104: 1 | EW104: 1 | EX104: 1 | EY104: 1 | EZ104: 1 | FA104: 1 | FB104: 1 | FC104: 1 | FD104: 1 | FE104: 1 | FF104: 1 | FG104: 1 | FH104: 1 | FI104: Assumed pipeline transport for all California fields
C105: 1.8.1.4 Rail | E105: [-] | G105: 0 | H105: 0 | I105: 0 | J105: 0 | K105: 0 | L105: 0 | M105: 0 | N105: 0 | O105: 0 | P105: 0 | Q105: 0 | R105: 0 | S105: 0 | T105: 0 | U105: 0 | V105: 0 | W105: 0 | X105: 0 | Y105: 0 | Z105: 0 | AA105: 0 | AB105: 0 | AC105: 0 | AD105: 0 | AE105: 0 | AF105: 0 | AG105: 0 | AH105: 0 | AI105: 0 | AJ105: 0 | AK105: 0 | AL105: 0 | AM105: 0 | AN105: 0 | AO105: 0 | AP105: 0 | AQ105: 0 | AR105: 0 | AS105: 0 | AT105: 0 | AU105: 0 | AV105: 0 | AW105: 0 | AX105: 0 | AY105: 0 | AZ105: 0 | BA105: 0 | BB105: 0 | BC105: 0 | BD105: 0 | BE105: 0 | BF105: 0 | BG105: 0 | BH105: 0 | BI105: 0 | BJ105: 0 | BK105: 0 | BL105: 0 | BM105: 0 | BN105: 0 | BO105: 0 | BP105: 0 | BQ105: 0 | BR105: 0 | BS105: 0 | BT105: 0 | BU105: 0 | BV105: 0 | BW105: 0 | BX105: 0 | BY105: 0 | BZ105: 0 | CA105: 0 | CB105: 0 | CC105: 0 | CD105: 0 | CE105: 0 | CF105: 0 | CG105: 0 | CH105: 0 | CI105: 0 | CJ105: 0 | CK105: 0 | CL105: 0 | CM105: 0 | CN105: 0 | CO105: 0 | CP105: 0 | CQ105: 0 | CR105: 0 | CS105: 0 | CT105: 0 | CU105: 0 | CV105: 0 | CW105: 0 | CX105: 0 | CY105: 0 | CZ105: 0 | DA105: 0 | DB105: 0 | DC105: 0 | DD105: 0 | DE105: 0 | DF105: 0 | DG105: 0 | DH105: 0 | DI105: 0 | DJ105: 0 | DK105: 0 | DL105: 0 | DM105: 0 | DN105: 0 | DO105: 0 | DP105: 0 | DQ105: 0 | DR105: 0 | DS105: 0 | DT105: 0 | DU105: 0 | DV105: 0 | DW105: 0 | DX105: 0 | DY105: 0 | DZ105: 0 | EA105: 0 | EB105: 0 | EC105: 0 | ED105: 0 | EE105: 0 | EF105: 0 | EG105: 0 | EH105: 0 | EI105: 0 | EJ105: 0 | EK105: 0 | EL105: 0 | EM105: 0 | EN105: 0 | EO105: 0 | EP105: 0 | EQ105: 0 | ER105: 0 | ES105: 0 | ET105: 0 | EU105: 0 | EV105: 0 | EW105: 0 | EX105: 0 | EY105: 0 | EZ105: 0 | FA105: 0 | FB105: 0 | FC105: 0 | FD105: 0 | FE105: 0 | FF105: 0 | FG105: 0 | FH105: 0
C106: 1.8.1.5 Truck | G106: 0 | H106: 0 | I106: 0 | J106: 0 | K106: 0 | L106: 0 | M106: 0 | N106: 0 | O106: 0 | P106: 0 | Q106: 0 | R106: 0 | S106: 0 | T106: 0 | U106: 0 | V106: 0 | W106: 0 | X106: 0 | Y106: 0 | Z106: 0 | AA106: 0 | AB106: 0 | AC106: 0 | AD106: 0 | AE106: 0 | AF106: 0 | AG106: 0 | AH106: 0 | AI106: 0 | AJ106: 0 | AK106: 0 | AL106: 0 | AM106: 0 | AN106: 0 | AO106: 0 | AP106: 0 | AQ106: 0 | AR106: 0 | AS106: 0 | AT106: 0 | AU106: 0 | AV106: 0 | AW106: 0 | AX106: 0 | AY106: 0 | AZ106: 0 | BA106: 0 | BB106: 0 | BC106: 0 | BD106: 0 | BE106: 0 | BF106: 0 | BG106: 0 | BH106: 0 | BI106: 0 | BJ106: 0 | BK106: 0 | BL106: 0 | BM106: 0 | BN106: 0 | BO106: 0 | BP106: 0 | BQ106: 0 | BR106: 0 | BS106: 0 | BT106: 0 | BU106: 0 | BV106: 0 | BW106: 0 | BX106: 0 | BY106: 0 | BZ106: 0 | CA106: 0 | CB106: 0 | CC106: 0 | CD106: 0 | CE106: 0 | CF106: 0 | CG106: 0 | CH106: 0 | CI106: 0 | CJ106: 0 | CK106: 0 | CL106: 0 | CM106: 0 | CN106: 0 | CO106: 0 | CP106: 0 | CQ106: 0 | CR106: 0 | CS106: 0 | CT106: 0 | CU106: 0 | CV106: 0 | CW106: 0 | CX106: 0 | CY106: 0 | CZ106: 0 | DA106: 0 | DB106: 0 | DC106: 0 | DD106: 0 | DE106: 0 | DF106: 0 | DG106: 0 | DH106: 0 | DI106: 0 | DJ106: 0 | DK106: 0 | DL106: 0 | DM106: 0 | DN106: 0 | DO106: 0 | DP106: 0 | DQ106: 0 | DR106: 0 | DS106: 0 | DT106: 0 | DU106: 0 | DV106: 0 | DW106: 0 | DX106: 0 | DY106: 0 | DZ106: 0 | EA106: 0 | EB106: 0 | EC106: 0 | ED106: 0 | EE106: 0 | EF106: 0 | EG106: 0 | EH106: 0 | EI106: 0 | EJ106: 0 | EK106: 0 | EL106: 0 | EM106: 0 | EN106: 0 | EO106: 0 | EP106: 0 | EQ106: 0 | ER106: 0 | ES106: 0 | ET106: 0 | EU106: 0 | EV106: 0 | EW106: 0 | EX106: 0 | EY106: 0 | EZ106: 0 | FA106: 0 | FB106: 0 | FC106: 0 | FD106: 0 | FE106: 0 | FF106: 0 | FG106: 0 | FH106: 0
B107: 1.8.2 Transport distance (one way)
C108: 1.8.2.1 Ocean tanker | E108: Mile | G108: 5082 | H108: 0 | I108: 0 | J108: 0 | K108: 0 | L108: 0 | M108: 0 | N108: 0 | O108: 0 | P108: 0 | Q108: 0 | R108: 0 | S108: 0 | T108: 0 | U108: 0 | V108: 0 | W108: 0 | X108: 0 | Y108: 0 | Z108: 0 | AA108: 0 | AB108: 0 | AC108: 0 | AD108: 0 | AE108: 0 | AF108: 0 | AG108: 0 | AH108: 0 | AI108: 0 | AJ108: 0 | AK108: 0 | AL108: 0 | AM108: 0 | AN108: 0 | AO108: 0 | AP108: 0 | AQ108: 0 | AR108: 0 | AS108: 0 | AT108: 0 | AU108: 0 | AV108: 0 | AW108: 0 | AX108: 0 | AY108: 0 | AZ108: 0 | BA108: 0 | BB108: 0 | BC108: 0 | BD108: 0 | BE108: 0 | BF108: 0 | BG108: 0 | BH108: 0 | BI108: 0 | BJ108: 0 | BK108: 0 | BL108: 0 | BM108: 0 | BN108: 0 | BO108: 0 | BP108: 0 | BQ108: 0 | BR108: 0 | BS108: 0 | BT108: 0 | BU108: 0 | BV108: 0 | BW108: 0 | BX108: 0 | BY108: 0 | BZ108: 0 | CA108: 0 | CB108: 0 | CC108: 0 | CD108: 0 | CE108: 0 | CF108: 0 | CG108: 0 | CH108: 0 | CI108: 0 | CJ108: 0 | CK108: 0 | CL108: 0 | CM108: 0 | CN108: 0 | CO108: 0 | CP108: 0 | CQ108: 0 | CR108: 0 | CS108: 0 | CT108: 0 | CU108: 0 | CV108: 0 | CW108: 0 | CX108: 0 | CY108: 0 | CZ108: 0 | DA108: 0 | DB108: 0 | DC108: 0 | DD108: 0 | DE108: 0 | DF108: 0 | DG108: 0 | DH108: 0 | DI108: 0 | DJ108: 0 | DK108: 0 | DL108: 0 | DM108: 0 | DN108: 0 | DO108: 0 | DP108: 0 | DQ108: 0 | DR108: 0 | DS108: 0 | DT108: 0 | DU108: 0 | DV108: 0 | DW108: 0 | DX108: 0 | DY108: 0 | DZ108: 0 | EA108: 0 | EB108: 0 | EC108: 0 | ED108: 0 | EE108: 0 | EF108: 0 | EG108: 0 | EH108: 0 | EI108: 0 | EJ108: 0 | EK108: 0 | EL108: 0 | EM108: 0 | EN108: 0 | EO108: 0 | EP108: 0 | EQ108: 0 | ER108: 0 | ES108: 0 | ET108: 0 | EU108: 0 | EV108: 0 | EW108: 0 | EX108: 0 | EY108: 0 | EZ108: 0 | FA108: 0 | FB108: 0 | FC108: 0 | FD108: 0 | FE108: 0 | FF108: 0 | FG108: 0 | FH108: 0
C109: 1.8.2.2 Barge | E109: Mile | G109: 500 | H109: 0 | I109: 0 | J109: 0 | K109: 0 | L109: 0 | M109: 0 | N109: 0 | O109: 0 | P109: 0 | Q109: 0 | R109: 0 | S109: 0 | T109: 0 | U109: 0 | V109: 0 | W109: 0 | X109: 0 | Y109: 0 | Z109: 0 | AA109: 0 | AB109: 0 | AC109: 0 | AD109: 0 | AE109: 0 | AF109: 0 | AG109: 0 | AH109: 0 | AI109: 0 | AJ109: 0 | AK109: 0 | AL109: 0 | AM109: 0 | AN109: 0 | AO109: 0 | AP109: 0 | AQ109: 0 | AR109: 0 | AS109: 0 | AT109: 0 | AU109: 0 | AV109: 0 | AW109: 0 | AX109: 0 | AY109: 0 | AZ109: 0 | BA109: 0 | BB109: 0 | BC109: 0 | BD109: 0 | BE109: 0 | BF109: 0 | BG109: 0 | BH109: 0 | BI109: 0 | BJ109: 0 | BK109: 0 | BL109: 0 | BM109: 0 | BN109: 0 | BO109: 0 | BP109: 0 | BQ109: 0 | BR109: 0 | BS109: 0 | BT109: 0 | BU109: 0 | BV109: 0 | BW109: 0 | BX109: 0 | BY109: 0 | BZ109: 0 | CA109: 0 | CB109: 0 | CC109: 0 | CD109: 0 | CE109: 0 | CF109: 0 | CG109: 0 | CH109: 0 | CI109: 0 | CJ109: 0 | CK109: 0 | CL109: 0 | CM109: 0 | CN109: 0 | CO109: 0 | CP109: 0 | CQ109: 0 | CR109: 0 | CS109: 0 | CT109: 0 | CU109: 0 | CV109: 0 | CW109: 0 | CX109: 0 | CY109: 0 | CZ109: 0 | DA109: 0 | DB109: 0 | DC109: 0 | DD109: 0 | DE109: 0 | DF109: 0 | DG109: 0 | DH109: 0 | DI109: 0 | DJ109: 0 | DK109: 0 | DL109: 0 | DM109: 0 | DN109: 0 | DO109: 0 | DP109: 0 | DQ109: 0 | DR109: 0 | DS109: 0 | DT109: 0 | DU109: 0 | DV109: 0 | DW109: 0 | DX109: 0 | DY109: 0 | DZ109: 0 | EA109: 0 | EB109: 0 | EC109: 0 | ED109: 0 | EE109: 0 | EF109: 0 | EG109: 0 | EH109: 0 | EI109: 0 | EJ109: 0 | EK109: 0 | EL109: 0 | EM109: 0 | EN109: 0 | EO109: 0 | EP109: 0 | EQ109: 0 | ER109: 0 | ES109: 0 | ET109: 0 | EU109: 0 | EV109: 0 | EW109: 0 | EX109: 0 | EY109: 0 | EZ109: 0 | FA109: 0 | FB109: 0 | FC109: 0 | FD109: 0 | FE109: 0 | FF109: 0 | FG109: 0 | FH109: 0
C110: 1.8.2.3 Pipeline | E110: Mile | G110: 750 | H110: 100 | I110: 100 | J110: 100 | K110: 100 | L110: 100 | M110: 100 | N110: 100 | O110: 100 | P110: 100 | Q110: 100 | R110: 100 | S110: 100 | T110: 100 | U110: 100 | V110: 100 | W110: 100 | X110: 100 | Y110: 100 | Z110: 100 | AA110: 100 | AB110: 100 | AC110: 100 | AD110: 100 | AE110: 100 | AF110: 100 | AG110: 100 | AH110: 100 | AI110: 100 | AJ110: 100 | AK110: 100 | AL110: 100 | AM110: 100 | AN110: 100 | AO110: 100 | AP110: 100 | AQ110: 100 | AR110: 100 | AS110: 100 | AT110: 100 | AU110: 100 | AV110: 100 | AW110: 100 | AX110: 100 | AY110: 100 | AZ110: 100 | BA110: 100 | BB110: 100 | BC110: 100 | BD110: 100 | BE110: 100 | BF110: 100 | BG110: 100 | BH110: 100 | BI110: 100 | BJ110: 100 | BK110: 100 | BL110: 100 | BM110: 100 | BN110: 100 | BO110: 100 | BP110: 100 | BQ110: 100 | BR110: 100 | BS110: 100 | BT110: 100 | BU110: 100 | BV110: 100 | BW110: 100 | BX110: 100 | BY110: 100 | BZ110: 100 | CA110: 100 | CB110: 100 | CC110: 100 | CD110: 100 | CE110: 100 | CF110: 100 | CG110: 100 | CH110: 100 | CI110: 100 | CJ110: 100 | CK110: 100 | CL110: 100 | CM110: 100 | CN110: 100 | CO110: 100 | CP110: 100 | CQ110: 100 | CR110: 100 | CS110: 100 | CT110: 100 | CU110: 100 | CV110: 100 | CW110: 100 | CX110: 100 | CY110: 100 | CZ110: 100 | DA110: 100 | DB110: 100 | DC110: 100 | DD110: 100 | DE110: 100 | DF110: 100 | DG110: 100 | DH110: 100 | DI110: 100 | DJ110: 100 | DK110: 100 | DL110: 100 | DM110: 100 | DN110: 100 | DO110: 100 | DP110: 100 | DQ110: 100 | DR110: 100 | DS110: 100 | DT110: 100 | DU110: 100 | DV110: 100 | DW110: 100 | DX110: 100 | DY110: 100 | DZ110: 100 | EA110: 100 | EB110: 100 | EC110: 100 | ED110: 100 | EE110: 100 | EF110: 100 | EG110: 100 | EH110: 100 | EI110: 100 | EJ110: 100 | EK110: 100 | EL110: 100 | EM110: 100 | EN110: 100 | EO110: 100 | EP110: 100 | EQ110: 100 | ER110: 100 | ES110: 100 | ET110: 100 | EU110: 100 | EV110: 100 | EW110: 100 | EX110: 100 | EY110: 100 | EZ110: 100 | FA110: 100 | FB110: 100 | FC110: 100 | FD110: 100 | FE110: 100 | FF110: 100 | FG110: 100 | FH110: 100 | FI110: Assumed 100 mile transport distance for all California fields
C111: 1.8.2.4 Rail | E111: Mile | G111: 800 | H111: 0 | I111: 0 | J111: 0 | K111: 0 | L111: 0 | M111: 0 | N111: 0 | O111: 0 | P111: 0 | Q111: 0 | R111: 0 | S111: 0 | T111: 0 | U111: 0 | V111: 0 | W111: 0 | X111: 0 | Y111: 0 | Z111: 0 | AA111: 0 | AB111: 0 | AC111: 0 | AD111: 0 | AE111: 0 | AF111: 0 | AG111: 0 | AH111: 0 | AI111: 0 | AJ111: 0 | AK111: 0 | AL111: 0 | AM111: 0 | AN111: 0 | AO111: 0 | AP111: 0 | AQ111: 0 | AR111: 0 | AS111: 0 | AT111: 0 | AU111: 0 | AV111: 0 | AW111: 0 | AX111: 0 | AY111: 0 | AZ111: 0 | BA111: 0 | BB111: 0 | BC111: 0 | BD111: 0 | BE111: 0 | BF111: 0 | BG111: 0 | BH111: 0 | BI111: 0 | BJ111: 0 | BK111: 0 | BL111: 0 | BM111: 0 | BN111: 0 | BO111: 0 | BP111: 0 | BQ111: 0 | BR111: 0 | BS111: 0 | BT111: 0 | BU111: 0 | BV111: 0 | BW111: 0 | BX111: 0 | BY111: 0 | BZ111: 0 | CA111: 0 | CB111: 0 | CC111: 0 | CD111: 0 | CE111: 0 | CF111: 0 | CG111: 0 | CH111: 0 | CI111: 0 | CJ111: 0 | CK111: 0 | CL111: 0 | CM111: 0 | CN111: 0 | CO111: 0 | CP111: 0 | CQ111: 0 | CR111: 0 | CS111: 0 | CT111: 0 | CU111: 0 | CV111: 0 | CW111: 0 | CX111: 0 | CY111: 0 | CZ111: 0 | DA111: 0 | DB111: 0 | DC111: 0 | DD111: 0 | DE111: 0 | DF111: 0 | DG111: 0 | DH111: 0 | DI111: 0 | DJ111: 0 | DK111: 0 | DL111: 0 | DM111: 0 | DN111: 0 | DO111: 0 | DP111: 0 | DQ111: 0 | DR111: 0 | DS111: 0 | DT111: 0 | DU111: 0 | DV111: 0 | DW111: 0 | DX111: 0 | DY111: 0 | DZ111: 0 | EA111: 0 | EB111: 0 | EC111: 0 | ED111: 0 | EE111: 0 | EF111: 0 | EG111: 0 | EH111: 0 | EI111: 0 | EJ111: 0 | EK111: 0 | EL111: 0 | EM111: 0 | EN111: 0 | EO111: 0 | EP111: 0 | EQ111: 0 | ER111: 0 | ES111: 0 | ET111: 0 | EU111: 0 | EV111: 0 | EW111: 0 | EX111: 0 | EY111: 0 | EZ111: 0 | FA111: 0 | FB111: 0 | FC111: 0 | FD111: 0 | FE111: 0 | FF111: 0 | FG111: 0 | FH111: 0
C112: 1.8.2.5 Truck | G112: 100 | H112: 0 | I112: 0 | J112: 0 | K112: 0 | L112: 0 | M112: 0 | N112: 0 | O112: 0 | P112: 0 | Q112: 0 | R112: 0 | S112: 0 | T112: 0 | U112: 0 | V112: 0 | W112: 0 | X112: 0 | Y112: 0 | Z112: 0 | AA112: 0 | AB112: 0 | AC112: 0 | AD112: 0 | AE112: 0 | AF112: 0 | AG112: 0 | AH112: 0 | AI112: 0 | AJ112: 0 | AK112: 0 | AL112: 0 | AM112: 0 | AN112: 0 | AO112: 0 | AP112: 0 | AQ112: 0 | AR112: 0 | AS112: 0 | AT112: 0 | AU112: 0 | AV112: 0 | AW112: 0 | AX112: 0 | AY112: 0 | AZ112: 0 | BA112: 0 | BB112: 0 | BC112: 0 | BD112: 0 | BE112: 0 | BF112: 0 | BG112: 0 | BH112: 0 | BI112: 0 | BJ112: 0 | BK112: 0 | BL112: 0 | BM112: 0 | BN112: 0 | BO112: 0 | BP112: 0 | BQ112: 0 | BR112: 0 | BS112: 0 | BT112: 0 | BU112: 0 | BV112: 0 | BW112: 0 | BX112: 0 | BY112: 0 | BZ112: 0 | CA112: 0 | CB112: 0 | CC112: 0 | CD112: 0 | CE112: 0 | CF112: 0 | CG112: 0 | CH112: 0 | CI112: 0 | CJ112: 0 | CK112: 0 | CL112: 0 | CM112: 0 | CN112: 0 | CO112: 0 | CP112: 0 | CQ112: 0 | CR112: 0 | CS112: 0 | CT112: 0 | CU112: 0 | CV112: 0 | CW112: 0 | CX112: 0 | CY112: 0 | CZ112: 0 | DA112: 0 | DB112: 0 | DC112: 0 | DD112: 0 | DE112: 0 | DF112: 0 | DG112: 0 | DH112: 0 | DI112: 0 | DJ112: 0 | DK112: 0 | DL112: 0 | DM112: 0 | DN112: 0 | DO112: 0 | DP112: 0 | DQ112: 0 | DR112: 0 | DS112: 0 | DT112: 0 | DU112: 0 | DV112: 0 | DW112: 0 | DX112: 0 | DY112: 0 | DZ112: 0 | EA112: 0 | EB112: 0 | EC112: 0 | ED112: 0 | EE112: 0 | EF112: 0 | EG112: 0 | EH112: 0 | EI112: 0 | EJ112: 0 | EK112: 0 | EL112: 0 | EM112: 0 | EN112: 0 | EO112: 0 | EP112: 0 | EQ112: 0 | ER112: 0 | ES112: 0 | ET112: 0 | EU112: 0 | EV112: 0 | EW112: 0 | EX112: 0 | EY112: 0 | EZ112: 0 | FA112: 0 | FB112: 0 | FC112: 0 | FD112: 0 | FE112: 0 | FF112: 0 | FG112: 0 | FH112: 0
B113: 1.8.3 Ocean tanker size, if applicable | E113: Ton | G113: 250000
A115: 1.9 Small sources emissions | E115: gCO2eq/MJ | G115: 0.5

Sheet CA Venting and Fugitives
A1: California-specific venting and fugitive emission factors and device counts
A2: Source: Stephanie Detwiler, California Air Resources Board, 2007 Oil and Gas Industry Survey Results, October 2013.
A4: Gas Dehydrators | E4: Emission Factor (g/MMscf)
D5: Gas Throughput (MSCF/yr)
B6: CO2 (MT/yr) | C6: CH4 (MT/yr) | E6: CO2 | F6: CH4 | G6: Source Tables | H6: Cells Replaced in OPGEE
A7: Venting | B7: 308 | C7: 1975 | D7: 703581432 | E7: =B7*1000000000/D7 -> 437.7602734 | F7: =C7*1000000000/D7 -> 2807.066688 | G7: 11-1 and 11-3 | H7: Emissions Factors G67 and H67
A8: Fugitive | B8: 16567 | C8: 1252 | D8: 703581432 | E8: =B8*1000000000/D8 -> 23546.67029 | F8: =C8*1000000000/D8 -> 1779.467085 | G8: 11-2 and 11-3 | H8: Emissions Factors G96 and H96
A11: Crude Oil Storage Tanks | E11: Emission Factor (g/bbl produced)
D12: Oil Production (bbl/yr)
B13: CO2 (MT/yr) | C13: CH4 (MT/yr) | E13: CO2 | F13: CH4 | G13: Source Tables | H13: Cells Replaced in OPGEE
A14: Venting | B14: 0 | C14: 5 | D14: 234093299 | E14: =B14*1000000/D14 -> 0 | F14: =C14*1000000/D14 -> 0.02135900524 | G14: 19-1 and 2-3
A15: Fugitive | B15: 1084 | C15: 11501 | D15: 234093299 | E15: =B15*1000000/D15 -> 4.630632336 | F15: =C15*1000000/D15 -> 49.12998385 | G15: 19-1 and 2-3
A16: Total V&F | B16: =SUM(B14:B15) -> 1084 | C16: =SUM(C14:C15) -> 11506 | D16: 234093299 | E16: =B16*1000000/D16 -> 4.630632336 | F16: =C16*1000000/D16 -> 49.15134286 | H16: Emissions Factors G70 and H70
A18: High Bleed Pneumatic Device Venting | E18: Emission Factor (g/device*yr)
D19: Number of devices
B20: CO2 (MT/yr) | C20: CH4 (MT/yr) | E20: CO2 | F20: CH4 | G20: Source Tables | H20: Cells Replaced in OPGEE
A21: Continuous | B21: 89 | C21: 4915 | D21: 1151 | E21: =B21*1000000/D21 -> 77324.06603 | F21: =C21*1000000/D21 -> 4270199.826 | G21: 9-2
A22: Intermittent | B22: 69 | C22: 760 | D22: 405 | E22: =B22*1000000/D22 -> 170370.3704 | F22: =C22*1000000/D22 -> 1876543.21 | G22: 9-2
A23: Total | B23: =SUM(B21:B22) -> 158 | C23: =SUM(C21:C22) -> 5675 | D23: =SUM(D21:D22) -> 1556 | E23: =B23*1000000/D23 -> 101542.4165 | F23: =C23*1000000/D23 -> 3647172.237 | H23: Emissions Factors G74 and H74
A25: Low Bleed Pneumatic Device Venting | E25: Emission Factor (g/device*yr)
D26: Number of devices | H26: Cells Replaced in OPGEE
B27: CO2 (MT/yr) | C27: CH4 (MT/yr) | E27: CO2 | F27: CH4 | G27: Source Tables
A28: Low Bleed | B28: 2 | C28: 46 | D28: 50 | E28: =B28*1000000/D28 -> 40000 | F28: =C28*1000000/D28 -> 920000 | G28: 9-2 | H28: Emissions Factors G73 and H73
A31: High Bleed Pneumatic Device Usage Intensity
B32: Number of devices | C32: Oil Production (bbl/yr) | D32: Usage Intensity (device*day/bbl)
E33: Source Tables | F33: Cells Replaced in OPGEE
A34: Continuous | B34: 1151 | C34: 234093299 | D34: =B34*365/C34 -> 0.001794647697 | E34: 9-2 and 2-3
A35: Intermittent | B35: 405 | C35: 234093299 | D35: =B35*365/C35 -> 0.0006314789899 | E35: 9-2 and 2-3
A36: Total | B36: =SUM(B34:B35) -> 1556 | C36: 234093299 | D36: =B36*365/C36 -> 0.002426126687 | F36: Venting and Fugitives M367 and N367
A38: Low Bleed Pneumatic Device Usage Intensity
B39: Number of devices | C39: Oil Production (bbl/yr) | D39: Usage Intensity (device*day/bbl) | F39: Cells Replaced in OPGEE
E40: Source Tables
A41: Total | B41: 50 | C41: 234093299 | D41: =B41*365/C41 -> 7.796036913e-05 | E41: 9-2 and 2-3 | F41: Venting and Fugitives M368 and N368

Sheet DOGGR Data 2015
B1: 1 | C1: =B1+1 -> 2 | D1: =C1+1 -> 3 | E1: 4 | F1: 5 | G1: 6 | H1: 7 | I1: 8 | J1: 9 | K1: 10 | L1: 11 | M1: 12 | N1: 13 | O1: 14 | P1: 15 | Q1: 16 | R1: 17 | S1: 18 | T1: 19 | U1: 20 | V1: 21 | W1: 22 | X1: 23 | Y1: 24 | Z1: 25 | AA1: 26 | AB1: 27 | AC1: 28 | AD1: 29 | AE1: 30 | AF1: 31 | AG1: 32 | AH1: 33 | AI1: 34 | AJ1: =AI1+1 -> 35 | AK1: 36 | AL1: 37 | AM1: 38 | AN1: 39 | AO1: 40 | AP1: =AO1+1 -> 41 | AQ1: 42 | AR1: 43 | AT1: =AR1+1 -> 44 | AU1: 45 | AV1: 46 | AW1: 47 | AX1: 48 | AY1: 49 | AZ1: 50 | BA1: 51 | BB1: 52 | BC1: 53 | BD1: 54 | BE1: 55 | BF1: 56 | BG1: 57 | BH1: 58 | BJ1: =BH1+1 -> 59 | BK1: 60 | BL1: 61 | BM1: 62 | BN1: 63 | BO1: 64 | BP1: 65 | BQ1: 66 | BR1: =BQ1+1 -> 67 | BS1: 68 | BT1: 69 | BU1: 70 | BV1: 71 | BW1: 72 | BX1: 73 | BY1: 74 | BZ1: 75 | CA1: 76 | CB1: 77 | CC1: 78 | CD1: 79 | CE1: 80 | CF1: 81 | CG1: 82 | CH1: 83 | CI1: 84 | CJ1: 85 | CK1: 86 | CL1: 87 | CM1: 88 | CN1: 89 | CO1: 90 | CP1: 91 | CQ1: 92 | CR1: 93 | CS1: 94 | CT1: 95 | CU1: 96 | CV1: 97 | CW1: 98 | CX1: 99 | CY1: 100 | CZ1: 101 | DA1: 102 | DB1: 103 | DC1: 104 | DD1: 105 | DE1: 106 | DF1: 107 | DG1: 108 | DH1: 109 | DI1: 110 | DJ1: 111 | DK1: 112 | DL1: 113 | DM1: 114 | DN1: 115 | DO1: 116 | DP1: 117 | DQ1: 118 | DR1: 119 | DS1: 120 | DT1: 121 | DU1: 122 | DV1: 123 | DW1: 124 | DX1: 125 | DY1: 126 | DZ1: 127 | EA1: 128 | EB1: 129 | EC1: 130 | ED1: =EC1+1 -> 131 | EE1: 132 | EF1: 133 | EG1: 134 | EH1: =EG1+1 -> 135 | EI1: 136 | EJ1: 137 | EK1: 138 | EL1: 139 | EM1: 140 | EN1: 141 | EO1: 142 | EP1: 143 | EQ1: 144 | ER1: 145 | ET1: =ER1+1 -> 146 | EU1: 147 | EV1: 148 | EW1: 149 | EX1: 150 | EY1: 151 | EZ1: 152 | FA1: 153 | FB1: 154
A2: Field Name | B2: Aliso Canyon | C2: Ant Hill | D2: Antelope Hills | E2: Antelope Hills, North | F2: Arroyo Grande | G2: Asphalto | H2: Bandini | I2: Bardsdale | J2: Barham Ranch | K2: Beer Nose | L2: Belgian Anticline | M2: Bellevue | N2: Bellevue, West | O2: Belmont, Offshore | P2: Belridge, North | Q2: Belridge, South | R2: Beverly Hills | S2: Big Mountain | T2: Blackwells Corner | U2: Brea-Olinda | V2: Buena Vista | W2: Burrel | X2: Cabrillo | Y2: Canal | Z2: Canfield Ranch | AA2: Carneros Creek | AB2: Cascade | AC2: Casmalia | AD2: Castaic Hills | AE2: Cat Canyon | AF2: Cheviot Hills | AG2: Chico-Martinez | AH2: Cienaga Canyon | AI2: Coalinga | AJ2: Coles Levee, N | AK2: Coles Levee, S | AL2: Comanche Point | AM2: Coyote, East | AN2: Cuyama, South | AO2: Cymric | AP2: Deer Creek | AQ2: Del Valle | AR2: Devils Den | AS2: Dominguez | AT2: Edison | AU2: El Segundo | AV2: Elk Hills | AW2: Elwood, S., Offshore | AX2: Fruitvale | AY2: Greeley | AZ2: Hasley Canyon | BA2: Helm | BB2: Holser | BC2: Honor Rancho | BD2: Huntington Beach | BE2: Hyperion | BF2: Inglewood | BG2: Jacalitos | BH2: Jasmin | BI2: Kern Bluff | BJ2: Kern Front | BK2: Kern River | BL2: Kettleman Middle Dome | BM2: Kettleman North Dome | BN2: Landslide | BO2: Las Cienegas | BP2: Livermore | BQ2: Lompoc | BR2: Long Beach | BS2: Long Beach Airport | BT2: Los Angeles Downtown | BU2: Los Angeles, East | BV2: Lost Hills | BW2: Lost Hills, Northwest | BX2: Lynch Canyon | BY2: Mahala | BZ2: McCool Ranch | CA2: McDonald Anticline | CB2: McKittrick | CC2: Midway-Sunset | CD2: Montalvo, West | CE2: Montebello | CF2: Monument Junction | CG2: Mount Poso | CH2: Mountain View | CI2: Newhall-Potrero | CJ2: Newport, West | CK2: Oak Canyon | CL2: Oak Park | CM2: Oakridge | CN2: Oat Mountain | CO2: Ojai | CP2: Olive | CQ2: Orcutt | CR2: Oxnard | CS2: Paloma | CT2: Placerita | CU2: Playa Del Rey | CV2: Pleito | CW2: Poso Creek | CX2: Pyramid Hills | CY2: Railroad Gap | CZ2: Raisin City | DA2: Ramona | DB2: Richfield | DC2: Rincon | DD2: Rio Bravo | DE2: Rio Viejo | DF2: Riverdale | DG2: Rose | DH2: Rosecrans | DI2: Rosecrans, South | DJ2: Rosedale | DK2: Rosedale Ranch | DL2: Round Mountain | DM2: Russell Ranch | DN2: Salt Lake | DO2: Salt Lake, South | DP2: San Ardo | DQ2: San Miguelito | DR2: San Vicente | DS2: Sansinena | DT2: Santa Clara Avenue | DU2: Santa Fe Springs | DV2: Santa Maria Valley | DW2: Santa Susana | DX2: Sargent | DY2: Saticoy | DZ2: Sawtelle | EA2: Seal Beach | EB2: Semitropic | EC2: Sespe | ED2: Shafter, North | EE2: Shiells Canyon | EF2: South Mountain | EG2: Stockdale | EH2: Tapia | EI2: Tapo Canyon, South | EJ2: Tejon | EK2: Tejon Hills | EL2: Tejon, North | EM2: Temescal | EN2: Ten Section | EO2: Timber Canyon | EP2: Torrance | EQ2: Torrey Canyon | ER2: Union Avenue | ES2: Vallecitos | ET2: Ventura | EU2: Wayside Canyon | EV2: West Mountain | EW2: Wheeler Ridge | EX2: White Wolf | EY2: Whittier | EZ2: Wilmington | FA2: Yowlumne | FB2: Zaca | FC2: Total
A3: Oil Production (bbl) | B3: 194618 | C3: 42769 | D3: 111775 | E3: 333624 | F3: 498091 | G3: 224681 | H3: 5910 | I3: 268388 | J3: 101191 | K3: 3706 | L3: 35974 | M3: 31508 | N3: 9164 | O3: 621834 | P3: 2329514 | Q3: 22901920 | R3: 670634 | S3: 25188 | T3: 11797 | U3: 1071791 | V3: 1190911 | W3: 14840 | X3: 22714 | Y3: 23829 | Z3: 90987 | AA3: 19447 | AB3: 159831 | AC3: 198338 | AD3: 5812 | AE3: 1289170 | AF3: 31173 | AG3: 199064 | AH3: 23212 | AI3: 6779747 | AJ3: 210258 | AK3: 71286 | AL3: 22968 | AM3: 239183 | AN3: 192364 | AO3: 16545735 | AP3: 38926 | AQ3: 43930 | AR3: 13338 | AS3: 29258 | AT3: 743504 | AU3: 25318 | AV3: 11303011 | AW3: 497254 | AX3: 460887 | AY3: 108731 | AZ3: 26148 | BA3: 47364 | BB3: 20135 | BC3: 70309 | BD3: 2472233 | BE3: 10369 | BF3: 2376814 | BG3: 113835 | BH3: 112176 | BI3: 11432 | BJ3: 5013179 | BK3: 25691543 | BL3: 87981 | BM3: 171640 | BN3: 31189 | BO3: 279585 | BP3: 9687 | BQ3: 345984 | BR3: 1639756 | BS3: 10101 | BT3: 42492 | BU3: 12161 | BV3: 11209720 | BW3: 16358 | BX3: 268814 | BY3: 7298 | BZ3: 27873 | CA3: 60061 | CB3: 3334461 | CC3: 28179980 | CD3: 399469 | CE3: 507852 | CF3: 100488 | CG3: 1305484 | CH3: 95609 | CI3: 107690 | CJ3: 85729 | CK3: 22522 | CL3: 13925 | CM3: 113970 | CN3: 74677 | CO3: 238334 | CP3: 68485 | CQ3: 1140191 | CR3: 349544 | CS3: 17106 | CT3: 881325 | CU3: 46480 | CV3: 1249956 | CW3: 4137617 | CX3: 55893 | CY3: 83256 | CZ3: 112082 | DA3: 41606 | DB3: 296903 | DC3: 270538 | DD3: 329409 | DE3: 42527 | DF3: 54922 | DG3: 399905 | DH3: 147910 | DI3: 9467 | DJ3: 17171 | DK3: 149044 | DL3: 3610219 | DM3: 48831 | DN3: 46379 | DO3: 16683 | DP3: 7795661 | DQ3: 422815 | DR3: 226885 | DS3: 139140 | DT3: 44356 | DU3: 939517 | DV3: 203347 | DW3: 13936 | DX3: 26784 | DY3: 34119 | DZ3: 187851 | EA3: 420447 | EB3: 35096 | EC3: 404945 | ED3: 598178 | EE3: 72929 | EF3: 641600 | EG3: 127532 | EH3: 18789 | EI3: 9800 | EJ3: 365138 | EK3: 12846 | EL3: 34268 | EM3: 69640 | EN3: 81935 | EO3: 27589 | EP3: 364938 | EQ3: 124284 | ER3: 5263 | ES3: 12964 | ET3: 4746716 | EU3: 27229 | EV3: 9579 | EW3: 102447 | EX3: 11658 | EY3: 96315 | EZ3: 13660268 | FA3: 101829 | FB3: 232480 | FC3: =SUM(B3:FB3) -> 200930092 | FD3: Online DOGGR Data (2015) from http://opi.consrv.ca.gov/opi/opi.dll (accessed on May 3, 2017)
A4: Water Production (bbl) | B4: 1393764 | C4: 3258234 | D4: 706988 | E4: 3201454 | F4: 10383146 | G4: 10069044 | H4: 19963 | I4: 612367 | J4: 156776 | K4: 36 | L4: 158587 | M4: 661604 | N4: 209385 | O4: 10275559 | P4: 32896416 | Q4: 311638184 | R4: 9413511 | S4: 74328 | T4: 43298 | U4: 6888014 | V4: 47720597 | W4: 1720286 | X4: 35690 | Y4: 168780 | Z4: 647641 | AA4: 35717 | AB4: 180445 | AC4: 12722315 | AD4: 7842 | AE4: 13777290 | AF4: 188589 | AG4: 1719223 | AH4: 345298 | AI4: 73434540 | AJ4: 1027132 | AK4: 78378 | AL4: 596269 | AM4: 7119526 | AN4: 14050494 | AO4: 110029680 | AP4: 3761063 | AQ4: 623432 | AR4: 73456 | AS4: 63454 | AT4: 10370727 | AU4: 379775 | AV4: 169328897 | AW4: 2270240 | AX4: 7075856 | AY4: 2488485 | AZ4: 51612 | BA4: 275074 | BB4: 20761 | BC4: 633895 | BD4: 76259156 | BE4: 305 | BF4: 123956989 | BG4: 276339 | BH4: 12470842 | BI4: 1013045 | BJ4: 161880952 | BK4: 284457289 | BL4: 208365 | BM4: 540493 | BN4: 1150293 | BO4: 4629655 | BP4: 30156 | BQ4: 22370321 | BR4: 40063917 | BS4: 130430 | BT4: 1072517 | BU4: 653433 | BV4: 135689732 | BW4: 370076 | BX4: 4063308 | BY4: 7466 | BZ4: 1813486 | CA4: 932723 | CB4: 30163720 | CC4: 270099371 | CD4: 1104508 | CE4: 38404164 | CF4: 878820 | CG4: 35643630 | CH4: 431495 | CI4: 120695 | CJ4: 2000020 | CK4: 129564 | CL4: 50973 | CM4: 788398 | CN4: 95532 | CO4: 667074 | CP4: 38150 | CQ4: 33366020 | CR4: 329046 | CS4: 31750 | CT4: 31974026 | CU4: 1225515 | CV4: 1384289 | CW4: 184407568 | CX4: 270331 | CY4: 1722892 | CZ4: 5041009 | DA4: 52373 | DB4: 6563563 | DC4: 3097218 | DD4: 5780430 | DE4: 114184 | DF4: 286747 | DG4: 1831932 | DH4: 2665063 | DI4: 14489 | DJ4: 19481 | DK4: 6015898 | DL4: 178912643 | DM4: 1330867 | DN4: 211100 | DO4: 580189 | DP4: 119873003 | DQ4: 4904059 | DR4: 845581 | DS4: 132584 | DT4: 143813 | DU4: 49981547 | DV4: 3702351 | DW4: 64848 | DX4: 26243 | DY4: 106931 | DZ4: 583266 | EA4: 7385502 | EB4: 30410 | EC4: 420109 | ED4: 1869973 | EE4: 306799 | EF4: 901037 | EG4: 61201 | EH4: 720769 | EI4: 7581 | EJ4: 22364622 | EK4: 343319 | EL4: 98884 | EM4: 264966 | EN4: 2145003 | EO4: 2626 | EP4: 5911847 | EQ4: 138176 | ER4: 89028 | ES4: 102129 | ET4: 45733536 | EU4: 77436 | EV4: 9269 | EW4: 386877 | EX4: 2945 | EY4: 130179 | EZ4: 595269612 | FA4: 3508706 | FB4: 8843953 | FC4: 3484459862 | FD4: Online DOGGR Data (2015) from http://opi.consrv.ca.gov/opi/opi.dll (accessed on May 3, 2017)
A5: Gas Production (Mcf) | B5: 67394746 | C5: 9032 | D5: 0 | E5: 0 | F5: 976794 | G5: 4645944 | H5: 0 | I5: 370624 | J5: 321575 | K5: 8140 | L5: 121576 | M5: 14942 | N5: 5563 | O5: 286475 | P5: 2577288 | Q5: 8154406 | R5: 843542 | S5: 112601 | T5: 0 | U5: 915939 | V5: 14018315 | W5: 16431 | X5: 64118 | Y5: 14049 | Z5: 139345 | AA5: 28002 | AB5: 223426 | AC5: 110383 | AD5: 1739 | AE5: 598888 | AF5: 12623 | AG5: 0 | AH5: 59480 | AI5: 246193 | AJ5: 136640 | AK5: 849748 | AL5: 0 | AM5: 101956 | AN5: 210432 | AO5: 2867354 | AP5: 0 | AQ5: 77196 | AR5: 1087 | AS5: 48155 | AT5: 133082 | AU5: 4904 | AV5: 109553249 | AW5: 359106 | AX5: 140729 | AY5: 225278 | AZ5: 5085 | BA5: 32835 | BB5: 29496 | BC5: 29020538 | BD5: 1134439 | BE5: 0 | BF5: 1065504 | BG5: 22186 | BH5: 0 | BI5: 0 | BJ5: 21948 | BK5: 270378 | BL5: 146944 | BM5: 133458 | BN5: 30829 | BO5: 256802 | BP5: 847 | BQ5: 304025 | BR5: 715656 | BS5: 682 | BT5: 36279 | BU5: 216 | BV5: 6440704 | BW5: 7172 | BX5: 0 | BY5: 695 | BZ5: 0 | CA5: 40022 | CB5: 2198529 | CC5: 5267993 | CD5: 194010 | CE5: 471082 | CF5: 333423 | CG5: 48078 | CH5: 40419 | CI5: 163150 | CJ5: 45528 | CK5: 46358 | CL5: 5994 | CM5: 98725 | CN5: 87267 | CO5: 1280378 | CP5: 7295 | CQ5: 877540 | CR5: 13833 | CS5: 53962 | CT5: 0 | CU5: 4724667 | CV5: 384051 | CW5: 245415 | CX5: 12 | CY5: 1806209 | CZ5: 50100 | DA5: 104619 | DB5: 52579 | DC5: 236361 | DD5: 485720 | DE5: 7712 | DF5: 30449 | DG5: 188341 | DH5: 103085 | DI5: 9884 | DJ5: 0 | DK5: 82108 | DL5: 0 | DM5: 62759 | DN5: 42878 | DO5: 44544 | DP5: 1022578 | DQ5: 354162 | DR5: 242453 | DS5: 157793 | DT5: 29954 | DU5: 310134 | DV5: 121336 | DW5: 66703 | DX5: 26107 | DY5: 33659 | DZ5: 67525 | EA5: 347464 | EB5: 21621 | EC5: 917953 | ED5: 466326 | EE5: 364941 | EF5: 834971 | EG5: 40665 | EH5: 2720 | EI5: 1929 | EJ5: 97590 | EK5: 0 | EL5: 265666 | EM5: 94259 | EN5: 40362 | EO5: 95414 | EP5: 63801 | EQ5: 178500 | ER5: 8350 | ES5: 18791 | ET5: 2730207 | EU5: 11402 | EV5: 10890 | EW5: 41121 | EX5: 2085 | EY5: 241139 | EZ5: 4321411 | FA5: 87557 | FB5: 1905 | FC5: 290354336 | FD5: Online DOGGR Data (2015) from http://opi.consrv.ca.gov/opi/opi.dll (accessed on May 3, 2017)
A6: Water Injection (bbl) | B6: 1493439 | C6: 3004240 | D6: 0 | E6: 1151904 | F6: 1365113 | G6: 7683409 | H6: 0 | I6: 362743 | J6: 163970 | K6: 0 | L6: 81536 | M6: 658786 | N6: 185816 | O6: 8271111 | P6: 34732527 | Q6: 264540418 | R6: 7448912 | S6: 0 | T6: 43292 | U6: 4823234 | V6: 52077730 | W6: 1720286 | X6: 0 | Y6: 87091 | Z6: 513261 | AA6: 0 | AB6: 180446 | AC6: 12700169 | AD6: 0 | AE6: 12058149 | AF6: 11285 | AG6: 0 | AH6: 0 | AI6: 13782279 | AJ6: 1194076 | AK6: 111078 | AL6: 596874 | AM6: 7067706 | AN6: 14043622 | AO6: 5156433 | AP6: 1854484 | AQ6: 600385 | AR6: 13567 | AS6: 0 | AT6: 6434690 | AU6: 36300 | AV6: 187447749 | AW6: 2024677 | AX6: 8375101 | AY6: 2493695 | AZ6: 30252 | BA6: 273269 | BB6: 24201 | BC6: 707674 | BD6: 74070499 | BE6: 0 | BF6: 130705348 | BG6: 490948 | BH6: 484551 | BI6: 990821 | BJ6: 50572719 | BK6: 10297145 | BL6: 208666 | BM6: 889650 | BN6: 1150057 | BO6: 4629663 | BP6: 30147 | BQ6: 25191663 | BR6: 25331121 | BS6: 104405 | BT6: 1079430 | BU6: 0 | BV6: 103597175 | BW6: 368270 | BX6: 4510049 | BY6: 0 | BZ6: 698262 | CA6: 896442 | CB6: 22161142 | CC6: 50662421 | CD6: 966589 | CE6: 36321528 | CF6: 0 | CG6: 23054743 | CH6: 162144 | CI6: 131299 | CJ6: 595990 | CK6: 128942 | CL6: 127431 | CM6: 1001909 | CN6: 0 | CO6: 627728 | CP6: 0 | CQ6: 30649573 | CR6: 1160077 | CS6: 26604 | CT6: 22168448 | CU6: 401827 | CV6: 1273417 | CW6: 149034412 | CX6: 244549 | CY6: 0 | CZ6: 5021997 | DA6: 67970 | DB6: 6735569 | DC6: 2671913 | DD6: 5780430 | DE6: 89804 | DF6: 239554 | DG6: 1568653 | DH6: 2490436 | DI6: 0 | DJ6: 49853 | DK6: 5973932 | DL6: 171201229 | DM6: 1333759 | DN6: 0 | DO6: 0 | DP6: 41338174 | DQ6: 5509031 | DR6: 1362792 | DS6: 159317 | DT6: 147919 | DU6: 41333719 | DV6: 4216910 | DW6: 0 | DX6: 26243 | DY6: 78340 | DZ6: 583265 | EA6: 1635573 | EB6: 0 | EC6: 317815 | ED6: 2226870 | EE6: 434375 | EF6: 1006491 | EG6: 0 | EH6: 720177 | EI6: 0 | EJ6: 20396632 | EK6: 343342 | EL6: 98890 | EM6: 368790 | EN6: 2273550 | EO6: 0 | EP6: 5188815 | EQ6: 0 | ER6: 88977 | ES6: 101292 | ET6: 54191504 | EU6: 0 | EV6: 0 | EW6: 377418 | EX6: 0 | EY6: 0 | EZ6: 621652833 | FA6: 3372431 | FB6: 8825334 | FC6: 2466426701 | FD6: Online DOGGR Data (2015) from http://opi.consrv.ca.gov/opi/opi.dll (accessed on May 3, 2017) and DOGGR 2015 Report of California Oil and Gas Production Statistics
A7: Gas/Air Injection (Mcf) | B7: 47637283 | C7: 0 | D7: 35077 | E7: 0 | F7: 751094 | G7: 0 | H7: 0 | I7: 0 | J7: 0 | K7: 0 | L7: 0 | M7: 0 | N7: 0 | O7: 0 | P7: 0 | Q7: 0 | R7: 0 | S7: 0 | T7: 0 | U7: 0 | V7: 0 | W7: 0 | X7: 0 | Y7: 0 | Z7: 0 | AA7: 0 | AB7: 0 | AC7: 0 | AD7: 0 | AE7: 0 | AF7: 0 | AG7: 0 | AH7: 0 | AI7: 0 | AJ7: 0 | AK7: 0 | AL7: 0 | AM7: 0 | AN7: 59953 | AO7: 206918 | AP7: 0 | AQ7: 0 | AR7: 0 | AS7: 0 | AT7: 0 | AU7: 0 | AV7: 32457898 | AW7: 21059 | AX7: 0 | AY7: 0 | AZ7: 0 | BA7: 0 | BB7: 0 | BC7: 34071288 | BD7: 3733 | BE7: 0 | BF7: 0 | BG7: 0 | BH7: 0 | BI7: 0 | BJ7: 0 | BK7: 30747 | BL7: 31 | BM7: 0 | BN7: 0 | BO7: 515 | BP7: 0 | BQ7: 68356 | BR7: 0 | BS7: 0 | BT7: 0 | BU7: 0 | BV7: 0 | BW7: 0 | BX7: 0 | BY7: 0 | BZ7: 0 | CA7: 0 | CB7: 69540 | CC7: 4567885 | CD7: 0 | CE7: 66031 | CF7: 0 | CH7: 0 | CI7: 0 | CJ7: 0 | CK7: 0 | CL7: 0 | CM7: 0 | CN7: 0 | CO7: 0 | CP7: 0 | CQ7: 0 | CR7: 0 | CS7: 0 | CT7: 0 | CU7: 4061529 | CV7: 0 | CX7: 0 | CY7: 0 | CZ7: 0 | DA7: 0 | DB7: 12 | DC7: 0 | DD7: 0 | DE7: 0 | DF7: 0 | DG7: 0 | DH7: 0 | DI7: 0 | DJ7: 0 | DK7: 0 | DL7: 355693 | DM7: 59131 | DN7: 0 | DO7: 0 | DP7: 0 | DQ7: 0 | DR7: 0 | DS7: 3 | DT7: 0 | DU7: 0 | DV7: 0 | DW7: 0 | DX7: 17744 | DY7: 0 | DZ7: 0 | EA7: 0 | EB7: 0 | EC7: 0 | ED7: 0 | EE7: 0 | EF7: 0 | EG7: 0 | EH7: 0 | EI7: 0 | EJ7: 0 | EK7: 0 | EL7: 0 | EM7: 0 | EN7: 0 | EO7: 0 | EP7: 0 | EQ7: 0 | ES7: 0 | ET7: 0 | EU7: 0 | EV7: 0 | EW7: 0 | EX7: 0 | EY7: 0 | EZ7: 0 | FA7: 0 | FB7: 0 | FC7: 124541520 | FD7: Online DOGGR Data (2015) from http://opi.consrv.ca.gov/opi/opi.dll (accessed on May 3, 2017)
A8: Steam Injection (bwe) | B8: 0 | C8: 0 | D8: 0 | E8: 1736384 | F8: 3307704 | G8: 0 | H8: 0 | I8: 0 | J8: 0 | K8: 0 | L8: 0 | M8: 0 | N8: 0 | O8: 0 | P8: 39784 | Q8: 81677118 | R8: 0 | S8: 0 | T8: 0 | V8: 0 | X8: 0 | Y8: 0 | Z8: 0 | AA8: 0 | AC8: 0 | AD8: 0 | AE8: 1628452 | AF8: 0 | AG8: 2091606 | AH8: 0 | AI8: 37867510 | AJ8: 0 | AK8: 0 | AL8: 0 | AM8: 0 | AN8: 0 | AO8: 58894469 | AP8: 0 | AQ8: 0 | AR8: 0 | AS8: 0 | AT8: 1676202 | AU8: 0 | AV8: 0 | AW8: 0 | AX8: 0 | AY8: 0 | AZ8: 0 | BA8: 0 | BB8: 0 | BC8: 0 | BD8: 0 | BE8: 0 | BF8: 0 | BG8: 0 | BH8: 0 | BI8: 0 | BJ8: 36213303 | BK8: 91789742 | BL8: 0 | BM8: 0 | BN8: 0 | BO8: 0 | BP8: 0 | BQ8: 0 | BR8: 0 | BS8: 0 | BT8: 0 | BU8: 0 | BV8: 27522441 | BW8: 0 | BX8: 1287497 | BY8: 0 | BZ8: 54911 | CA8: 0 | CB8: 17860035 | CC8: 185237711 | CD8: 0 | CE8: 0 | CF8: 0 | CG8: 83426 | CH8: 0 | CI8: 0 | CJ8: 40462 | CK8: 0 | CL8: 0 | CM8: 0 | CN8: 0 | CO8: 0 | CP8: 0 | CQ8: 1131991 | CR8: 309870 | CS8: 0 | CT8: 7050603 | CU8: 0 | CV8: 0 | CW8: 16846120 | CX8: 0 | CY8: 0 | CZ8: 0 | DA8: 0 | DB8: 0 | DC8: 0 | DD8: 0 | DE8: 0 | DF8: 0 | DG8: 0 | DH8: 0 | DI8: 0 | DJ8: 0 | DK8: 0 | DL8: 15639087 | DM8: 0 | DN8: 0 | DO8: 0 | DP8: 47033697 | DQ8: 0 | DR8: 0 | DS8: 0 | DT8: 0 | DU8: 0 | DV8: 0 | DW8: 0 | DX8: 0 | DY8: 0 | DZ8: 0 | EA8: 0 | EB8: 0 | EC8: 0 | ED8: 0 | EE8: 0 | EF8: 0 | EG8: 0 | EH8: 0 | EI8: 0 | EJ8: 0 | EK8: 0 | EL8: 0 | EM8: 0 | EN8: 0 | EO8: 0 | EP8: 0 | EQ8: 0 | ER8: 0 | ES8: 0 | ET8: 0 | EU8: 0 | EV8: 0 | EW8: 0 | EX8: 0 | EY8: 0 | EZ8: 0 | FA8: 0 | FB8: 0 | FC8: 637020125 | FD8: Online DOGGR Data (2015) from http://opi.consrv.ca.gov/opi/opi.dll (accessed on May 3, 2017) and DOGGR 2015 Report of California Oil and Gas Production Statistics
A9: Daily Oil Production (BOPD) | B9: =B3/365 -> 533.2 | C9: =C3/365 -> 117.1753425 | D9: 306.2328767 | E9: 914.0383562 | F9: 1364.632877 | G9: 615.5643836 | H9: 16.19178082 | I9: 735.309589 | J9: 277.2356164 | K9: 10.15342466 | L9: 98.55890411 | M9: 86.32328767 | N9: 25.10684932 | O9: 1703.654795 | P9: 6382.230137 | Q9: 62744.9863 | R9: 1837.353425 | S9: 69.00821918 | T9: 32.32054795 | U9: 2936.413699 | V9: 3262.769863 | W9: 40.65753425 | X9: 62.23013699 | Y9: 65.28493151 | Z9: 249.2794521 | AA9: 53.27945205 | AB9: 437.8931507 | AC9: 543.3917808 | AD9: 15.92328767 | AE9: 3531.972603 | AF9: 85.40547945 | AG9: 545.3808219 | AH9: 63.59452055 | AI9: 18574.64932 | AJ9: 576.0493151 | AK9: 195.3041096 | AL9: 62.9260274 | AM9: 655.2958904 | AN9: 527.0246575 | AO9: 45330.78082 | AP9: 106.6465753 | AQ9: 120.3561644 | AR9: 36.54246575 | AS9: =AS3/365 -> 80.15890411 | AT9: 2036.99726 | AU9: 69.36438356 | AV9: 30967.15342 | AW9: 1362.339726 | AX9: 1262.70411 | AY9: 297.8931507 | AZ9: 71.63835616 | BA9: 129.7643836 | BB9: 55.16438356 | BC9: 192.6273973 | BD9: 6773.241096 | BE9: 28.40821918 | BF9: 6511.819178 | BG9: 311.8767123 | BH9: 307.3315068 | BI9: =BI3/365 -> 31.32054795 | BJ9: 13734.73699 | BK9: 70387.78904 | BL9: 241.0438356 | BM9: 470.2465753 | BN9: 85.44931507 | BO9: 765.9863014 | BP9: 26.53972603 | BQ9: =BQ3/365 -> 947.9013699 | BR9: 4492.482192 | BS9: 27.6739726 | BT9: 116.4164384 | BU9: 33.31780822 | BV9: 30711.56164 | BW9: 44.81643836 | BX9: 736.4767123 | BY9: 19.99452055 | BZ9: 76.36438356 | CA9: 164.5506849 | CB9: 9135.509589 | CC9: 77205.42466 | CD9: 1094.435616 | CE9: 1391.375342 | CF9: 275.309589 | CG9: 3576.668493 | CH9: 261.9424658 | CI9: 295.0410959 | CJ9: 234.8739726 | CK9: 61.70410959 | CL9: 38.15068493 | CM9: 312.2465753 | CN9: 204.5945205 | CO9: 652.969863 | CP9: 187.630137 | CQ9: 3123.810959 | CR9: 957.6547945 | CS9: 46.86575342 | CT9: 2414.589041 | CU9: 127.3424658 | CV9: 3424.536986 | CW9: 11335.93699 | CX9: 153.1315068 | CY9: 228.0986301 | CZ9: 307.0739726 | DA9: 113.9890411 | DB9: 813.4328767 | DC9: 741.2 | DD9: 902.490411 | DE9: 116.5123288 | DF9: 150.4712329 | DG9: 1095.630137 | DH9: 405.2328767 | DI9: 25.9369863 | DJ9: 47.04383562 | DK9: 408.339726 | DL9: 9891.010959 | DM9: 133.7835616 | DN9: 127.0657534 | DO9: 45.70684932 | DP9: 21357.97534 | DQ9: 1158.39726 | DR9: 621.6027397 | DS9: 381.2054795 | DT9: 121.5232877 | DU9: 2574.019178 | DV9: 557.1150685 | DW9: 38.18082192 | DX9: 73.38082192 | DY9: 93.47671233 | DZ9: 514.660274 | EA9: 1151.909589 | EB9: 96.15342466 | EC9: =EC3/365 -> 1109.438356 | ED9: 1638.843836 | EE9: 199.8054795 | EF9: 1757.808219 | EG9: 349.4027397 | EH9: 51.47671233 | EI9: 26.84931507 | EJ9: 1000.378082 | EK9: 35.19452055 | EL9: 93.88493151 | EM9: 190.7945205 | EN9: 224.4794521 | EO9: 75.58630137 | EP9: 999.830137 | EQ9: 340.5041096 | ER9: 14.41917808 | ES9: =ES3/365 -> 35.51780822 | ET9: 13004.70137 | EU9: 74.6 | EV9: 26.24383562 | EW9: 280.6767123 | EX9: 31.93972603 | EY9: 263.8767123 | EZ9: 37425.39178 | FA9: 278.9835616 | FB9: 636.9315068
A10: GOR (scf/bbl) | B10: =B5*1000/B3 -> 346292.4601 | C10: =C5*1000/C3 -> 211.1809956 | D10: 0 | E10: 0 | F10: 1961.075386 | G10: 20677.95675 | H10: 0 | I10: 1380.926122 | J10: 3177.901197 | K10: 2196.438208 | L10: 3379.551899 | M10: 474.2287673 | N10: 607.0493234 | O10: 460.69369 | P10: 1106.362958 | Q10: 356.0577454 | R10: 1257.827668 | S10: 4470.422423 | T10: 0 | U10: 854.5873216 | V10: 11771.08533 | W10: 1107.210243 | X10: 2822.840539 | Y10: 589.5757271 | Z10: 1531.482519 | AA10: 1439.913611 | AB10: 1397.88902 | AC10: 556.5398461 | AD10: 299.2085341 | AE10: 464.5531621 | AF10: 404.9337568 | AG10: 0 | AH10: 2562.467689 | AI10: 36.31300696 | AJ10: 649.8682571 | AK10: 11920.26485 | AL10: 0 | AM10: 426.2677531 | AN10: 1093.926098 | AO10: 173.2986779 | AP10: 0 | AQ10: 1757.250171 | AR10: 81.49647623 | AS10: =AS5*1000/AS3 -> 1645.874633 | AT10: 178.9929846 | AU10: 193.6961845 | AV10: 9692.39515 | AW10: 722.1782027 | AX10: 305.3438261 | AY10: 2071.883823 | AZ10: 194.4699403 | BA10: 693.2480365 | BB10: 1464.911845 | BC10: 412757.0866 | BD10: 458.8722018 | BE10: 0 | BF10: 448.2908633 | BG10: 194.8961216 | BH10: 0 | BI10: =BI5*1000/BI3 -> 0 | BJ10: 4.378060309 | BK10: 10.52400784 | BL10: 1670.178789 | BM10: 777.5460266 | BN10: 988.457469 | BO10: 918.5113651 | BP10: 87.43677093 | BQ10: =BQ5*1000/BQ3 -> 878.7256058 | BR10: 436.4405436 | BS10: 67.51806752 | BT10: 853.7842417 | BU10: 17.76169723 | BV10: 574.5642175 | BW10: 438.4399071 | BX10: 0 | BY10: 95.23157029 | BZ10: 0 | CA10: 666.3558715 | CB10: 659.3356468 | CC10: 186.9409772 | CD10: 485.6697266 | CE10: 927.5970165 | CF10: 3318.037975 | CG10: 36.8277206 | CH10: 422.7530881 | CI10: 1514.99675 | CJ10: 531.0688332 | CK10: 2058.342954 | CL10: 430.448833 | CM10: 866.236729 | CN10: 1168.592739 | CO10: 5372.200357 | CP10: 106.5196758 | CQ10: 769.6429809 | CR10: 39.57441695 | CS10: 3154.565649 | CT10: 0 | CU10: 101649.4621 | CV10: 307.2516153 | CW10: 59.31312637 | CX10: 0.2146959369 | CY10: 21694.64063 | CZ10: 446.994165 | DA10: 2514.517137 | DB10: 177.091508 | DC10: 873.6702423 | DD10: 1474.519518 | DE10: 181.343617 | DF10: 554.4044281 | DG10: 470.964354 | DH10: 696.9440876 | DI10: 1044.047745 | DJ10: 0 | DK10: 550.8977215 | DL10: 0 | DM10: 1285.228646 | DN10: 924.5132495 | DO10: 2670.023377 | DP10: 131.1727126 | DQ10: 837.6287502 | DR10: 1068.616259 | DS10: 1134.059221 | DT10: 675.3088646 | DU10: 330.0994021 | DV10: 596.6943205 | DW10: 4786.380597 | DX10: 974.7237157 | DY10: 986.517776 | DZ10: 359.4604234 | EA10: 826.4156957 | EB10: 616.0531115 | EC10: =EC5*1000/EC3 -> 2266.858462 | ED10: 779.5773165 | EE10: 5004.058742 | EF10: 1301.388716 | EG10: 318.8611486 | EH10: 144.7655543 | EI10: 196.8367347 | EJ10: 267.2688134 | EK10: 0 | EL10: 7752.597175 | EM10: 1353.518093 | EN10: 492.6099957 | EO10: 3458.407336 | EP10: 174.8269569 | EQ10: 1436.226707 | ER10: 1586.547596 | ES10: =ES5*1000/ES3 -> 1449.475471 | ET10: 575.178081 | EU10: 418.7447207 | EV10: 1136.861885 | EW10: 401.3880348 | EX10: 178.8471436 | EY10: 2503.649483 | EZ10: 316.3489179 | FA10: 859.8434631 | FB10: 8.194253269
A11: WOR (bbl/bbl) | B11: =B4/B3 -> 7.16153696 | C11: =C4/C3 -> 76.18214127 | D11: 6.32509953 | E11: 9.595994293 | F11: 20.84588158 | G11: 44.81484416 | H11: 3.377834179 | I11: 2.281648211 | J11: 1.549307745 | K11: 0.009713977334 | L11: 4.408378273 | M11: 20.99796877 | N11: 22.84864688 | O11: 16.52460142 | P11: 14.12157901 | Q11: 13.60751343 | R11: 14.0367339 | S11: 2.950929014 | T11: 3.67025515 | U11: 6.426639149 | V11: 40.07066607 | W11: 115.9222372 | X11: 1.571277626 | Y11: 7.082966134 | Z11: 7.117950916 | AA11: 1.8366329 | AB11: 1.128973729 | AC11: 64.14461677 | AD11: 1.349277357 | AE11: 10.68694586 | AF11: 6.049754595 | AG11: 8.636533979 | AH11: 14.87584008 | AI11: 10.83145728 | AJ11: 4.885103064 | AK11: 1.099486575 | AL11: 25.96085859 | AM11: 29.76602016 | AN11: 73.04118234 | AO11: 6.650032773 | AP11: 96.62084468 | AQ11: 14.19148646 | AR11: 5.507272455 | AS11: =AS4/AS3 -> 2.168774352 | AT11: 13.94844816 | AU11: 15.00019749 | AV11: 14.98086634 | AW11: 4.565554023 | AX11: 15.35269166 | AY11: 22.88661927 | AZ11: 1.973841212 | BA11: 5.807659826 | BB11: 1.031090142 | BC11: 9.015844344 | BD11: 30.8462657 | BE11: 0.02941460122 | BF11: 52.15258283 | BG11: 2.42753986 | BH11: 111.1721045 | BI11: =BI4/BI3 -> 88.61485304 | BJ11: 32.29107758 | BK11: 11.07202043 | BL11: 2.368295427 | BM11: 3.148992076 | BN11: 36.88136843 | BO11: 16.55902498 | BP11: 3.113038092 | BQ11: =BQ4/BQ3 -> 64.65709686 | BR11: 24.43285281 | BS11: 12.91258291 | BT11: 25.24044526 | BU11: 53.73184771 | BV11: 12.10464954 | BW11: 22.62354811 | BX11: 15.11568594 | BY11: 1.023020005 | BZ11: 65.06246188 | CA11: 15.52959491 | CB11: 9.046055719 | CC11: 9.584796405 | CD11: 2.764940458 | CE11: 75.62077928 | CF11: 8.745521853 | CG11: 27.30300027 | CH11: 4.51312115 | CI11: 1.120763302 | CJ11: 23.32956176 | CK11: 5.752775064 | CL11: 3.6605386 | CM11: 6.917592349 | CN11: 1.279269387 | CO11: 2.798904059 | CP11: 0.5570562897 | CQ11: 29.26353567 | CR11: 0.9413578834 | CS11: 1.856073892 | CT11: 36.27949508 | CU11: 26.36650172 | CV11: 1.107470183 | CW11: 44.56854465 | CX11: 4.836580609 | CY11: 20.69390795 | CZ11: 44.97608001 | DA11: 1.258784791 | DB11: 22.10675877 | DC11: 11.44836585 | DD11: 17.54788121 | DE11: 2.684976603 | DF11: 5.220986126 | DG11: 4.580917968 | DH11: 18.01813941 | DI11: 1.530474279 | DJ11: 1.134529148 | DK11: 40.36323502 | DL11: 49.55728254 | DM11: 27.25455141 | DN11: 4.55162897 | DO11: 34.77725829 | DP11: 15.3768876 | DQ11: 11.59859277 | DR11: 3.726914516 | DS11: 0.9528819894 | DT11: 3.242244567 | DU11: 53.19919384 | DV11: 18.20705985 | DW11: 4.653272101 | DX11: 0.979801374 | DY11: 3.134060201 | DZ11: 3.104939553 | EA11: 17.56583351 | EB11: 0.8664805106 | EC11: =EC4/EC3 -> 1.037447061 | ED11: 3.126114635 | EE11: 4.20681759 | EF11: 1.404359414 | EG11: 0.4798874008 | EH11: 38.36122199 | EI11: 0.7735714286 | EJ11: 61.24977954 | EK11: 26.72575121 | EL11: 2.885607564 | EM11: 3.804796094 | EN11: 26.17932507 | EO11: 0.09518286274 | EP11: 16.19959281 | EQ11: 1.111776254 | ER11: 16.91582747 | ES11: =ES4/ES3 -> 7.877892626 | ET11: 9.634774021 | EU11: 2.843879687 | EV11: 0.9676375405 | EW11: 3.776362412 | EX11: 0.2526162292 | EY11: 1.351596325 | EZ11: 43.57671548 | FA11: 34.45684432 | FB11: 38.04177994
A12: Fraction gas injected | B12: =IF(B7=0," ",IF(B7/B5>1,1,B7/B5)) -> 0.7068397142 | D12: =IF(D7=0," ",IF(D7/D5>1,1,D7/D5)) ->  | F12: 0.7689379746 | AN12: 0.2849043872 | AO12: 0.07216339524 | AS12: =IF(AS7=0," ",IF(AS7/AS5>1,1,AS7/AS5)) ->  | AV12: 0.2962750835 | AW12: 0.05864285197 | BC12: 1 | BD12: 0.003290613246 | BH12: =IF(BH7=0," ",IF(BH7/BH5>1,1,BH7/BH5)) ->  | BI12: =IF(BI7=0," ",IF(BI7/BI5>1,1,BI7/BI5)) ->  | BK12: =IF(BK7=0," ",IF(BK7/BK5>1,1,BK7/BK5)) -> 0.1137185718 | BL12: 0.0002109647213 | BO12: 0.002005436095 | BP12: =IF(BP7=0," ",IF(BP7/BP5>1,1,BP7/BP5)) ->  | BQ12: 0.2248367733 | CB12: 0.03163024004 | CC12: 0.8671015698 | CE12: 0.1401688029 | CU12: 0.8596434415 | DB12: 0.0002282279998 | DM12: 0.9421915582 | DS12: 1.901225023e-05 | DX12: 0.6796644578 | EB12: =IF(EB7=0," ",IF(EB7/EB5>1,1,EB7/EB5)) ->  | ES12: =IF(ES7=0," ",IF(ES7/ES5>1,1,ES7/ES5)) -> 
A13: Gas Flooding Injection Ratio | B13: =IF(B7=0," ",IF((B7/B5)>1,B7*1000/B3," ")) ->  | C13: =IF(C7=0," ",IF((C7/C5)>1,C7*1000/C3," ")) ->  | AS13: =IF(AS7=0," ",IF((AS7/AS5)>1,AS7*1000/AS3," ")) ->  | BC13: 484593.5513 | BI13: =IF(BI7=0," ",IF((BI7/BI5)>1,BI7*1000/BI3," ")) ->  | BQ13: =IF(BQ7=0," ",IF((BQ7/BQ5)>1,BQ7*1000/BQ3," ")) ->  | EC13: =IF(EC7=0," ",IF((EC7/EC5)>1,EC7*1000/EC3," ")) ->  | ES13: =IF(ES7=0," ",IF((ES7/ES5)>1,ES7*1000/ES3," ")) -> 
A14: Fraction water injected | B14: =IF((B6/B4)>1,1,B6/B4) -> 1 | C14: 0.9220455007 | D14: 0 | E14: 0.3598065129 | F14: 0.131473929 | G14: 0.7630723433 | H14: 0 | I14: 0.5923620966 | J14: 1 | K14: 0 | L14: 0.5141405033 | M14: 0.9957406545 | N14: 0.8874370179 | O14: 0.8049305152 | P14: 1 | Q14: 0.8488703618 | R14: 0.7913000792 | S14: 0 | T14: 0.9998614255 | U14: 0.7002358009 | V14: 1 | W14: 1 | X14: 0 | Y14: 0.5160030809 | Z14: 0.7925085039 | AA14: 0 | AB14: 1 | AC14: 0.9982592791 | AD14: 0 | AE14: 0.8752192195 | AF14: 0.05983912105 | AG14: 0 | AH14: 0 | AI14: 0.1876811511 | AJ14: 1 | AK14: 1 | AL14: 1 | AM14: 0.9927214256 | AN14: 0.9995109069 | AO14: 0.04686401887 | AP14: 0.4930744314 | AQ14: 0.9630320548 | AR14: 0.1846956001 | AS14: =IF((AS6/AS4)>1,1,AS6/AS4) -> 0 | AT14: 0.6204666269 | AU14: 0.09558291093 | AV14: 1 | AW14: 0.891833903 | AX14: 1 | AY14: 1 | AZ14: 0.5861427575 | BA14: 0.9934381294 | BB14: 1 | BC14: 1 | BD14: 0.9712997479 | BE14: 0 | BF14: 1 | BG14: 1 | BH14: 0.03885471406 | BI14: =IF((BI6/BI4)>1,1,BI6/BI4) -> 0.9780621789 | BJ14: 0.3124068544 | BK14: 0.03619926575 | BL14: 1 | BM14: 1 | BN14: 0.9997948349 | BO14: 1 | BP14: =IF((BP6/BP4)>1,1,BP6/BP4) -> 0.9997015519 | BQ14: 1 | BR14: 0.6322677086 | BS14: 0.8004676838 | BT14: 1 | BU14: 0 | BV14: 0.7634857367 | BW14: 0.9951199213 | BX14: 1 | BY14: 0 | BZ14: 0.385038539 | CA14: 0.9611020635 | CB14: 0.7346952564 | CC14: 0.1875695631 | CD14: 0.8751308275 | CE14: 0.945770568 | CF14: 0 | CG14: 0.6468124318 | CH14: 0.3757726045 | CI14: 1 | CJ14: 0.2979920201 | CK14: 0.9951992838 | CL14: 1 | CM14: 1 | CN14: 0 | CO14: 0.9410170386 | CP14: 0 | CQ14: 0.9185864242 | CR14: 1 | CS14: 0.8379212598 | CT14: 0.6933267647 | CU14: 0.3278841956 | CV14: 0.9199068981 | CW14: 0.8081794778 | CX14: 0.9046280301 | CY14: 0 | CZ14: 0.9962285328 | DA14: 1 | DB14: 1 | DC14: 0.8626816065 | DD14: 1 | DE14: 0.7864849716 | DF14: 0.8354193767 | DG14: 0.856283421 | DH14: 0.9344754702 | DI14: 0 | DJ14: 1 | DK14: 0.9930241503 | DL14: 0.9568984401 | DM14: 1 | DN14: 0 | DO14: 0 | DP14: 0.3448497407 | DQ14: 1 | DR14: 1 | DS14: 1 | DT14: 1 | DU14: 0.8269795851 | DV14: 1 | DW14: 0 | DX14: 1 | DY14: 0.7326219712 | DZ14: 0.9999982855 | EA14: 0.221457255 | EB14: =IF((EB6/EB4)>1,1,EB6/EB4) -> 0 | EC14: 0.7565060496 | ED14: 1 | EE14: 1 | EF14: 1 | EG14: 0 | EH14: 0.999178655 | EI14: 0 | EJ14: 0.9120043254 | EK14: 1 | EL14: 1 | EM14: 1 | EN14: 1 | EO14: 0 | EP14: 0.8776977821 | EQ14: 0 | ER14: 0.9994271465 | ES14: =IF((ES6/ES4)>1,1,ES6/ES4) -> 0.9918044826 | ET14: 1 | EU14: 0 | EV14: 0 | EW14: 0.9755503687 | EX14: 0 | EY14: 0 | EZ14: 1 | FA14: 0.9611608952 | FB14: 0.9978947197
A15: Water Flooding Injection Ratio | B15: =IF((B6/B4)>1,B6/B3," ") -> 7.673694108 | J15: 1.620401024 | P15: 14.90977388 | V15: 43.7293215 | AB15: 1.128979985 | AJ15: 5.679099012 | AK15: 1.558202172 | AL15: 25.98719958 | AS15: =IF((AS6/AS4)>1,AS6/AS3," ") ->  | AV15: 16.58387743 | AX15: 18.17170152 | AY15: 22.93453569 | BB15: 1.201936926 | BC15: 10.06519791 | BF15: 54.99182856 | BG15: 4.312803619 | BI15: =IF((BI6/BI4)>1,BI6/BI3," ") ->  | BL15: 2.371716621 | BM15: 5.183232347 | BO15: 16.5590536 | BP15: =IF((BP6/BP4)>1,BP6/BP3," ") ->  | BQ15: 72.81164158 | BT15: 25.40313471 | BX15: 16.77758227 | CI15: 1.219231126 | CL15: 9.151238779 | CM15: 8.790988857 | CR15: 3.318829675 | DA15: 1.633658607 | DB15: 22.68609276 | DJ15: 2.903325374 | DM15: 27.31377608 | DQ15: 13.02941239 | DR15: 6.006531943 | DS15: 1.145012218 | DT15: 3.334813779 | DV15: 20.73750781 | EB15: =IF((EB6/EB4)>1,EB6/EB3," ") ->  | ED15: 3.722754765 | EE15: 5.956135419 | EF15: 1.568720387 | EK15: 26.72754165 | EL15: 2.885782654 | EM15: 5.295663412 | EN15: 27.74821505 | ES15: =IF((ES6/ES4)>1,ES6/ES3," ") ->  | ET15: 11.41663078 | EZ15: 45.50809933
A16: Steam to Oil Ratio | B16: =IF(B8>0,B8/B3," ") ->  | C16: =IF(C8>0,C8/C3," ") ->  | E16: 5.204613577 | F16: 6.640762431 | P16: 0.01707824035 | Q16: 3.56638736 | AE16: 1.263178634 | AG16: 10.50720371 | AI16: 5.585386888 | AO16: 3.559495483 | AS16: =IF(AS8>0,AS8/AS3," ") ->  | AT16: 2.254462653 | BI16: =IF(BI8>0,BI8/BI3," ") ->  | BJ16: 7.223620581 | BK16: 3.572760967 | BQ16: =IF(BQ8>0,BQ8/BQ3," ") ->  | BV16: 2.455230015 | BX16: 4.789545931 | BZ16: 1.970042694 | CB16: 5.356198498 | CC16: 6.573379789 | CG16: 0.06390426846 | CJ16: 0.4719756442 | CQ16: 0.9928082225 | CR16: 0.8864978372 | CT16: 8.000003404 | CW16: 4.071454656 | DL16: 4.33189427 | DP16: 6.03331738 | EC16: =IF(EC8>0,EC8/EC3," ") ->  | ES16: =IF(ES8>0,ES8/ES3," ") -> 

Sheet TEOR Fields 2015
A1: 2015 Steam and Water Injection for TEOR Fields
C2: Antelope Hills, North | D2: Arroyo Grande | E2: Belridge, North | F2: Belridge, South | G2: Buena Vista | H2: Cat Canyon | I2: Chico-Martinez | J2: Coalinga | K2: Comanche Point | L2: Cymric | M2: Edison | N2: Jasmin | O2: Kern Front | P2: Kern River | Q2: Lost Hills | R2: Lynch Canyon | S2: McKittrick | T2: Midway-Sunset | U2: Mount Poso | V2: Newport, West | W2: Orcutt | X2: Oxnard | Y2: Placerita | Z2: Poso Creek | AA2: Round Mountain | AB2: San Ardo | AC2: Tapia | AD2: Sum | AE2: Sources
A3: January | B3: Steam | C3: =38787+117299 -> 156086 | D3: =29151+147163 -> 176314 | E3: 6601 | F3: =405792+5840261 -> 6246053 | G3: 0 | H3: 164298 | I3: =18864+170780 -> 189644 | J3: =540921+2997821 -> 3538742 | K3: 0 | L3: =3647917+1535409 -> 5183326 | M3: =102270+53594 -> 155864 | N3: 0 | O3: =277209+2674367 -> 2951576 | P3: =465645+7374193 -> 7839838 | Q3: =84487+2315347 -> 2399834 | R3: =36139+78523 -> 114662 | S3: =285890+1362264 -> 1648154 | T3: =9694959+6782032 -> 16476991 | U3: =5148+1155 -> 6303 | V3: =1444+2292 -> 3736 | W3: 150968 | X3: 5827 | Y3: =139435+406911 -> 546346 | Z3: =352629+873432 -> 1226061 | AA3: =32159+1597602 -> 1629761 | AB3: =283183+3790617 -> 4073800 | AC3: 0 | AD3: =SUM(C3:AC3) -> 54890785 | AE3: January to December 2015 Monthly Oil and Gas Production and Injection Report, California Department of Conservation
B4: Water | C4: 78350 | D4: 135622 | E4: =3043974+56601 -> 3100575 | F4: =8589955+12515977 -> 21105932 | G4: =3598182+749632 -> 4347814 | H4: =197644+1048201 -> 1245845 | I4: 0 | J4: =991357+153609 -> 1144966 | K4: 47550 | L4: 475464 | M4: 616897 | N4: 43194 | O4: 4889104 | P4: 1586843 | Q4: =8088130+1352727 -> 9440857 | R4: 375738 | S4: 1645589 | T4: 4341194 | U4: =257326+2431657 -> 2688983 | V4: 56727 | W4: =2476578+317075 -> 2793653 | X4: 119217 | Y4: 1988424 | Z4: 10834419 | AA4: =406280+14426949 -> 14833229 | AB4: =312093+3446081 -> 3758174 | AC4: 58900 | AD4: =SUM(C4:AC4) -> 91753260
A5: February | B5: Steam | C5: =45846+107015 -> 152861 | D5: =26817+139837 -> 166654 | E5: =3862+15616 -> 19478 | F5: =301142+5578880 -> 5880022 | G5: 0 | H5: 149631 | I5: =16194+158220 -> 174414 | J5: =251157+2263110 -> 2514267 | K5: 0 | L5: =3036713+1251930 -> 4288643 | M5: =65542+41961 -> 107503 | N5: 0 | O5: =243783+2408314 -> 2652097 | P5: =408001+6740496 -> 7148497 | Q5: =68591+2161942 -> 2230533 | R5: =29675+69872 -> 99547 | S5: =261174+1177398 -> 1438572 | T5: =8603469+6153480 -> 14756949 | U5: =4660+1166 -> 5826 | V5: =2250+2145 -> 4395 | W5: 137347 | X5: 18806 | Y5: =137733+360839 -> 498572 | Z5: =448878+837561 -> 1286439 | AA5: =28406+1291377 -> 1319783 | AB5: =284622+3415054 -> 3699676 | AC5: 0 | AD5: 48750512
B6: Water | C6: 78009 | D6: 129350 | E6: =2780200+41652 -> 2821852 | F6: =8332571+11210090 -> 19542661 | G6: =3216013+697435 -> 3913448 | H6: =154801+882733 -> 1037534 | I6: 0 | J6: =837068+175792 -> 1012860 | K6: 44537 | L6: 382294 | M6: 560583 | N6: 57837 | O6: 4880728 | P6: 1503939 | Q6: =7224977+1492857 -> 8717834 | R6: 328797 | S6: 1411218 | T6: 3876520 | U6: =251945+2129386 -> 2381331 | V6: 47296 | W6: =2088884+291516 -> 2380400 | X6: 88290 | Y6: 1749340 | Z6: 9401258 | AA6: =360672+12496699 -> 12857371 | AB6: =252377+2641429 -> 2893806 | AC6: 71263 | AD6: 82170356
A7: March | B7: Steam | C7: =27436+129680 -> 157116 | D7: =29222+231225 -> 260447 | E7: =1766+7943 -> 9709 | F7: =378895+6332027 -> 6710922 | G7: 0 | H7: 152790 | I7: =11222+163195 -> 174417 | J7: =557915+2875737 -> 3433652 | K7: 0 | L7: =3666312+1513455 -> 5179767 | M7: =63265+45831 -> 109096 | N7: 0 | O7: =233654+2679190 -> 2912844 | P7: =432135+7557507 -> 7989642 | Q7: =96698+2222834 -> 2319532 | R7: =31399+77249 -> 108648 | S7: =356984+1351473 -> 1708457 | T7: =9243167+6540267 -> 15783434 | U7: =4624+1072 -> 5696 | V7: 6116 | W7: 143309 | X7: 24094 | Y7: =154709+420248 -> 574957 | Z7: =666242+901220 -> 1567462 | AA7: =30640+1205300 -> 1235940 | AB7: =297297+3759625 -> 4056922 | AC7: 0 | AD7: 54624969
B8: Water | C8: 121990 | D8: 138718 | E8: =3019710+40320 -> 3060030 | F8: =9186983+12896264 -> 22083247 | G8: =3475460+829573 -> 4305033 | H8: =197667+1017407 -> 1215074 | I8: 0 | J8: =852391+196546 -> 1048937 | K8: 48156 | L8: 477209 | M8: 591052 | N8: 62887 | O8: 5558786 | P8: 766049 | Q8: =7827753+1269184 -> 9096937 | R8: 360407 | S8: 1810275 | T8: 4297781 | U8: =269010+2259773 -> 2528783 | V8: 65249 | W8: =2292738+346903 -> 2639641 | X8: 105319 | Y8: 2036939 | Z8: 13486127 | AA8: =370171+13412704 -> 13782875 | AB8: =303214+3553655 -> 3856869 | AC8: 71298 | AD8: 93615668
A9: April | B9: Steam | C9: =32478+131608 -> 164086 | D9: =26104+226302 -> 252406 | E9: 0 | F9: =356256+6160712 -> 6516968 | G9: 0 | H9: 172060 | I9: =14220+121972 -> 136192 | J9: =515372+2811363 -> 3326735 | K9: 0 | L9: =3567319+1389439 -> 4956758 | M9: =74648+41920 -> 116568 | N9: 0 | O9: =267593+2601589 -> 2869182 | P9: =348737+7346861 -> 7695598 | Q9: =71155+2220424 -> 2291579 | R9: =25619+53589 -> 79208 | S9: =354156+1385451 -> 1739607 | T9: =8786146+6128547 -> 14914693 | U9: =4882+1283 -> 6165 | V9: =1060+1471 -> 2531 | W9: 101895 | X9: 20545 | Y9: =143998+422340 -> 566338 | Z9: =382022+901197 -> 1283219 | AA9: =28437+1182865 -> 1211302 | AB9: =260120+3580535 -> 3840655 | AC9: 0 | AD9: 52264290
B10: Water | C10: 102406 | D10: 119627 | E10: =2797291+44733 -> 2842024 | F10: =8988732+12734366 -> 21723098 | G10: =3627291+853419 -> 4480710 | H10: =181308+961945 -> 1143253 | I10: 0 | J10: =876382+196546 -> 1072928 | K10: 48156 | L10: 464188 | M10: 539456 | N10: 57277 | O10: 5183060 | P10: 747222 | Q10: =7981410+1144556 -> 9125966 | R10: 349600 | S10: 1550949 | T10: 4041824 | U10: =271709+1886817 -> 2158526 | V10: 64139 | W10: =2212854+319457 -> 2532311 | X10: 112812 | Y10: 1999968 | Z10: 12301954 | AA10: =380162+13445529 -> 13825691 | AB10: =413882+3211335 -> 3625217 | AC10: 74128 | AD10: 90286490
A11: May | B11: Steam | C11: =44486+120929 -> 165415 | D11: =26097+235341 -> 261438 | E11: 0 | F11: =447675+6316669 -> 6764344 | G11: 0 | H11: 150160 | I11: =23986+162871 -> 186857 | J11: =441553+3083529 -> 3525082 | K11: 0 | L11: =3565666+1291403 -> 4857069 | M11: =143855+46452 -> 190307 | N11: 0 | O11: =260960+2716545 -> 2977505 | P11: =485909+7330899 -> 7816808 | Q11: =157872+2261542 -> 2419414 | R11: =58579+51187 -> 109766 | S11: =318654+1279248 -> 1597902 | T11: =9308334+6571758 -> 15880092 | U11: =4880+2104 -> 6984 | V11: =442+1325 -> 1767 | W11: 88759 | X11: 48111 | Y11: =197788+440849 -> 638637 | Z11: =398795+912656 -> 1311451 | AA11: 1286949 | AB11: =318280+3647992 -> 3966272 | AC11: 0 | AD11: 54251089
B12: Water | C12: 136662 | D12: 127749 | E12: =2790000+44457 -> 2834457 | F12: =9373056+13479411 -> 22852467 | G12: =3755543+864388 -> 4619931 | H12: =170100+913538 -> 1083638 | I12: 0 | J12: =900892+243625 -> 1144517 | K12: 43615 | L12: 473364 | M12: 489308 | N12: 62820 | O12: 5222579 | P12: 705109 | Q12: =8259429+1190746 -> 9450175 | R12: 345943 | S12: 1671386 | T12: 4636271 | U12: =333940+1764926 -> 2098866 | V12: 28444 | W12: 2303798 | X12: 90522 | Y12: 2080272 | Z12: 12680858 | AA12: =533152+14918131 -> 15451283 | AB12: =352883+3205919 -> 3558802 | AC12: 71359 | AD12: 94264195
A13: June | B13: Steam | C13: =38573+128921 -> 167494 | D13: =24387+235107 -> 259494 | E13: 0 | F13: =406167+6288290 -> 6694457 | G13: 0 | H13: 150221 | I13: =777+181992 -> 182769 | J13: =523354+2641193 -> 3164547 | K13: 0 | L13: =3497614+1327848 -> 4825462 | M13: =106598+44296 -> 150894 | N13: 0 | O13: =433659+2570350 -> 3004009 | P13: =492896+7201021 -> 7693917 | Q13: =137068+2206049 -> 2343117 | R13: =30826+79609 -> 110435 | S13: =319909+1295513 -> 1615422 | T13: =8855585+6365265 -> 15220850 | U13: =4784+1569 -> 6353 | V13: 5125 | W13: 76918 | X13: 39987 | Y13: =193927+417810 -> 611737 | Z13: =351658+878801 -> 1230459 | AA13: 1279600 | AB13: =277387+3662838 -> 3940225 | AC13: 0 | AD13: 52773492
B14: Water | C14: 110450 | D14: 107950 | E14: =2692355+38703 -> 2731058 | F14: =9006456+13056173 -> 22062629 | G14: =3380061+821662 -> 4201723 | H14: =155257+862441 -> 1017698 | I14: 0 | J14: =916664+229446 -> 1146110 | K14: 49831 | L14: 490199 | M14: 505387 | N14: 60237 | O14: 666312 | P14: =757867 -> 757867 | Q14: =7635037+1189068 -> 8824105 | R14: 384968 | S14: 1408121 | T14: 4555693 | U14: =369949+1667373 -> 2037322 | V14: 55647 | W14: =1571940+1004463 -> 2576403 | X14: 92553 | Y14: 1885739 | Z14: 12836103 | AA14: =571774+14548320 -> 15120094 | AB14: =297122+3157434 -> 3454556 | AC14: 68640 | AD14: 87207395
A15: July | B15: Steam | C15: =36568+97164 -> 133732 | D15: =25904+276610 -> 302514 | E15: 977 | F15: =491126+6531880 -> 7023006 | G15: 0 | H15: 103104 | I15: =6909+192829 -> 199738 | J15: =556419+2747550 -> 3303969 | K15: 0 | L15: =3538243+1366795 -> 4905038 | M15: =137550+46170 -> 183720 | N15: 0 | O15: =412991+2633965 -> 3046956 | P15: =456775+7598891 -> 8055666 | Q15: =128097+2294047 -> 2422144 | R15: =36395+76603 -> 112998 | S15: =271487+1269609 -> 1541096 | T15: =9186848+6560135 -> 15746983 | U15: =4792+1569 -> 6361 | V15: =1109+5140 -> 6249 | W15: 92435 | X15: 31297 | Y15: =226122+431466 -> 657588 | Z15: =433584+956716 -> 1390300 | AA15: 1420896 | AB15: =318069+3804076 -> 4122145 | AC15: 0 | AD15: 54808912
B16: Water | C16: 86745 | D16: 108446 | E16: =2774023+41616 -> 2815639 | F16: =9137291+13494857 -> 22632148 | G16: =3452224+876674 -> 4328898 | H16: =158578+864439 -> 1023017 | I16: 0 | J16: =949668+242123 -> 1191791 | K16: 54252 | L16: 470597 | M16: 539635 | N16: 47007 | O16: 5871459 | P16: 551873 | Q16: =7463866+1341195 -> 8805061 | R16: 364649 | S16: 1836280 | T16: 4424889 | U16: =392380+1288243 -> 1680623 | V16: 61334 | W16: =2276051+363560 -> 2639611 | X16: 96540 | Y16: 2067771 | Z16: 12828942 | AA16: =615466+13384953 -> 14000419 | AB16: =269277+3255804 -> 3525081 | AC16: 65162 | AD16: 92117869
A17: August | B17: Steam | C17: =13432+126403 -> 139835 | D17: =28297+288913 -> 317210 | E17: 3019 | F17: =544849+6626180 -> 7171029 | G17: 0 | H17: 107451 | I17: =15170+173064 -> 188234 | J17: =454874+2749494 -> 3204368 | K17: 0 | L17: =3587584+1506626 -> 5094210 | M17: =141481+46545 -> 188026 | N17: 0 | O17: =451269+2689576 -> 3140845 | P17: =561606+7775730 -> 8337336 | Q17: =91322+2156399 -> 2247721 | R17: =36525+83469 -> 119994 | S17: =291951+1185649 -> 1477600 | T17: =9220595+6723609 -> 15944204 | U17: =5659+963 -> 6622 | V17: =2716+2716 -> 5432 | W17: 20623 | X17: 5542 | Y17: =230921+436627 -> 667548 | Z17: =435914+984786 -> 1420700 | AA17: 1435001 | AB17: =270469+3787669 -> 4058138 | AC17: 0 | AD17: 55300688
B18: Water | C18: 103769 | D18: 69497 | E18: =2911742+40920 -> 2952662 | F18: =9336911+13336810 -> 22673721 | G18: =3528264+907600 -> 4435864 | H18: =126410+790265 -> 916675 | I18: 0 | J18: =948417+242288 -> 1190705 | K18: 57436 | L18: 383811 | M18: 541975 | N18: 19048 | O18: 5432825 | P18: 445310 | Q18: =7382593+1532907 -> 8915500 | R18: =352901+292427 -> 645328 | S18: 2169034 | T18: 4246924 | U18: =362869+1168940 -> 1531809 | V18: 60345 | W18: =2276533+364318 -> 2640851 | X18: 93739 | Y18: 1749505 | Z18: 12771709 | AA18: =643569+12897027 -> 13540596 | AB18: =323675+2782836 -> 3106511 | AC18: 58919 | AD18: 90754068
A19: September | B19: Steam | C19: =4897+132888 -> 137785 | D19: =21096+270190 -> 291286 | E19: 0 | F19: =457682+6480931 -> 6938613 | G19: 0 | H19: 90438 | I19: =21156+192590 -> 213746 | J19: =267787+2730771 -> 2998558 | K19: 0 | L19: =3416341+1452618 -> 4868959 | M19: =36477+45493 -> 81970 | N19: 0 | O19: =455260+2667798 -> 3123058 | P19: =457461+5852860 -> 6310321 | Q19: =102423+1980985 -> 2083408 | R19: =38801+60873 -> 99674 | S19: =283014+1060969 -> 1343983 | T19: =8875582+6346880 -> 15222462 | U19: =6636+2138 -> 8774 | V19: =619+619 -> 1238 | W19: 87408 | X19: 36767 | Y19: =192941+431059 -> 624000 | Z19: =379370+969483 -> 1348853 | AA19: 1241704 | AB19: =331541+3595377 -> 3926918 | AC19: 0 | AD19: 51079923
B20: Water | C20: 88911 | D20: 91693 | E20: =2715835+46182 -> 2762017 | F20: =8879040+12542190 -> 21421230 | G20: =3397747+864543 -> 4262290 | H20: =129676+688646 -> 818322 | I20: 0 | J20: =943518+219501 -> 1163019 | K20: 51571 | L20: 360931 | M20: 533576 | N20: 15168 | O20: 3998895 | P20: 883638 | Q20: =6738120+1307975 -> 8046095 | R20: 321065 | S20: 2199210 | T20: 4061324 | U20: =349504+1089219 -> 1438723 | V20: 45089 | W20: =2223902+341052 -> 2564954 | X20: 87452 | Y20: 1750695 | Z20: 12238419 | AA20: =13186346+956438 -> 14142784 | AB20: =267108+2944922 -> 3212030 | AC20: 38932 | AD20: 86598033
A21: October | B21: Steam | C21: =5605+111464 -> 117069 | D21: =22539+304311 -> 326850 | E21: 0 | F21: =470977+6700439 -> 7171416 | G21: 0 | H21: 128077 | I21: =14425+211918 -> 226343 | J21: =228311+2810364 -> 3038675 | K21: 0 | L21: =3458104+1364021 -> 4822125 | M21: =90041+45948 -> 135989 | N21: 0 | O21: =462953+2687044 -> 3149997 | P21: =664870+7225562 -> 7890432 | Q21: =108945+1983059 -> 2092004 | R21: =35608+82185 -> 117793 | S21: =261388+1115452 -> 1376840 | T21: =9246769+6386831 -> 15633600 | U21: =5956+354 -> 6310 | V21: =650+1301 -> 1951 | W21: 81863 | X21: 22162 | Y21: =168868+408191 -> 577059 | Z21: =426629+969110 -> 1395739 | AA21: 1174443 | AB21: =281686+3661787 -> 3943473 | AC21: 0 | AD21: 53430210
B22: Water | C22: 74407 | D22: 111887 | E22: =2795171+49047 -> 2844218 | F22: =9585271+13212772 -> 22798043 | G22: =3510078+907015 -> 4417093 | H22: =148737+740561 -> 889298 | I22: 0 | J22: =1036331+245364 -> 1281695 | K22: 54626 | L22: 440279 | M22: 516178 | N22: 15168 | O22: 2502514 | P22: 903782 | Q22: =5458682+1411545 -> 6870227 | R22: 344601 | S22: 2363447 | T22: 3874509 | U22: =367398+994626 -> 1362024 | V22: 37866 | W22: =2370633+308636 -> 2679269 | X22: 89365 | Y22: 1809145 | Z22: =12104984 -> 12104984 | AA22: =13733735+829430 -> 14563165 | AB22: =287005+3042827 -> 3329832 | AC22: 47995 | AD22: 86325617
A23: November | B23: Steam | C23: =29139+101413 -> 130552 | D23: =21531+314054 -> 335585 | E23: 0 | F23: =392948+6737061 -> 7130009 | G23: 0 | H23: 141494 | I23: =2637+156666 -> 159303 | J23: =341878+2602636 -> 2944514 | K23: 0 | L23: =3440262+1351976 -> 4792238 | M23: =105159+44510 -> 149669 | N23: 0 | O23: =402376+2733625 -> 3136001 | P23: =395153+7100523 -> 7495676 | Q23: =117496+2163217 -> 2280713 | R23: =35379+79093 -> 114472 | S23: =249875+953527 -> 1203402 | T23: =8499168+6292540 -> 14791708 | U23: =7131+2561 -> 9692 | V23: =170+201 -> 371 | W23: 71676 | X23: 32038 | Y23: =148270+406682 -> 554952 | Z23: =611821+1045393 -> 1657214 | AA23: 1163159 | AB23: =256976+3464776 -> 3721752 | AC23: 0 | AD23: 52016190
B24: Water | C24: 79494 | D24: 107086 | E24: =2880413+45069 -> 2925482 | F24: =9516548+12744205 -> 22260753 | G24: =3357594+976542 -> 4334136 | H24: =156771+712651 -> 869422 | I24: 0 | J24: =931784+227223 -> 1159007 | K24: 43250 | L24: 379574 | M24: 489711 | N24: 15168 | O24: 2596329 | P24: 619034 | Q24: =6722218+1275945 -> 7998163 | R24: 356164 | S24: 2094212 | T24: 4292635 | U24: =368236+1158972 -> 1527208 | V24: 41935 | W24: =2267463+304580 -> 2572043 | X24: 85607 | Y24: 1559899 | Z24: 13348313 | AA24: =13651425+787500 -> 14438925 | AB24: =314603+3289472 -> 3604075 | AC24: 49847 | AD24: 87847472
A25: December | B25: Steam | C25: =34822+79531 -> 114353 | D25: =24998+332508 -> 357506 | E25: 0 | F25: =410395+7019884 -> 7430279 | G25: 0 | H25: 118728 | I25: 59949 | J25: =316713+2557688 -> 2874401 | K25: 0 | L25: =3617693+1503181 -> 5120874 | M25: =75538+31058 -> 106596 | N25: 0 | O25: =370483+2878750 -> 3249233 | P25: =279986+7236025 -> 7516011 | Q25: =78879+2313563 -> 2392442 | R25: =20004+80296 -> 100300 | S25: =211335+957665 -> 1169000 | T25: =8409784+6455961 -> 14865745 | U25: =5519+2821 -> 8340 | V25: =633+918 -> 1551 | W25: 78790 | X25: 24694 | Y25: =66399+466470 -> 532869 | Z25: =630745+1097478 -> 1728223 | AA25: 1240549 | AB25: =267525+3416196 -> 3683721 | AC25: 0 | AD25: 52774154
B26: Water | C26: 90711 | D26: 117488 | E26: =2992605+49908 -> 3042513 | F26: =9858472+13526017 -> 23384489 | G26: =3426288+1004502 -> 4430790 | H26: =148369+650004 -> 798373 | I26: 0 | J26: =998521+227223 -> 1225744 | K26: 53894 | L26: 358523 | M26: 510932 | N26: 28740 | O26: 3770128 | P26: 826479 | Q26: =6842906+1463349 -> 8306255 | R26: 332789 | S26: 2001421 | T26: 4012857 | U26: =364267+1256278 -> 1620545 | V26: 31919 | W26: =2021307+305332 -> 2326639 | X26: 98661 | Y26: 1490751 | Z26: 14201326 | AA26: =13853610+791187 -> 14644797 | AB26: =368216+3045005 -> 3413221 | AC26: 43734 | AD26: 91163719
A27: Total | B27: Steam | C27: =C3+C5+C7+C9+C11+C13+C15+C17+C19+C21+C23+C25 -> 1736384 | D27: =D3+D5+D7+D9+D11+D13+D15+D17+D19+D21+D23+D25 -> 3307704 | E27: 39784 | F27: 81677118 | G27: 0 | H27: 1628452 | I27: 2091606 | J27: 37867510 | K27: 0 | L27: 58894469 | M27: 1676202 | N27: 0 | O27: 36213303 | P27: 91789742 | Q27: 27522441 | R27: 1287497 | S27: 17860035 | T27: 185237711 | U27: 83426 | V27: 40462 | W27: 1131991 | X27: 309870 | Y27: =Y3+Y5+Y7+Y9+Y11+Y13+Y15+Y17+Y19+Y21+Y23+Y25 -> 7050603 | Z27: 16846120 | AA27: 15639087 | AB27: 47033697 | AC27: 0 | AD27: 636965214
B28: Water | C28: =C4+C6+C8+C10+C12+C14+C16+C18+C20+C22+C24+C26 -> 1151904 | D28: 1365113 | E28: 34732527 | F28: 264540418 | G28: 52077730 | H28: 12058149 | I28: 0 | J28: 13782279 | K28: 596874 | L28: 5156433 | M28: 6434690 | N28: 484551 | O28: 50572719 | P28: 10297145 | Q28: 103597175 | R28: 4510049 | S28: 22161142 | T28: 50662421 | U28: 23054743 | V28: 595990 | W28: 30649573 | X28: 1160077 | Y28: =Y4+Y6+Y8+Y10+Y12+Y14+Y16+Y18+Y20+Y22+Y24+Y26 -> 22168448 | Z28: 149034412 | AA28: 171201229 | AB28: 41338174 | AC28: 720177 | AD28: 1074104142
B29: Oil | C29: 333624 | D29: 498091 | E29: 2329514 | F29: 22901920 | G29: 1190911 | H29: 1289170 | I29: 199064 | J29: 6779747 | K29: 22968 | L29: 16545735 | M29: 743504 | N29: 112176 | O29: 5013179 | P29: 25691543 | Q29: 11209720 | R29: 268814 | S29: 3334461 | T29: 28179980 | U29: 1305484 | V29: 85729 | W29: 1140191 | X29: 349544 | Y29: 881325 | Z29: 4137617 | AA29: 3610219 | AB29: 7795661 | AC29: 18789
B30: SOR | C30: =C27/C29 -> 5.204613577 | D30: =D27/D29 -> 6.640762431 | E30: 0.01707824035 | F30: 3.56638736 | G30: 0 | H30: 1.263178634 | I30: 10.50720371 | J30: 5.585386888 | K30: 0 | L30: 3.559495483 | M30: 2.254462653 | N30: 0 | O30: 7.223620581 | P30: 3.572760967 | Q30: 2.455230015 | R30: 4.789545931 | S30: 5.356198498 | T30: 6.573379789 | U30: 0.06390426846 | V30: 0.4719756442 | W30: 0.9928082225 | X30: 0.8864978372 | Y30: 8.000003404 | Z30: 4.071454656 | AA30: 4.33189427 | AB30: 6.03331738 | AC30: 0

Sheet Oil-Gas Fields 2015
A1: Oil/Gas Fields
C2: Aliso Canyon | D2: Honor Rancho | E2: Playa Del Rey | F2: Source
A3: January | B3: Oil (bbl) | C3: 11046 | D3: 2810 | E3: 4379 | F3: January to December 2015 Monthly Oil and Gas Production and Injection Report, California Department of Conservation ftp://ftp.consrv.ca.gov/pub/oil/monthly_production_reports/2015/
B4: Gas Produced (Mcf) | C4: 19184 | D4: 979 | E4: 3591
B5: Water Produced (bbl) | C5: 123133 | D5: 35451 | E5: 106867
B6: Gas Injected (Mcf) | C6: 0 | D6: 0 | E6: 0
B7: Water Injected (bbl) | C7: =28700+123158 -> 151858 | D7: 49495 | E7: 42722
A8: February | B8: Oil (bbl) | C8: 10896 | D8: 2660 | E8: 4202
B9: Gas Produced (Mcf) | C9: 16671 | D9: 900 | E9: 3404
B10: Water Produced (bbl) | C10: 91792 | D10: 33319 | E10: 95028
B11: Gas Injected (Mcf) | C11: 0 | D11: 0 | E11: 0
B12: Water Injected (bbl) | C12: =16513+89849 -> 106362 | D12: 38548 | E12: 44636
A13: March | B13: Oil (bbl) | C13: 11855 | D13: 3153 | E13: 4624
B14: Gas Produced (Mcf) | C14: 20052 | D14: 1080 | E14: 4070
B15: Water Produced (bbl) | C15: 136501 | D15: 38287 | E15: 104903
B16: Gas Injected (Mcf) | C16: 0 | D16: 0 | E16: 0
B17: Water Injected (bbl) | C17: =31788+122547 -> 154335 | D17: 49662 | E17: 46918
A18: April | B18: Oil (bbl) | C18: 10592 | D18: 3144 | E18: 4311
B19: Gas Produced (Mcf) | C19: 18962 | D19: 1053 | E19: 3567
B20: Water Produced (bbl) | C20: 117729 | D20: 36192 | E20: 101330
B21: Gas Injected (Mcf) | C21: 0 | D21: 0 | E21: 0
B22: Water Injected (bbl) | C22: =26250+105937 -> 132187 | D22: 65705 | E22: 45591
A23: May | B23: Oil (bbl) | C23: 11753 | D23: 2839 | E23: 3238
B24: Gas Produced (Mcf) | C24: 20097 | D24: 1014 | E24: 4048
B25: Water Produced (bbl) | C25: 127737 | D25: 35314 | E25: 97323
B26: Gas Injected (Mcf) | C26: 0 | D26: 0 | E26: 0
B27: Water Injected (bbl) | C27: =27583+111745 -> 139328 | D27: 86325 | E27: 37827
A28: June | B28: Oil (bbl) | C28: 11128 | D28: 3259 | E28: 2748
B29: Gas Produced (Mcf) | C29: 21134 | D29: 560 | E29: 3441
B30: Water Produced (bbl) | C30: 119192 | D30: 26919 | E30: 49658
B31: Gas Injected (Mcf) | C31: 0 | D31: 0 | E31: 0
B32: Water Injected (bbl) | C32: =23834+110634 -> 134468 | D32: 100910 | E32: 31456
A33: July | B33: Oil (bbl) | C33: 11011 | D33: 2571 | E33: 4692
B34: Gas Produced (Mcf) | C34: 21676 | D34: 376 | E34: 5807
B35: Water Produced (bbl) | C35: 112631 | D35: 18542 | E35: 71980
B36: Gas Injected (Mcf) | C36: 0 | D36: 0 | E36: 0
B37: Water Injected (bbl) | C37: =7656+117972 -> 125628 | D37: 79202 | E37: 46158
A38: August | B38: Oil (bbl) | C38: 11802 | D38: 4002 | E38: 3727
B39: Gas Produced (Mcf) | C39: 23042 | D39: 334 | E39: 5379
B40: Water Produced (bbl) | C40: 119408 | D40: 18083 | E40: 81915
B41: Gas Injected (Mcf) | C41: 0 | D41: 0 | E41: 0
B42: Water Injected (bbl) | C42: =10236+123333 -> 133569 | D42: 83158 | E42: 41094
A43: September | B43: Oil (bbl) | C43: 9191 | D43: 2134 | E43: 3860
B44: Gas Produced (Mcf) | C44: 21504 | D44: 422 | E44: 4702
B45: Water Produced (bbl) | C45: 85441 | D45: 18638 | E45: 90781
B46: Gas Injected (Mcf) | C46: 0 | D46: 0 | E46: 0
B47: Water Injected (bbl) | C47: =5283+92511 -> 97794 | D47: 42232 | E47: 39820
A48: October | B48: Oil (bbl) | C48: 9633 | D48: 2917 | E48: 2478
B49: Gas Produced (Mcf) | C49: 20519 | D49: 370 | E49: 2442
B50: Water Produced (bbl) | C50: 101577 | D50: 14716 | E50: 82002
B51: Gas Injected (Mcf) | C51: 0 | D51: 0 | E51: 0
B52: Water Injected (bbl) | C52: =15671+96298 -> 111969 | D52: 22626 | E52: 25605
A53: November | B53: Oil (bbl) | C53: 8646 | D53: 4644 | E53: 4385
B54: Gas Produced (Mcf) | C54: 20205 | D54: 334 | E54: 3815
B55: Water Produced (bbl) | C55: 74439 | D55: 21054 | E55: 99044
B56: Gas Injected (Mcf) | C56: 0 | D56: 0 | E56: 0
B57: Water Injected (bbl) | C57: =19045+62166 -> 81211 | D57: 61632 | E57: 0
A58: December | B58: Oil (bbl) | C58: 8620 | D58: 3780 | E58: 3132
B59: Gas Produced (Mcf) | C59: 17983 | D59: 277 | E59: 3199
B60: Water Produced (bbl) | C60: 114830 | D60: 15969 | E60: 104120
B61: Gas Injected (Mcf) | C61: 0 | D61: 0 | E61: 0
B62: Water Injected (bbl) | C62: =25814+98916 -> 124730 | D62: 28179 | E62: 0
A63: Total | B63: Oil (bbl) | C63: =C3+C8+C13+C18+C23+C28+C33+C38+C43+C48+C53+C58 -> 126173 | D63: =D3+D8+D13+D18+D23+D28+D33+D38+D43+D48+D53+D58 -> 37913 | E63: =E3+E8+E13+E18+E23+E28+E33+E38+E43+E48+E53+E58 -> 45776
B64: Gas Produced (Mcf) | C64: =C4+C9+C14+C19+C24+C29+C34+C39+C44+C49+C54+C59 -> 241029 | D64: 7699 | E64: 47465
B65: Water Produced (bbl) | C65: 1324410 | D65: 312484 | E65: 1084951
B66: Gas Injected (Mcf) | C66: 0 | D66: 0 | E66: 0
B67: Water Injected (bbl) | C67: 1493439 | D67: 707674 | E67: 401827
B68: GOR (scf/bbl) | C68: =C64*1000/C63 -> 1910.305691 | D68: =D64*1000/D63 -> 203.070187 | E68: =E64*1000/E63 -> 1036.897064
B69: WOR (bbl/bbl) | C69: =C65/C63 -> 10.49677823 | D69: =D65/D63 -> 8.242133305 | E69: 23.70130636
B70: Fraction gas injected | C70: =C66/C64 -> 0 | D70: 0 | E70: 0
B71: Fraction water injected | C71: =C67/C65 -> 1.127625886 | D71: 2.264672751 | E71: 0.3703641916
B72: Water injection ratio | C72: =C67/C63 -> 11.83643886 | D72: =D67/D63 -> 18.66573471 | E72: =E67/E63 -> 8.77811517

Sheet Cogen Data 2015
A1: Cogeneration at CA TEOR fields | C1: Source for Capacity Steam Rate Data: 2015 Annual Report of the State Oil and Gas Supervisor - California Department of Conservation
E2: 0.8
A3: Field | B3: Operator | C3: Capacity Steam Rate (lb/hr) | D3: Capacity Steam Rate (bbl cwe/yr) | E3: Capacity Factor | F3: Steam Injection Rate (bbl cwe/yr) | G3: Fraction steam from Cogen | H3: Field | I3: Excess steam (bbl cwe/yr)
A4: Placerita | B4: AES | C4: 110000
B5: Berry | C5: 190000
C6: =C4+C5 -> 300000 | D6: =C6*24*365/62.3*7.4805/42 -> 7513091.034 | E6: =E2 -> 0.8 | F6: ='TEOR Fields 2015'!Y27 -> 7050603 | G6: =IF(F6=0," ",IF(D6*E6/F6>1,1,D6*E6/F6)) -> 0.8524764233 | H6: Placerita | I6: =IF(D6*E6-F6>0,D6*E6-F6,0) -> 0
A7: Arroyo Grande | B7: Plains E&P | C7: 13000 | D7: =C7*24*365/62.3*7.4805/42 -> 325567.2781 | E7: =E2 -> 0.8 | F7: ='TEOR Fields 2015'!D27 -> 3307704 | G7: =IF(F7=0," ",IF(D7*E7/F7>1,1,D7*E7/F7)) -> 0.07874157498 | H7: Arroyo Grande | I7: =IF(D7*E7-F7>0,D7*E7-F7,0) -> 0
A8: San Ardo | B8: Aera | C8: 84000
B9: Chevron | C9: 224000
B10: Chevron | C10: 228000
C11: =SUM(C8:C10) -> 536000 | D11: =C11*24*365/62.3*7.4805/42 -> 13423389.31 | E11: =E2 -> 0.8 | F11: ='TEOR Fields 2015'!AB27 -> 47033697 | G11: =IF(F11=0," ",IF(D11*E11/F11>1,1,D11*E11/F11)) -> 0.228319527 | H11: San Ardo | I11: =IF(D11*E11-F11>0,D11*E11-F11,0) -> 0
A12: Belridge, South | B12: Aera | C12: 175000
B13: Aera | C13: 300000
C14: =SUM(C12:C13) -> 475000 | D14: =C14*24*365/62.3*7.4805/42 -> 11895727.47 | E14: =E2 -> 0.8 | F14: ='TEOR Fields 2015'!F27 -> 81677118 | G14: =IF(F14=0," ",IF(D14*E14/F14>1,1,D14*E14/F14)) -> 0.1165146642 | H14: Belridge, South | I14: =IF(D14*E14-F14>0,D14*E14-F14,0) -> 0
A15: Cymric | B15: Chevron | C15: 102147
B16: Chevron | C16: 48734
B17: Chevron | C17: 65849
B18: PXP | C18: 51000
C19: =SUM(C15:C18) -> 267730 | D19: =C19*24*365/62.3*7.4805/42 -> 6704932.875 | E19: =E2 -> 0.8 | F19: ='TEOR Fields 2015'!L27 -> 58894469 | G19: =IF(F19=0," ",IF(D19*E19/F19>1,1,D19*E19/F19)) -> 0.0910772504 | H19: Cymric | I19: =IF(D19*E19-F19>0,D19*E19-F19,0) -> 0
A20: Elk Hills | B20: Occidental | C20: 177000 | D20: =C20*24*365/62.3*7.4805/42 -> 4432723.71 | E20: =E2 -> 0.8 | F20: 0 | G20: =IF(F20=0," ",IF(D20*E20/F20>1,1,D20*E20/F20)) ->  | H20: Elk Hills | I20: =IF(D20*E20-F20>0,D20*E20-F20,0) -> 3546178.968
A21: Jasmin | B21: Tetra | C21: 290000 | D21: =C21*24*365/62.3*7.4805/42 -> 7262654.666 | E21: =E2 -> 0.8 | F21: ='TEOR Fields 2015'!N27 -> 0 | G21: =IF(F21=0," ",IF(D21*E21/F21>1,1,D21*E21/F21)) ->  | H21: Jasmin | I21: =IF(D21*E21-F21>0,D21*E21-F21,0) -> 5810123.733
A22: Kern Front | B22: Oxy USA | C22: 95000
B23: Oxy USA | C23: 95000
B24: Oxy USA | C24: 44000
B25: Oxy USA | C25: 95000
C26: =SUM(C22:C25) -> 329000 | D26: =C26*24*365/62.3*7.4805/42 -> 8239356.501 | E26: =E2 -> 0.8 | F26: ='TEOR Fields 2015'!O27 -> 36213303 | G26: =IF(F26=0," ",IF(D26*E26/F26>1,1,D26*E26/F26)) -> 0.1820183373 | H26: Kern Front | I26: =IF(D26*E26-F26>0,D26*E26-F26,0) -> 0
A27: Kern River | B27: Chevron | C27: 55000
B28: Chevron | C28: 55000
B29: Chevron | C29: 28000
B30: Chevron | C30: 269432
B31: DAI | C31: 90000
B32: Chevron | C32: 146000
B33: Chevron | C33: 9000
B34: Chevron | C34: 1116900
B35: Chevron | C35: 1116000
B36: Chevron | C36: 32500
C37: =+SUM(C27:C36) -> 2917832 | D37: =C37*24*365/62.3*7.4805/42 -> 73073124.79 | E37: =E2 -> 0.8 | F37: ='TEOR Fields 2015'!P27 -> 91789742 | G37: =IF(F37=0," ",IF(D37*E37/F37>1,1,D37*E37/F37)) -> 0.6368739966 | H37: Kern River | I37: =IF(D37*E37-F37>0,D37*E37-F37,0) -> 0
A38: Lost Hills | B38: Aera | C38: 66000 | D38: =C38*24*365/62.3*7.4805/42 -> 1652880.028 | E38: =E2 -> 0.8 | F38: ='TEOR Fields 2015'!Q27 -> 27522441 | G38: =IF(F38=0," ",IF(D38*E38/F38>1,1,D38*E38/F38)) -> 0.0480445765 | H38: Lost Hills | I38: =IF(D38*E38-F38>0,D38*E38-F38,0) -> 0
A39: McKittrick | B39: Chevron | C39: 115000
B40: McKittrick | C40: 35000
C41: =SUM(C39:C40) -> 150000 | D41: =C41*24*365/62.3*7.4805/42 -> 3756545.517 | E41: =E2 -> 0.8 | F41: ='TEOR Fields 2015'!S27 -> 17860035 | G41: =IF(F41=0," ",IF(D41*E41/F41>1,1,D41*E41/F41)) -> 0.1682659868 | H41: McKittrick | I41: =IF(D41*E41-F41>0,D41*E41-F41,0) -> 0
A42: Midway Sunset | B42: Aera | C42: 37120
B43: Aera | C43: 1222000
B44: Berry | C44: 185000
B45: Berry | C45: 80000
B46: Chevron | C46: 210000
B47: Berry | C47: 31000
B48: Aera | C48: 25000
B49: Chevron | C49: 66000
B50: Chevron | C50: 215000
B51: PXP | C51: 101000
C52: =SUM(C42:C51) -> 2172120 | D52: =C52*24*365/62.3*7.4805/42 -> 54397784.32 | E52: =E2 -> 0.8 | F52: ='TEOR Fields 2015'!T27 -> 185237711 | G52: =IF(F52=0," ",IF(D52*E52/F52>1,1,D52*E52/F52)) -> 0.2349317924 | H52: Midway Sunset | I52: =IF(D52*E52-F52>0,D52*E52-F52,0) -> 0
A53: Mount Poso | B53: MacPherson | C53: 25000 | D53: =C53*24*365/62.3*7.4805/42 -> 626090.9195 | E53: =E2 -> 0.8 | F53: ='TEOR Fields 2015'!U27 -> 83426 | G53: =IF(F53=0," ",IF(D53*E53/F53>1,1,D53*E53/F53)) -> 1 | H53: Mount Poso | I53: =IF(D53*E53-F53>0,D53*E53-F53,0) -> 417446.7356
A54: Poso Creek | B54: Rio Bravo | C54: 290000 | D54: =C54*24*365/62.3*7.4805/42 -> 7262654.666 | E54: =E2 -> 0.8 | F54: ='TEOR Fields 2015'!Z27 -> 16846120 | G54: =IF(F54=0," ",IF(D54*E54/F54>1,1,D54*E54/F54)) -> 0.3448938826 | H54: Poso Creek | I54: =IF(D54*E54-F54>0,D54*E54-F54,0) -> 0
A55: Coalinga | B55: Chevron | C55: 85000
B56: Chevron | C56: 84500
B57: Chevron | C57: 84500
B58: Coalinga | C58: 215000
B59: Aera | C59: 48000
C60: =SUM(C55:C59) -> 517000 | D60: =C60*24*365/62.3*7.4805/42 -> 12947560.22 | E60: =E2 -> 0.8 | F60: ='TEOR Fields 2015'!J27 -> 37867510 | G60: =IF(F60=0," ",IF(D60*E60/F60>1,1,D60*E60/F60)) -> 0.2735339126 | H60: Coalinga | I60: =IF(D60*E60-F60>0,D60*E60-F60,0) -> 0
A61: California | D61: =SUM(D4:D60) -> 213514083.3 | E61: =E2 -> 0.8 | F61: ='TEOR Fields 2015'!AD27 -> 636965214 | G61: =IF(F61=0," ",IF(D61*E61/F61>1,1,D61*E61/F61)) -> 0.2681641994 | H61: California | I61: =IF(D61*E61-F61>0,D61*E61-F61,0) -> 0

Sheet API gravity
A1: API gravity (density) by field
B2: Data Sources: | C2: California Oil and Gas Fields, Volumes I-III. California Department of Conservation, Division of Oil, Gas, and Geothermal Resources, 1982, 1992, 1998
C3: 2009 Annual Report of the State Oil and Gas Supervisor - California Department of Conservation
A4: Field
A5: Pool | B5: 2009 Production (bbl) | C5: API Gravity | D5: API Gravity Used in Calculation | E5: SG | F5: 2009 Field Production | G5: Production-weighted API for Field | H5: Production-weighted SG for Field | I5: API from Production-weighted SG
A6: Alegria | B6: 0 | C6: 12-25 | D6: 18.5 | E6: =141.5/(D6+131.5) -> 0.9433333333 | F6: =B6 -> 0 | G6: =D6 -> 18.5 | H6: =141.5/(G6+131.5) -> 0.9433333333 | I6: =(141.5/H6)-131.5 -> 18.5
A7: Aliso Canyon | F7: =SUM(B8:B12) -> 147609 | G7: =SUMPRODUCT($B8:$B12,D8:D12)/SUM($B8:$B12) -> 31.01620091 | H7: =SUMPRODUCT($B8:$B12,E8:E12)/SUM($B8:$B12) -> 0.872625868 | I7: =(141.5/H7)-131.5 -> 30.65425784
A8: Aliso | B8: 3314 | C8: 14.5 | D8: 14.5 | E8: =141.5/(D8+131.5) -> 0.9691780822
A9: Aliso, West | B9: 1042 | C9: 11 | D9: 11 | E9: 0.9929824561
A10: Porter-Del Aliso | B10: 53762 | C10: 22.5 | D10: 22.5 | E10: 0.9188311688
A11: Monterey | B11: 113 | C11: 14.5, 11, 23.5, 23.9, 29, 37, 20-24 | D11: 18.8 | E11: 0.9414504325
A12: Sesnon-Frew | B12: 89378 | C12: 37 | D12: 37 | E12: 0.8397626113
A13: Alondra | B13: 0 | C13: 26-29 | D13: 27.5 | E13: 0.8899371069 | F13: =B13 -> 0 | G13: =D13 -> 27.5 | H13: =141.5/(G13+131.5) -> 0.8899371069 | I13: =(141.5/H13)-131.5 -> 27.5
A14: Anaheim | B14: 0 | C14: 11 | D14: 11 | E14: 0.9929824561 | F14: =B14 -> 0 | G14: =D14 -> 11 | H14: =141.5/(G14+131.5) -> 0.9929824561 | I14: =(141.5/H14)-131.5 -> 11
A15: Ant Hill | F15: =SUM(B16:B17) -> 58185 | G15: =SUMPRODUCT($B16:$B17,D16:D17)/SUM($B16:$B17) -> 14 | H15: =SUMPRODUCT($B16:$B17,E16:E17)/SUM($B16:$B17) -> 0.9725085911 | I15: =(141.5/H15)-131.5 -> 14
A16: Olcese | B16: 58185 | C16: 14 | D16: 14 | E16: =141.5/(D16+131.5) -> 0.9725085911
A17: Jewett | B17: 0 | C17: 39 | D17: 39 | E17: =141.5/(D17+131.5) -> 0.8299120235
A18: Antelope Hills | F18: =SUM(B19:B27) -> 156441 | G18: =SUMPRODUCT($B19:$B27,D19:D27)/SUM($B19:$B27) -> 17.64222423 | H18: =SUMPRODUCT($B19:$B27,E19:E27)/SUM($B19:$B27) -> 0.9488698057 | I18: =(141.5/H18)-131.5 -> 17.62477891
A19: Hopkins Area
A20: Phacoides | B20: 1104 | C20: 31 | D20: 31 | E20: =141.5/(D20+131.5) -> 0.8707692308
A21: Eocene | B21: 2518 | C21: 18, 31, 17, 11-13, 17, 18 | D21: 18.8 | E21: =141.5/(D21+131.5) -> 0.9414504325
A22: Williams Area
A23: Upper | B23: 4249 | C23: 11-13 | D23: 12 | E23: =141.5/(D23+131.5) -> 0.9860627178
A24: East Block-Button Bed | B24: 26790 | C24: 17 | D24: 17 | E24: =141.5/(D24+131.5) -> 0.9528619529
A25: East Block-Agua | B25: 38914 | C25: 18 | D25: 18 | E25: =141.5/(D25+131.5) -> 0.9464882943
A26: West Block-Button Bed & Agua | B26: 34896 | C26: 18, 31, 17, 11-13, 17, 18 | D26: 18.8 | E26: =141.5/(D26+131.5) -> 0.9414504325
A27: Point of Rocks | B27: 47970 | C27: 17 | D27: 17 | E27: =141.5/(D27+131.5) -> 0.9528619529
A28: Antelope Hills, North | F28: =SUM(B29:B30) -> 247591 | G28: =SUMPRODUCT($B29:$B30,D29:D30)/SUM($B29:$B30) -> 15.37639737 | H28: =SUMPRODUCT($B29:$B30,E29:E30)/SUM($B29:$B30) -> 0.9634223475 | I28: =(141.5/H28)-131.5 -> 15.37224183
A29: Miocene-Eocene | B29: 96499 | C29: 14.4 | D29: 14.4 | E29: =141.5/(D29+131.5) -> 0.9698423578
A30: Point of Rocks | B30: 151092 | C30: 16 | D30: 16 | E30: =141.5/(D30+131.5) -> 0.9593220339
A31: Arroyo Grande | B31: 451664 | C31: 14 | D31: 14 | E31: =141.5/(D31+131.5) -> 0.9725085911 | F31: =B31 -> 451664 | G31: =D31 -> 14 | H31: =141.5/(G31+131.5) -> 0.9725085911 | I31: =(141.5/H31)-131.5 -> 14
A32: Asphalto | F32: =SUM(B33:B38) -> 238399 | G32: =SUMPRODUCT($B33:$B38,D33:D38)/SUM($B33:$B38) -> 35.84812185 | H32: =SUMPRODUCT($B33:$B38,E33:E38)/SUM($B33:$B38) -> 0.8458174752 | I32: =(141.5/H32)-131.5 -> 35.7937769
A33: Etchegoin | B33: 5106 | C33: 19 | D33: 19 | E33: =141.5/(D33+131.5) -> 0.9401993355
A34: Olig | B34: 0 | C34: 30-77 | D34: 53.5 | E34: 0.7648648649
A35: Antelope Shale | B35: 29807 | C35: 35.7 | D35: 35.7 | E35: 0.846291866
A36: Stevens | B36: 197219 | C36: 29-43 | D36: 36 | E36: 0.8447761194
A37: 1st Carneros | B37: 6267 | C37: 31-60 | D37: 45.5 | E37: 0.7994350282
A38: Carneros (ABD) | B38: 0 | C38: 31-60 | D38: 45.5 | E38: 0.7994350282
A39: Bandini | F39: =SUM(B40:B41) -> 9872 | G39: =SUMPRODUCT($B40:$B41,D40:D41)/SUM($B40:$B41) -> 37.4 | H39: =SUMPRODUCT($B40:$B41,E40:E41)/SUM($B40:$B41) -> 0.8377738307 | I39: =(141.5/H39)-131.5 -> 37.4
A40: Pliocene | B40: 9872 | C40: 32, 38, 39, 40, 39, 38, 36 | D40: 37.4 | E40: =141.5/(D40+131.5) -> 0.8377738307
A41: Miocene (ABD) | B41: 0 | C41: 32, 38, 39, 40, 39, 38, 36 | D41: 37.4 | E41: =141.5/(D41+131.5) -> 0.8377738307
A42: Bardsdale | F42: =SUM(B43:B44) -> 45641 | G42: =SUMPRODUCT($B43:$B44,D43:D44)/SUM($B43:$B44) -> 29.2 | H42: =SUMPRODUCT($B43:$B44,E43:E44)/SUM($B43:$B44) -> 0.8805227131 | I42: =(141.5/H42)-131.5 -> 29.2
A43: No Pool Breakdown | B43: 33477 | C43: 27.2, 26.7, 33.6 | D43: 29.2 | E43: =141.5/(D43+131.5) -> 0.8805227131
A44: Deep | B44: 12164 | C44: 27.2, 26.7, 33.6 | D44: 29.2 | E44: =141.5/(D44+131.5) -> 0.8805227131
A45: Barham Ranch | F45: =SUM(B46:B48) -> 87898 | G45: =SUMPRODUCT($B46:$B48,D46:D48)/SUM($B46:$B48) -> 27.48246832 | H45: =SUMPRODUCT($B46:$B48,E46:E48)/SUM($B46:$B48) -> 0.8920515377 | I45: =(141.5/H45)-131.5 -> 27.12312212
A46: La Laguna Area
A47: Monterey | B47: 67603 | C47: 30-33 | D47: 31.5 | E47: =141.5/(D47+131.5) -> 0.8680981595
A48: Old Area | B48: 20295 | C48: 14.1 | D48: 14.1 | E48: 0.9718406593
A49: Beer Nose | B49: 2418 | C49: 31 | D49: 31 | E49: 0.8707692308 | F49: =B49 -> 2418 | G49: =D49 -> 31 | H49: =141.5/(G49+131.5) -> 0.8707692308 | I49: =(141.5/H49)-131.5 -> 31
A50: Belgian Anticline | B50: 53858 | C50: 33, 37, 36, 33-60, 30, 33, 10-22, 38, 29-43 | D50: 33.9 | E50: 0.8555018138 | F50: =B50 -> 53858 | G50: =D50 -> 33.9 | H50: =141.5/(G50+131.5) -> 0.8555018138 | I50: =(141.5/H50)-131.5 -> 33.9
A51: Bellevue | B51: 32676 | C51: 33-35 | D51: 34 | E51: 0.8549848943 | F51: =B51 -> 32676 | G51: =D51 -> 34 | H51: =141.5/(G51+131.5) -> 0.8549848943 | I51: =(141.5/H51)-131.5 -> 34
A52: Bellevue, West | B52: 29061 | C52: 35, 38, 32 | D52: 31.7 | E52: 0.8670343137 | F52: =B52 -> 29061 | G52: =D52 -> 31.7 | H52: =141.5/(G52+131.5) -> 0.8670343137 | I52: =(141.5/H52)-131.5 -> 31.7
A53: Belridge, North | E53: 1.076045627 | F53: =SUM(B54:B61) -> 3266538 | G53: =SUMPRODUCT($B54:$B61,D54:D61)/SUM($B54:$B61) -> 27.3158379 | H53: =SUMPRODUCT($B54:$B61,E54:E61)/SUM($B54:$B61) -> 0.891459788 | I53: =(141.5/H53)-131.5 -> 27.22841592
A54: Tulare | B54: 123153 | C54: 13 | D54: 13 | E54: 0.9792387543
A55: Diatomite | B55: 3062605 | C55: 24-31 | D55: 27.5 | E55: 0.8899371069
A56: Fractured Shale | B56: 0 | C56: 10-32 | D56: 21 | E56: 0.9278688525
A57: Temblor | B57: 11201 | C57: 40 | D57: 40 | E57: 0.8250728863
A58: R Sand | B58: 14533 | C58: 52 | D58: 52 | E58: 0.7711171662
A59: Carneros | B59: 0 | C59: 39 | D59: 39 | E59: 0.8299120235
A60: Belridge 64 | B60: 55046 | C60: 30-50 | D60: 40 | E60: 0.8250728863
A61: Y Sand (ABD) | B61: 0 | C61: 32 | D61: 32 | E61: 0.8654434251
A62: Belridge, South | F62: =SUM(B63:B70) -> 29273890 | G62: =SUMPRODUCT($B63:$B70,D63:D70)/SUM($B63:$B70) -> 21.74790593 | H62: =SUMPRODUCT($B63:$B70,E63:E70)/SUM($B63:$B70) -> 0.925488621 | I62: =(141.5/H62)-131.5 -> 21.39220935
A63: Tulare | B63: 11234703 | C63: 11-14 | D63: 12.5 | E63: =141.5/(D63+131.5) -> 0.9826388889
A64: Diatomite | B64: 17929189 | C64: 25-30 | D64: 27.5 | E64: 0.8899371069
A65: Diatomite-Antelope Shale | B65: 42673 | C65: 25-30, 26-32 | D65: 28.3 | E65: 0.8854818523
A66: Belridge 64 | B66: 250 | C66: 11-14, 13, 25-30, 26-32, 37, 37 | D66: 26 | E66: 0.8984126984
A67: Etchegoin | B67: 0 | C67: 13 | D67: 13 | E67: 0.9792387543
A68: Antelope Shale | B68: 67075 | C68: 26-32 | D68: 29 | E68: 0.8816199377
A69: McDonald | B69: 0 | C69: 37 | D69: 37 | E69: 0.8397626113
A70: Devilwater Gold | B70: 0 | C70: 37 | D70: 37 | E70: 0.8397626113
A71: Beverly Hills | F71: =SUM(B72:B77) -> 895875 | G71: =SUMPRODUCT($B72:$B77,D72:D77)/SUM($B72:$B77) -> 33.1573378 | H71: =SUMPRODUCT($B72:$B77,E72:E77)/SUM($B72:$B77) -> 0.8594459683 | I71: =(141.5/H71)-131.5 -> 33.1409492
A72: East Area
A73: Pliocene | B73: 58283 | C73: 35, 27, 30-35, 23-60 | D73: 34 | E73: =141.5/(D73+131.5) -> 0.8549848943
A74: Miocene | B74: 648862 | C74: 35, 27, 30-35, 23-60 | D74: 34 | E74: =141.5/(D74+131.5) -> 0.8549848943
A75: West Area
A76: Pliocene | B76: 4566 | C76: 15-22, 23-60 | D76: 30 | E76: =141.5/(D76+131.5) -> 0.8761609907
A77: Miocene | B77: 184164 | C77: 15-22, 23-60 | D77: 30 | E77: =141.5/(D77+131.5) -> 0.8761609907
A78: Big Mountain | F78: =SUM(B79:B80) -> 35359 | G78: =SUMPRODUCT($B79:$B80,D79:D80)/SUM($B79:$B80) -> 20.3 | H78: =SUMPRODUCT($B79:$B80,E79:E80)/SUM($B79:$B80) -> 0.9321475626 | I78: =(141.5/H78)-131.5 -> 20.3
A79: Sespe | B79: 35359 | C79: 20.3 | D79: 20.3 | E79: =141.5/(D79+131.5) -> 0.9321475626
A80: Eocene (ABD) | B80: 0 | C80: 30 | D80: 30 | E80: 0.8761609907
A81: Bitterwater | B81: 1865 | C81: 26-37 | D81: 31.5 | E81: 0.8680981595 | F81: =B81 -> 1865 | G81: =D81 -> 31.5 | H81: =141.5/(G81+131.5) -> 0.8680981595 | I81: =(141.5/H81)-131.5 -> 31.5
A82: Blackwells Corner | B82: 10448 | C82: 12,14,14 | D82: 13.3 | E82: 0.9772099448 | F82: 10448 | G82: 13.3 | H82: 0.9772099448 | I82: 13.3
A83: Bouquet Canyon | B83: 0 | C83: 39 | D83: 39 | E83: 0.8299120235 | F83: 0 | G83: 39 | H83: 0.8299120235 | I83: 39
A84: Bowerbank | B84: 0 | C84: 32 | D84: 32 | E84: 0.8654434251 | F84: 0 | G84: 32 | H84: 0.8654434251 | I84: 32
A85: Boyle Heights | B85: 0 | C85: 26 | D85: 26 | E85: 0.8984126984 | F85: 0 | G85: 26 | H85: 0.8984126984 | I85: 26
A86: Brea-Olinda | B86: 1196057 | C86: 15-18, 23-31, 28, 18-28 | D86: 23.6 | E86: 0.9123146357 | F86: 1196057 | G86: 23.6 | H86: 0.9123146357 | I86: 23.6
A87: Brentwood | B87: 0 | C87: 39, 41, 39, 39 | D87: 39.5 | E87: 0.8274853801 | F87: 0 | G87: 39.5 | H87: 0.8274853801 | I87: 39.5
A88: Buena Park, East | B88: 0 | C88: 21, 22 | D88: 21.5 | E88: 0.9248366013 | F88: 0 | G88: 21.5 | H88: 0.9248366013 | I88: 21.5
A89: Buena Park, West | B89: 0 | C89: 28 | D89: 28 | E89: 0.8871473354 | F89: 0 | G89: 28 | H89: 0.8871473354 | I89: 28
A90: Buena Vista | F90: =SUM(B91:B100) -> 1065707 | G90: =SUMPRODUCT($B91:$B100,D91:D100)/SUM($B91:$B100) -> 20.19301149 | H90: =SUMPRODUCT($B91:$B100,E91:E100)/SUM($B91:$B100) -> 0.9328117399 | I90: 20.19191591
A91: Buena Vista Front Area | B91: 52170 | C91: 18-28 | D91: 22 | E91: =141.5/(D91+131.5) -> 0.9218241042
A92: Buena Vista Hills Area
A93: No Pool Breakdown | B93: 9307 | C93: 18-28, 18-28, 18-28, 18-28, 19-36, 19-36, 19-36, 19-36, 19-36, 19-36, 23-33, 30, 26-34, 26-32 | D93: 20.1 | E93: =141.5/(D93+131.5) -> 0.9333773087
A94: Upper (Undifferentiated) | B94: 558420 | C94: 18-28, 18-28, 18-28, 18-28, 19-36, 19-36, 19-36, 19-36, 19-36, 19-36, 23-33, 30, 26-34, 26-32 | D94: 20.1 | E94: 0.9333773087
A95: Sub Scales & Mulinia | B95: 3023 | C95: 18-28, 18-28, 18-28, 18-28, 19-36, 19-36, 19-36, 19-36, 19-36, 19-36, 23-33, 30, 26-34, 26-32 | D95: 20.1 | E95: 0.9333773087
A96: 27B Undifferentiated | B96: 27356 | C96: 18-28, 18-28, 18-28, 18-28, 19-36, 19-36, 19-36, 19-36, 19-36, 19-36, 23-33, 30, 26-34, 26-32 | D96: 20.1 | E96: 0.9333773087
A97: Reef Ridge | B97: 7879 | C97: 18-28, 18-28, 18-28, 18-28, 19-36, 19-36, 19-36, 19-36, 19-36, 19-36, 23-33, 30, 26-34, 26-32 | D97: 20.1 | E97: 0.9333773087
A98: Antelope Shale-East Dome | B98: 103550 | C98: 18-28, 18-28, 18-28, 18-28, 19-36, 19-36, 19-36, 19-36, 19-36, 19-36, 23-33, 30, 26-34, 26-32 | D98: 20.1 | E98: 0.9333773087
A99: Antelope Shale-West Dome | B99: 81909 | C99: 18-28, 18-28, 18-28, 18-28, 19-36, 19-36, 19-36, 19-36, 19-36, 19-36, 23-33, 30, 26-34, 26-32 | D99: 20.1 | E99: 0.9333773087
A100: 555 Stevens | B100: 222093 | C100: 18-28, 18-28, 18-28, 18-28, 19-36, 19-36, 19-36, 19-36, 19-36, 19-36, 23-33, 30, 26-34, 26-32 | D100: 20.1 | E100: 0.9333773087
A101: Burrel | B101: 1058 | C101: 28-32 | D101: 30 | E101: 0.8761609907 | F101: =B101 -> 1058 | G101: =D101 -> 30 | H101: =141.5/(G101+131.5) -> 0.8761609907 | I101: =(141.5/H101)-131.5 -> 30
A102: Burrel, Southeast | B102: 0 | C102: 27-35 | D102: 31 | E102: 0.8707692308 | F102: 0 | G102: =D102 -> 31 | H102: =141.5/(G102+131.5) -> 0.8707692308 | I102: =(141.5/H102)-131.5 -> 31
A103: Cabrillo | B103: 48520 | C103: none | D103: none | F103: 48520
A104: Calders Corner | B104: 0 | C104: 35 | D104: 35 | E104: =141.5/(D104+131.5) -> 0.8498498498 | F104: 0 | G104: =D104 -> 35 | H104: =141.5/(G104+131.5) -> 0.8498498498 | I104: =(141.5/H104)-131.5 -> 35
A105: Camden | B105: 1354 | C105: 33 | D105: 33 | E105: =141.5/(D105+131.5) -> 0.8601823708 | F105: 1354 | G105: 33 | H105: 0.8601823708 | I105: 33
A106: Canada Larga | B106: 2413 | C106: 25 | D106: 25 | E106: =141.5/(D106+131.5) -> 0.9041533546 | F106: 2413 | G106: 25 | H106: 0.9041533546 | I106: 25
A107: Canal | B107: 34892 | C107: 35, 35, 35, 38.4, 36.1, | D107: 35.9 | E107: =141.5/(D107+131.5) -> 0.8452807646 | F107: 34892 | G107: 35.9 | H107: 0.8452807646 | I107: 35.9
A108: Canfield Ranch | B108: 117109 | C108: 28 | D108: 28 | E108: =141.5/(D108+131.5) -> 0.8871473354 | F108: 117109 | G108: 28 | H108: 0.8871473354 | I108: 28
A109: Canoga park | F109: 0 | G109: 0 | H109: 1.076045627 | I109: 0
A110: Canton Creek | B110: 0 | C110: 30 | E110: =141.5/(D110+131.5) -> 1.076045627 | F110: 0 | G110: 0 | H110: 1.076045627 | I110: 0
A111: Cantua Creek | B111: 0 | C111: 49-58 | D111: 53.5 | E111: 0.7648648649 | F111: 0 | G111: 53.5 | H111: 0.7648648649 | I111: 53.5
A112: Cantua Nueva | B112: 0 | C112: 31 | D112: 31 | E112: 0.8707692308 | F112: 0 | G112: 31 | H112: 0.8707692308 | I112: 31
A113: Capitan | B113: 0 | C113: 19-23 | D113: 21 | E113: 0.9278688525 | F113: 0 | G113: 21 | H113: 0.9278688525 | I113: 21
A114: Capitola Park | B114: 0 | D114: 26 | E114: 0.8984126984 | F114: 0 | G114: 26 | H114: 0.8984126984 | I114: 26
A115: Careaga Canyon | B115: 10965 | C115: 34 | D115: 34 | E115: 0.8549848943 | F115: 10965 | G115: 34 | H115: 0.8549848943 | I115: 34
A116: Carneros Creek | F116: =SUM(B117:B120) -> 35779 | G116: =SUMPRODUCT($B117:$B120,D117:D120)/SUM($B117:$B120) -> 26.44467425 | H116: =SUMPRODUCT($B117:$B120,E117:E120)/SUM($B117:$B120) -> 0.8970011525 | I116: 26.24784638
A117: Button Bed | B117: 4863 | C117: 13 | D117: 13 | E117: =141.5/(D117+131.5) -> 0.9792387543
A118: Carneros | B118: 282 | C118: 23 | D118: 23 | E118: 0.9158576052
A119: Phacoides (WYGAL) | B119: 1356 | C119: 31 | D119: 31 | E119: 0.8707692308
A120: Point of Rocks | B120: 29278 | C120: 26,31 | D120: 28.5 | E120: 0.884375
A121: Cascade | B121: 194287 | C121: 19.5 | D121: 19.5 | E121: 0.9370860927 | F121: =B121 -> 194287 | G121: =D121 -> 19.5 | H121: =141.5/(G121+131.5) -> 0.9370860927 | I121: =(141.5/H121)-131.5 -> 19.5
A122: Casmalia | B122: 185892 | C122: 8-25 | D122: 16.5 | E122: 0.9560810811 | F122: =B122 -> 185892 | G122: =D122 -> 16.5 | H122: =141.5/(G122+131.5) -> 0.9560810811 | I122: =(141.5/H122)-131.5 -> 16.5
A123: Castaic Hills | F123: =SUM(B124:B129) -> 17994 | G123: =SUMPRODUCT($B124:$B129,D124:D129)/SUM($B124:$B129) -> 32.54645993 | H123: =SUMPRODUCT($B124:$B129,E124:E129)/SUM($B124:$B129) -> 0.862561195 | I123: =(141.5/H123)-131.5 -> 32.5463318
A124: Golden (ABD) | B124: 0 | C124: 9 | D124: 9
A125: Sterling | B125: 16322 | C125: 29-36 | D125: 32.5 | E125: =141.5/(D125+131.5) -> 0.862804878
A126: Sterling, East (ABD) | B126: 0 | C126: 29-36 | D126: 32.5 | E126: 0.862804878
A127: Rynne-Fisher | B127: 1672 | C127: 33 | D127: 33 | E127: 0.8601823708
A128: Upper Radovich (ABD) | B128: 0 | C128: 7-9 | D128: 8 | E128: 1.014336918
A129: Lower Radovich (ABD) | B129: 0 | C129: 7-9 | D129: 8 | E129: 1.014336918
A130: Castaic Junction | B130: 0 | C130: 18-22, 16-22 | D130: 19.5 | E130: 0.9370860927 | F130: =B130 -> 0 | G130: =D130 -> 19.5 | H130: =141.5/(G130+131.5) -> 0.9370860927 | I130: =(141.5/H130)-131.5 -> 19.5
A131: Cat Canyon | B131: 286157 | C131: 9-18, 6-11, 7-15, 6.4, 6-8, 8-16, 6.4-11, 13-16.5, 23, 11, 22, 13, 9-14, 6-8, 8.4, 6-8 | D131: 11.5 | E131: 0.9895104895 | F131: =B131 -> 286157 | G131: =D131 -> 11.5 | H131: =141.5/(G131+131.5) -> 0.9895104895 | I131: =(141.5/H131)-131.5 -> 11.5
A132: Chaffee Canyon | B132: 1776 | C132: 34.5-37.5 | D132: 36 | E132: 0.8447761194 | F132: =B132 -> 1776 | G132: =D132 -> 36 | H132: =141.5/(G132+131.5) -> 0.8447761194 | I132: =(141.5/H132)-131.5 -> 36
A133: Charlie Canyon | B133: 0 | C133: 14 | D133: 14 | E133: 0.9725085911 | F133: =B133 -> 0 | G133: =D133 -> 14 | H133: =141.5/(G133+131.5) -> 0.9725085911 | I133: =(141.5/H133)-131.5 -> 14
A134: Cheviot Hills | F134: =SUM(B135:B136) -> 53393 | G134: =SUMPRODUCT($B135:$B136,D135:D136)/SUM($B135:$B136) -> 31 | H134: =SUMPRODUCT($B135:$B136,E135:E136)/SUM($B135:$B136) -> 0.8707692308 | I134: =(141.5/H134)-131.5 -> 31
A135: Pliocene | B135: 45364 | C135: 29, 33 | D135: 31 | E135: =141.5/(D135+131.5) -> 0.8707692308
A136: Miocene | B136: 8029 | C136: 29, 33 | D136: 31 | E136: =141.5/(D136+131.5) -> 0.8707692308
A137: Chico-Martinez | B137: 2995 | C137: 12, 24 | D137: 18 | E137: =141.5/(D137+131.5) -> 0.9464882943 | F137: =B137 -> 2995 | G137: =D137 -> 18 | H137: =141.5/(G137+131.5) -> 0.9464882943 | I137: =(141.5/H137)-131.5 -> 18
A138: Chino-Soquel | B138: 632 | C138: 24, 18-23, 18-23, 18-23 | D138: 21.4 | E138: =141.5/(D138+131.5) -> 0.925441465 | F138: =B138 -> 632 | G138: =D138 -> 21.4 | H138: =141.5/(G138+131.5) -> 0.925441465 | I138: =(141.5/H138)-131.5 -> 21.4
A139: Cienaga Canyon | B139: 12897 | C139: 20, 32 | D139: 26 | E139: =141.5/(D139+131.5) -> 0.8984126984 | F139: =B139 -> 12897 | G139: =D139 -> 26 | H139: =141.5/(G139+131.5) -> 0.8984126984 | I139: =(141.5/H139)-131.5 -> 26
A140: Coalinga | F140: =SUM(B141:B144) -> 5875552 | G140: =SUMPRODUCT($B141:$B144,D141:D144)/SUM($B141:$B144) -> 21 | H140: =SUMPRODUCT($B141:$B144,E141:E144)/SUM($B141:$B144) -> 0.9278688525 | I140: =(141.5/H140)-131.5 -> 21
A141: Echegoin Temblor | B141: 0 | C141: 11-18 | D141: 14.5 | E141: =141.5/(D141+131.5) -> 0.9691780822
A142: Eocene | B142: 0 | C142: 29 | D142: 29 | E142: 0.8816199377
A143: Cretaceous (Oil City) | B143: 0 | C143: 33-40 | D143: 36.5 | E143: 0.8422619048
A144: Temblor | B144: 5875552 | C144: 12-30 | D144: 21 | E144: 0.9278688525
A145: Coalinga, East Extension | B145: 22323 | C145: 34-38, 24-33, 32 | D145: 32.2 | E145: 0.8643860721 | F145: =B145 -> 22323 | G145: =D145 -> 32.2 | H145: =141.5/(G145+131.5) -> 0.8643860721 | I145: =(141.5/H145)-131.5 -> 32.2
A146: Coles Levee, North | B146: 155879 | C146: 33-49 | D146: 41 | E146: 0.8202898551 | F146: 155879 | G146: 41 | H146: 0.8202898551 | I146: 41
A147: Coles Levee, South | B147: 90531 | C147: 30-56 | D147: 43 | E147: 0.8108882521 | F147: 90531 | G147: 43 | H147: 0.8108882521 | I147: 43
A148: Comanche Point | B148: 5460 | C148: 14-16 | D148: 15 | E148: 0.9658703072 | F148: 5460 | G148: 15 | H148: 0.9658703072 | I148: 15
A149: Conejo | B149: 0 | C149: 18 | D149: 18 | E149: 0.9464882943 | F149: 0 | G149: 18 | H149: 0.9464882943 | I149: 18
A150: Coyote, East | B150: 228476 | C150: 17-20, 16-25, 16-25, 17-27, 25, 25, 23 | D150: 22.1 | E150: 0.9212239583 | F150: 228476 | G150: 22.1 | H150: 0.9212239583 | I150: 22.1
A151: Coyote, West | B151: 0 | C151: 19, 26-30, 24-34, 29, 23-28, 30-35 | D151: 27.2 | E151: 0.8916194077 | F151: 0 | G151: 27.2 | H151: 0.8916194077 | I151: 27.2
A152: Cristianitos Creek | B152: 0 | C152: 54.8 | D152: 54.8 | E152: 0.7595276436 | F152: 0 | G152: 54.8 | H152: 0.7595276436 | I152: 54.8
A153: Cuyama, Central | B153: 0 | C153: 46 | D153: 46 | E153: 0.7971830986 | F153: 0 | G153: 46 | H153: 0.7971830986 | I153: 46
A154: Cuyama, South | B154: 227539 | C154: 34-37, 28-36, 33-35, 37 | D154: 34.6 | E154: 0.8518964479 | F154: 227539 | G154: 34.6 | H154: 0.8518964479 | I154: 34.6
A155: Cymric | F155: =SUM(B156:B186) -> 17557874 | G155: =SUMPRODUCT($B156:$B186,D156:D186)/SUM($B156:$B186) -> 22.06906282 | H155: =SUMPRODUCT($B156:$B186,E156:E186)/SUM($B156:$B186) -> 0.9233502507 | I155: 21.74628969
A156: Cymric Flank Area
A157: Carneros | B157: 3995 | C157: 34-39 | D157: 36.5 | E157: =141.5/(D157+131.5) -> 0.8422619048
A158: Phacoides | B158: 0 | C158: 33 | D158: 33 | E158: =141.5/(D158+131.5) -> 0.8601823708
A159: Salt Creek Main Area
A160: Etchegoin | B160: 3390 | C160: 28 | D160: 28 | E160: =141.5/(D160+131.5) -> 0.8871473354
A161: Carneros West | B161: 5487 | C161: 17-22 | D161: 19.5 | E161: =141.5/(D161+131.5) -> 0.9370860927
A162: Carneros Unit | B162: 45604 | C162: 17-22 | D162: 19.5 | E162: =141.5/(D162+131.5) -> 0.9370860927
A163: Phacoides | B163: 9327 | C163: 33 | D163: 33 | E163: =141.5/(D163+131.5) -> 0.8601823708
A164: Salt Creek West Area
A165: Phacoides | B165: 963 | C165: 33 | D165: 33 | E165: =141.5/(D165+131.5) -> 0.8601823708
A166: Sheep Springs Area
A167: Tulare | B167: 1397 | C167: 11-15 | D167: 13 | E167: =141.5/(D167+131.5) -> 0.9792387543
A168: Etchegoin | B168: 28280 | C168: 28 | D168: 28 | E168: =141.5/(D168+131.5) -> 0.8871473354
A169: Monterey | B169: 389 | C169: 21.4 | D169: 21.4 | E169: =141.5/(D169+131.5) -> 0.925441465
A170: Carneros | B170: 45205 | C170: 23 | D170: 23 | E170: =141.5/(D170+131.5) -> 0.9158576052
A171: Oceanic | B171: 71 | C171: 11.5, 16, 21.4, 23, 33 | D171: 21 | E171: =141.5/(D171+131.5) -> 0.9278688525
A172: Welport Area
A173: Tulare Antelope | B173: 1858067 | C173: 11-15, 12.2, 28, 12-20, 14, 14, 27.3, 31-33, 31, 33, 31-52, 48 | D173: 25.8 | E173: =141.5/(D173+131.5) -> 0.8995549905
A174: Tulare | B174: 5633321 | C174: 11-15 | D174: 13 | E174: 0.9792387543
A175: Etchegoin | B175: 8589131 | C175: 28 | D175: 28 | E175: 0.8871473354
A176: San Joaquin ABD | B176: 0 | C176: 12.2 | D176: 12.2 | E176: 0.9846903271
A177: Reef Ridge Antelope | B177: 1279515 | C177: 12-20 | D177: 16 | E177: 0.9593220339
A178: 1st McKittrick | B178: 0 | C178: 14 | D178: 14 | E178: 0.9725085911
A179: 2nd McKittrick | B179: 0 | C179: 14 | D179: 14 | E179: 0.9725085911
A180: McDonald-Devilwater | B180: 7517 | C180: 27.3 | D180: 27.3 | E180: 0.8910579345
A181: Carneros | B181: 26149 | C181: 31-33 | D181: 32 | E181: 0.8654434251
A182: Agua (Santos) | B182: 0 | C182: 31 | D182: 31 | E182: 0.8707692308
A183: Phacoides | B183: 4028 | C183: 33 | D183: 33 | E183: 0.8601823708
A184: Oceanic | B184: 5266 | C184: 31-52 | D184: 41.5 | E184: 0.8179190751
A185: Point of Rocks | B185: 10772 | C185: 48 | D185: 48 | E185: 0.7883008357
A186: Agua (Santos) | B186: 0 | C186: 31 | D186: 31 | E186: 0.8707692308
A187: Deer Creek | B187: 56378 | C187: 16 | D187: 16 | E187: 0.9593220339 | F187: =B187 -> 56378 | G187: =D187 -> 16 | H187: =141.5/(G187+131.5) -> 0.9593220339 | I187: =(141.5/H187)-131.5 -> 16
A188: Deer Creek, North | B188: 122 | C188: 12 | D188: 12 | E188: 0.9860627178 | F188: =B188 -> 122 | G188: =D188 -> 12 | H188: =141.5/(G188+131.5) -> 0.9860627178 | I188: =(141.5/H188)-131.5 -> 12
A189: Del Valle | B189: 58226 | C189: 30-36, 30-33, 31-36, 35, 25-43, 25-43, 30-43, 34-43, 20, 30, 28, 33 | D189: 32.3 | E189: 0.8638583639 | F189: =B189 -> 58226 | G189: =D189 -> 32.3 | H189: =141.5/(G189+131.5) -> 0.8638583639 | I189: =(141.5/H189)-131.5 -> 32.3
A190: Devils Den | F190: =SUM(B191:B193) -> 19768 | G190: =SUMPRODUCT($B191:$B193,D191:D193)/SUM($B191:$B193) -> 25.30609065 | H190: =SUMPRODUCT($B191:$B193,E191:E193)/SUM($B191:$B193) -> 0.9026682588 | I190: =(141.5/H190)-131.5 -> 25.25747832
A191: Alferitz Area | B191: 17274 | C191: 15,15,18-32, 23-41, 40-48 | D191: 26.2 | E191: =141.5/(D191+131.5) -> 0.8972733037
A192: Bates Area | B192: 704 | C192: 25 | D192: 25 | E192: 0.9041533546
A193: Old Area | B193: 1790 | C193: 14,19,16,18 | D193: 16.8 | E193: 0.9541469993
A194: Dominguez | B194: 7416 | C194: 31 | D194: 31 | E194: 0.8707692308 | F194: =B194 -> 7416 | G194: =D194 -> 31 | H194: =141.5/(G194+131.5) -> 0.8707692308 | I194: =(141.5/H194)-131.5 -> 31
A195: Dyer Creek | B195: 0 | C195: 15 | D195: 15 | E195: 0.9658703072 | F195: 0 | G195: 15 | H195: 0.9658703072 | I195: 15
A196: Eagle Rest | B196: 0 | C196: 39.6 | D196: 39.6 | E196: 0.8270017534 | F196: 0 | G196: 39.6 | H196: 0.8270017534 | I196: 39.6
A197: Edison | B197: 676370 | C197: 14-16, 12, 22, 20, 40-43, 38-40, 38-43, 14-22, 22, 16, 20-29, 16-29, 16-20, 14-24, 19, 15, 15, 13, 14, 16, 41, 42, 41, 17-24, 15, 20, 20, 40, 42 | D197: 24.3 | E197: 0.9082156611 | F197: 676370 | G197: 24.3 | H197: 0.9082156611 | I197: 24.3
A198: Edison, Northeast | B198: 0 | C198: 13 | D198: 13 | E198: 0.9792387543 | F198: 0 | G198: 13 | H198: 0.9792387543 | I198: 13
A199: El Rio | B199: 0 | C199: 27 | D199: 27 | E199: 0.8927444795 | F199: 0 | G199: 27 | H199: 0.8927444795 | I199: 27
A200: El Segundo | B200: 26534 | C200: 23 | D200: 23 | E200: 0.9158576052 | F200: 26534 | G200: 23 | H200: 0.9158576052 | I200: 23
... 406 more rows

Sheet Depth
A1: Depth by field
B2: Data Sources: | C2: California Oil and Gas Fields, Volumes I-III. California Department of Conservation, Division of Oil, Gas, and Geothermal Resources, 1982, 1992, 1998
C3: 2009 Annual Report of the State Oil and Gas Supervisor - California Department of Conservation
A4: Field
A5: Pool | B5: 2009 Production | C5: Pool level depth | D5: Depth Used in Calculation | E5: 2009 Field Production | F5: Production-weighted depth
A6: Alegria | B6: 0 | C6: 1890-2350 | D6: 2120 | E6: =B6 -> 0 | F6: =D6 -> 2120
A7: Aliso Canyon | E7: =SUM(B8:B12) -> 147609 | F7: =SUMPRODUCT(B8:B12, D8:D12)/SUM(B8:B12) -> 7422.252891
A8: Aliso | B8: 3314 | C8: 4150 | D8: 4150
A9: Aliso, West | B9: 1042 | C9: 5179 | D9: 5179
A10: Porter-Del Aliso | B10: 53762 | C10: 5050 | D10: 5050
A11: Monterey | B11: 113 | C11: 4150, 5179, 5050 | D11: 4793
A12: Sesnon-Frew | B12: 89378 | C12: 9000 | D12: 9000
A13: Alondra | B13: 0 | D13: 9000 | E13: =B13 -> 0 | F13: =D13 -> 9000
A14: Anaheim | B14: 0 | D14: 4350 | E14: =B14 -> 0 | F14: =D14 -> 4350
A15: Ant Hill | E15: =SUM(B16:B17) -> 58185 | F15: =SUMPRODUCT(B16:B17, D16:D17)/SUM(B16:B17) -> 2300
A16: Olcese | B16: 58185 | C16: 2300 | D16: 2300
A17: Jewett | B17: 0 | C17: 3500 | D17: 3500
A18: Antelope Hills | E18: =SUM(B19:B27) -> 156441 | F18: =SUMPRODUCT(B19:B27, D19:D27)/SUM(B19:B27) -> 2204.805499
A19: Hopkins Area
A20: Phacoides | B20: 1104 | C20: 2400-3400 | D20: 2900
A21: Eocene | B21: 2518 | C21: 2000-2500, 2400-3400 | D21: 2575
A22: Williams Area | C22: 845-1400, 1900, 2100, 2300 | D22: 1856
A23: Upper | B23: 4249 | C23: 845-1400 | D23: 1123
A24: East Block-Button Bed | B24: 26790 | C24: 2100 | D24: 2100
A25: East Block-Agua | B25: 38914 | C25: 2300 | D25: 2300
A26: West Block-Button Bed & Agua | B26: 34896 | C26: 2100, 2300 | D26: 2200
A27: Point of Rocks | B27: 47970 | C27: 2000-2500 | D27: 2250
A28: Antelope Hills, North | E28: =SUM(B29:B30) -> 247591 | F28: =SUMPRODUCT(B29:B30, D29:D30)/SUM(B29:B30) -> 1701.29041
A29: Miocene-Eocene | B29: 96499 | C29: 600-1300, 2340, 2360, 2380, 1545, 2100 | D29: 1946
A30: Point of Rocks | B30: 151092 | C30: 1545 | D30: 1545
A31: Arroyo Grande | B31: 451664 | C31: 750 | D31: 750 | E31: =B31 -> 451664 | F31: =D31 -> 750
A32: Asphalto | E32: =SUM(B33:B38) -> 238399 | F32: =SUMPRODUCT(B33:B38, D33:D38)/SUM(B33:B38) -> 5915.326239
A33: Etchegoin | B33: 5106 | C33: 3050 | D33: 3050
A34: Olig | B34: 0 | C34: 4825 | D34: 4825
A35: Antelope Shale | B35: 29807 | C35: 7550 | D35: 7550
A36: Stevens | B36: 197219 | C36: 5660 | D36: 5660
A37: 1st Carneros | B37: 6267 | C37: 8510 | D37: 8510
A38: Carneros (ABD) | B38: 0 | C38: 8510 | D38: 8510
A39: Bandini | E39: =SUM(B40:B41) -> 9872 | F39: =SUMPRODUCT(B40:B41, D40:D41)/SUM(B40:B41) -> 5040
A40: Pliocene | B40: 9872 | C40: 4200, 4500, 5000, 5300, 6200 | D40: 5040
A41: Miocene (ABD) | B41: 0 | C41: 4200, 4500, 5000, 5300, 6200 | D41: 5040
A42: Bardsdale | E42: =SUM(B43:B44) -> 45641 | F42: =SUMPRODUCT(B43:B44, D43:D44)/SUM(B43:B44) -> 5000
A43: No Pool Breakdown | B43: 33477 | C43: 2000-4000, 5500, 6500 | D43: 5000
A44: Deep | B44: 12164 | C44: 2000-4000, 5500, 6500 | D44: 5000
A45: Barham Ranch | E45: =SUM(B46:B48) -> 87898 | F45: =SUMPRODUCT(B46:B48, D46:D48)/SUM(B46:B48) -> 3561.304011
A46: La Laguna Area
A47: Monterey | B47: 67603 | C47: 4000 | D47: 4000
A48: Old Area | B48: 20295 | C48: 1400-2800 | D48: 2100
A49: Beer Nose | B49: 2418 | C49: 11100 | D49: 11100 | E49: =B49 -> 2418 | F49: =D49 -> 11100
A50: Belgian Anticline | B50: 53858 | C50: 4600, 5300, 6070, 4300, 4600, 1400, 2050, 3400 | D50: 3965 | E50: =B50 -> 53858 | F50: =D50 -> 3965
A51: Bellevue | B51: 32676 | C51: 6400-6700, 7400 | D51: 6975 | E51: =B51 -> 32676 | F51: =D51 -> 6975
A52: Bellevue, West | B52: 29061 | C52: 7740, 7830, 8750-9100 | D52: 8165 | E52: =B52 -> 29061 | F52: =D52 -> 8165
A53: Belridge, North | E53: =SUM(B54:B61) -> 3266538 | F53: =SUMPRODUCT(B54:B61, D54:D61)/SUM(B54:B61) -> 2263.762522
A54: Tulare | B54: 123153 | C54: 600 | D54: 600
A55: Diatomite | B55: 3062605 | C55: 2200 | D55: 2200
A56: Fractured Shale | B56: 0
A57: Temblor | B57: 11201 | C57: 5000 | D57: =C57 -> 5000
A58: R Sand | B58: 14533 | C58: 7100 | D58: 7100
A59: Carneros | B59: 0 | C59: 6700 | D59: =C59 -> 6700
A60: Belridge 64 | B60: 55046 | C60: 7700 | D60: =C60 -> 7700
A61: Y Sand (ABD) | B61: 0 | C61: 8550 | D61: =C61 -> 8550
A62: Belridge, South | E62: =SUM(B63:B70) -> 29273890 | F62: =SUMPRODUCT(B63:B70,D63:D70)/SUM(B63:B70) -> 778.8155571
A63: Tulare | B63: 11234703 | C63: 400 | D63: =C63 -> 400
A64: Diatomite | B64: 17929189 | C64: 1000 | D64: =C64 -> 1000
A65: Diatomite-Antelope Shale | B65: 42673 | C65: 1000, 4000 | D65: 2500
A66: Belridge 64 | B66: 250 | C66: 400, 1500, 1000, 4000, 6700, 8200 | D66: 3633
A67: Etchegoin | B67: 0 | C67: 1500 | D67: =C67 -> 1500
A68: Antelope Shale | B68: 67075 | C68: 4000 | D68: =C68 -> 4000
A69: McDonald | B69: 0 | C69: 6700 | D69: =C69 -> 6700
A70: Devilwater Gold | B70: 0 | C70: 8200 | D70: =C70 -> 8200
A71: Beverly Hills | E71: =SUM(B72:B77) -> 895875 | F71: =SUMPRODUCT(B72:B77, D72:D77)/SUM(B72:B77) -> 7545.339054
A72: East Area
A73: Pliocene | B73: 58283 | C73: 4800, 9000, 9900, 10800 | D73: 8625
A74: Miocene | B74: 648862 | C74: 4800, 9000, 9900, 10800 | D74: 8625
A75: West Area
A76: Pliocene | B76: 4566 | C76: 2500, 4500 | D76: 3500
A77: Miocene | B77: 184164 | C77: 2500, 4500 | D77: 3500
A78: Big Mountain | E78: =SUM(B79:B80) -> 35359 | F78: =SUMPRODUCT(B79:B80, D79:D80)/SUM(B79:B80) -> 6917
A79: Sespe | B79: 35359 | C79: 3800 | D79: 6917
A80: Eocene (ABD) | B80: 0 | C80: 6200 | D80: 6917
A81: Bitterwater | B81: 1865 | C81: 1400 | D81: 1400 | E81: =B81 -> 1865 | F81: =D81 -> 1400
A82: Blackwells Corner | B82: 10448 | C82: 700, 1300, 1400 | D82: 1133 | E82: 10448 | F82: 1133
A83: Bouquet Canyon | B83: 0 | C83: 2340 | D83: =C83 -> 2340 | E83: 0 | F83: 2340
A84: Bowerbank | B84: 0 | C84: 3140, 4000, 4200, 4300, 4600, 4700, 10620 | D84: 5080 | E84: 0 | F84: 5080
A85: Boyle Heights | B85: 0 | C85: 2500 | D85: =C85 -> 2500 | E85: 0 | F85: 2500
A86: Brea-Olinda | B86: 1196057 | C86: 1800, 4000, 5000, 1200 | D86: 3000 | E86: 1196057 | F86: 3000
A87: Brentwood | B87: 0 | C87: 3520 | D87: =C87 -> 3520 | E87: 0 | F87: 3520
A88: Buena Park, East | B88: 0 | C88: 8900, 9240 | D88: 9070 | E88: 0 | F88: 9070
A89: Buena Park, West | B89: 0 | C89: 11000 | D89: =C89 -> 11000 | E89: 0 | F89: 11000
A90: Buena Vista | E90: =SUM(B91:B100) -> 1065707 | F90: =SUMPRODUCT(B91:B100, D91:D100)/SUM(B91:B100) -> 3858.393162
A91: Buena Vista Front Area | B91: 52170 | C91: 4200, 4000, 4050, 4300 | D91: 4138
A92: Buena Vista Hills Area
A93: No Pool Breakdown | B93: 9307 | C93: 1800, 2300, 2400, 2500, 2600, 2900, 3100, 3500, 3800, 3800, 4200, 5300 | D93: 3183
A94: Upper (Undifferentiated) | B94: 558420 | C94: 1800, 2300, 2400, 2500, 2600, 2900, 3100, 3500, 3800, 3800, 4200, 5300 | D94: 3183
A95: Sub Scales & Mulinia | B95: 3023 | C95: 2400 | D95: =C95 -> 2400
A96: 27B Undifferentiated | B96: 27356 | C96: 3500 | D96: 3500
A97: Reef Ridge | B97: 7879 | C97: 3800 | D97: 3800
A98: Antelope Shale-East Dome | B98: 103550 | C98: 4200 | D98: 4200
A99: Antelope Shale-West Dome | B99: 81909 | C99: 4200 | D99: 4200
A100: 555 Stevens | B100: 222093 | C100: 5300 | D100: 5300
A101: Burrel | B101: 1058 | C101: 6500 | D101: 6500 | E101: =B101 -> 1058 | F101: =D101 -> 6500
A102: Burrel, Southeast | B102: 0 | C102: 6700 | D102: 6700 | E102: 0 | F102: =D102 -> 6700
A103: Cabrillo | B103: 48520 | E103: 48520
A104: Calders Corner | B104: 0 | C104: 8700 | D104: =C104 -> 8700 | E104: 0 | F104: =D104 -> 8700
A105: Camden | B105: 1354 | C105: 6120 | D105: =C105 -> 6120 | E105: 1354 | F105: 6120
A106: Canada Larga | B106: 2413 | C106: 2560 | D106: =C106 -> 2560 | E106: 2413 | F106: 2560
A107: Canal | B107: 34892 | C107: 3100-5900, 8000, 8500, 9400, 8900, 10150 | D107: 8242 | E107: 34892 | F107: 8242
A108: Canfield Ranch | B108: 117109 | C108: 7900-9800, 7950-10150, 7900, 8100, 8100 | D108: 8400 | E108: 117109 | F108: 8400
A109: Canoga park | E109: 0 | F109: 0
A110: Canton Creek | B110: 0 | C110: 900 | D110: 900 | E110: 0 | F110: 900
A111: Cantua Creek | B111: 0 | C111: 9300 | D111: =C111 -> 9300 | E111: 0 | F111: 9300
A112: Cantua Nueva | B112: 0 | C112: 7185 | D112: =C112 -> 7185 | E112: 0 | F112: 7185
A113: Capitan | B113: 0 | C113: 1100, 1600, 2300, 2475, 2750, 3400, 3850, 4400 | D113: 2734 | E113: 0 | F113: 2734
A114: Capitola Park | B114: 0 | C114: 650 | D114: =C114 -> 650 | E114: 0 | F114: 650
A115: Careaga Canyon | B115: 10965 | C115: 7960, 7960 | D115: 7960 | E115: 10965 | F115: 7960
A116: Carneros Creek | E116: =SUM(B117:B120) -> 35779 | F116: =SUMPRODUCT(B117:B120, D117:D120)/SUM(B117:B120) -> 3456.946645
A117: Button Bed | B117: 4863 | C117: 2100 | D117: =C117 -> 2100
A118: Carneros | B118: 282 | C118: 2375 | D118: =C118 -> 2375
A119: Phacoides (WYGAL) | B119: 1356 | C119: 2480 | D119: =C119 -> 2480
A120: Point of Rocks | B120: 29278 | C120: 3875, 3600 | D120: 3738
A121: Cascade | B121: 194287 | C121: 2733 | D121: =C121 -> 2733 | E121: =B121 -> 194287 | F121: =D121 -> 2733
A122: Casmalia | B122: 185892 | C122: 1275-2800, 2750, 3953 | D122: 2914 | E122: =B122 -> 185892 | F122: =D122 -> 2914
A123: Castaic Hills | E123: =SUM(B124:B129) -> 17994 | F123: =SUMPRODUCT(B124:B129, D124:D129)/SUM(B124:B129) -> 5546.459931
A124: Golden (ABD) | B124: 0 | C124: 4000 | D124: =C124 -> 4000
A125: Sterling | B125: 16322 | C125: 5500 | D125: 5500
A126: Sterling, East (ABD) | B126: 0 | C126: 5700 | D126: 5700
A127: Rynne-Fisher | B127: 1672 | C127: 6000 | D127: 6000
A128: Upper Radovich (ABD) | B128: 0 | C128: 730 | D128: 730
A129: Lower Radovich (ABD) | B129: 0 | C129: 730 | D129: 730
A130: Castaic Junction | B130: 0 | C130: 8400, 9200, 9850, 10800, 10800, 12000 | D130: 10175 | E130: =B130 -> 0 | F130: =D130 -> 10175
A131: Cat Canyon | B131: 286157 | C131: 3000, 3500, 2800, 1750, 2750, 4900, 4000, 2800, 3405, 3750, 6000, 2210, 3800, 2020-3180, 2550, 3000, | D131: 3301 | E131: =B131 -> 286157 | F131: =D131 -> 3301
A132: Chaffee Canyon | B132: 1776 | C132: 6330, 8712 | D132: 7521 | E132: =B132 -> 1776 | F132: =D132 -> 7521
A133: Charlie Canyon | B133: 0 | C133: 600 | D133: =C133 -> 600 | E133: =B133 -> 0 | F133: =D133 -> 600
A134: Cheviot Hills | E134: =SUM(B135:B136) -> 53393 | F134: =SUMPRODUCT(B135:B136, D135:D136)/SUM(B135:B136) -> 8225
A135: Pliocene | B135: 45364 | C135: 4800, 7800-9800, 9100, 10200 | D135: 8225
A136: Miocene | B136: 8029 | C136: 4800, 7800-9800, 9100, 10200 | D136: 8225
A137: Chico-Martinez | B137: 2995 | C137: 900, 3780 | D137: 2340 | E137: =B137 -> 2995 | F137: =D137 -> 2340
A138: Chino-Soquel | B138: 632 | C138: 1100, 1300, 1700, 1800 | D138: 1475 | E138: =B138 -> 632 | F138: =D138 -> 1475
A139: Cienaga Canyon | B139: 12897 | C139: 2000, 4030 | D139: 3015 | E139: =B139 -> 12897 | F139: =D139 -> 3015
A140: Coalinga | E140: =SUM(B141:B144) -> 5875552 | F140: =SUMPRODUCT(B141:B144, D141:D144)/SUM(B141:B144) -> 2650
A141: Echegoin Temblor | B141: 0 | C141: 500-3500 | D141: 2000
A142: Eocene | B142: 0 | C142: 0-2500 | D142: 1250
A143: Cretaceous (Oil City) | B143: 0 | C143: 700 | D143: =C143 -> 700
A144: Temblor | B144: 5875552 | C144: 700-4600 | D144: 2650
A145: Coalinga, East Extension | B145: 22323 | C145: 6400, 7400-8000, 8000 | D145: 7367 | E145: =B145 -> 22323 | F145: =D145 -> 7367
A146: Coles Levee, North | B146: 155879 | C146: 5300, 8000-9650, 17500 | D146: 10542 | E146: 155879 | F146: 10542
A147: Coles Levee, South | B147: 90531 | C147: 4200, 5120, 9600-9900, 10530, 11680 | D147: 8256 | E147: 90531 | F147: 8256
A148: Comanche Point | B148: 5460 | C148: 650 | D148: =C148 -> 650 | E148: 5460 | F148: 650
A149: Conejo | B149: 0 | C149: 150 | D149: =C149 -> 150 | E149: 0 | F149: 150
A150: Coyote, East | B150: 228476 | C150: 2500, 3100, 3400, 4000, 4600, 5000, 5500 | D150: 4014 | E150: 228476 | F150: 4014
A151: Coyote, West | B151: 0 | C151: 2900, 3300, 4100, 4400, 4900, 5500 | D151: 4183 | E151: 0 | F151: 4183
A152: Cristianitos Creek | B152: 0 | C152: 5860 | D152: =C152 -> 5860 | E152: 0 | F152: 5860
A153: Cuyama, Central | B153: 0 | C153: 7270 | D153: =C153 -> 7270 | E153: 0 | F153: 7270
A154: Cuyama, South | B154: 227539 | C154: 1830, 4100, 4300, 2925, 5840 | D154: 3799 | E154: 227539 | F154: 3799
A155: Cymric | E155: =SUM(B156:B186) -> 17557874 | F155: =SUMPRODUCT(B156:B186, D156:D186)/SUM(B156:B186) -> 2572.173363
A156: Cymric Flank Area
A157: Carneros | B157: 3995 | C157: 8600 | D157: =C157 -> 8600
A158: Phacoides | B158: 0 | C158: 10145 | D158: =C158 -> 10145
A159: Salt Creek Main Area
A160: Etchegoin | B160: 3390 | C160: 650 | D160: =C160 -> 650
A161: Carneros West | B161: 5487 | C161: 1500-2400 | D161: 1950
A162: Carneros Unit | B162: 45604 | C162: 1500-2400 | D162: 1950
A163: Phacoides | B163: 9327 | C163: 500 | D163: =C163 -> 500
A164: Salt Creek West Area
A165: Phacoides | B165: 963 | C165: 4600 | D165: =C165 -> 4600
A166: Sheep Springs Area
A167: Tulare | B167: 1397 | C167: 1420 | D167: =C167 -> 1420
A168: Etchegoin | B168: 28280 | C168: 2470 | D168: =C168 -> 2470
A169: Monterey | B169: 389 | C169: 2650 | D169: =C169 -> 2650
A170: Carneros | B170: 45205 | C170: 3400 | D170: =C170 -> 3400
A171: Oceanic | B171: 71 | C171: 1420, 2450, 2650, 3400, 4600, 4700 | D171: 3216
A172: Welport Area
A173: Tulare Antelope | B173: 1858067 | C173: 1000-1200, 670, 3400, 2250, 1100, 1230, 4050, 4150-5560, 3400, 4300-7870, 4900-8570, 5400 | D173: 3356
A174: Tulare | B174: 5633321 | C174: 1000-1200 | D174: 1100
A175: Etchegoin | B175: 8589131 | C175: 3400 | D175: =C175 -> 3400
A176: San Joaquin ABD | B176: 0 | C176: 670 | D176: 670
A177: Reef Ridge Antelope | B177: 1279515 | C177: 2250 | D177: 2250
A178: 1st McKittrick | B178: 0 | C178: 1100 | D178: 1100
A179: 2nd McKittrick | B179: 0 | C179: 1230 | D179: 1230
A180: McDonald-Devilwater | B180: 7517 | C180: 4050 | D180: 4050
A181: Carneros | B181: 26149 | C181: 4150-5560 | D181: 4855
A182: Agua (Santos) | B182: 0 | C182: 3400 | D182: =C182 -> 3400
A183: Phacoides | B183: 4028 | C183: 4300-7870 | D183: 6085
A184: Oceanic | B184: 5266 | C184: 4900-8570 | D184: 6735
A185: Point of Rocks | B185: 10772 | C185: 5400 | D185: =C185 -> 5400
A186: Agua (Santos) | B186: 0 | C186: 3400 | D186: =C186 -> 3400
A187: Deer Creek | B187: 56378 | C187: 715 | D187: =C187 -> 715 | E187: =B187 -> 56378 | F187: =D187 -> 715
A188: Deer Creek, North | B188: 122 | C188: 790 | D188: =C188 -> 790 | E188: =B188 -> 122 | F188: =D188 -> 790
A189: Del Valle | B189: 58226 | C189: 3800, 4600, 5300, 5600, 6300, 6500, 7650, 9700, 7100, 5400, 8850, 9600 | D189: 6700 | E189: =B189 -> 58226 | F189: =D189 -> 6700
A190: Devils Den | E190: =SUM(B191:B193) -> 19768 | F190: =SUMPRODUCT(B191:B193, D191:D193)/SUM(B191:B193) -> 1987.162586
A191: Alferitz Area | B191: 17274 | C191: 1100, 1350, 2000, 1200-3200, 4200 | D191: 2170
A192: Bates Area | B192: 704 | C192: 1600 | D192: =C192 -> 1600
A193: Old Area | B193: 1790 | C193: 200, 200, 500, 600 | D193: 375
A194: Dominguez | B194: 7416 | C194: 3950, 4250, 4530, 4830, 5300, 5870, 6360, 7050 | D194: 5268 | E194: =B194 -> 7416 | F194: =D194 -> 5268
A195: Dyer Creek | B195: 0 | C195: 2340 | D195: =C195 -> 2340 | E195: 0 | F195: 2340
A196: Eagle Rest | B196: 0 | C196: 7976 | D196: =C196 -> 7976 | E196: 0 | F196: 7976
A197: Edison | B197: 676370 | C197: 1150, 3450, 3300, 3500, 5900, 5950, 6040, 750-4200, 400-4400, 1500-2500, 3000, 3150, 2900, 1200-4500, 4200, 4100, 1070, 1830, 3200, 3260, 4570, 4620, 4730, 3200, 4000, 4500, 4400, 4700, 5300 | D197: 3646 | E197: 676370 | F197: 3646
A198: Edison, Northeast | B198: 0 | C198: 500 | D198: =C198 -> 500 | E198: 0 | F198: 500
A199: El Rio | B199: 0 | C199: 11238 | D199: =C199 -> 11238 | E199: 0 | F199: 11238
A200: El Segundo | B200: 26534 | C200: 1490-4180, 7000-7200, 7250, 7300 | D200: 6121 | E200: 26534 | F200: 6121
... 404 more rows

Sheet CA Chevron
B1: steam quality | C1: Chevron % | D1: Rest % | E1: Weighted average steam quality | F1: Avg CI
A2: Cymric | B2: 0.51 | C2: =B19/B20 -> 0.7250689436 | D2: =1-C2 -> 0.2749310564 | E2: =B2*C2+0.7*D2 -> 0.5622369007 | F2: 15.68781864
A3: Midway-Sunset | B3: 0.64 | C3: =C19/C20 -> 0.2842780504 | D3: =1-C3 -> 0.7157219496 | E3: =B3*C3+0.7*D3 -> 0.682943317 | F3: 29.33382504
A4: San Ardo | B4: 0.65 | C4: =D19/D20 -> 0.516112617 | D4: 0.483887383 | E4: 0.6741943691 | F4: 26.41837675
B6: Cymric | C6: Midway-Sunset | D6: San Ardo | F6: DOGGR 2015 monthly oil and gas production and injection report
A7: 1 | B7: 928514 | C7: 711231 | D7: 360431
A8: 2 | B8: 859620 | C8: 645885 | D8: 341822
A9: 3 | B9: 1002602 | C9: 699276 | D9: 375356
A10: 4 | B10: 959426 | C10: 682325 | D10: 359491
A11: 5 | B11: 1023894 | C11: 691338 | D11: 357173
A12: 6 | B12: 960794 | C12: 666462 | D12: 359452
A13: 7 | B13: 1029070 | C13: 672507 | D13: 328281
A14: 8 | B14: 1019763 | C14: 659465 | D14: 287155
A15: 9 | B15: 1007679 | C15: 659356 | D15: 312772
A16: 10 | B16: 1058313 | C16: 651817 | D16: 316034
A17: 11 | B17: 1030093 | C17: 626689 | D17: 305607
A18: 12 | B18: 1087347 | C18: 638277 | D18: 319865
A19: Chevron total | B19: =SUM(B7:B18) -> 11967115 | C19: =SUM(C7:C18) -> 8004628 | D19: 4023439
A20: Well total | B20: 16504796 | C20: 28157742 | D20: 7795661 | F20: DOGGR well search https://secure.conservation.ca.gov/WellSearch/, data accessed on June 6, 2018

Sheet CA Federal OCS 2015
A1: Data inputs | B1: Start field: | C1: End field:
A2: Fields to assess | B2: 1 | C2: 15
A3: 1 Inputs
A5: Variables | E5: Unit | G5: Default | H5: Field 1 | I5: Field 2 | J5: Field 3 | K5: Field 4 | L5: Field 5 | M5: Field 6 | N5: Field 7 | O5: Field 8 | P5: Field 9 | Q5: Field 10 | R5: Field 11 | S5: Field 12 | T5: Field 13 | U5: Field 14 | V5: Field 15
G6: =IF(G21="","NA",G21) -> Generic | H6: =IF(H21="","NA",H21) -> Beta | I6: Carpinteria | J6: Dos Cuadras | K6: Hondo | L6: Hueneme | M6: Pescado | N6: Point Arguello | O6: =IF(O21="","NA",O21) -> Point Arguello | P6: Point Pedernales | Q6: Point Pedernales | R6: Sacate | S6: Sacate | T6: Santa Clara | U6: Sockeye | V6: Sockeye
A7: 1.1 Production methods
A8: Notes: Enter "1" where applicable and "0" where not applicable
B9: 1.1.1 Downhole pump | E9: NA | G9: 1 | H9: 1 | I9: 1 | J9: 1 | K9: 0 | L9: 1 | M9: 0 | N9: 1 | O9: 0 | P9: 1 | Q9: 0 | R9: 1 | S9: 0 | T9: 1 | U9: 1 | V9: 0 | W9: See "2015 OCS Data" sheet
B10: 1.1.2 Water reinjection | E10: NA | G10: 1 | H10: 1 | I10: 1 | J10: 1 | K10: 0 | L10: 0 | M10: 1 | N10: 1 | O10: 1 | P10: 1 | Q10: 1 | R10: 0 | S10: 0 | T10: 1 | U10: 1 | V10: 1 | W10: See "2015 OCS Data" sheet
B11: 1.1.3 Natural gas reinjection | E11: NA | G11: 1 | H11: 0 | I11: 0 | J11: 0 | K11: 1 | L11: 0 | M11: 1 | N11: 1 | O11: 1 | P11: 0 | Q11: 0 | R11: 0 | S11: 0 | T11: 0 | U11: 1 | V11: 1 | W11: See "2015 OCS Data" sheet
B12: 1.1.4 Water flooding | E12: NA | G12: 0 | W12: See "2015 OCS Data" sheet
B13: 1.1.5 Gas lifting | E13: NA | G13: 0 | K13: 1 | M13: 1 | O13: 1 | Q13: 1 | S13: 1 | V13: 1 | W13: See "2015 OCS Data" sheet
B14: 1.1.6 Gas flooding | E14: NA | G14: 0
B15: 1.1.7 Steam flooding | E15: NA | G15: 0
B16: 1.1.8 Oil sands mine (integrated with upgrader) | E16: NA | G16: 0
B17: 1.1.9 Oil sands mine (non-integrated with upgrader) | E17: NA | G17: 0
A19: 1.2 Field properties
B20: 1.2.1 Field location (Country) | E20: NA | G20: Generic | H20: California | I20: California | J20: California | K20: California | L20: California | M20: California | N20: California | O20: California | P20: California | Q20: California | R20: California | S20: California | T20: California | U20: California | V20: California
B21: 1.2.2 Field name | E21: NA | G21: Generic | H21: Beta | I21: Carpinteria | J21: Dos Cuadras | K21: Hondo | L21: Hueneme | M21: Pescado | N21: Point Arguello | O21: Point Arguello | P21: Point Pedernales | Q21: Point Pedernales | R21: Sacate | S21: Sacate | T21: Santa Clara | U21: Sockeye | V21: Sockeye
B22: 1.2.3 Field age | E22: yr. | G22: 35
B23: 1.2.4 Field depth | E23: ft | G23: 7240 | H23: 3800 | I23: 3300 | J23: 1600 | K23: 8500 | L23: 5101 | N23: 7800 | O23: 7800 | P23: 5000 | Q23: 5000 | T23: 7050 | U23: 4500 | V23: 4500 | W23: US DOI, Estimated Oil and Gas Reserves-Pacific Outer Continental Shelf, OCS Report MMS 94-0008, 1993.
B24: 1.2.5 Oil production volume | E24: bbl/d | G24: 1500 | H24: 5580.356164 | I24: 973 | J24: 2489.613699 | K24: 5369.772603 | L24: 315.5205479 | M24: 2725.610959 | N24: 295.6520548 | O24: 1265.945205 | P24: 3452.219178 | Q24: 1726.063014 | R24: 113.7342466 | S24: 2449.835616 | U24: 905.2356164 | V24: 1387.523288 | W24: See "2015 OCS Data" sheet
B25: 1.2.6 Number of producing wells | E25: [-] | G25: 8 | H25: 72 | I25: 46 | J25: 130 | K25: 50 | L25: 5 | M25: 23 | N25: 5 | O25: 23 | P25: 10 | Q25: 3 | R25: 2 | S25: 6 | T25: 29 | U25: 8 | V25: 8 | W25: October 2010 Monthly Oil and Gas Production and Injection Report, California Department of Conservation (ftp://ftp.consrv.ca.gov/pub/oil/monthly_production_reports/). As of January 1, 2011, report will not show any Federal OCS production.
B26: 1.2.7 Number of water injecting wells | E26: [-] | G26: 5 | H26: 34 | I26: 1 | J26: 25 | K26: 3 | L26: 0 | M26: 2 | N26: 1 | O26: 1 | P26: 3 | Q26: 1 | R26: 0 | S26: 0 | T26: 1 | U26: 3 | V26: 3 | W26: October 2010 Monthly Oil and Gas Production and Injection Report, California Department of Conservation (ftp://ftp.consrv.ca.gov/pub/oil/monthly_production_reports/). As of January 1, 2011, report will not show any Federal OCS production.
B27: 1.2.8 Well diameter | E27: in | G27: 2.775
B28: 1.2.9 Productivity index | E28: bbl/psi-d | G28: 3
B29: 1.2.10 Reservoir pressure | E29: psi | G29: 1556.6
B30: 1.2.11 Reservoir temperature | E30: ◦F | G30: 150
B31: 1.2.12 Offshore? | E31: [0-1] | G31: 0 | H31: 1 | I31: 1 | J31: 1 | K31: 1 | L31: 1 | M31: 1 | N31: 1 | O31: 1 | P31: 1 | Q31: 1 | R31: 1 | S31: 1 | T31: 1 | U31: 1 | V31: 1 | W31: California outer continental shelf (OCS)
A33: 1.3 Fluid properties
B34: 1.3.1 API gravity | E34: deg. API | G34: 30 | H34: 18 | I34: 25.5 | J34: 25 | K34: 17 | L34: 14.5 | N34: 18 | O34: 18 | P34: 16.3 | Q34: 16.3 | T34: 23 | U34: 16.5 | V34: 16.5 | W34: US DOI, Estimated Oil and Gas Reserves-Pacific Outer Continental Shelf, OCS Report MMS 94-0008, 1993.
B35: 1.3.2 Gas composition
C36: N2 | E36: mol% | G36: 2
C37: CO2 | E37: mol% | G37: 6
C38: C1 | E38: mol% | G38: 84
C39: C2 | E39: mol% | G39: 4
C40: C3 | E40: mol% | G40: 2
C41: C4+ | E41: mol% | G41: 1
C42: H2S | E42: mol% | G42: 1
A44: 1.4 Production practices
A45: Notes: Enter "NA" where not applicable
B46: 1.4.1 Gas-to-oil ratio (GOR) | E46: scf/bbl oil | G46: 908 | H46: 294.8468944 | I46: 1144.546594 | J46: 1777.224612 | K46: 2791.44904 | L46: 3253.28876 | M46: 1744.606211 | N46: 1117.965398 | O46: 1746.484299 | P46: 285.3340317 | Q46: 662.0260217 | R46: 4138.366295 | S46: 1239.733166 | T46: 712.68296 | U46: 588.4852502 | V46: 1437.748546 | W46: See "2015 OCS Data" sheet
B47: 1.4.2 Water-to-oil ratio (WOR) | E47: bbl water/bbl oil | G47: 4.308369057 | H47: 2.893732418 | I47: 7.662439285 | J47: 21.13080755 | K47: 1.948594032 | L47: 12.87681153 | M47: 3.854261153 | N47: 47.18899484 | O47: 14.0673794 | P47: 15.38601178 | Q47: 8.151565126 | R47: 0.3848433021 | S47: 2.404208278 | T47: 2.335731913 | U47: 34.80087527 | V47: 14.75691979 | W47: See "2015 OCS Data" sheet
B48: 1.4.3 Water injection ratio | E48: bbl water/bbl oil | G48: 5.308369057 | H48: 2.759565109 | W48: See "2015 OCS Data" sheet
B49: 1.4.4 Gas lifting injection ratio | E49: scf/bbl liquid | G49: 1500
B50: 1.4.5 Gas flooding injection ratio | E50: scf/bbl oil | G50: 1362
B51: 1.4.6 Flood gas | E51: NA | G51: 1
C52: 1= Natural gas
C53: 2= Nitrogen (N2)
C54: 3= Carbon Dioxide (CO2)
B57: 1.4.7 Carbon dioxide flooding and sequestration parameters
C58: 1.4.7.1 Percentage of newly acquired CO2 (total injected CO2 includes both new and recycled) | E58: % | G58: 41
C59: 1.4.7.2 Source of CO2 | E59: NA | G59: 1
D60: 1= Natural subsurface reservoir
D61: 2= Anthropogenic
C62: 1.4.7.3 Percentage of sequestration credit assigned to the oilfield | E62: % | G62: 0
B63: 1.4.8 Steam-to-oil ratio (SOR) | E63: bbl steam/bbl oil | G63: 3 | W63: Assumed no steam injection for light crude
B64: 1.4.9 Fraction of required electricity generated onsite | E64: [-] | G64: 0 | H64: 1 | I64: 1 | J64: 1 | K64: 1 | L64: 1 | M64: 1 | N64: 1 | O64: 1 | P64: 1 | Q64: 1 | R64: 1 | S64: 1 | T64: 1 | U64: 1 | V64: 1 | W64: Assumed all electricity produced onsite for offshore fields
B65: 1.4.10 Fraction of remaining natural gas reinjected | E65: [-] | G65: 0 | H65: 0 | I65: 0 | J65: 0 | K65: 0.466221166 | L65: 0 | M65: 0.6111753854 | N65: 0.4051826084 | O65: 0.4051826084 | P65: 0 | Q65: 0 | R65: 0 | S65: 0 | T65: 0 | U65: 0 | V65: 0 | W65: See "2015 OCS Data" sheet
B66: 1.4.11 Fraction of produced water reinjected | E66: [-] | G66: 1 | H66: 0.9536352055 | I66: 0.3169592805 | J66: 0.6683005277 | K66: 0.3454581874 | L66: 0 | M66: 0.8514214986 | N66: 0.02686885051 | O66: 0.02686885051 | P66: 0.9534576471 | Q66: 0.9534576471 | R66: 0 | S66: 0 | T66: 0.2245931498 | U66: 1 | V66: 1 | W66: See "2015 OCS Data" sheet
B67: 1.4.12 Fraction of steam generation via cogeneration | E67: [-] | G67: 0 | W67: Assumed no steam injection for light crude
B68: 1.4.13 Fraction of steam generation via solar thermal | E68: [-] | G68: 0
A69: 1.5 Processing practices
B70: 1.5.1 Heater/treater | E70: NA | G70: 0
B71: 1.5.2 Stabilizer column | E71: NA | G71: 1
B72: 1.5.3 Upgrader type | G72: 0
C73: 0 = None
C74: 1 = Delayed coking
C75: 2 = Hydroconversion
C76: 3 = Combined hydroconversion and fluid coking
B77: 1.5.3 Associated Gas Processing Path | E77: NA | G77: 5
C78: 1= None
C79: 2= Minimal: Dehydrator
C80: 3= Acid Gas: Dehydrator + Amine Process
C81: 4= Wet Gas: Dehydrator + Demethanizer
C82: 5= Acid Wet Gas: Dehydrator + Amine Process + Demethanizer
C83: 6= CO2-EOR Membrane: Dehydrator + Compressor + Membrane + Amine Process + Demethanizer
C84: 7= CO2-EOR Ryan Holmes: Dehydrator + Ryan Holmes Process (Demethanizer Included)
C85: Notes: Choose paths 6 or 7 only if gas flooding is ON and CO2 is the flood gas
B86: 1.5.4 Flaring-to-oil ratio | E86: scf/bbl oil | G86: 181.5280918 | H86: 0 | I86: 0 | J86: 0 | K86: 0 | L86: 0 | M86: 0 | N86: 0 | O86: 0 | P86: 0 | Q86: 0 | R86: 0 | S86: 0 | T86: 0 | U86: 0 | V86: 0 | W86: See 2015 State Average Gas Data
B87: 1.5.5 Venting-to-oil ratio | E87: scf/bbl oil | G87: 0
B88: 1.5.6 Volume fraction of diluent | E88: [-] | G88: 0
A90: 1.6 Land use impacts
B91: 1.6.1 Crude ecosystem carbon richness
C92: 1.6.1.1 Low carbon richness (semi-arid grasslands) | E92: NA | G92: 0
C93: 1.6.1.2 Moderate carbon richness (mixed) | E93: NA | G93: 1
C94: 1.6.1.3 High carbon richness (forested) | E94: NA | G94: 0
B95: 1.6.2 Field development intensity
C96: 1.6.2.1 Low intensity development and low oxidation | E96: NA | G96: 0
C97: 1.6.2.2 Moderate intensity development and moderate oxidation | E97: NA | G97: 1
C98: 1.6.2.3 High intensity development and high oxidation | E98: NA | G98: 0
A100: 1.8 Crude oil transport
B101: 1.8.1 Fraction of oil transported by each mode
C102: 1.8.1.1 Ocean tanker | E102: [-] | G102: 1 | H102: 0 | I102: 0 | J102: 0 | K102: 0 | L102: 0 | M102: 0 | N102: 0 | O102: 0 | P102: 0 | Q102: 0 | R102: 0 | S102: 0 | T102: 0 | U102: 0 | V102: 0
C103: 1.8.1.2 Barge | E103: [-] | G103: 0 | H103: 0 | I103: 0 | J103: 0 | K103: 0 | L103: 0 | M103: 0 | N103: 0 | O103: 0 | P103: 0 | Q103: 0 | R103: 0 | S103: 0 | T103: 0 | U103: 0 | V103: 0
C104: 1.8.1.3 Pipeline | E104: [-] | G104: 1 | H104: 1 | I104: 1 | J104: 1 | K104: 1 | L104: 1 | M104: 1 | N104: 1 | O104: 1 | P104: 1 | Q104: 1 | R104: 1 | S104: 1 | T104: 1 | U104: 1 | V104: 1 | W104: Assumed pipeline transport for all California fields
C105: 1.8.1.4 Rail | E105: [-] | G105: 0 | H105: 0 | I105: 0 | J105: 0 | K105: 0 | L105: 0 | M105: 0 | N105: 0 | O105: 0 | P105: 0 | Q105: 0 | R105: 0 | S105: 0 | T105: 0 | U105: 0 | V105: 0
C106: 1.8.1.5 Truck | G106: 0 | H106: 0 | I106: 0 | J106: 0 | K106: 0 | L106: 0 | M106: 0 | N106: 0 | O106: 0 | P106: 0 | Q106: 0 | R106: 0 | S106: 0 | T106: 0 | U106: 0 | V106: 0
B107: 1.8.2 Transport distance (one way)
C108: 1.8.2.1 Ocean tanker | E108: Mile | G108: 5082 | H108: 0 | I108: 0 | J108: 0 | K108: 0 | L108: 0 | M108: 0 | N108: 0 | O108: 0 | P108: 0 | Q108: 0 | R108: 0 | S108: 0 | T108: 0 | U108: 0 | V108: 0
C109: 1.8.2.2 Barge | E109: Mile | G109: 500 | H109: 0 | I109: 0 | J109: 0 | K109: 0 | L109: 0 | M109: 0 | N109: 0 | O109: 0 | P109: 0 | Q109: 0 | R109: 0 | S109: 0 | T109: 0 | U109: 0 | V109: 0
C110: 1.8.2.3 Pipeline | E110: Mile | G110: 750 | H110: 100 | I110: 100 | J110: 100 | K110: 100 | L110: 100 | M110: 100 | N110: 100 | O110: 100 | P110: 100 | Q110: 100 | R110: 100 | S110: 100 | T110: 100 | U110: 100 | V110: 100 | W110: Assumed 100 mile transport distance for all California fields
C111: 1.8.2.4 Rail | E111: Mile | G111: 800 | H111: 0 | I111: 0 | J111: 0 | K111: 0 | L111: 0 | M111: 0 | N111: 0 | O111: 0 | P111: 0 | Q111: 0 | R111: 0 | S111: 0 | T111: 0 | U111: 0 | V111: 0
C112: 1.8.2.5 Truck | G112: 100 | H112: 0 | I112: 0 | J112: 0 | K112: 0 | L112: 0 | M112: 0 | N112: 0 | O112: 0 | P112: 0 | Q112: 0 | R112: 0 | S112: 0 | T112: 0 | U112: 0 | V112: 0
B113: 1.8.3 Ocean tanker size, if applicable | E113: Ton | G113: 250000
A115: 1.9 Small sources emissions | E115: gCO2eq/MJ | G115: 0.5

Sheet 2015 OCS Data
A1: Source: Data downloaded as ASCII file and converted to Excel on 4/10/2017 from Bureau of Safety and Environmental Enforcement website https://www.data.bsee.gov/Main/PacificProduction.aspx
F2: =SUM(F4:F134)/30 -> 5759.766667
A3: Lease Number | B3: Completion Name | C3: Production Date | D3: Days of Prod | E3: Production Code | F3: Monthly Oil Volume | G3: Monthly Gas Volume | H3: Monthly Water Volume | I3: Api Well Number | J3: Well Status Code | K3: Area/Block/Bottom | L3: Operator Num | M3: Operator Name | N3: Field Name Code | O3: Injection Volume | P3: Production Intervel Code | Q3: First Production Date | R3: Unit Agreement Number
A4: P00296 | B4: B002 | C4: 201501 | D4: 12 | E4: O | F4: 239 | G4: 78 | H4: 329 | I4: 43122008700 | J4: 8 | K4: LB 6437 | L4: 2531 | M4: DCOR, L.L.C. | N4: BETA | O4: 0 | P4: S01 | Q4: 19840101 | R4: 891018481
A5: P00296 | B5: B003 | C5: 201501 | D5: 30 | E5: O | F5: 582 | G5: 191 | H5: 17 | I5: 43122008800 | J5: 8 | K5: LB 6437 | L5: 2531 | M5: DCOR, L.L.C. | N5: BETA | O5: 0 | P5: S01 | Q5: 19840201 | R5: 891018481 | T5: 3- Gas Injection (Active or Inactive).
A6: P00296 | B6: B004 | C6: 201501 | D6: 30 | E6: O | F6: 1693 | G6: 553 | H6: 204 | I6: 43122009000 | J6: 8 | K6: LB 6437 | L6: 2531 | M6: DCOR, L.L.C. | N6: BETA | O6: 0 | P6: S01 | Q6: 19840301 | R6: 891018481 | T6: 4- Water Injection (Active or Inactive).
A7: P00296 | B7: B005 | C7: 201501 | D7: 30 | E7: O | F7: 1117 | G7: 364 | H7: 9156 | I7: 43122009100 | J7: 8 | K7: LB 6438 | L7: 2531 | M7: DCOR, L.L.C. | N7: BETA | O7: 0 | P7: S01 | Q7: 19840401 | R7: 891018481 | T7: 9- Gas Lift.
A8: P00296 | B8: B006 | C8: 201501 | D8: 30 | E8: O | F8: 888 | G8: 290 | H8: 9924 | I8: 43122009300 | J8: 8 | K8: LB 6438 | L8: 2531 | M8: DCOR, L.L.C. | N8: BETA | O8: 0 | P8: S01 | Q8: 19840701 | R8: 891018481
A9: P00296 | B9: B007 | C9: 201501 | D9: 30 | E9: O | F9: 1161 | G9: 379 | H9: 535 | I9: 43122009500 | J9: 8 | K9: LB 6438 | L9: 2531 | M9: DCOR, L.L.C. | N9: BETA | O9: 0 | P9: S01 | Q9: 19840801 | R9: 891018481
A10: P00296 | B10: B008 | C10: 201501 | D10: 30 | E10: O | F10: 856 | G10: 279 | H10: 23 | I10: 43122009700 | J10: 8 | K10: LB 6438 | L10: 2531 | M10: DCOR, L.L.C. | N10: BETA | O10: 0 | P10: S01 | Q10: 19840901 | R10: 891018481
A11: P00296 | B11: B009 | C11: 201501 | D11: 30 | E11: O | F11: 793 | G11: 259 | H11: 83 | I11: 43122009800 | J11: 8 | K11: LB 6438 | L11: 2531 | M11: DCOR, L.L.C. | N11: BETA | O11: 0 | P11: S01 | Q11: 19840901 | R11: 891018481
A12: P00296 | B12: B010 | C12: 201501 | D12: 0 | E12: O | F12: 0 | G12: 0 | H12: 0 | I12: 43122010000 | J12: 12 | K12: LB 6437 | L12: 2531 | M12: DCOR, L.L.C. | N12: BETA | O12: 0 | P12: S01 | Q12: 19841001 | R12: 891018481
A13: P00296 | B13: B011 | C13: 201501 | D13: 0 | E13: O | F13: 0 | G13: 0 | H13: 0 | I13: 43122010100 | J13: 12 | K13: LB 6438 | L13: 2531 | M13: DCOR, L.L.C. | N13: BETA | O13: 0 | P13: S01 | Q13: 19841101 | R13: 891018481
A14: P00296 | B14: B012 | C14: 201501 | D14: 30 | E14: O | F14: 775 | G14: 253 | H14: 35 | I14: 43122010200 | J14: 8 | K14: LB 6438 | L14: 2531 | M14: DCOR, L.L.C. | N14: BETA | O14: 0 | P14: S01 | Q14: 19841201 | R14: 891018481
A15: P00296 | B15: B013 | C15: 201501 | D15: 30 | E15: S | F15: 0 | G15: 0 | H15: 0 | I15: 43122010300 | J15: 4 | K15: LB 6437 | L15: 2531 | M15: DCOR, L.L.C. | N15: BETA | O15: 9772 | P15: S01 | Q15: 19850101 | R15: 891018481
A16: P00296 | B16: B014 | C16: 201501 | D16: 30 | E16: O | F16: 761 | G16: 247 | H16: 20 | I16: 43122010500 | J16: 8 | K16: LB 6438 | L16: 2531 | M16: DCOR, L.L.C. | N16: BETA | O16: 0 | P16: S01 | Q16: 19850201 | R16: 891018481
A17: P00296 | B17: B015 | C17: 201501 | D17: 30 | E17: S | F17: 0 | G17: 0 | H17: 0 | I17: 43122010900 | J17: 4 | K17: LB 6438 | L17: 2531 | M17: DCOR, L.L.C. | N17: BETA | O17: 22459 | P17: S01 | Q17: 19850301 | R17: 891018481
A18: P00296 | B18: B016 | C18: 201501 | D18: 0 | E18: U | F18: 0 | G18: 0 | H18: 0 | I18: 43122011000 | J18: 14 | K18: LB 6437 | L18: 2531 | M18: DCOR, L.L.C. | N18: BETA | O18: 0 | P18: X01
A19: P00296 | B19: B017 | C19: 201501 | D19: 30 | E19: O | F19: 566 | G19: 184 | H19: 66 | I19: 43122011400 | J19: 8 | K19: LB 6437 | L19: 2531 | M19: DCOR, L.L.C. | N19: BETA | O19: 0 | P19: S01 | Q19: 19850401 | R19: 891018481
A20: P00296 | B20: B018 | C20: 201501 | D20: 30 | E20: O | F20: 238 | G20: 76 | H20: 7 | I20: 43122011500 | J20: 8 | K20: LB 6438 | L20: 2531 | M20: DCOR, L.L.C. | N20: BETA | O20: 0 | P20: S01 | Q20: 19850501 | R20: 891018481
A21: P00296 | B21: B019 | C21: 201501 | D21: 0 | E21: U | F21: 0 | G21: 0 | H21: 0 | I21: 43122008401 | J21: 14 | K21: LB 6437 | L21: 2531 | M21: DCOR, L.L.C. | N21: BETA | O21: 0 | P21: X01
A22: P00296 | B22: B020 | C22: 201501 | D22: 30 | E22: O | F22: 1457 | G22: 474 | H22: 263 | I22: 43122011800 | J22: 8 | K22: LB 6437 | L22: 2531 | M22: DCOR, L.L.C. | N22: BETA | O22: 0 | P22: S01 | Q22: 19850701 | R22: 891018481
A23: P00296 | B23: B023 | C23: 201501 | D23: 30 | E23: O | F23: 604 | G23: 197 | H23: 16401 | I23: 43122012300 | J23: 8 | K23: LB 6438 | L23: 2531 | M23: DCOR, L.L.C. | N23: BETA | O23: 0 | P23: S01 | Q23: 19850801 | R23: 891018481
A24: P00300 | B24: A001 | C24: 201501 | D24: 31 | E24: O | F24: 2247 | G24: 1616 | H24: 14092 | I24: 43122002500 | J24: 8 | K24: LB 6438 | L24: 3126 | M24: BETA OPERATING COMPANY, LLC | N24: BETA | O24: 0 | P24: S02 | Q24: 19840101 | R24: 891018481
A25: P00300 | B25: A002 | C25: 201501 | D25: 30 | E25: S | F25: 0 | G25: 0 | H25: 0 | I25: 43122002600 | J25: 4 | K25: LB 6438 | L25: 3126 | M25: BETA OPERATING COMPANY, LLC | N25: BETA | O25: 4189 | P25: S01 | Q25: 19980430 | R25: 891018481
A26: P00300 | B26: A003 | C26: 201501 | D26: 0 | E26: S | F26: 0 | G26: 0 | H26: 0 | I26: 43122002700 | J26: 4 | K26: LB 6438 | L26: 3126 | M26: BETA OPERATING COMPANY, LLC | N26: BETA | O26: 0 | P26: S01 | Q26: 19990630 | R26: 891018481
A27: P00300 | B27: A012 | C27: 201501 | D27: 0 | E27: S | F27: 0 | G27: 0 | H27: 0 | I27: 43122003300 | J27: 4 | K27: LB 6438 | L27: 3126 | M27: BETA OPERATING COMPANY, LLC | N27: BETA | O27: 0 | P27: S01 | Q27: 19980430 | R27: 891018481
A28: P00300 | B28: A013 | C28: 201501 | D28: 31 | E28: O | F28: 1839 | G28: 120 | H28: 7804 | I28: 43122004100 | J28: 8 | K28: LB 6438 | L28: 3126 | M28: BETA OPERATING COMPANY, LLC | N28: BETA | O28: 0 | P28: S01 | Q28: 19810901 | R28: 891018481
A29: P00300 | B29: A016 | C29: 201501 | D29: 0 | E29: S | F29: 0 | G29: 0 | H29: 0 | I29: 43122005500 | J29: 6 | K29: LB 6438 | L29: 3126 | M29: BETA OPERATING COMPANY, LLC | N29: BETA | O29: 0 | P29: S01 | Q29: 19980331 | R29: 891018481
A30: P00300 | B30: A018 | C30: 201501 | D30: 0 | E30: S | F30: 0 | G30: 0 | H30: 0 | I30: 43122003500 | J30: 4 | K30: LB 6438 | L30: 3126 | M30: BETA OPERATING COMPANY, LLC | N30: BETA | O30: 0 | P30: S01 | Q30: 19980430 | R30: 891018481
A31: P00300 | B31: A020 | C31: 201501 | D31: 31 | E31: O | F31: 1051 | G31: 359 | H31: 0 | I31: 43122003900 | J31: 8 | K31: LB 6438 | L31: 3126 | M31: BETA OPERATING COMPANY, LLC | N31: BETA | O31: 0 | P31: S01 | Q31: 19820401 | R31: 891018481
A32: P00300 | B32: A022 | C32: 201501 | D32: 30 | E32: S | F32: 0 | G32: 0 | H32: 0 | I32: 43122004300 | J32: 4 | K32: LB 6438 | L32: 3126 | M32: BETA OPERATING COMPANY, LLC | N32: BETA | O32: 4406 | P32: S01 | Q32: 19980324 | R32: 891018481
A33: P00300 | B33: A024 | C33: 201501 | D33: 31 | E33: O | F33: 2160 | G33: 988 | H33: 8836 | I33: 43122004400 | J33: 8 | K33: LB 6438 | L33: 3126 | M33: BETA OPERATING COMPANY, LLC | N33: BETA | O33: 0 | P33: S01 | Q33: 19810801 | R33: 891018481
A34: P00300 | B34: A025 | C34: 201501 | D34: 0 | E34: O | F34: 0 | G34: 0 | H34: 0 | I34: 43122005801 | J34: 12 | K34: LB 6438 | L34: 3126 | M34: BETA OPERATING COMPANY, LLC | N34: BETA | O34: 0 | P34: S01 | Q34: 19960901 | R34: 891018481
A35: P00300 | B35: A026 | C35: 201501 | D35: 15 | E35: S | F35: 0 | G35: 0 | H35: 0 | I35: 43122002901 | J35: 4 | K35: LB 6488 | L35: 3126 | M35: BETA OPERATING COMPANY, LLC | N35: BETA | O35: 5971 | P35: S01 | Q35: 19980430 | R35: 891018481
A36: P00300 | B36: A028 | C36: 201501 | D36: 31 | E36: O | F36: 846 | G36: 688 | H36: 1193 | I36: 43122004700 | J36: 8 | K36: LB 6438 | L36: 3126 | M36: BETA OPERATING COMPANY, LLC | N36: BETA | O36: 0 | P36: S01 | Q36: 19820901 | R36: 891018481
A37: P00300 | B37: A030 | C37: 201501 | D37: 31 | E37: O | F37: 2539 | G37: 239 | H37: 8079 | I37: 43122004800 | J37: 8 | K37: LB 6438 | L37: 3126 | M37: BETA OPERATING COMPANY, LLC | N37: BETA | O37: 0 | P37: S01 | Q37: 19810701 | R37: 891018481
A38: P00300 | B38: A031 | C38: 201501 | D38: 0 | E38: O | F38: 0 | G38: 0 | H38: 0 | I38: 43122006002 | J38: 12 | K38: LB 6438 | L38: 3126 | M38: BETA OPERATING COMPANY, LLC | N38: BETA | O38: 0 | P38: S01 | Q38: 19820901 | R38: 891018481
A39: P00300 | B39: A032 | C39: 201501 | D39: 0 | E39: O | F39: 0 | G39: 0 | H39: 0 | I39: 43122004900 | J39: 12 | K39: LB 6438 | L39: 3126 | M39: BETA OPERATING COMPANY, LLC | N39: BETA | O39: 0 | P39: S01 | Q39: 19820901 | R39: 891018481
A40: P00300 | B40: A035 | C40: 201501 | D40: 19 | E40: S | F40: 0 | G40: 0 | H40: 0 | I40: 43122006400 | J40: 4 | K40: LB 6438 | L40: 3126 | M40: BETA OPERATING COMPANY, LLC | N40: BETA | O40: 5686 | P40: S01 | Q40: 19980430 | R40: 891018481
A41: P00300 | B41: A036 | C41: 201501 | D41: 0 | E41: O | F41: 0 | G41: 0 | H41: 0 | I41: 43122005300 | J41: 12 | K41: LB 6438 | L41: 3126 | M41: BETA OPERATING COMPANY, LLC | N41: BETA | O41: 0 | P41: S01 | Q41: 19811001 | R41: 891018481
A42: P00300 | B42: A040 | C42: 201501 | D42: 31 | E42: O | F42: 584 | G42: 0 | H42: 0 | I42: 43122005600 | J42: 8 | K42: LB 6438 | L42: 3126 | M42: BETA OPERATING COMPANY, LLC | N42: BETA | O42: 0 | P42: S01 | Q42: 19820201 | R42: 891018481
A43: P00300 | B43: A044 | C43: 201501 | D43: 30 | E43: S | F43: 0 | G43: 0 | H43: 0 | I43: 43122006800 | J43: 4 | K43: LB 6438 | L43: 3126 | M43: BETA OPERATING COMPANY, LLC | N43: BETA | O43: 4583 | P43: S01 | Q43: 20010430 | R43: 891018481
A44: P00300 | B44: A048 | C44: 201501 | D44: 31 | E44: S | F44: 0 | G44: 0 | H44: 0 | I44: 43122006700 | J44: 4 | K44: LB 6438 | L44: 3126 | M44: BETA OPERATING COMPANY, LLC | N44: BETA | O44: 12820 | P44: S01 | Q44: 19980430 | R44: 891018481
A45: P00300 | B45: A051 | C45: 201501 | D45: 31 | E45: O | F45: 642 | G45: 509 | H45: 0 | I45: 43122008201 | J45: 8 | K45: LB 6438 | L45: 3126 | M45: BETA OPERATING COMPANY, LLC | N45: BETA | O45: 0 | P45: S01 | Q45: 19970201 | R45: 891018481
A46: P00300 | B46: A052 | C46: 201501 | D46: 31 | E46: O | F46: 2043 | G46: 0 | H46: 895 | I46: 43122006900 | J46: 8 | K46: LB 6487 | L46: 3126 | M46: BETA OPERATING COMPANY, LLC | N46: BETA | O46: 0 | P46: S01 | Q46: 19820801 | R46: 891018481
A47: P00300 | B47: A054 | C47: 201501 | D47: 0 | E47: O | F47: 0 | G47: 0 | H47: 0 | I47: 43122007200 | J47: 12 | K47: LB 6438 | L47: 3126 | M47: BETA OPERATING COMPANY, LLC | N47: BETA | O47: 0 | P47: S01 | R47: 891018481
A48: P00300 | B48: A055 | C48: 201501 | D48: 31 | E48: O | F48: 963 | G48: 0 | H48: 26899 | I48: 43122008300 | J48: 8 | K48: LB 6438 | L48: 3126 | M48: BETA OPERATING COMPANY, LLC | N48: BETA | O48: 0 | P48: S01 | Q48: 19840201 | R48: 891018481
A49: P00300 | B49: A058 | C49: 201501 | D49: 31 | E49: O | F49: 1109 | G49: 0 | H49: 0 | I49: 43122007400 | J49: 8 | K49: LB 6438 | L49: 3126 | M49: BETA OPERATING COMPANY, LLC | N49: BETA | O49: 0 | P49: S02 | Q49: 19880701 | R49: 891018481
A50: P00300 | B50: A059 | C50: 201501 | D50: 31 | E50: O | F50: 3853 | G50: 658 | H50: 53870 | I50: 43122008600 | J50: 8 | K50: LB 6438 | L50: 3126 | M50: BETA OPERATING COMPANY, LLC | N50: BETA | O50: 0 | P50: S01 | Q50: 19840401 | R50: 891018481
A51: P00300 | B51: A063 | C51: 201501 | D51: 31 | E51: O | F51: 1284 | G51: 329 | H51: 3672 | I51: 43122009600 | J51: 8 | K51: LB 6438 | L51: 3126 | M51: BETA OPERATING COMPANY, LLC | N51: BETA | O51: 0 | P51: S01 | Q51: 19840901 | R51: 891018481
A52: P00300 | B52: A064 | C52: 201501 | D52: 0 | E52: S | F52: 0 | G52: 0 | H52: 0 | I52: 43122008500 | J52: 6 | K52: LB 6437 | L52: 3126 | M52: BETA OPERATING COMPANY, LLC | N52: BETA | O52: 0 | P52: S01 | R52: 891018481
A53: P00300 | B53: A065 | C53: 201501 | D53: 0 | E53: S | F53: 0 | G53: 0 | H53: 0 | I53: 43122009900 | J53: 4 | K53: LB 6438 | L53: 3126 | M53: BETA OPERATING COMPANY, LLC | N53: BETA | O53: 0 | P53: S01 | Q53: 19980430 | R53: 891018481
A54: P00300 | B54: A066 | C54: 201501 | D54: 19 | E54: S | F54: 0 | G54: 0 | H54: 0 | I54: 43122009400 | J54: 4 | K54: LB 6438 | L54: 3126 | M54: BETA OPERATING COMPANY, LLC | N54: BETA | O54: 3081 | P54: S01 | Q54: 19980430 | R54: 891018481
A55: P00300 | B55: A067 | C55: 201501 | D55: 19 | E55: S | F55: 0 | G55: 0 | H55: 0 | I55: 43122013300 | J55: 4 | K55: LB 6438 | L55: 3126 | M55: BETA OPERATING COMPANY, LLC | N55: BETA | O55: 20829 | P55: S01 | Q55: 19980430 | R55: 891018481
A56: P00300 | B56: A070 | C56: 201501 | D56: 0 | E56: S | F56: 0 | G56: 0 | H56: 0 | I56: 43122007801 | J56: 6 | K56: LB 6438 | L56: 3126 | M56: BETA OPERATING COMPANY, LLC | N56: BETA | O56: 0 | P56: S01 | Q56: 19870901 | R56: 891018481
A57: P00300 | B57: A073 | C57: 201501 | D57: 0 | E57: S | F57: 0 | G57: 0 | H57: 0 | I57: 43122015700 | J57: 5 | K57: LB 6438 | L57: 3126 | M57: BETA OPERATING COMPANY, LLC | N57: BETA | O57: 0 | P57: S01 | Q57: 19901001 | R57: 891018481
A58: P00300 | B58: A074 | C58: 201501 | D58: 31 | E58: O | F58: 1226 | G58: 0 | H58: 1423 | I58: 43122016200 | J58: 8 | K58: LB 6487 | L58: 3126 | M58: BETA OPERATING COMPANY, LLC | N58: BETA | O58: 0 | P58: S01 | Q58: 19950401 | R58: 891018481
A59: P00300 | B59: A076 | C59: 201501 | D59: 0 | E59: O | F59: 0 | G59: 0 | H59: 0 | I59: 43122016300 | J59: 12 | K59: LB 6438 | L59: 3126 | M59: BETA OPERATING COMPANY, LLC | N59: BETA | O59: 0 | P59: S01 | Q59: 19960601 | R59: 891018481
A60: P00301 | B60: A005 | C60: 201501 | D60: 0 | E60: S | F60: 0 | G60: 0 | H60: 0 | I60: 43122003000 | J60: 4 | K60: LB 6438 | L60: 3126 | M60: BETA OPERATING COMPANY, LLC | N60: BETA | O60: 0 | P60: S03 | Q60: 19880501 | R60: 891018481
A61: P00301 | B61: A007 | C61: 201501 | D61: 31 | E61: O | F61: 2802 | G61: 718 | H61: 2892 | I61: 43122003400 | J61: 8 | K61: LB 6438 | L61: 3126 | M61: BETA OPERATING COMPANY, LLC | N61: BETA | O61: 0 | P61: S02 | Q61: 19880301 | R61: 891018481
A62: P00301 | B62: A009 | C62: 201501 | D62: 31 | E62: O | F62: 1518 | G62: 120 | H62: 13174 | I62: 43122003600 | J62: 8 | K62: LB 6488 | L62: 3126 | M62: BETA OPERATING COMPANY, LLC | N62: BETA | O62: 0 | P62: S02 | Q62: 19860501 | R62: 891018481
A63: P00301 | B63: A014 | C63: 201501 | D63: 27 | E63: S | F63: 0 | G63: 0 | H63: 0 | I63: 43122003800 | J63: 4 | K63: LB 6488 | L63: 3126 | M63: BETA OPERATING COMPANY, LLC | N63: BETA | O63: 9192 | P63: S01 | Q63: 19980430 | R63: 891018481
A64: P00301 | B64: A015 | C64: 201501 | D64: 31 | E64: O | F64: 1051 | G64: 1167 | H64: 6013 | I64: 43122004001 | J64: 8 | K64: LB 6438 | L64: 3126 | M64: BETA OPERATING COMPANY, LLC | N64: BETA | O64: 0 | P64: S01 | Q64: 19901101 | R64: 891018481
A65: P00301 | B65: A017 | C65: 201501 | D65: 0 | E65: S | F65: 0 | G65: 0 | H65: 0 | I65: 43122004200 | J65: 4 | K65: LB 6438 | L65: 3126 | M65: BETA OPERATING COMPANY, LLC | N65: BETA | O65: 0 | P65: S01 | Q65: 19980430 | R65: 891018481
A66: P00301 | B66: A019 | C66: 201501 | D66: 0 | E66: S | F66: 0 | G66: 0 | H66: 0 | I66: 43122005100 | J66: 4 | K66: LB 6438 | L66: 3126 | M66: BETA OPERATING COMPANY, LLC | N66: BETA | O66: 0 | P66: S01 | Q66: 19980430 | R66: 891018481
A67: P00301 | B67: A021 | C67: 201501 | D67: 31 | E67: O | F67: 7705 | G67: 1047 | H67: 1561 | I67: 43122005200 | J67: 8 | K67: LB 6438 | L67: 3126 | M67: BETA OPERATING COMPANY, LLC | N67: BETA | O67: 0 | P67: S01 | Q67: 19820101 | R67: 891018481
A68: P00301 | B68: A023 | C68: 201501 | D68: 31 | E68: O | F68: 5750 | G68: 569 | H68: 7115 | I68: 43122005700 | J68: 8 | K68: LB 6438 | L68: 3126 | M68: BETA OPERATING COMPANY, LLC | N68: BETA | O68: 0 | P68: S02 | Q68: 19880201 | R68: 891018481
A69: P00301 | B69: A027 | C69: 201501 | D69: 31 | E69: O | F69: 2189 | G69: 209 | H69: 8630 | I69: 43122005900 | J69: 8 | K69: LB 6438 | L69: 3126 | M69: BETA OPERATING COMPANY, LLC | N69: BETA | O69: 0 | P69: S02 | Q69: 19860501 | R69: 891018481
A70: P00301 | B70: A033 | C70: 201501 | D70: 0 | E70: S | F70: 0 | G70: 0 | H70: 0 | I70: 43122006202 | J70: 4 | K70: LB 6488 | L70: 3126 | M70: BETA OPERATING COMPANY, LLC | N70: BETA | O70: 0 | P70: X01 | R70: 891018481
A71: P00301 | B71: A034 | C71: 201501 | D71: 0 | E71: O | F71: 0 | G71: 0 | H71: 0 | I71: 43122005001 | J71: 12 | K71: LB 6438 | L71: 3126 | M71: BETA OPERATING COMPANY, LLC | N71: BETA | O71: 0 | P71: S01 | Q71: 19970930 | R71: 891018481
A72: P00301 | B72: A037 | C72: 201501 | D72: 6 | E72: S | F72: 0 | G72: 0 | H72: 0 | I72: 43122006300 | J72: 4 | K72: LB 6488 | L72: 3126 | M72: BETA OPERATING COMPANY, LLC | N72: BETA | O72: 1664 | P72: S02 | Q72: 19980430 | R72: 891018481
A73: P00301 | B73: A038 | C73: 201501 | D73: 0 | E73: O | F73: 0 | G73: 0 | H73: 0 | I73: 43122005400 | J73: 12 | K73: LB 6438 | L73: 3126 | M73: BETA OPERATING COMPANY, LLC | N73: BETA | O73: 0 | P73: S02 | Q73: 19860801 | R73: 891018481
A74: P00301 | B74: A041 | C74: 201501 | D74: 0 | E74: S | F74: 0 | G74: 0 | H74: 0 | I74: 43122007000 | J74: 4 | K74: LB 6438 | L74: 3126 | M74: BETA OPERATING COMPANY, LLC | N74: BETA | O74: 0 | P74: S02 | Q74: 19980430 | R74: 891018481
A75: P00301 | B75: A042 | C75: 201501 | D75: 0 | E75: S | F75: 0 | G75: 0 | H75: 0 | I75: 43122006100 | J75: 4 | K75: LB 6488 | L75: 3126 | M75: BETA OPERATING COMPANY, LLC | N75: BETA | O75: 0 | P75: S02 | Q75: 19980430 | R75: 891018481
A76: P00301 | B76: A043 | C76: 201501 | D76: 31 | E76: O | F76: 1430 | G76: 389 | H76: 9204 | I76: 43122007100 | J76: 8 | K76: LB 6438 | L76: 3126 | M76: BETA OPERATING COMPANY, LLC | N76: BETA | O76: 0 | P76: S02 | Q76: 19880401 | R76: 891018481
A77: P00301 | B77: A045 | C77: 201501 | D77: 31 | E77: O | F77: 2773 | G77: 1047 | H77: 4459 | I77: 43122007901 | J77: 8 | K77: LB 6488 | L77: 3126 | M77: BETA OPERATING COMPANY, LLC | N77: BETA | O77: 0 | P77: S01 | Q77: 20140630 | R77: 891018481
A78: P00301 | B78: A047 | C78: 201501 | D78: 31 | E78: O | F78: 4115 | G78: 1496 | H78: 4935 | I78: 43122008100 | J78: 8 | K78: LB 6438 | L78: 3126 | M78: BETA OPERATING COMPANY, LLC | N78: BETA | O78: 0 | P78: S02 | Q78: 19860701 | R78: 891018481
A79: P00301 | B79: A049 | C79: 201501 | D79: 31 | E79: O | F79: 16957 | G79: 4340 | H79: 17810 | I79: 43122007701 | J79: 8 | K79: LB 6488 | L79: 3126 | M79: BETA OPERATING COMPANY, LLC | N79: BETA | O79: 0 | P79: S01 | Q79: 20140920 | R79: 891018481
A80: P00301 | B80: A050 | C80: 201501 | D80: 0 | E80: G | F80: 0 | G80: 0 | H80: 0 | I80: 43122006500 | J80: 13 | K80: LB 6488 | L80: 3126 | M80: BETA OPERATING COMPANY, LLC | N80: BETA | O80: 0 | P80: S01 | Q80: 19881001 | R80: 891018481
A81: P00301 | B81: A056 | C81: 201501 | D81: 31 | E81: O | F81: 7822 | G81: 898 | H81: 12027 | I81: 43122007300 | J81: 8 | K81: LB 6488 | L81: 3126 | M81: BETA OPERATING COMPANY, LLC | N81: BETA | O81: 0 | P81: S02 | Q81: 19860201 | R81: 891018481
A82: P00301 | B82: A057 | C82: 201501 | D82: 31 | E82: O | F82: 1926 | G82: 1227 | H82: 4223 | I82: 43122009200 | J82: 8 | K82: LB 6438 | L82: 3126 | M82: BETA OPERATING COMPANY, LLC | N82: BETA | O82: 0 | P82: S01 | Q82: 19840901 | R82: 891018481
A83: P00301 | B83: A061 | C83: 201501 | D83: 0 | E83: S | F83: 0 | G83: 0 | H83: 0 | I83: 43122008900 | J83: 4 | K83: LB 6438 | L83: 3126 | M83: BETA OPERATING COMPANY, LLC | N83: BETA | O83: 0 | P83: S01 | R83: 891018481
A84: P00301 | B84: A071 | C84: 201501 | D84: 0 | E84: S | F84: 0 | G84: 0 | H84: 0 | I84: 43122008002 | J84: 4 | K84: LB 6438 | L84: 3126 | M84: BETA OPERATING COMPANY, LLC | N84: BETA | O84: 0 | P84: S01 | Q84: 19980430 | R84: 891018481
A85: P00301 | B85: C001 | C85: 201501 | D85: 31 | E85: O | F85: 7607 | G85: 1950 | H85: 2571 | I85: 43122010400 | J85: 8 | K85: LB 6488 | L85: 3126 | M85: BETA OPERATING COMPANY, LLC | N85: BETA | O85: 0 | P85: S01 | Q85: 19850301 | R85: 891018481
A86: P00301 | B86: C002 | C86: 201501 | D86: 31 | E86: S | F86: 0 | G86: 0 | H86: 0 | I86: 43122010600 | J86: 4 | K86: LB 6488 | L86: 3126 | M86: BETA OPERATING COMPANY, LLC | N86: BETA | O86: 18926 | P86: S01 | Q86: 19980430 | R86: 891018481
A87: P00301 | B87: C003 | C87: 201501 | D87: 0 | E87: S | F87: 0 | G87: 0 | H87: 0 | I87: 43122010800 | J87: 4 | K87: LB 6488 | L87: 3126 | M87: BETA OPERATING COMPANY, LLC | N87: BETA | O87: 0 | P87: S01 | Q87: 19980430 | R87: 891018481
A88: P00301 | B88: C004 | C88: 201501 | D88: 31 | E88: O | F88: 1423 | G88: 365 | H88: 15686 | I88: 43122010700 | J88: 8 | K88: LB 6488 | L88: 3126 | M88: BETA OPERATING COMPANY, LLC | N88: BETA | O88: 0 | P88: S02 | Q88: 19860701 | R88: 891018481
A89: P00301 | B89: C005 | C89: 201501 | D89: 31 | E89: O | F89: 3035 | G89: 778 | H89: 4512 | I89: 43122011300 | J89: 8 | K89: LB 6488 | L89: 3126 | M89: BETA OPERATING COMPANY, LLC | N89: BETA | O89: 0 | P89: S01 | Q89: 19850501 | R89: 891018481
A90: P00301 | B90: C006 | C90: 201501 | D90: 31 | E90: O | F90: 3073 | G90: 788 | H90: 16892 | I90: 43122011200 | J90: 8 | K90: LB 6488 | L90: 3126 | M90: BETA OPERATING COMPANY, LLC | N90: BETA | O90: 0 | P90: S01 | Q90: 19850501 | R90: 891018481
A91: P00301 | B91: C007 | C91: 201501 | D91: 31 | E91: S | F91: 0 | G91: 0 | H91: 0 | I91: 43122011100 | J91: 4 | K91: LB 6488 | L91: 3126 | M91: BETA OPERATING COMPANY, LLC | N91: BETA | O91: 30560 | P91: S01 | Q91: 19980430 | R91: 891018481
A92: P00301 | B92: C008 | C92: 201501 | D92: 31 | E92: O | F92: 1745 | G92: 447 | H92: 21561 | I92: 43122011600 | J92: 8 | K92: LB 6488 | L92: 3126 | M92: BETA OPERATING COMPANY, LLC | N92: BETA | O92: 0 | P92: S01 | Q92: 19850701 | R92: 891018481
A93: P00301 | B93: C009 | C93: 201501 | D93: 31 | E93: O | F93: 2258 | G93: 579 | H93: 5797 | I93: 43122011700 | J93: 8 | K93: LB 6488 | L93: 3126 | M93: BETA OPERATING COMPANY, LLC | N93: BETA | O93: 0 | P93: S01 | Q93: 19860101 | R93: 891018481
A94: P00301 | B94: C010 | C94: 201501 | D94: 31 | E94: S | F94: 0 | G94: 0 | H94: 0 | I94: 43122012000 | J94: 4 | K94: LB 6488 | L94: 3126 | M94: BETA OPERATING COMPANY, LLC | N94: BETA | O94: 32302 | P94: S01 | Q94: 19870401 | R94: 891018481
A95: P00301 | B95: C011 | C95: 201501 | D95: 31 | E95: O | F95: 4705 | G95: 1206 | H95: 17574 | I95: 43122012500 | J95: 8 | K95: LB 6488 | L95: 3126 | M95: BETA OPERATING COMPANY, LLC | N95: BETA | O95: 0 | P95: S01 | Q95: 19850901 | R95: 891018481
A96: P00301 | B96: C012 | C96: 201501 | D96: 31 | E96: S | F96: 0 | G96: 0 | H96: 0 | I96: 43122012600 | J96: 4 | K96: LB 6488 | L96: 3126 | M96: BETA OPERATING COMPANY, LLC | N96: BETA | O96: 23152 | P96: S01 | Q96: 19980430 | R96: 891018481
A97: P00301 | B97: C013 | C97: 201501 | D97: 31 | E97: O | F97: 930 | G97: 238 | H97: 12905 | I97: 43122012400 | J97: 8 | K97: LB 6488 | L97: 3126 | M97: BETA OPERATING COMPANY, LLC | N97: BETA | O97: 0 | P97: S01 | Q97: 19880601 | R97: 891018481
A98: P00301 | B98: C014 | C98: 201501 | D98: 31 | E98: S | F98: 0 | G98: 0 | H98: 0 | I98: 43122011900 | J98: 4 | K98: LB 6488 | L98: 3126 | M98: BETA OPERATING COMPANY, LLC | N98: BETA | O98: 10829 | P98: S01 | Q98: 19980430 | R98: 891018481
A99: P00301 | B99: C016 | C99: 201501 | D99: 31 | E99: O | F99: 1423 | G99: 365 | H99: 14112 | I99: 43122012200 | J99: 8 | K99: LB 6488 | L99: 3126 | M99: BETA OPERATING COMPANY, LLC | N99: BETA | O99: 0 | P99: S01 | Q99: 19850901 | R99: 891018481
A100: P00301 | B100: C017 | C100: 201501 | D100: 31 | E100: S | F100: 0 | G100: 0 | H100: 0 | I100: 43122013500 | J100: 4 | K100: LB 6488 | L100: 3126 | M100: BETA OPERATING COMPANY, LLC | N100: BETA | O100: 33785 | P100: S01 | Q100: 19980430 | R100: 891018481
A101: P00301 | B101: C018 | C101: 201501 | D101: 31 | E101: O | F101: 1821 | G101: 467 | H101: 14112 | I101: 43122012800 | J101: 8 | K101: LB 6488 | L101: 3126 | M101: BETA OPERATING COMPANY, LLC | N101: BETA | O101: 0 | P101: S01 | Q101: 19860201 | R101: 891018481
A102: P00301 | B102: C019 | C102: 201501 | D102: 31 | E102: O | F102: 2485 | G102: 637 | H102: 18046 | I102: 43122013600 | J102: 8 | K102: LB 6488 | L102: 3126 | M102: BETA OPERATING COMPANY, LLC | N102: BETA | O102: 0 | P102: S01 | Q102: 19860601 | R102: 891018481
A103: P00301 | B103: C020 | C103: 201501 | D103: 31 | E103: O | F103: 2447 | G103: 627 | H103: 8315 | I103: 43122013100 | J103: 8 | K103: LB 6488 | L103: 3126 | M103: BETA OPERATING COMPANY, LLC | N103: BETA | O103: 0 | P103: S01 | Q103: 19860401 | R103: 891018481
A104: P00301 | B104: C021 | C104: 201501 | D104: 31 | E104: S | F104: 0 | G104: 0 | H104: 0 | I104: 43122012701 | J104: 4 | K104: LB 6488 | L104: 3126 | M104: BETA OPERATING COMPANY, LLC | N104: BETA | O104: 20769 | P104: S01 | Q104: 19980430 | R104: 891018481
A105: P00301 | B105: C022 | C105: 201501 | D105: 31 | E105: O | F105: 3586 | G105: 919 | H105: 4695 | I105: 43122013000 | J105: 8 | K105: LB 6488 | L105: 3126 | M105: BETA OPERATING COMPANY, LLC | N105: BETA | O105: 0 | P105: S01 | Q105: 19860201 | R105: 891018481
A106: P00301 | B106: C023 | C106: 201501 | D106: 31 | E106: O | F106: 2542 | G106: 652 | H106: 1469 | I106: 43122014200 | J106: 8 | K106: LB 6488 | L106: 3126 | M106: BETA OPERATING COMPANY, LLC | N106: BETA | O106: 0 | P106: S01 | Q106: 19861101 | R106: 891018481
A107: P00301 | B107: C024 | C107: 201501 | D107: 31 | E107: O | F107: 1575 | G107: 404 | H107: 3279 | I107: 43122013201 | J107: 8 | K107: LB 6488 | L107: 3126 | M107: BETA OPERATING COMPANY, LLC | N107: BETA | O107: 0 | P107: S01 | Q107: 19970731 | R107: 891018481
A108: P00301 | B108: C025 | C108: 201501 | D108: 31 | E108: S | F108: 0 | G108: 0 | H108: 0 | I108: 43122014100 | J108: 4 | K108: LB 6488 | L108: 3126 | M108: BETA OPERATING COMPANY, LLC | N108: BETA | O108: 38125 | P108: S01 | Q108: 19980430 | R108: 891018481
A109: P00301 | B109: C026 | C109: 201501 | D109: 31 | E109: S | F109: 0 | G109: 0 | H109: 0 | I109: 43122012900 | J109: 4 | K109: LB 6488 | L109: 3126 | M109: BETA OPERATING COMPANY, LLC | N109: BETA | O109: 45258 | P109: S01 | Q109: 19980430 | R109: 891018481
A110: P00301 | B110: C027 | C110: 201501 | D110: 31 | E110: O | F110: 2675 | G110: 686 | H110: 11725 | I110: 43122014300 | J110: 8 | K110: LB 6488 | L110: 3126 | M110: BETA OPERATING COMPANY, LLC | N110: BETA | O110: 0 | P110: S01 | Q110: 19861201 | R110: 891018481
A111: P00301 | B111: C028 | C111: 201501 | D111: 31 | E111: S | F111: 0 | G111: 0 | H111: 0 | I111: 43122013400 | J111: 4 | K111: LB 6488 | L111: 3126 | M111: BETA OPERATING COMPANY, LLC | N111: BETA | O111: 26661 | P111: S01 | Q111: 19980430 | R111: 891018481
A112: P00301 | B112: C029 | C112: 201501 | D112: 31 | E112: S | F112: 0 | G112: 0 | H112: 0 | I112: 43122015000 | J112: 4 | K112: LB 6488 | L112: 3126 | M112: BETA OPERATING COMPANY, LLC | N112: BETA | O112: 6625 | P112: S01 | Q112: 19980430 | R112: 891018481
A113: P00301 | B113: C030 | C113: 201501 | D113: 31 | E113: O | F113: 2922 | G113: 749 | H113: 6872 | I113: 43122013700 | J113: 8 | K113: LB 6488 | L113: 3126 | M113: BETA OPERATING COMPANY, LLC | N113: BETA | O113: 0 | P113: S02 | Q113: 19910501 | R113: 891018481
A114: P00301 | B114: C031 | C114: 201501 | D114: 31 | E114: S | F114: 0 | G114: 0 | H114: 0 | I114: 43122015300 | J114: 4 | K114: LB 6488 | L114: 3126 | M114: BETA OPERATING COMPANY, LLC | N114: BETA | O114: 36680 | P114: S01 | Q114: 19980430 | R114: 891018481
A115: P00301 | B115: C032 | C115: 201501 | D115: 31 | E115: S | F115: 0 | G115: 0 | H115: 0 | I115: 43122013900 | J115: 4 | K115: LB 6488 | L115: 3126 | M115: BETA OPERATING COMPANY, LLC | N115: BETA | O115: 30741 | P115: S01 | Q115: 19980430 | R115: 891018481
A116: P00301 | B116: C033 | C116: 201501 | D116: 31 | E116: O | F116: 1252 | G116: 321 | H116: 9154 | I116: 43122015400 | J116: 8 | K116: LB 6488 | L116: 3126 | M116: BETA OPERATING COMPANY, LLC | N116: BETA | O116: 0 | P116: S01 | Q116: 19871101 | R116: 891018481
A117: P00301 | B117: C034 | C117: 201501 | D117: 31 | E117: O | F117: 4781 | G117: 1226 | H117: 12827 | I117: 43122013800 | J117: 8 | K117: LB 6488 | L117: 3126 | M117: BETA OPERATING COMPANY, LLC | N117: BETA | O117: 0 | P117: S01 | Q117: 19860901 | R117: 891018481
A118: P00301 | B118: C035 | C118: 201501 | D118: 31 | E118: O | F118: 1195 | G118: 306 | H118: 14846 | I118: 43122015200 | J118: 8 | K118: LB 6488 | L118: 3126 | M118: BETA OPERATING COMPANY, LLC | N118: BETA | O118: 0 | P118: S01 | Q118: 19870401 | R118: 891018481
A119: P00301 | B119: C036 | C119: 201501 | D119: 31 | E119: O | F119: 6223 | G119: 1595 | H119: 11463 | I119: 43122014400 | J119: 8 | K119: LB 6488 | L119: 3126 | M119: BETA OPERATING COMPANY, LLC | N119: BETA | O119: 0 | P119: S01 | Q119: 19870201 | R119: 891018481
A120: P00301 | B120: C038 | C120: 201501 | D120: 31 | E120: O | F120: 1878 | G120: 481 | H120: 9810 | I120: 43122014000 | J120: 8 | K120: LB 6488 | L120: 3126 | M120: BETA OPERATING COMPANY, LLC | N120: BETA | O120: 0 | P120: S01 | Q120: 19860901 | R120: 891018481
A121: P00301 | B121: C042 | C121: 201501 | D121: 31 | E121: O | F121: 3206 | G121: 822 | H121: 14794 | I121: 43122014500 | J121: 8 | K121: LB 6488 | L121: 3126 | M121: BETA OPERATING COMPANY, LLC | N121: BETA | O121: 0 | P121: S01 | Q121: 19870601 | R121: 891018481
A122: P00301 | B122: C044 | C122: 201501 | D122: 31 | E122: O | F122: 1442 | G122: 370 | H122: 2728 | I122: 43122014900 | J122: 8 | K122: LB 6488 | L122: 3126 | M122: BETA OPERATING COMPANY, LLC | N122: BETA | O122: 0 | P122: S01 | Q122: 19870301 | R122: 891018481
A123: P00301 | B123: C046 | C123: 201501 | D123: 0 | E123: S | F123: 0 | G123: 0 | H123: 0 | I123: 43122014700 | J123: 4 | K123: LB 6488 | L123: 3126 | M123: BETA OPERATING COMPANY, LLC | N123: BETA | O123: 0 | P123: S01 | Q123: 19921001 | R123: 891018481
A124: P00301 | B124: C048 | C124: 201501 | D124: 0 | E124: S | F124: 0 | G124: 0 | H124: 0 | I124: 43122014800 | J124: 4 | K124: LB 6488 | L124: 3126 | M124: BETA OPERATING COMPANY, LLC | N124: BETA | O124: 0 | P124: S01 | Q124: 19910401 | R124: 891018481
A125: P00301 | B125: C050 | C125: 201501 | D125: 31 | E125: O | F125: 2884 | G125: 739 | H125: 2859 | I125: 43122015100 | J125: 8 | K125: LB 6488 | L125: 3126 | M125: BETA OPERATING COMPANY, LLC | N125: BETA | O125: 0 | P125: S01 | Q125: 19870501 | R125: 891018481
A126: P00301 | B126: C052 | C126: 201501 | D126: 31 | E126: O | F126: 1385 | G126: 355 | H126: 10833 | I126: 43122015500 | J126: 8 | K126: LB 6488 | L126: 3126 | M126: BETA OPERATING COMPANY, LLC | N126: BETA | O126: 0 | P126: S01 | Q126: 19871001 | R126: 891018481
A127: P00301 | B127: C053 | C127: 201501 | D127: 31 | E127: O | F127: 2542 | G127: 652 | H127: 5010 | I127: 43122015600 | J127: 8 | K127: LB 6488 | L127: 3126 | M127: BETA OPERATING COMPANY, LLC | N127: BETA | O127: 0 | P127: S01 | Q127: 19910801 | R127: 891018481
A128: P00301 | B128: C054 | C128: 201501 | D128: 0 | E128: O | F128: 0 | G128: 0 | H128: 0 | I128: 43122015800 | J128: 12 | K128: LB 6439 | L128: 3126 | M128: BETA OPERATING COMPANY, LLC | N128: BETA | O128: 0 | P128: S01 | Q128: 19930601 | R128: 891018481
A129: P00301 | B129: C055 | C129: 201501 | D129: 0 | E129: O | F129: 0 | G129: 0 | H129: 0 | I129: 43122015900 | J129: 12 | K129: LB 6488 | L129: 3126 | M129: BETA OPERATING COMPANY, LLC | N129: BETA | O129: 0 | P129: S01 | Q129: 19930601 | R129: 891018481
A130: P00301 | B130: C056 | C130: 201501 | D130: 31 | E130: O | F130: 5160 | G130: 1323 | H130: 16971 | I130: 43122016000 | J130: 8 | K130: LB 6438 | L130: 3126 | M130: BETA OPERATING COMPANY, LLC | N130: BETA | O130: 0 | P130: S01 | Q130: 19940101 | R130: 891018481
A131: P00301 | B131: C057 | C131: 201501 | D131: 0 | E131: O | F131: 0 | G131: 0 | H131: 0 | I131: 43122016100 | J131: 12 | K131: LB 6488 | L131: 3126 | M131: BETA OPERATING COMPANY, LLC | N131: BETA | O131: 0 | P131: S01 | Q131: 19951019 | R131: 891018481
A132: P00301 | B132: C059 | C132: 201501 | D132: 31 | E132: O | F132: 892 | G132: 229 | H132: 12197 | I132: 43122016400 | J132: 8 | K132: LB 6488 | L132: 3126 | M132: BETA OPERATING COMPANY, LLC | N132: BETA | O132: 0 | P132: S01 | Q132: 19960401 | R132: 891018481
A133: P00301 | B133: C060 | C133: 201501 | D133: 31 | E133: O | F133: 2808 | G133: 720 | H133: 3279 | I133: 43122016500 | J133: 8 | K133: LB 6488 | L133: 3126 | M133: BETA OPERATING COMPANY, LLC | N133: BETA | O133: 0 | P133: S01 | Q133: 19960401 | R133: 891018481
A134: P00301 | B134: C061 | C134: 201501 | D134: 31 | E134: O | F134: 739 | G134: 191 | H134: 9077 | I134: 43122016601 | J134: 8 | K134: LB 6488 | L134: 3126 | M134: BETA OPERATING COMPANY, LLC | N134: BETA | O134: 0 | P134: S01 | Q134: 19970703 | R134: 891018481
A135: P00296 | B135: B002 | C135: 201502 | D135: 27 | E135: O | F135: 1253 | G135: 379 | H135: 851 | I135: 43122008700 | J135: 8 | K135: LB 6437 | L135: 2531 | M135: DCOR, L.L.C. | N135: BETA | O135: 0 | P135: S01 | Q135: 19840101 | R135: 891018481
A136: P00296 | B136: B003 | C136: 201502 | D136: 27 | E136: O | F136: 544 | G136: 164 | H136: 9 | I136: 43122008800 | J136: 8 | K136: LB 6437 | L136: 2531 | M136: DCOR, L.L.C. | N136: BETA | O136: 0 | P136: S01 | Q136: 19840201 | R136: 891018481
A137: P00296 | B137: B004 | C137: 201502 | D137: 27 | E137: O | F137: 1506 | G137: 456 | H137: 214 | I137: 43122009000 | J137: 8 | K137: LB 6437 | L137: 2531 | M137: DCOR, L.L.C. | N137: BETA | O137: 0 | P137: S01 | Q137: 19840301 | R137: 891018481
A138: P00296 | B138: B005 | C138: 201502 | D138: 27 | E138: O | F138: 910 | G138: 274 | H138: 7852 | I138: 43122009100 | J138: 8 | K138: LB 6438 | L138: 2531 | M138: DCOR, L.L.C. | N138: BETA | O138: 0 | P138: S01 | Q138: 19840401 | R138: 891018481
A139: P00296 | B139: B006 | C139: 201502 | D139: 27 | E139: O | F139: 760 | G139: 229 | H139: 8423 | I139: 43122009300 | J139: 8 | K139: LB 6438 | L139: 2531 | M139: DCOR, L.L.C. | N139: BETA | O139: 0 | P139: S01 | Q139: 19840701 | R139: 891018481
A140: P00296 | B140: B007 | C140: 201502 | D140: 27 | E140: O | F140: 1029 | G140: 310 | H140: 504 | I140: 43122009500 | J140: 8 | K140: LB 6438 | L140: 2531 | M140: DCOR, L.L.C. | N140: BETA | O140: 0 | P140: S01 | Q140: 19840801 | R140: 891018481
A141: P00296 | B141: B008 | C141: 201502 | D141: 27 | E141: O | F141: 587 | G141: 177 | H141: 211 | I141: 43122009700 | J141: 8 | K141: LB 6438 | L141: 2531 | M141: DCOR, L.L.C. | N141: BETA | O141: 0 | P141: S01 | Q141: 19840901 | R141: 891018481
A142: P00296 | B142: B009 | C142: 201502 | D142: 27 | E142: O | F142: 1263 | G142: 381 | H142: 116 | I142: 43122009800 | J142: 8 | K142: LB 6438 | L142: 2531 | M142: DCOR, L.L.C. | N142: BETA | O142: 0 | P142: S01 | Q142: 19840901 | R142: 891018481
A143: P00296 | B143: B010 | C143: 201502 | D143: 0 | E143: O | F143: 0 | G143: 0 | H143: 0 | I143: 43122010000 | J143: 12 | K143: LB 6437 | L143: 2531 | M143: DCOR, L.L.C. | N143: BETA | O143: 0 | P143: S01 | Q143: 19841001 | R143: 891018481
A144: P00296 | B144: B011 | C144: 201502 | D144: 0 | E144: O | F144: 0 | G144: 0 | H144: 0 | I144: 43122010100 | J144: 12 | K144: LB 6438 | L144: 2531 | M144: DCOR, L.L.C. | N144: BETA | O144: 0 | P144: S01 | Q144: 19841101 | R144: 891018481
A145: P00296 | B145: B012 | C145: 201502 | D145: 27 | E145: O | F145: 1178 | G145: 355 | H145: 46 | I145: 43122010200 | J145: 8 | K145: LB 6438 | L145: 2531 | M145: DCOR, L.L.C. | N145: BETA | O145: 0 | P145: S01 | Q145: 19841201 | R145: 891018481
A146: P00296 | B146: B013 | C146: 201502 | D146: 27 | E146: S | F146: 0 | G146: 0 | H146: 0 | I146: 43122010300 | J146: 4 | K146: LB 6437 | L146: 2531 | M146: DCOR, L.L.C. | N146: BETA | O146: 9592 | P146: S01 | Q146: 19850101 | R146: 891018481
A147: P00296 | B147: B014 | C147: 201502 | D147: 27 | E147: O | F147: 664 | G147: 200 | H147: 13 | I147: 43122010500 | J147: 8 | K147: LB 6438 | L147: 2531 | M147: DCOR, L.L.C. | N147: BETA | O147: 0 | P147: S01 | Q147: 19850201 | R147: 891018481
A148: P00296 | B148: B015 | C148: 201502 | D148: 27 | E148: S | F148: 0 | G148: 0 | H148: 0 | I148: 43122010900 | J148: 4 | K148: LB 6438 | L148: 2531 | M148: DCOR, L.L.C. | N148: BETA | O148: 21748 | P148: S01 | Q148: 19850301 | R148: 891018481
A149: P00296 | B149: B016 | C149: 201502 | D149: 0 | E149: U | F149: 0 | G149: 0 | H149: 0 | I149: 43122011000 | J149: 14 | K149: LB 6437 | L149: 2531 | M149: DCOR, L.L.C. | N149: BETA | O149: 0 | P149: X01
A150: P00296 | B150: B017 | C150: 201502 | D150: 27 | E150: O | F150: 355 | G150: 106 | H150: 6 | I150: 43122011400 | J150: 8 | K150: LB 6437 | L150: 2531 | M150: DCOR, L.L.C. | N150: BETA | O150: 0 | P150: S01 | Q150: 19850401 | R150: 891018481
A151: P00296 | B151: B018 | C151: 201502 | D151: 27 | E151: O | F151: 285 | G151: 86 | H151: 9 | I151: 43122011500 | J151: 8 | K151: LB 6438 | L151: 2531 | M151: DCOR, L.L.C. | N151: BETA | O151: 0 | P151: S01 | Q151: 19850501 | R151: 891018481
A152: P00296 | B152: B019 | C152: 201502 | D152: 0 | E152: U | F152: 0 | G152: 0 | H152: 0 | I152: 43122008401 | J152: 14 | K152: LB 6437 | L152: 2531 | M152: DCOR, L.L.C. | N152: BETA | O152: 0 | P152: X01
A153: P00296 | B153: B020 | C153: 201502 | D153: 27 | E153: O | F153: 1319 | G153: 398 | H153: 192 | I153: 43122011800 | J153: 8 | K153: LB 6437 | L153: 2531 | M153: DCOR, L.L.C. | N153: BETA | O153: 0 | P153: S01 | Q153: 19850701 | R153: 891018481
A154: P00296 | B154: B023 | C154: 201502 | D154: 27 | E154: O | F154: 566 | G154: 171 | H154: 13629 | I154: 43122012300 | J154: 8 | K154: LB 6438 | L154: 2531 | M154: DCOR, L.L.C. | N154: BETA | O154: 0 | P154: S01 | Q154: 19850801 | R154: 891018481
A155: P00300 | B155: A001 | C155: 201502 | D155: 28 | E155: O | F155: 2433 | G155: 947 | H155: 9542 | I155: 43122002500 | J155: 8 | K155: LB 6438 | L155: 3126 | M155: BETA OPERATING COMPANY, LLC | N155: BETA | O155: 0 | P155: S02 | Q155: 19840101 | R155: 891018481
A156: P00300 | B156: A002 | C156: 201502 | D156: 25 | E156: S | F156: 0 | G156: 0 | H156: 0 | I156: 43122002600 | J156: 4 | K156: LB 6438 | L156: 3126 | M156: BETA OPERATING COMPANY, LLC | N156: BETA | O156: 3548 | P156: S01 | Q156: 19980430 | R156: 891018481
A157: P00300 | B157: A003 | C157: 201502 | D157: 0 | E157: S | F157: 0 | G157: 0 | H157: 0 | I157: 43122002700 | J157: 4 | K157: LB 6438 | L157: 3126 | M157: BETA OPERATING COMPANY, LLC | N157: BETA | O157: 0 | P157: S01 | Q157: 19990630 | R157: 891018481
A158: P00300 | B158: A012 | C158: 201502 | D158: 0 | E158: S | F158: 0 | G158: 0 | H158: 0 | I158: 43122003300 | J158: 4 | K158: LB 6438 | L158: 3126 | M158: BETA OPERATING COMPANY, LLC | N158: BETA | O158: 0 | P158: S01 | Q158: 19980430 | R158: 891018481
A159: P00300 | B159: A013 | C159: 201502 | D159: 28 | E159: O | F159: 906 | G159: 0 | H159: 5666 | I159: 43122004100 | J159: 8 | K159: LB 6438 | L159: 3126 | M159: BETA OPERATING COMPANY, LLC | N159: BETA | O159: 0 | P159: S01 | Q159: 19810901 | R159: 891018481
A160: P00300 | B160: A016 | C160: 201502 | D160: 0 | E160: S | F160: 0 | G160: 0 | H160: 0 | I160: 43122005500 | J160: 6 | K160: LB 6438 | L160: 3126 | M160: BETA OPERATING COMPANY, LLC | N160: BETA | O160: 0 | P160: S01 | Q160: 19980331 | R160: 891018481
A161: P00300 | B161: A018 | C161: 201502 | D161: 0 | E161: S | F161: 0 | G161: 0 | H161: 0 | I161: 43122003500 | J161: 4 | K161: LB 6438 | L161: 3126 | M161: BETA OPERATING COMPANY, LLC | N161: BETA | O161: 0 | P161: S01 | Q161: 19980430 | R161: 891018481
A162: P00300 | B162: A020 | C162: 201502 | D162: 28 | E162: O | F162: 570 | G162: 0 | H162: 0 | I162: 43122003900 | J162: 8 | K162: LB 6438 | L162: 3126 | M162: BETA OPERATING COMPANY, LLC | N162: BETA | O162: 0 | P162: S01 | Q162: 19820401 | R162: 891018481
A163: P00300 | B163: A022 | C163: 201502 | D163: 26 | E163: S | F163: 0 | G163: 0 | H163: 0 | I163: 43122004300 | J163: 4 | K163: LB 6438 | L163: 3126 | M163: BETA OPERATING COMPANY, LLC | N163: BETA | O163: 2380 | P163: S01 | Q163: 19980324 | R163: 891018481
A164: P00300 | B164: A024 | C164: 201502 | D164: 28 | E164: O | F164: 1864 | G164: 178 | H164: 2496 | I164: 43122004400 | J164: 8 | K164: LB 6438 | L164: 3126 | M164: BETA OPERATING COMPANY, LLC | N164: BETA | O164: 0 | P164: S01 | Q164: 19810801 | R164: 891018481
A165: P00300 | B165: A025 | C165: 201502 | D165: 0 | E165: O | F165: 0 | G165: 0 | H165: 0 | I165: 43122005801 | J165: 12 | K165: LB 6438 | L165: 3126 | M165: BETA OPERATING COMPANY, LLC | N165: BETA | O165: 0 | P165: S01 | Q165: 19960901 | R165: 891018481
A166: P00300 | B166: A026 | C166: 201502 | D166: 11 | E166: S | F166: 0 | G166: 0 | H166: 0 | I166: 43122002901 | J166: 4 | K166: LB 6488 | L166: 3126 | M166: BETA OPERATING COMPANY, LLC | N166: BETA | O166: 3096 | P166: S01 | Q166: 19980430 | R166: 891018481
A167: P00300 | B167: A028 | C167: 201502 | D167: 28 | E167: O | F167: 544 | G167: 0 | H167: 657 | I167: 43122004700 | J167: 8 | K167: LB 6438 | L167: 3126 | M167: BETA OPERATING COMPANY, LLC | N167: BETA | O167: 0 | P167: S01 | Q167: 19820901 | R167: 891018481
A168: P00300 | B168: A030 | C168: 201502 | D168: 28 | E168: O | F168: 2666 | G168: 237 | H168: 5453 | I168: 43122004800 | J168: 8 | K168: LB 6438 | L168: 3126 | M168: BETA OPERATING COMPANY, LLC | N168: BETA | O168: 0 | P168: S01 | Q168: 19810701 | R168: 891018481
A169: P00300 | B169: A031 | C169: 201502 | D169: 0 | E169: O | F169: 0 | G169: 0 | H169: 0 | I169: 43122006002 | J169: 12 | K169: LB 6438 | L169: 3126 | M169: BETA OPERATING COMPANY, LLC | N169: BETA | O169: 0 | P169: S01 | Q169: 19820901 | R169: 891018481
A170: P00300 | B170: A032 | C170: 201502 | D170: 0 | E170: O | F170: 0 | G170: 0 | H170: 0 | I170: 43122004900 | J170: 12 | K170: LB 6438 | L170: 3126 | M170: BETA OPERATING COMPANY, LLC | N170: BETA | O170: 0 | P170: S01 | Q170: 19820901 | R170: 891018481
A171: P00300 | B171: A035 | C171: 201502 | D171: 22 | E171: S | F171: 0 | G171: 0 | H171: 0 | I171: 43122006400 | J171: 4 | K171: LB 6438 | L171: 3126 | M171: BETA OPERATING COMPANY, LLC | N171: BETA | O171: 4729 | P171: S01 | Q171: 19980430 | R171: 891018481
A172: P00300 | B172: A036 | C172: 201502 | D172: 0 | E172: O | F172: 0 | G172: 0 | H172: 0 | I172: 43122005300 | J172: 12 | K172: LB 6438 | L172: 3126 | M172: BETA OPERATING COMPANY, LLC | N172: BETA | O172: 0 | P172: S01 | Q172: 19811001 | R172: 891018481
A173: P00300 | B173: A040 | C173: 201502 | D173: 16 | E173: O | F173: 459 | G173: 0 | H173: 0 | I173: 43122005600 | J173: 8 | K173: LB 6438 | L173: 3126 | M173: BETA OPERATING COMPANY, LLC | N173: BETA | O173: 0 | P173: S01 | Q173: 19820201 | R173: 891018481
A174: P00300 | B174: A044 | C174: 201502 | D174: 28 | E174: S | F174: 0 | G174: 0 | H174: 0 | I174: 43122006800 | J174: 4 | K174: LB 6438 | L174: 3126 | M174: BETA OPERATING COMPANY, LLC | N174: BETA | O174: 1800 | P174: S01 | Q174: 20010430 | R174: 891018481
A175: P00300 | B175: A048 | C175: 201502 | D175: 28 | E175: S | F175: 0 | G175: 0 | H175: 0 | I175: 43122006700 | J175: 4 | K175: LB 6438 | L175: 3126 | M175: BETA OPERATING COMPANY, LLC | N175: BETA | O175: 8293 | P175: S01 | Q175: 19980430 | R175: 891018481
A176: P00300 | B176: A051 | C176: 201502 | D176: 28 | E176: O | F176: 1061 | G176: 0 | H176: 0 | I176: 43122008201 | J176: 8 | K176: LB 6438 | L176: 3126 | M176: BETA OPERATING COMPANY, LLC | N176: BETA | O176: 0 | P176: S01 | Q176: 19970201 | R176: 891018481
A177: P00300 | B177: A052 | C177: 201502 | D177: 28 | E177: O | F177: 1812 | G177: 0 | H177: 641 | I177: 43122006900 | J177: 8 | K177: LB 6487 | L177: 3126 | M177: BETA OPERATING COMPANY, LLC | N177: BETA | O177: 0 | P177: S01 | Q177: 19820801 | R177: 891018481
A178: P00300 | B178: A054 | C178: 201502 | D178: 0 | E178: O | F178: 0 | G178: 0 | H178: 0 | I178: 43122007200 | J178: 12 | K178: LB 6438 | L178: 3126 | M178: BETA OPERATING COMPANY, LLC | N178: BETA | O178: 0 | P178: S01 | R178: 891018481
A179: P00300 | B179: A055 | C179: 201502 | D179: 28 | E179: O | F179: 1294 | G179: 0 | H179: 15882 | I179: 43122008300 | J179: 8 | K179: LB 6438 | L179: 3126 | M179: BETA OPERATING COMPANY, LLC | N179: BETA | O179: 0 | P179: S01 | Q179: 19840201 | R179: 891018481
A180: P00300 | B180: A058 | C180: 201502 | D180: 28 | E180: O | F180: 2019 | G180: 0 | H180: 1314 | I180: 43122007400 | J180: 8 | K180: LB 6438 | L180: 3126 | M180: BETA OPERATING COMPANY, LLC | N180: BETA | O180: 0 | P180: S02 | Q180: 19880701 | R180: 891018481
A181: P00300 | B181: A059 | C181: 201502 | D181: 28 | E181: O | F181: 2407 | G181: 355 | H181: 38550 | I181: 43122008600 | J181: 8 | K181: LB 6438 | L181: 3126 | M181: BETA OPERATING COMPANY, LLC | N181: BETA | O181: 0 | P181: S01 | Q181: 19840401 | R181: 891018481
A182: P00300 | B182: A063 | C182: 201502 | D182: 28 | E182: O | F182: 673 | G182: 326 | H182: 2234 | I182: 43122009600 | J182: 8 | K182: LB 6438 | L182: 3126 | M182: BETA OPERATING COMPANY, LLC | N182: BETA | O182: 0 | P182: S01 | Q182: 19840901 | R182: 891018481
A183: P00300 | B183: A064 | C183: 201502 | D183: 0 | E183: S | F183: 0 | G183: 0 | H183: 0 | I183: 43122008500 | J183: 6 | K183: LB 6437 | L183: 3126 | M183: BETA OPERATING COMPANY, LLC | N183: BETA | O183: 0 | P183: S01 | R183: 891018481
A184: P00300 | B184: A065 | C184: 201502 | D184: 0 | E184: S | F184: 0 | G184: 0 | H184: 0 | I184: 43122009900 | J184: 4 | K184: LB 6438 | L184: 3126 | M184: BETA OPERATING COMPANY, LLC | N184: BETA | O184: 0 | P184: S01 | Q184: 19980430 | R184: 891018481
A185: P00300 | B185: A066 | C185: 201502 | D185: 1 | E185: S | F185: 0 | G185: 0 | H185: 0 | I185: 43122009400 | J185: 4 | K185: LB 6438 | L185: 3126 | M185: BETA OPERATING COMPANY, LLC | N185: BETA | O185: 3120 | P185: S01 | Q185: 19980430 | R185: 891018481
A186: P00300 | B186: A067 | C186: 201502 | D186: 16 | E186: S | F186: 0 | G186: 0 | H186: 0 | I186: 43122013300 | J186: 4 | K186: LB 6438 | L186: 3126 | M186: BETA OPERATING COMPANY, LLC | N186: BETA | O186: 64989 | P186: S01 | Q186: 19980430 | R186: 891018481
A187: P00300 | B187: A070 | C187: 201502 | D187: 0 | E187: S | F187: 0 | G187: 0 | H187: 0 | I187: 43122007801 | J187: 6 | K187: LB 6438 | L187: 3126 | M187: BETA OPERATING COMPANY, LLC | N187: BETA | O187: 0 | P187: S01 | Q187: 19870901 | R187: 891018481
A188: P00300 | B188: A073 | C188: 201502 | D188: 0 | E188: S | F188: 0 | G188: 0 | H188: 0 | I188: 43122015700 | J188: 5 | K188: LB 6438 | L188: 3126 | M188: BETA OPERATING COMPANY, LLC | N188: BETA | O188: 0 | P188: S01 | Q188: 19901001 | R188: 891018481
A189: P00300 | B189: A074 | C189: 201502 | D189: 28 | E189: O | F189: 1268 | G189: 0 | H189: 1954 | I189: 43122016200 | J189: 8 | K189: LB 6487 | L189: 3126 | M189: BETA OPERATING COMPANY, LLC | N189: BETA | O189: 0 | P189: S01 | Q189: 19950401 | R189: 891018481
A190: P00300 | B190: A076 | C190: 201502 | D190: 0 | E190: O | F190: 0 | G190: 0 | H190: 0 | I190: 43122016300 | J190: 12 | K190: LB 6438 | L190: 3126 | M190: BETA OPERATING COMPANY, LLC | N190: BETA | O190: 0 | P190: S01 | Q190: 19960601 | R190: 891018481
A191: P00301 | B191: A005 | C191: 201502 | D191: 0 | E191: S | F191: 0 | G191: 0 | H191: 0 | I191: 43122003000 | J191: 4 | K191: LB 6438 | L191: 3126 | M191: BETA OPERATING COMPANY, LLC | N191: BETA | O191: 0 | P191: S03 | Q191: 19880501 | R191: 891018481
A192: P00301 | B192: A007 | C192: 201502 | D192: 28 | E192: O | F192: 2123 | G192: 207 | H192: 2119 | I192: 43122003400 | J192: 8 | K192: LB 6438 | L192: 3126 | M192: BETA OPERATING COMPANY, LLC | N192: BETA | O192: 0 | P192: S02 | Q192: 19880301 | R192: 891018481
A193: P00301 | B193: A009 | C193: 201502 | D193: 28 | E193: O | F193: 1553 | G193: 207 | H193: 115 | I193: 43122003600 | J193: 8 | K193: LB 6488 | L193: 3126 | M193: BETA OPERATING COMPANY, LLC | N193: BETA | O193: 0 | P193: S02 | Q193: 19860501 | R193: 891018481
A194: P00301 | B194: A014 | C194: 201502 | D194: 15 | E194: S | F194: 0 | G194: 0 | H194: 0 | I194: 43122003800 | J194: 4 | K194: LB 6488 | L194: 3126 | M194: BETA OPERATING COMPANY, LLC | N194: BETA | O194: 3499 | P194: S01 | Q194: 19980430 | R194: 891018481
A195: P00301 | B195: A015 | C195: 201502 | D195: 28 | E195: O | F195: 1035 | G195: 829 | H195: 4237 | I195: 43122004001 | J195: 8 | K195: LB 6438 | L195: 3126 | M195: BETA OPERATING COMPANY, LLC | N195: BETA | O195: 0 | P195: S01 | Q195: 19901101 | R195: 891018481
A196: P00301 | B196: A017 | C196: 201502 | D196: 4 | E196: S | F196: 0 | G196: 0 | H196: 0 | I196: 43122004200 | J196: 4 | K196: LB 6438 | L196: 3126 | M196: BETA OPERATING COMPANY, LLC | N196: BETA | O196: 1557 | P196: S01 | Q196: 19980430 | R196: 891018481
A197: P00301 | B197: A019 | C197: 201502 | D197: 22 | E197: S | F197: 0 | G197: 0 | H197: 0 | I197: 43122005100 | J197: 4 | K197: LB 6438 | L197: 3126 | M197: BETA OPERATING COMPANY, LLC | N197: BETA | O197: 20861 | P197: S01 | Q197: 19980430 | R197: 891018481
A198: P00301 | B198: A021 | C198: 201502 | D198: 24 | E198: O | F198: 4060 | G198: 888 | H198: 1154 | I198: 43122005200 | J198: 8 | K198: LB 6438 | L198: 3126 | M198: BETA OPERATING COMPANY, LLC | N198: BETA | O198: 0 | P198: S01 | Q198: 19820101 | R198: 891018481
A199: P00301 | B199: A023 | C199: 201502 | D199: 28 | E199: O | F199: 3754 | G199: 681 | H199: 6028 | I199: 43122005700 | J199: 8 | K199: LB 6438 | L199: 3126 | M199: BETA OPERATING COMPANY, LLC | N199: BETA | O199: 0 | P199: S02 | Q199: 19880201 | R199: 891018481
A200: P00301 | B200: A027 | C200: 201502 | D200: 28 | E200: O | F200: 3029 | G200: 977 | H200: 5141 | I200: 43122005900 | J200: 8 | K200: LB 6438 | L200: 3126 | M200: BETA OPERATING COMPANY, LLC | N200: BETA | O200: 0 | P200: S02 | Q200: 19860501 | R200: 891018481
... 4295 more rows

Sheet USA-ANS
A1: Data inputs | B1: Start field: | C1: End field:
A2: Fields to assess | B2: 1 | C2: 1 | G2: Modeled ANS as a single "field" using aggregated and production weighted data from the individual fields
A3: 1 Inputs
A5: Variables | E5: Unit | G5: Default | H5: Field 1
G6: =IF(G21="","NA",G21) -> Generic | H6: =IF(H21="","NA",H21) -> ANS
A7: 1.1 Production methods
A8: Notes: Enter "1" where applicable and "0" where not applicable
B9: 1.1.1 Downhole pump | E9: NA | G9: 1 | H9: 0 | I9: Consistent with production and injection data
B10: 1.1.2 Water reinjection | E10: NA | G10: 1 | H10: 0 | I10: Consistent with production and injection data
B11: 1.1.3 Natural gas reinjection | E11: NA | G11: 1 | H11: 1 | I11: Consistent with production and injection data
B12: 1.1.4 Water flooding | E12: NA | G12: 0 | H12: 1 | I12: Consistent with production and injection data
B13: 1.1.5 Gas lifting | E13: NA | G13: 0 | H13: 1 | I13: Consistent with production and injection data
B14: 1.1.6 Gas flooding | E14: NA | G14: 0
B15: 1.1.7 Steam flooding | E15: NA | G15: 0
B16: 1.1.8 Oil sands mine (integrated with upgrader) | E16: NA | G16: 0
B17: 1.1.9 Oil sands mine (non-integrated with upgrader) | E17: NA | G17: 0
A19: 1.2 Field properties
B20: 1.2.1 Field location (Country) | E20: NA | G20: Generic | H20: United States
B21: 1.2.2 Field name | E21: NA | G21: Generic | H21: ANS
B22: 1.2.3 Field age | E22: yr. | G22: 35
B23: 1.2.4 Field depth | E23: ft | G23: 7240 | H23: 7700 | I23: Approximate average value based on information from http://doa.alaska.gov/ogc/annual/annindex.html
B24: 1.2.5 Oil production volume | E24: bbl/d | G24: 1500 | H24: 440463.9836 | I24: See "2015 ANS Production Data"
B25: 1.2.6 Number of producing wells | E25: [-] | G25: 8 | H25: 1597 | I25: See "2015 ANS Production Data"
B26: 1.2.7 Number of water injecting wells | E26: [-] | G26: 5 | H26: 866 | I26: See "2015 ANS Injection Data"
B27: 1.2.8 Well diameter | E27: in | G27: 2.775
B28: 1.2.9 Productivity index | E28: bbl/psi-d | G28: 3
B29: 1.2.10 Reservoir pressure | E29: psi | G29: 1556.6 | H29: 3200 | I29: Approximate average value based on information from http://doa.alaska.gov/ogc/annual/annindex.html
B30: 1.2.11 Reservoir temperature | E30: ◦F | G30: 150
B31: 1.2.12 Offshore? | E31: [0-1] | G31: 0
A33: 1.3 Fluid properties
B34: 1.3.1 API gravity | E34: deg. API | G34: 30 | H34: 28.3 | I34: Volume weighted average API gravity (based on data from http://doa.alaska.gov/ogc/annual/current/annindex_current.html)
B35: 1.3.2 Gas composition
C36: N2 | E36: mol% | G36: 2
C37: CO2 | E37: mol% | G37: 6
C38: C1 | E38: mol% | G38: 84
C39: C2 | E39: mol% | G39: 4
C40: C3 | E40: mol% | G40: 2
C41: C4+ | E41: mol% | G41: 1
C42: H2S | E42: mol% | G42: 1
A44: 1.4 Production practices
A45: Notes: Enter "NA" where not applicable
B46: 1.4.1 Gas-to-oil ratio (GOR) | E46: scf/bbl oil | G46: 908 | H46: 19198.69936 | I46: See "2015 ANS Production Data"
B47: 1.4.2 Water-to-oil ratio (WOR) | E47: bbl water/bbl oil | G47: 4.308369057 | H47: 4.460179301 | I47: See "2015 ANS Production Data"
B48: 1.4.3 Water injection ratio | E48: bbl water/bbl oil | G48: 5.308369057 | H48: 6.649237236 | I48: See "2015 ANS Injection Data"
B49: 1.4.4 Gas lifting injection ratio | E49: scf/bbl liquid | G49: 1500 | H49: 1000 | I49: Multiplied default value for gas lifting injection ratio by the percentage of wells using gas lift. Assumed two-thirds gas lift, one third flowing, and no pumps
B50: 1.4.5 Gas flooding injection ratio | E50: scf/bbl oil | G50: 1362
B51: 1.4.6 Flood gas | E51: NA | G51: 1
C52: 1= Natural gas
C53: 2= Nitrogen (N2)
C54: 3= Carbon Dioxide (CO2)
B57: 1.4.7 Carbon dioxide flooding and sequestration parameters
C58: 1.4.7.1 Percentage of newly acquired CO2 (total injected CO2 includes both new and recycled) | E58: % | G58: 41
C59: 1.4.7.2 Source of CO2 | E59: NA | G59: 1
D60: 1= Natural subsurface reservoir
D61: 2= Anthropogenic
C62: 1.4.7.3 Percentage of sequestration credit assigned to the oilfield | E62: % | G62: 0
B63: 1.4.8 Steam-to-oil ratio (SOR) | E63: bbl steam/bbl oil | G63: 3
B64: 1.4.9 Fraction of required electricity generated onsite | E64: [-] | G64: 0 | H64: 1 | I64: Assumed all electricity produced onsite
B65: 1.4.10 Fraction of remaining natural gas reinjected | E65: [-] | G65: 0 | H65: -1 | I65: Assumed all produced gas that is not flared, vented, lost through fugitives, or used on-site is reinjected.
B66: 1.4.11 Fraction of produced water reinjected | E66: [-] | G66: 1
B67: 1.4.12 Fraction of steam generation via cogeneration | E67: [-] | G67: 0
B68: 1.4.13 Fraction of steam generation via solar thermal | E68: [-] | G68: 0
A69: 1.5 Processing practices
B70: 1.5.1 Heater/treater | E70: NA | G70: 0 | H70: 1 | I70: Based on input from operator
B71: 1.5.2 Stabilizer column | E71: NA | G71: 1 | H71: 0 | I71: Based on input from operator
B72: 1.5.3 Upgrader type | G72: 0
C73: 0 = None
C74: 1 = Delayed coking
C75: 2 = Hydroconversion
C76: 3 = Combined hydroconversion and fluid coking
B77: 1.5.3 Associated Gas Processing Path | E77: NA | G77: 5 | H77: 4 | I77: No amine treater. Based on input from operator
C78: 1= None
C79: 2= Minimal: Dehydrator
C80: 3= Acid Gas: Dehydrator + Amine Process
C81: 4= Wet Gas: Dehydrator + Demethanizer
C82: 5= Acid Wet Gas: Dehydrator + Amine Process + Demethanizer
C83: 6= CO2-EOR Membrane: Dehydrator + Compressor + Membrane + Amine Process + Demethanizer
C84: 7= CO2-EOR Ryan Holmes: Dehydrator + Ryan Holmes Process (Demethanizer Included)
C85: Notes: Choose paths 6 or 7 only if gas flooding is ON and CO2 is the flood gas
B86: 1.5.4 Flaring-to-oil ratio | E86: scf/bbl oil | G86: 181.5280918 | H86: 41.50281703 | I86: See gas disposition data below
B87: 1.5.5 Venting-to-oil ratio | E87: scf/bbl oil | G87: 0
B88: 1.5.6 Volume fraction of diluent | E88: [-] | G88: 0
A90: 1.6 Land use impacts
B91: 1.6.1 Crude ecosystem carbon richness
C92: 1.6.1.1 Low carbon richness (semi-arid grasslands) | E92: NA | G92: 0 | H92: 1 | I92: Assumed grassland
C93: 1.6.1.2 Moderate carbon richness (mixed) | E93: NA | G93: 1 | H93: 0
C94: 1.6.1.3 High carbon richness (forested) | E94: NA | G94: 0 | H94: 0
B95: 1.6.2 Field development intensity
C96: 1.6.2.1 Low intensity development and low oxidation | E96: NA | G96: 0 | H96: 0
C97: 1.6.2.2 Moderate intensity development and moderate oxidation | E97: NA | G97: 1 | H97: 1
C98: 1.6.2.3 High intensity development and high oxidation | E98: NA | G98: 0 | H98: 0
A100: 1.8 Crude oil transport
B101: 1.8.1 Fraction of oil transported by each mode
C102: 1.8.1.1 Ocean tanker | E102: [-] | G102: 1 | H102: 1
C103: 1.8.1.2 Barge | E103: [-] | G103: 0 | H103: 0
C104: 1.8.1.3 Pipeline | E104: [-] | G104: 1 | H104: 1
C105: 1.8.1.4 Rail | E105: [-] | G105: 0 | H105: 0
C106: 1.8.1.5 Truck | G106: 0 | H106: 0
B107: 1.8.2 Transport distance (one way)
C108: 1.8.2.1 Ocean tanker | E108: Mile | G108: 5082 | H108: 2364 | I108: Valdez to Los Angeles: http://sea-distances.com/
C109: 1.8.2.2 Barge | E109: Mile | G109: 500 | H109: 0
C110: 1.8.2.3 Pipeline | E110: Mile | G110: 750 | H110: 800 | I110: http://www.alyeska-pipe.com/Default.asp
C111: 1.8.2.4 Rail | E111: Mile | G111: 800 | H111: 0
C112: 1.8.2.5 Truck | G112: 100 | H112: 0
B113: 1.8.3 Ocean tanker size, if applicable | E113: Ton | G113: 250000
A115: 1.9 Small sources emissions | E115: gCO2eq/MJ | G115: 0.5
A118: Additional Data and Assumptions
A119: Demethanizer: Assumed 0% ethane, 1.9% propane and 100% butane condensed to match reported data for NGL (cells M119, 120, 121 of Surface Processing sheet)
A120: Assumed NGL blended with crude (cells M126 and 127 of Surface Processing sheet)
A121: Based on data provided by BP (see BP ANS information sheet) and extrapolated to all ANS production, the following changes were made:
B122: Changed Drilling and Development M116 to 2268054 bbl/well based cumulative volume produced and cumulative wells drilled for ANS fields
B123: Emission Factors G67 changed to 7072 and H67 changed to 39, Emission Factors G96 and H96 changed to zero - vapor recovery used on most gas dehydrators
B124: Emission Factors G60, G60, H61, H61 changed to zero - compressor blowdown lines routed to vapor recovery
B125: Venting and Fugitives M51, M52, and M61 set to zero - natural gas actuated controllers and pumps are not used
B126: Emission Factors G70 and H70 changed to zero - tank vents routed to vapor recovery
A128: Well/Pressure Data | B128: Total ANS | C128: Badami | D128: Colville River | E128: Endicott | F128: Kupuruk River | G128: Milne Point | H128: Northstar | I128: Oooguruk | J128: Prudhoe Bay | K128: Source
A129: Flowing | B129: =SUM(C129:J129) -> 397 | C129: 2 | D129: 1 | E129: 19 | F129: 0 | G129: 0 | H129: 15 | I129: 2 | J129: 358 | K129: http://doa.alaska.gov/ogc/annual/current/annindex_current.html
A130: Gas Lift | B130: =SUM(C130:J130) -> 1008 | C130: 2 | D130: 74 | E130: 33 | F130: 478 | G130: 14 | H130: 1 | I130: 3 | J130: 403 | K130: http://doa.alaska.gov/ogc/annual/current/annindex_current.html
A131: Pump | B131: =SUM(C131:J131) -> 140 | C131: 0 | D131: 0 | E131: 0 | F131: 35 | G131: 100 | H131: 0 | I131: 5 | J131: 0 | K131: http://doa.alaska.gov/ogc/annual/current/annindex_current.html
A132: Avg. Press. (psi) | B132: =(C132*SUM(C129:C131)+D132*SUM(D129:D131)+E132*SUM(E129:E131)+F132*SUM(F129:F131)+G132*SUM(G129:G131)+H132*SUM(H129:H131)+I132*SUM(I129:I131)+J132*SUM(J129:J131))/SUM(C129:J131) -> 3209.352751 | C132: 3825 | D132: 3100 | E132: 4250 | F132: 2950 | G132: 2450 | H132: 5100 | I132: 2800 | J132: 3400 | K132: http://doa.alaska.gov/ogc/annual/current/annindex_current.html
B133: 65% lift
A135: Op Name | B135: Fac Name | C135: Sum of DisSold | D135: Sum of DisReinject | E135: Sum of Used | F135: Sum of AssistGas | G135: Sum of DOther | H135: Sum of FlareLT | I135: Sum of FlareGTR | J135: Sum of PilotPurge | K135: Sum of Total
A136: AURORA GAS LLC | B136: Barrow | C136: 14505 | D136: 0 | E136: 0 | F136: 0 | G136: 0 | H136: 0 | I136: 262 | J136: 0 | K136: 14767
B137: Walakpa | C137: 226783 | D137: 0 | E137: 5243 | F137: 0 | G137: 0 | H137: 0 | I137: 338 | J137: 0 | K137: 232364
A138: BP EXPLORATION (ALASKA) INC. | B138: PBU CCP/FFGU | C138: 9323858 | D138: 2289698885 | E138: 67253154 | F138: 0 | G138: 9317 | H138: 18549 | I138: 5091 | J138: 408138 | K138: 2366716992
B139: PBU CGF B | C139: 16188110 | D139: 51449041 | E139: 33233416 | F139: 521359 | G139: 0 | H139: 24640 | I139: 113475 | J139: 263188 | K139: 101793229
B140: PBU FS 1 | C140: 0 | D140: 0 | E140: 6648070 | F140: 292038 | G140: 0 | H140: 65655 | I140: 46460 | J140: 212086 | K140: 7264309
B141: PBU FS 2 | C141: 0 | D141: 0 | E141: 7631367 | F141: 277439 | G141: 0 | H141: 5895 | I141: 160045 | J141: 148439 | K141: 8223185
B142: PBU FS 3 | C142: 0 | D142: 0 | E142: 10660686 | F142: 65325 | G142: 0 | H142: 6879 | I142: 30706 | J142: 405704 | K142: 11169300
B143: PBU GC 1 | C143: 0 | D143: 0 | E143: 7732497 | F143: 0 | G143: 0 | H143: 23816 | I143: 64863 | J143: 621424 | K143: 8442600
B144: PBU GC 2 | C144: 0 | D144: 0 | E144: 7412388 | F144: 0 | G144: 0 | H144: 69552 | I144: 15548 | J144: 342346 | K144: 7839834
B145: PBU GC 3 | C145: 0 | D145: 0 | E145: 5773145 | F145: 0 | G145: 0 | H145: 535 | I145: 34088 | J145: 221096 | K145: 6028864
B146: PBU Lisburne Prod (GPMA) | C146: 881041 | D146: 112650886 | E146: 8947340 | F146: 1853915 | G146: 2286036 | H146: 1707 | I146: 14140 | J146: 134090 | K146: 126769155
A147: CAELUS NATURAL RESOURCES ALASKA, LLC | B147: Oooguruk | C147: 0 | D147: 583008 | E147: 302756 | F147: 0 | G147: 18221 | H147: 1 | I147: 1559 | J147: 0 | K147: 905545
A148: CONOCOPHILLIPS ALASKA INC | B148: Colville River Unit | C148: 390085 | D148: 16393503 | E148: 5126917 | F148: 0 | G148: 0 | H148: 43051 | I148: 12249 | J148: 111140 | K148: 22076945
B149: KRU CPF 1 | C149: 69280 | D149: 25813913 | E149: 7918520 | F149: 316515 | G149: 0 | H149: 47588 | I149: 41 | J149: 177270 | K149: 34343127
B150: KRU CPF 2 | C150: 40737 | D150: 42405653 | E150: 8155606 | F150: 0 | G150: 0 | H150: 28484 | I150: 8788 | J150: 196085 | K150: 50835353
B151: KRU CPF 3 | C151: 223473 | D151: 0 | E151: 7489975 | F151: 0 | G151: 0 | H151: 8623 | I151: 11449 | J151: 180619 | K151: 7914139
A152: ENI US OPERATING CO INC | B152: Nikaitchuq Prod Facility | C152: 0 | D152: 0 | E152: 1519769 | F152: 0 | G152: 0 | H152: 178 | I152: 4979 | J152: 27414 | K152: 1552340
A153: HILCORP ALASKA LLC | B153: DIU Endicott | C153: 4756 | D153: 105540398 | E153: 11694704 | F153: 202116 | G153: 0 | H153: 11102 | I153: 21820 | J153: 176660 | K153: 117651556
B154: Milne Point Central | C154: 0 | D154: 1271557 | E154: 3261133 | F154: 3233 | G154: 0 | H154: 19563 | I154: 5579 | J154: 14545 | K154: 4575610
B155: Northstar | C155: 0 | D155: 194141213 | E155: 5979332 | F155: 0 | G155: 0 | H155: 19486 | I155: 39125 | J155: 64593 | K155: 200243749
A156: NORTH SLOPE BOROUGH | B156: Barrow | C156: 132602 | D156: 0 | E156: 29176 | F156: 0 | G156: 0 | H156: 0 | I156: 0 | J156: 0 | K156: 161778
B157: Walakpa | C157: 1182615 | D157: 0 | E157: 12872 | F157: 1179 | G157: 0 | H157: 0 | I157: 0 | J157: 0 | K157: 1196666
A158: PIONEER NATURAL RESOURCES ALASKA INC | B158: Oooguruk | C158: 0 | D158: 1642966 | E158: 845873 | F158: 0 | G158: 532657 | H158: 365 | I158: 20335 | J158: 0 | K158: 3042196
A159: SAVANT ALASKA LLC | B159: Badami | C159: 0 | D159: 179188 | E159: 568893 | F159: 0 | G159: 0 | H159: 1071 | I159: 5916 | J159: 4745 | K159: 759813
A160: Grand Total | C160: 28677845 | D160: 2841770211 | E160: 208202832 | F160: 3533119 | G160: 2846231 | H160: 396740 | I160: 616856 | J160: 3709582 | K160: 3089753416 | L160: =F160+H160+I160+J160 -> 8256297 | M160: Flare Total ANS
L161: =L160*1000/198933412 -> 41.50281703 | M161: scf/bbl

Sheet 2015 ANS Production Data
A1: Alaska Monthly Oil, Water, Gas Production Data | D1: Source: | E1: http://doa.alaska.gov/ogc/production/pindex.html
C3: Badami | D3: Colville River | E3: Endicott | F3: Kupuruk River | G3: Milne Point | H3: Northstar | I3: Oooguruk | J3: Prudhoe Bay | K3: Total | L3: NGL (bbl)
A4: January | B4: Oil (bbl) | C4: 30656 | D4: 1476020 | E4: 223986 | F4: 3275167 | G4: 599423 | H4: 187313 | I4: 303735 | J4: 8091075 | K4: =SUM(C4:J4) -> 14187375 | L4: 1565093
B5: Water (bbl) | C5: 0 | D5: 1400300 | E5: 6176502 | F5: 17802959 | G5: 3944105 | H5: 465950 | I5: 19996 | J5: 34398690 | K5: 64208502
B6: Gas (Mcf) | C6: 52776 | D6: 1842029 | E6: 10875544 | F6: 8380096 | G6: 322537 | H6: 18546559 | I6: 262963 | J6: 243621527 | K6: 283904031
A7: February | B7: Oil (bbl) | C7: 27838 | D7: 1345235 | E7: 206307 | F7: 2870430 | G7: 524445 | H7: 167802 | I7: 276455 | J7: 7073778 | K7: 12492290 | L7: 1227989
B8: Water (bbl) | C8: 0 | D8: 1294958 | E8: 5778732 | F8: 15303284 | G8: 3316233 | H8: 448289 | I8: 13367 | J8: 30838644 | K8: 56993507
B9: Gas (Mcf) | C9: 49283 | D9: 1760496 | E9: 10016061 | F9: 6535510 | G9: 385096 | H9: 16659754 | I9: 255316 | J9: 211848499 | K9: 247510015
A10: March | B10: Oil (bbl) | C10: 29569 | D10: 1482432 | E10: 236060 | F10: 3271659 | G10: 573206 | H10: 204835 | I10: 330972 | J10: 8203479 | K10: 14332212 | L10: 1620026
B11: Water (bbl) | C11: 0 | D11: 1365298 | E11: 6714204 | F11: 17488108 | G11: 3770487 | H11: 474352 | I11: 22699 | J11: 35199609 | K11: 65034757
B12: Gas (Mcf) | C12: 49911 | D12: 1860369 | E12: 11130136 | F12: 7593921 | G12: 401050 | H12: 18986544 | I12: 333385 | J12: 252948680 | K12: 293303996
A13: April | B13: Oil (bbl) | C13: 28183 | D13: 1456207 | E13: 230174 | F13: 3123790 | G13: 586958 | H13: 205967 | I13: 466967 | J13: 7902089 | K13: 14000335 | L13: 1587394
B14: Water (bbl) | C14: 0 | D14: 1459702 | E14: 7104093 | F14: 16975770 | G14: 3792033 | H14: 447508 | I14: 25043 | J14: 34442549 | K14: 64246698
B15: Gas (Mcf) | C15: 49157 | D15: 1797706 | E15: 10215281 | F15: 7637794 | G15: 399033 | H15: 17733005 | I15: 436812 | J15: 239312576 | K15: 277581364
A16: May | B16: Oil (bbl) | C16: 26391 | D16: 1438870 | E16: 175213 | F16: 3200266 | G16: 556868 | H16: 191754 | I16: 450445 | J16: 7349052 | K16: 13388859 | L16: 1413296
B17: Water (bbl) | C17: 0 | D17: 1323164 | E17: 4969679 | F17: 17074588 | G17: 4013084 | H17: 408616 | I17: 11192 | J17: 32613491 | K17: 60413814
B18: Gas (Mcf) | C18: 68796 | D18: 1917196 | E18: 7763866 | F18: 7995160 | G18: 421021 | H18: 14846722 | I18: 429637 | J18: 220250553 | K18: 253692951
A19: June | B19: Oil (bbl) | C19: 28858 | D19: 1430626 | E19: 207534 | F19: 2885266 | G19: 532566 | H19: 172722 | I19: 417759 | J19: 6476054 | K19: 12151385 | L19: 1113259
B20: Water (bbl) | C20: 0 | D20: 1170088 | E20: 6323392 | F20: 14681554 | G20: 3570038 | H20: 344645 | I20: 7223 | J20: 27090624 | K20: 53187564
B21: Gas (Mcf) | C21: 51557 | D21: 1838377 | E21: 8523152 | F21: 6584562 | G21: 385378 | H21: 12709492 | I21: 432119 | J21: 185069883 | K21: 215594520
A22: July | B22: Oil (bbl) | C22: 28884 | D22: 1430453 | E22: 233722 | F22: 3415693 | G22: 590956 | H22: 201900 | I22: 356590 | J22: 6347336 | K22: 12605534 | L22: 1195548
B23: Water (bbl) | C23: 0 | D23: 1322743 | E23: 7066711 | F23: 16304579 | G23: 3992744 | H23: 423273 | I23: 9864 | J23: 28607863 | K23: 57727777
B24: Gas (Mcf) | C24: 60283 | D24: 1983244 | E24: 10165581 | F24: 8231765 | G24: 422702 | H24: 16491801 | I24: 334648 | J24: 175868465 | K24: 213558489
A25: August | B25: Oil (bbl) | C25: 25658 | D25: 1254863 | E25: 185692 | F25: 3413980 | G25: 589410 | H25: 189114 | I25: 309634 | J25: 5413250 | K25: 11381601 | L25: 886096
B26: Water (bbl) | C26: 0 | D26: 1234469 | E26: 5449223 | F26: 16552133 | G26: 3632086 | H26: 385468 | I26: 12988 | J26: 21024811 | K26: 48291178
B27: Gas (Mcf) | C27: 54410 | D27: 1707770 | E27: 6784715 | F27: 7887755 | G27: 380414 | H27: 15479348 | I27: 281590 | J27: 163666539 | K27: 196242541
A28: September | B28: Oil (bbl) | C28: 26478 | D28: 1392063 | E28: 221535 | F28: 3206635 | G28: 545876 | H28: 189679 | I28: 315700 | J28: 6990482 | K28: 12888448 | L28: 1201260
B29: Water (bbl) | C29: 0 | D29: 1435867 | E29: 6272299 | F29: 16337897 | G29: 3956072 | H29: 425857 | I29: 12764 | J29: 24816124 | K29: 53256880
B30: Gas (Mcf) | C30: 79788 | D30: 1689813 | E30: 9994134 | F30: 8045078 | G30: 394269 | H30: 16506521 | I30: 269792 | J30: 216640598 | K30: 253619993
A31: October | B31: Oil (bbl) | C31: 30741 | D31: 1442266 | E31: 230871 | F31: 3227786 | G31: 585602 | H31: 189943 | I31: 306220 | J31: 8045826 | K31: 14059255 | L31: 1478257
B32: Water (bbl) | C32: 0 | D32: 1485718 | E32: 6964655 | F32: 17410279 | G32: 4182437 | H32: 390569 | I32: 13419 | J32: 32971595 | K32: 63418672
B33: Gas (Mcf) | C33: 81937 | D33: 1795002 | E33: 11241880 | F33: 8159712 | G33: 368316 | H33: 17230701 | I33: 308486 | J33: 233049762 | K33: 272235796
A34: November | B34: Oil (bbl) | C34: 26360 | D34: 1777523 | E34: 213582 | F34: 3153832 | G34: 569138 | H34: 178715 | I34: 361540 | J34: 8123272 | K34: 14403962 | L34: 1572011
B35: Water (bbl) | C35: 0 | D35: 1465342 | E35: 7037035 | F35: 17214643 | G35: 4007971 | H35: 333631 | I35: 26227 | J35: 33031476 | K35: 63116325
B36: Gas (Mcf) | C36: 78794 | D36: 1900138 | E36: 10136142 | F36: 7826315 | G36: 344161 | H36: 17411404 | I36: 292198 | J36: 244759605 | K36: 282748757
A37: December | B37: Oil (bbl) | C37: 37382 | D37: 1771544 | E37: 230061 | F37: 3304176 | G37: 579914 | H37: 172799 | I37: 342919 | J37: 8439303 | K37: 14878098 | L37: 1483963
B38: Water (bbl) | C38: 0 | D38: 1492431 | E38: 6837237 | F38: 19108033 | G38: 3981665 | H38: 362893 | I38: 36752 | J38: 35345460 | K38: 67164471
B39: Gas (Mcf) | C39: 86216 | D39: 1973639 | E39: 10805079 | F39: 8214956 | G39: 351637 | H39: 17632523 | I39: 304861 | J39: 257201130 | K39: 296570041
A40: Total | B40: Oil (bbl) | C40: =C4+C7+C10+C13+C16+C19+C22+C25+C28+C31+C34+C37 -> 346998 | D40: 17698102 | E40: 2594737 | F40: 38348680 | G40: 6834362 | H40: 2252543 | I40: 4238936 | J40: 88454996 | K40: 160769354 | L40: 16344192
B41: Water (bbl) | C41: 0 | D41: 16450080 | E41: 76693762 | F41: 202253827 | G41: 46158955 | H41: 4911051 | I41: 211534 | J41: 370380936 | K41: 717060145
B42: Gas (Mcf) | C42: 762908 | D42: 22065779 | E42: 117651571 | F42: 93092624 | G42: 4575614 | H42: 200234374 | I42: 3941807 | J42: 2644237817 | K42: 3086562494
A43: Daily Oil Prod | B43: BOPD | C43: =C40/365 -> 950.6794521 | D43: 48487.95068 | E43: 7108.868493 | F43: 105064.8767 | G43: 18724.27945 | H43: 6171.350685 | I43: 11613.52329 | J43: 242342.4548 | K43: 440463.9836
A44: WOR | B44: bbl/bbl | C44: =C41/C40 -> 0 | D44: 0.9294827208 | E44: 29.55743183 | F44: 5.274075327 | G44: 6.753952307 | H44: 2.180225194 | I44: 0.04990261707 | J44: 4.187224609 | K44: 4.460179301
A45: GOR | B45: scf/bbl | C45: =C42*1000/C40 -> 2198.594805 | D45: 1246.787876 | E45: 45342.38769 | F45: 2427.531378 | G45: 669.5012643 | H45: 88892.58673 | I45: 929.9048157 | J45: 29893.5949 | K45: 19198.69936
A46: Producing wells | C46: 8 | D46: 77 | E46: 53 | F46: 549 | G46: 124 | H46: 18 | I46: 17 | J46: 751 | K46: =SUM(C46:J46) -> 1597

Sheet 2015 ANS Injection Data
A1: Alaska Monthly Water, Gas, and Waste Injection Data | E1: Source: | F1: http://doa.alaska.gov/ogc/production/pindex.html
C3: Badami | D3: Colville River | E3: Endicott | F3: Kupuruk River | G3: Milne Point | H3: Northstar | I3: Oooguruk | J3: Prudhoe Bay | K3: Total
A4: January | B4: Water (bbl) | C4: 0 | D4: 3647633 | E4: 6176502 | F4: 23002712 | G4: 3187022 | H4: 0 | I4: 202198 | J4: 59404946 | K4: =SUM(C4:J4) -> 95621013
B5: Gas (Mcf) | C5: 2329 | D5: 1342123 | E5: 9839239 | F5: 6100923 | G5: 25140 | H5: 17992845 | I5: 165875 | J5: 226017887 | K5: =SUM(C5:J5) -> 261486361
B6: Disposal (bbl) | C6: 3243 | D6: 47647 | E6: 0 | F6: 48116 | G6: 757086 | H6: 490639 | I6: 36939 | J6: 6053578 | K6: =SUM(C6:J6) -> 7437248
A7: February | B7: Water (bbl) | C7: 0 | D7: 3047896 | E7: 5778732 | F7: 19496887 | G7: 2677136 | H7: 0 | I7: 188942 | J7: 51361320 | K7: =SUM(C7:J7) -> 82550913
B8: Gas (Mcf) | C8: 1302 | D8: 1306304 | E8: 9050240 | F8: 4750326 | G8: 116918 | H8: 16160016 | I8: 52931 | J8: 196376127 | K8: 227814164
B9: Disposal (bbl) | C9: 2667 | D9: 48144 | E9: 0 | F9: 32300 | G9: 639102 | H9: 462456 | I9: 35642 | J9: 5557985 | K9: 6778296
A10: March | B10: Water (bbl) | C10: 0 | D10: 3625784 | E10: 6714203 | F10: 21990969 | G10: 2969011 | H10: 0 | I10: 261664 | J10: 55855911 | K10: 91417542
B11: Gas (Mcf) | C11: 697 | D11: 1360193 | E11: 10051781 | F11: 5589839 | G11: 108404 | H11: 18422536 | I11: 76555 | J11: 234815431 | K11: 270425436
B12: Disposal (bbl) | C12: 3322 | D12: 48142 | E12: 0 | F12: 33640 | G12: 801477 | H12: 500232 | I12: 39192 | J12: 6461108 | K12: 7887113
A13: April | B13: Water (bbl) | C13: 0 | D13: 3688434 | E13: 7104097 | F13: 21450704 | G13: 2837145 | H13: 0 | I13: 234114 | J13: 56554263 | K13: 91868757
B14: Gas (Mcf) | C14: 1464 | D14: 1321097 | E14: 9169503 | F14: 5577987 | G14: 115148 | H14: 17208315 | I14: 261481 | J14: 222188329 | K14: 255843324
B15: Disposal (bbl) | C15: 0 | D15: 60831 | E15: 0 | F15: 35732 | G15: 954887 | H15: 458882 | I15: 63970 | J15: 2590532 | K15: 4164834
A16: May | B16: Water (bbl) | C16: 0 | D16: 2987189 | E16: 4969681 | F16: 19983940 | G16: 3018850 | H16: 0 | I16: 161711 | J16: 49023703 | K16: 80145074
B17: Gas (Mcf) | C17: 21172 | D17: 1459217 | E17: 6810206 | F17: 5942638 | G17: 118517 | H17: 14370269 | I17: 272460 | J17: 204042729 | K17: 233037208
B18: Disposal (bbl) | C18: 0 | D18: 65808 | E18: 0 | F18: 68566 | G18: 994229 | H18: 422444 | I18: 48168 | J18: 5332030 | K18: 6931245
A19: June | B19: Water (bbl) | C19: 0 | D19: 3110810 | E19: 6323390 | F19: 16794684 | G19: 2594423 | H19: 0 | I19: 321032 | J19: 40302092 | K19: 69446431
B20: Gas (Mcf) | C20: 5502 | D20: 1398674 | E20: 7552658 | F20: 4759623 | G20: 102560 | H20: 12295200 | I20: 241868 | J20: 171182083 | K20: 197538168
B21: Disposal (bbl) | C21: 0 | D21: 64223 | E21: 0 | F21: 47882 | G21: 975619 | H21: 356150 | I21: 10681 | J21: 3664906 | K21: 5119461
A22: July | B22: Water (bbl) | C22: 0 | D22: 3601273 | E22: 7066713 | F22: 18889581 | G22: 2956662 | H22: 0 | I22: 469642 | J22: 51646932 | K22: 84630803
B23: Gas (Mcf) | C23: 9302 | D23: 1518768 | E23: 9103652 | F23: 6064770 | G23: 147527 | H23: 15991016 | I23: 247761 | J23: 162210299 | K23: 195293095
B24: Disposal (bbl) | C24: 0 | D24: 68820 | E24: 0 | F24: 50953 | G24: 1021267 | H24: 434146 | I24: 60758 | J24: 2296120 | K24: 3932064
A25: August | B25: Water (bbl) | C25: 0 | D25: 3106488 | E25: 5449221 | F25: 19379113 | G25: 3119052 | H25: 0 | I25: 435380 | J25: 37745974 | K25: 69235228
B26: Gas (Mcf) | C26: 10097 | D26: 1307322 | E26: 5946833 | F26: 5788290 | G26: 110525 | H26: 15001560 | I26: 165164 | J26: 151082299 | K26: 179412090
B27: Disposal (bbl) | C27: 0 | D27: 58143 | E27: 0 | F27: 55146 | G27: 513030 | H27: 406602 | I27: 37415 | J27: 5055687 | K27: 6126023
A28: September | B28: Water (bbl) | C28: 0 | D28: 3453681 | E28: 6272299 | F28: 19968341 | G28: 3072862 | H28: 0 | I28: 534458 | J28: 33858796 | K28: 67160437
B29: Gas (Mcf) | C29: 30185 | D29: 1245463 | E29: 9000533 | F29: 6075896 | G29: 130377 | H29: 16002116 | I29: 158871 | J29: 201786636 | K29: 234430077
B30: Disposal (bbl) | C30: 0 | D30: 62662 | E30: 0 | F30: 47465 | G30: 883207 | H30: 453428 | I30: 62482 | J30: 3994514 | K30: 5503758
A31: October | B31: Water (bbl) | C31: 0 | D31: 3531122 | E31: 6964655 | F31: 22763268 | G31: 3140451 | H31: 0 | I31: 530551 | J31: 44026795 | K31: 80956842
B32: Gas (Mcf) | C32: 32025 | D32: 1314207 | E32: 10162038 | F32: 5941161 | G32: 101470 | H32: 16709469 | I32: 194303 | J32: 216708567 | K32: 251163240
B33: Disposal (bbl) | C33: 0 | D33: 61671 | E33: 0 | F33: 62664 | G33: 1041988 | H33: 411256 | I33: 48335 | J33: 6918179 | K33: 8544093
A34: November | B34: Water (bbl) | C34: 0 | D34: 3252071 | E34: 7037031 | F34: 22675012 | G34: 3055507 | H34: 0 | I34: 611757 | J34: 48807820 | K34: 85439198
B35: Gas (Mcf) | C35: 32395 | D35: 1391917 | E35: 9125020 | F35: 5701375 | G35: 77673 | H35: 16892182 | I35: 190280 | J35: 227672371 | K35: 261083213
B36: Disposal (bbl) | C36: 1985 | D36: 51890 | E36: 0 | F36: 60578 | G36: 956955 | H36: 360258 | I36: 60767 | J36: 7249229 | K36: 8741662
A37: December | B37: Water (bbl) | C37: 0 | D37: 3563028 | E37: 6837240 | F37: 24978747 | G37: 2969221 | H37: 0 | I37: 616993 | J37: 51635873 | K37: 90601102
B38: Gas (Mcf) | C38: 32717 | D38: 1428218 | E38: 9728697 | F38: 5926738 | G38: 71523 | H38: 17095686 | I38: 198425 | J38: 239716050 | K38: 274198054
B39: Disposal (bbl) | C39: 2168 | D39: 52055 | E39: 0 | F39: 54423 | G39: 1015082 | H39: 387273 | I39: 71529 | J39: 7171908 | K39: =SUM(C39:J39) -> 8754438
A40: Total | B40: Water (bbl) | C40: =C4+C7+C10+C13+C16+C19+C22+C25+C28+C31+C34+C37 -> 0 | D40: =D4+D7+D10+D13+D16+D19+D22+D25+D28+D31+D34+D37 -> 40615409 | E40: 76693764 | F40: 251373958 | G40: 35597342 | H40: 0 | I40: 4568442 | J40: 580224425 | K40: 989073340
B41: Gas (Mcf) | C41: =C5+C8+C11+C14+C17+C20+C23+C26+C29+C32+C35+C38 -> 179187 | D41: 16393503 | E41: 105540400 | F41: 68219566 | G41: 1225782 | H41: 194141210 | I41: 2225974 | J41: 2453798808 | K41: 2841724430
B42: Disposal (bbl) | C42: =C6+C9+C12+C15+C18+C21+C24+C27+C30+C33+C36+C39 -> 13385 | D42: 690036 | E42: 0 | F42: 597465 | G42: 10553929 | H42: 5143766 | I42: 575878 | J42: 62345776 | K42: 79920235
A44: Fraction Water Reinjected | C44: =(D40+D42)/'2015 ANS Production Data'!C41 ->  | D44: =(E40+E42)/'2015 ANS Production Data'!D41 -> 4.66221222 | E44: =(F40+F42)/'2015 ANS Production Data'!E41 -> 3.285422653 | F44: =(G40+G42)/'2015 ANS Production Data'!F41 -> 0.2281849085 | G44: =(H40+H42)/'2015 ANS Production Data'!G41 -> 0.1114359283 | H44: =(I40+I42)/'2015 ANS Production Data'!H41 -> 1.047498794 | I44: =(J40+J42)/'2015 ANS Production Data'!I41 -> 3037.668654 | J44: =(K40+K42)/'2015 ANS Production Data'!J41 -> 2.886200317 | K44: =(L40+L42)/'2015 ANS Production Data'!K41 -> 0
A45: Fraction Gas Reinjected | C45: =C41/'2015 ANS Production Data'!C42 -> 0.2348736676 | D45: =D41/'2015 ANS Production Data'!D42 -> 0.7429378768 | E45: =E41/'2015 ANS Production Data'!E42 -> 0.8970589946 | F45: =F41/'2015 ANS Production Data'!F42 -> 0.7328138693 | G45: =G41/'2015 ANS Production Data'!G42 -> 0.2678945383 | H45: =H41/'2015 ANS Production Data'!H42 -> 0.9695698402 | I45: =I41/'2015 ANS Production Data'!I42 -> 0.5647090281 | J45: =J41/'2015 ANS Production Data'!J42 -> 0.9279796213 | K45: =K41/'2015 ANS Production Data'!K42 -> 0.9206761358
A46: Water Injection Ratio | C46: =(C40+C42)/'2015 ANS Production Data'!C40 -> 0.03857370936 | D46: =(D40+D42)/'2015 ANS Production Data'!D40 -> 2.333891227 | E46: =(E40+E42)/'2015 ANS Production Data'!E40 -> 29.5574326 | F46: =(F40+F42)/'2015 ANS Production Data'!F40 -> 6.570537056 | G46: =(G40+G42)/'2015 ANS Production Data'!G40 -> 6.752827989 | H46: =(H40+H42)/'2015 ANS Production Data'!H40 -> 2.283537318 | I46: =(I40+I42)/'2015 ANS Production Data'!I40 -> 1.213587561 | J46: =(J40+J42)/'2015 ANS Production Data'!J40 -> 7.264374315 | K46: =(K40+K42)/'2015 ANS Production Data'!K40 -> 6.649237236
A47: Total Injection wells | C47: 1 | D47: 62 | E47: 25 | F47: 394 | G47: 93 | H47: 6 | I47: 11 | J47: 274 | K47: =SUM(C47:J47) -> 866

Sheet BP ANS information
A1: EPA Subpart W Reporting
B3: EPA GHG Website
B4: http://ghgdata.epa.gov/ghgp/main.do
B6: EPA Subpart W Calculation Methodology
B7: http://www.ecfr.gov/cgi-bin/text-idx?SID=6f22dcdb3775cc7cf4f10b5de385954b&tpl=/ecfrbrowse/Title40/40cfr98_main_02.tpl
B9: EPA Subpart W General Information
B10: http://www.epa.gov/ghgreporting/reporters/subpart/w.html
A12: Individual BP GHG Reports (with Subpart W)
B14: BP Alaska Arctic Slope Basin (Prudhoe)
B15: http://ghgdata.epa.gov/ghgp/service/html/2012?id=1008172&ds=E
B17: BP Northstar
B18: http://ghgdata.epa.gov/ghgp/service/html/2012?id=1003023&ds=E
B20: BP Lisburne
B21: http://ghgdata.epa.gov/ghgp/service/html/2012?id=1001628&ds=E
B23: BP Endicott
B24: http://ghgdata.epa.gov/ghgp/service/html/2012?id=1001737&ds=E
B26: BP Central Gas Facility (CGF)
B27: http://ghgdata.epa.gov/ghgp/service/html/2012?id=1001650&ds=E
B29: BP Central Compression Plant (CCP)
B30: http://ghgdata.epa.gov/ghgp/service/html/2012?id=1001649&ds=E
A32: BP Dehydrator Information - 11 out of 12 dehydrators have vapor recovery to process or flare
B34: EPA Subpart W Facility
C35: Flash Drum Vent | D35: Reboiler Vent
B36: FS1 | C36: N/A | D36: Process
B37: FS1 Annex | C37: N/A | D37: Process
B38: FS2 | C38: N/A | D38: Process
B39: FS3 | C39: N/A | D39: Process
B40: GC1 | C40: Flare | D40: Process
B41: GC1 Annex | C41: N/A | D41: Process
B42: GC2 | C42: Flare | D42: Process
B43: GC3 | C43: Flare | D43: Process
B44: Lisburne | C44: N/A | D44: Process
B45: Milne Point | C45: Flare | D45: Atm
B46: Endicott | C46: N/A | D46: Process
B47: Northstar | C47: Flare | D47: Flare
A49: BP Compressor Information
C51: Reported in EPA Subpart W | I51: Total | J51: Not covered in Sub W
C52: BP ANS | D52: BP CCP | E52: BP CGF | F52: BP Lisburne | G52: BP NS | H52: BP Endicott | I52: EPA Sub W | J52: Gathering Centers/Flow Stations (1) | K52: Total BP
B54: Reciprocating compressors | C54: 6 | I54: =SUM(C54:H54) -> 6 | K54: =J54+I54 -> 6
B55: Centrifugal compressors
B56: Wet seals (2) | D56: 15 | E56: 8 | F56: 4 | H56: 4 | I56: =SUM(C56:H56) -> 31 | J56: 21 | K56: =J56+I56 -> 52
B57: Dry seals | E57: 1 | G57: 5 | H57: 1 | I57: =SUM(C57:H57) -> 7 | K57: =J57+I57 -> 7
B58: Total compressors (3) | C58: =SUM(C54:C57) -> 6 | D58: 15 | E58: 9 | F58: 4 | G58: 5 | H58: 5 | I58: 44 | J58: 21 | K58: 65
B60: (1) Compressor count for gathering centers and flow stations available at Alaska Department of Alaska Department of Environmental Conservation Division of Air Quality website:
B61: http://dec.alaska.gov/Applications/Air/airtoolsweb/AirPermitsApprovalsAndPublicNotices
B62: (2) All centrifugal compressors with wet seal systems have seal oil degassing systems with gas recovery of over 98%.
B63: (3) All blow-down lines for all compressors are routed to the flare systems at the facilities with none routed to atmospheric vent.
A65: Crude Oil Storage Tank Information
B67: BP has no crude oil storage tanks in its ANS operations. Crude flows directly from low pressure separation into the Trans Alaska Pipeline System (TAPS), Pump Station #1. At the end of TAPS there are storage tanks in Valdez run by Alyeska. Alyeska operating permit information is available at the ADEC website given above. The crude oil storage tanks in Valdez are required to have vapor recovery and are not allowed to vent to atmosphere.
A69: Pneumatic Controllers and Chemical Injection Pumps
B71: BP’s ANS facilities do not use any natural gas powered pneumatic controllers or chemical injection pumps. Because they are large, centralized facilities, they use instrument air or electric control rather than natural gas pneumatic devices, which are more common in onshore dispersed oil & gas facilities.

Sheet USA-North Dakota Bakken
A1: Data inputs | B1: Start field: | C1: End field:
A2: Fields to assess | B2: 1 | C2: 1 | G2: Modeled using average data for North Dakota oil production. This modeling pertains, but is not limited to marketable crudes such as Bakken, North Dakota Sweet, etc. OPGEE does not account for emissions from fracking so the CI estimate will likely be low.
A3: 1 Inputs
A5: Variables | E5: Unit | G5: Default | H5: Field 1
G6: =IF(G21="","NA",G21) -> Generic | H6: =IF(H21="","NA",H21) -> US North Dakota
A7: 1.1 Production methods
A8: Notes: Enter "1" where applicable and "0" where not applicable
B9: 1.1.1 Downhole pump | E9: NA | G9: 1
B10: 1.1.2 Water reinjection | E10: NA | G10: 1
B11: 1.1.3 Natural gas reinjection | E11: NA | G11: 1
B12: 1.1.4 Water flooding | E12: NA | G12: 0
B13: 1.1.5 Gas lifting | E13: NA | G13: 0
B14: 1.1.6 Gas flooding | E14: NA | G14: 0
B15: 1.1.7 Steam flooding | E15: NA | G15: 0
B16: 1.1.8 Oil sands mine (integrated with upgrader) | E16: NA | G16: 0
B17: 1.1.9 Oil sands mine (non-integrated with upgrader) | E17: NA | G17: 0
A19: 1.2 Field properties
B20: 1.2.1 Field location (Country) | E20: NA | G20: Generic | H20: United States
B21: 1.2.2 Field name | E21: NA | G21: Generic | H21: US North Dakota
B22: 1.2.3 Field age | E22: yr. | G22: 35
B23: 1.2.4 Field depth | E23: ft | G23: 7240 | H23: 10000 | I23: Estimate (https://www.dmr.nd.gov/oilgas/presentations/BSCEGConf2012-01-25.pdf)
B24: 1.2.5 Oil production volume | E24: bbl/d | G24: 1500 | H24: 1170837.282 | I24: See "2015 ND Production Data"
B25: 1.2.6 Number of producing wells | E25: [-] | G25: 8 | H25: 13748 | I25: Historical annual oil production totals year 2015 (https://www.dmr.nd.gov/oilgas/stats/annualprod.pdf)
B26: 1.2.7 Number of water injecting wells | E26: [-] | G26: 5
B27: 1.2.8 Well diameter | E27: in | G27: 2.775
B28: 1.2.9 Productivity index | E28: bbl/psi-d | G28: 3
B29: 1.2.10 Reservoir pressure | E29: psi | G29: 1556.6
B30: 1.2.11 Reservoir temperature | E30: ◦F | G30: 150
B31: 1.2.12 Offshore? | E31: [0-1] | G31: 0
A33: 1.3 Fluid properties
B34: 1.3.1 API gravity | E34: deg. API | G34: 30 | H34: 40 | I34: http://www.argusmedia.com/Petroleum/Crude/~/media/C21F9F5995164371B7D51651F950F49E.ashx
B35: 1.3.2 Gas composition
C36: N2 | E36: mol% | G36: 2
C37: CO2 | E37: mol% | G37: 6
C38: C1 | E38: mol% | G38: 84
C39: C2 | E39: mol% | G39: 4
C40: C3 | E40: mol% | G40: 2
C41: C4+ | E41: mol% | G41: 1
C42: H2S | E42: mol% | G42: 1
A44: 1.4 Production practices
A45: Notes: Enter "NA" where not applicable
B46: 1.4.1 Gas-to-oil ratio (GOR) | E46: scf/bbl oil | G46: 908 | H46: 1357.646817 | I46: See "2015 ND Production Data"
B47: 1.4.2 Water-to-oil ratio (WOR) | E47: bbl water/bbl oil | G47: 4.308369057 | H47: 1.101340858 | I47: See "2015 ND Production Data"
B48: 1.4.3 Water injection ratio | E48: bbl water/bbl oil | G48: 5.308369057
B49: 1.4.4 Gas lifting injection ratio | E49: scf/bbl liquid | G49: 1500
B50: 1.4.5 Gas flooding injection ratio | E50: scf/bbl oil | G50: 1362
B51: 1.4.6 Flood gas | E51: NA | G51: 1
C52: 1= Natural gas
C53: 2= Nitrogen (N2)
C54: 3= Carbon Dioxide (CO2)
B57: 1.4.7 Carbon dioxide flooding and sequestration parameters
C58: 1.4.7.1 Percentage of newly acquired CO2 (total injected CO2 includes both new and recycled) | E58: % | G58: 41
C59: 1.4.7.2 Source of CO2 | E59: NA | G59: 1
D60: 1= Natural subsurface reservoir
D61: 2= Anthropogenic
C62: 1.4.7.3 Percentage of sequestration credit assigned to the oilfield | E62: % | G62: 0
B63: 1.4.8 Steam-to-oil ratio (SOR) | E63: bbl steam/bbl oil | G63: 3
B64: 1.4.9 Fraction of required electricity generated onsite | E64: [-] | G64: 0
B65: 1.4.10 Fraction of remaining natural gas reinjected | E65: [-] | G65: 0 | H65: 0.0177101547 | I65: See "2015 ND Injection Data"
B66: 1.4.11 Fraction of produced water reinjected | E66: [-] | G66: 1 | H66: 0.259026903 | I66: See "2015 ND Injection Data"
B67: 1.4.12 Fraction of steam generation via cogeneration | E67: [-] | G67: 0
B68: 1.4.13 Fraction of steam generation via solar thermal | E68: [-] | G68: 0
A69: 1.5 Processing practices
B70: 1.5.1 Heater/treater | E70: NA | G70: 0
B71: 1.5.2 Stabilizer column | E71: NA | G71: 1
B72: 1.5.3 Upgrader type | G72: 0
C73: 0 = None
C74: 1 = Delayed coking
C75: 2 = Hydroconversion
C76: 3 = Combined hydroconversion and fluid coking
B77: 1.5.3 Associated Gas Processing Path | E77: NA | G77: 5
C78: 1= None
C79: 2= Minimal: Dehydrator
C80: 3= Acid Gas: Dehydrator + Amine Process
C81: 4= Wet Gas: Dehydrator + Demethanizer
C82: 5= Acid Wet Gas: Dehydrator + Amine Process + Demethanizer
C83: 6= CO2-EOR Membrane: Dehydrator + Compressor + Membrane + Amine Process + Demethanizer
C84: 7= CO2-EOR Ryan Holmes: Dehydrator + Ryan Holmes Process (Demethanizer Included)
C85: Notes: Choose paths 6 or 7 only if gas flooding is ON and CO2 is the flood gas
B86: 1.5.4 Flaring-to-oil ratio | E86: scf/bbl oil | G86: 181.5280918 | H86: 246.4524708 | I86: See "2015 ND Production Data"
B87: 1.5.5 Venting-to-oil ratio | E87: scf/bbl oil | G87: 0
B88: 1.5.6 Volume fraction of diluent | E88: [-] | G88: 0
A90: 1.6 Land use impacts
B91: 1.6.1 Crude ecosystem carbon richness
C92: 1.6.1.1 Low carbon richness (semi-arid grasslands) | E92: NA | G92: 0 | H92: 1 | I92: Assumed grassland
C93: 1.6.1.2 Moderate carbon richness (mixed) | E93: NA | G93: 1 | H93: 0
C94: 1.6.1.3 High carbon richness (forested) | E94: NA | G94: 0 | H94: 0
B95: 1.6.2 Field development intensity
C96: 1.6.2.1 Low intensity development and low oxidation | E96: NA | G96: 0
C97: 1.6.2.2 Moderate intensity development and moderate oxidation | E97: NA | G97: 1
C98: 1.6.2.3 High intensity development and high oxidation | E98: NA | G98: 0
A100: 1.8 Crude oil transport
B101: 1.8.1 Fraction of oil transported by each mode
C102: 1.8.1.1 Ocean tanker | E102: [-] | G102: 1 | H102: 0
C103: 1.8.1.2 Barge | E103: [-] | G103: 0 | H103: 0
C104: 1.8.1.3 Pipeline | E104: [-] | G104: 1 | H104: 0
C105: 1.8.1.4 Rail | E105: [-] | G105: 0 | H105: 1 | I105: Assumed transport by rail
C106: 1.8.1.5 Truck | G106: 0 | H106: 0
B107: 1.8.2 Transport distance (one way)
C108: 1.8.2.1 Ocean tanker | E108: Mile | G108: 5082 | H108: 0
C109: 1.8.2.2 Barge | E109: Mile | G109: 500 | H109: 0
C110: 1.8.2.3 Pipeline | E110: Mile | G110: 750 | H110: 0
C111: 1.8.2.4 Rail | E111: Mile | G111: 800 | H111: 2000 | I111: Estimated rail distance from Williston to Los Angeles
C112: 1.8.2.5 Truck | G112: 100 | H112: 0
B113: 1.8.3 Ocean tanker size, if applicable | E113: Ton | G113: 250000
A115: 1.9 Small sources emissions | E115: gCO2eq/MJ | G115: 0.5

Sheet 2015 ND Production Data
B1: GOR | C1: BOPD | D1: WOR | F1: Data supplied by North Dakota Department of Mineral Resources (May 9, 2017)
B2: =B3*1000/C3 -> 1357.646817 | C2: =C3/365 -> 1170837.282 | D2: =D3/C3 -> 1.101340858
A3: Totals | B3: =SUM(B5:B14142) -> 580197981 | C3: =SUM(C5:C14142) -> 427355608 | D3: =SUM(D5:D14142) -> 470664192
A4: API_WellNo | B4: MCF_GAS | C4: OIL | D4: WATER | E4: Well_Nm | F4: Wl_Permit | G4: Pool_Nm | H4: DTD
A5: 33007000260000 | B5: 9881 | C5: 20406 | D5: 14902 | E5: FRYBURG HEATH-MADISON UNIT G-810HR2 | F5: 1741 | G5: MADISON | H5: 13292
A6: 33007000380000 | B6: 1514 | C6: 1591 | D6: 9205 | E6: FRYBURG HEATH-MADISON UNIT P-813 | F6: 2577 | G6: MADISON | H6: 9445
A7: 33007000400000 | B7: 1986 | C7: 4330 | D7: 15585 | E7: FRYBURG HEATH-MADISON UNIT E-812 | F7: 2725 | G7: MADISON | H7: 9402
A8: 33007000520000 | B8: 3576 | C8: 8511 | D8: 381554 | E8: FRYBURG HEATH-MADISON UNIT I-814 | F8: 3146 | G8: HEATH | H8: 8159
A9: 33007000610000 | B9: 0 | C9: 0 | D9: 0 | E9: FRYBURG HEATH-MADISON UNIT D-808 | F9: 3522 | G9: HEATH | H9: 9186
A10: 33007000610000 | B10: 2793 | C10: 3680 | D10: 101859 | E10: FRYBURG HEATH-MADISON UNIT D-808 | F10: 3522 | G10: MADISON | H10: 9186
A11: 33007000620000 | B11: 1320 | C11: 7993 | D11: 266048 | E11: MEDORA HEATH-MADISON UNIT 07 | F11: 3573 | G11: MADISON | H11: 9326 | L11: Data source: North Dakota Drilling and Production Statistics, ND State Government (https://www.dmr.nd.gov/oilgas/stats/statisticsvw.asp, accessed 05/01/2017)
A12: 33007000690000 | B12: 180 | C12: 2449 | D12: 23293 | E12: MEDORA HEATH-MADISON UNIT 05 | F12: 3709 | G12: MADISON | H12: 9039 | L12: Annual production report (2015) | P12: Historical monthly gas production and sales statistics
A13: 33007000750000 | B13: 3193 | C13: 9439 | D13: 46650 | E13: MEDORA HEATH-MADISON UNIT 13 | F13: 3797 | G13: MADISON | H13: 8956 | L13: Month | M13: Monthly oil production | P13: Date | Q13: MCF Produced | R13: MCF Sold | S13: MCF Flared
A14: 33007000800000 | B14: 1625 | C14: 7693 | D14: 22230 | E14: FRYBURG HEATH-MADISON UNIT D-810 | F14: 3885 | G14: MADISON | H14: 9127 | L14: Jan | M14: 36939026 | P14: 1-2015 | Q14: 45742381 | R14: 33318527 | S14: 10279118
A15: 33007000880000 | B15: 82 | C15: 833 | D15: 6546 | E15: MEDORA HEATH-MADISON UNIT 06 | F15: 3938 | G15: HEATH | H15: 9058 | L15: Feb | M15: 32998045 | P15: 2-2015 | Q15: 41447295 | R15: 31445911 | S15: 8050586
A16: 33007000880000 | B16: 254 | C16: 2440 | D16: 19610 | E16: MEDORA HEATH-MADISON UNIT 06 | F16: 3938 | G16: MADISON | H16: 9058 | L16: Mar | M16: 36936602 | P16: 3-2015 | Q16: 47328679 | R16: 35593212 | S16: 9459819
A17: 33007000920000 | B17: 1422 | C17: 6333 | D17: 15171 | E17: FRYBURG HEATH-MADISON UNIT C-809 | F17: 3957 | G17: MADISON | H17: 9077 | L17: Apr | M17: 35106366 | P17: 4-2015 | Q17: 46020942 | R17: 35761381 | S17: 8086960
A18: 33007000940000 | B18: 86 | C18: 778 | D18: 24937 | E18: MEDORA HEATH-MADISON UNIT 18HR | F18: 3966 | G18: MADISON | H18: 10475 | L18: May | M18: 37292467 | P18: 5-2015 | Q18: 50374402 | R18: 39103395 | S18: 9036727
A19: 33007000960000 | B19: 0 | C19: 0 | D19: 0 | E19: FRYBURG HEATH-MADISON UNIT B-804 | F19: 4009 | G19: HEATH | H19: 9154 | L19: Jun | M19: 36349689 | P19: 6-2015 | Q19: 49637045 | R19: 38414049 | S19: 9039431
A20: 33007000960000 | B20: 628 | C20: 1898 | D20: 27632 | E20: FRYBURG HEATH-MADISON UNIT B-804 | F20: 4009 | G20: MADISON | H20: 9154 | L20: Jul | M20: 37431451 | P20: 7-2015 | Q20: 51379278 | R20: 38963770 | S20: 10176747
A21: 33007001020000 | B21: 465 | C21: 8984 | D21: 163895 | E21: MEDORA HEATH-MADISON UNIT 03 | F21: 4025 | G21: MADISON | H21: 8874 | L21: Aug | M21: 36822815 | P21: 8-2015 | Q21: 50979238 | R21: 38258994 | S21: 10504007
A22: 33007001030000 | B22: 356 | C22: 5731 | D22: 65946 | E22: MEDORA HEATH-MADISON UNIT 20 | F22: 4027 | G22: MADISON | H22: 9199 | L22: Sep | M22: 34869954 | P22: 9-2015 | Q22: 48122418 | R22: 37054395 | S22: 8941215
A23: 33007001070000 | B23: 1104 | C23: 2225 | D23: 16457 | E23: FRYBURG HEATH-MADISON UNIT C-806 | F23: 4046 | G23: HEATH | H23: 9130 | L23: Oct | M23: 36357782 | P23: 10-2015 | Q23: 51375114 | R23: 41803705 | S23: 7330103
A24: 33007001070000 | B24: 745 | C24: 1514 | D24: 11184 | E24: FRYBURG HEATH-MADISON UNIT C-806 | F24: 4046 | G24: MADISON | H24: 9130 | L24: Nov | M24: 35453595 | P24: 11-2015 | Q24: 50342772 | R24: 40216197 | S24: 7918150
A25: 33007001150000 | B25: 721 | C25: 7225 | D25: 81212 | E25: MEDORA HEATH-MADISON UNIT 19 | F25: 4079 | G25: MADISON | H25: 9051 | L25: Dec | M25: 35720672 | P25: 12-2015 | Q25: 51860859 | R25: 41841209 | S25: 7713235
A26: 33007001160000 | B26: 0 | C26: 0 | D26: 0 | E26: FRYBURG HEATH-MADISON UNIT B-806 | F26: 4090 | G26: HEATH | H26: 9115 | L26: Total | M26: 432278474 | P26: Total | Q26: =SUM(Q14:Q25) -> 584610423 | R26: =SUM(R14:R25) -> 451774745 | S26: =SUM(S14:S25) -> 106536098
A27: 33007001160000 | B27: 800 | C27: 3237 | D27: 35726 | E27: FRYBURG HEATH-MADISON UNIT B-806 | F27: 4090 | G27: MADISON | H27: 9115 | L27: BOPD | M27: =M26/365 -> 1184324.586 | P27: GOR | Q27: =Q26*1000/M26 -> 1352.393094
A28: 33007001180000 | B28: 1384 | C28: 7261 | D28: 26026 | E28: FRYBURG HEATH-MADISON UNIT A-806 | F28: 4121 | G28: MADISON | H28: 9152 | P28: FOR | Q28: =S26*1000/M26 -> 246.4524708
A29: 33007001200000 | B29: 1827 | C29: 3436 | D29: 7037 | E29: FRYBURG HEATH-MADISON UNIT F-808 | F29: 4185 | G29: MADISON | H29: 9171
A30: 33007001270000 | B30: 3054 | C30: 7899 | D30: 6444 | E30: FRYBURG HEATH-MADISON UNIT H-812 | F30: 4320 | G30: MADISON | H30: 9249
A31: 33007001280000 | B31: 3569 | C31: 9394 | D31: 13750 | E31: FRYBURG HEATH-MADISON UNIT F-814 | F31: 4325 | G31: MADISON | H31: 9465
A32: 33007007790000 | B32: 9347 | C32: 8868 | D32: 939 | E32: FEDERAL 6-1 | F32: 9121 | G32: MADISON | H32: 10735
A33: 33007007870000 | B33: 3799 | C33: 8464 | D33: 21512 | E33: NORTH ELKHORN RANCH UNIT 2903 | F33: 9183 | G33: MADISON | H33: 12173
A34: 33007007880000 | B34: 16745 | C34: 3435 | D34: 36211 | E34: BURIAN 1-26-3B | F34: 9187 | G34: MADISON | H34: 9877
A35: 33007007890000 | B35: 7002 | C35: 855 | D35: 11090 | E35: BURIAN 2-26-2B | F35: 9188 | G35: MADISON | H35: 9824
A36: 33007007900000 | B36: 27317 | C36: 9901 | D36: 29003 | E36: LOH 4-25-3A | F36: 9190 | G36: MADISON | H36: 9900
A37: 33007007910000 | B37: 18025 | C37: 5880 | D37: 6383 | E37: LOH 3-25-4B | F37: 9196 | G37: MADISON | H37: 9990
A38: 33007007930000 | B38: 3522 | C38: 10188 | D38: 37025 | E38: NORTH ELKHORN RANCH UNIT 2901 | F38: 9214 | G38: MADISON | H38: 13075
A39: 33007007940000 | B39: 3406 | C39: 11787 | D39: 23602 | E39: NORTH ELKHORN RANCH UNIT 2004 | F39: 9215 | G39: MADISON | H39: 11715
A40: 33007008000000 | B40: 1509 | C40: 80 | D40: 293 | E40: J. AND G. HURINENKO 3-1-4A | F40: 9232 | G40: MADISON | H40: 9940
A41: 33007008040000 | B41: 7983 | C41: 7957 | D41: 46467 | E41: US 2-12 | F41: 9262 | G41: MADISON | H41: 9700
A42: 33007008080000 | B42: 3358 | C42: 6905 | D42: 88175 | E42: NORTH ELKHORN RANCH UNIT 2001 | F42: 9295 | G42: MADISON | H42: 9549
A43: 33007008220000 | B43: 0 | C43: 0 | D43: 0 | E43: ANNA OSADCHUK C-1 | F43: 9369 | G43: MADISON | H43: 10273
A44: 33007008230000 | B44: 4608 | C44: 7990 | D44: 156324 | E44: BIG STICK (MADISON) UNIT 3001 | F44: 9371 | G44: MADISON | H44: 9562
A45: 33007008430000 | B45: 12522 | C45: 13227 | D45: 120655 | E45: ELKHORN RANCH FEDERAL 19-1 | F45: 9492 | G45: MADISON | H45: 11085
A46: 33007008440000 | B46: 0 | C46: 0 | D46: 0 | E46: STATE OF NORTH DAKOTA 16-34 | F46: 9514 | G46: MADISON | H46: 9451
A47: 33007008510000 | B47: 8288 | C47: 1886 | D47: 3043 | E47: WIKE 1-24-4C | F47: 9531 | G47: MADISON | H47: 9839
A48: 33007008520000 | B48: 13999 | C48: 5814 | D48: 995 | E48: COGC/CANTERRA 29-142-102 BN 1H | F48: 9534 | G48: BIRDBEAR | H48: 13735
A49: 33007008560000 | B49: 4873 | C49: 9671 | D49: 47254 | E49: NORTH ELKHORN RANCH UNIT 1704 | F49: 9561 | G49: MADISON | H49: 11600
A50: 33007008580000 | B50: 1822 | C50: 2638 | D50: 41858 | E50: NORTH ELKHORN RANCH UNIT 3301 | F50: 9567 | G50: MADISON | H50: 11193
A51: 33007008600000 | B51: 0 | C51: 0 | D51: 0 | E51: NORTH ELKHORN RANCH UNIT 1603 | F51: 9578 | G51: MADISON | H51: 9600
A52: 33007008620000 | B52: 0 | C52: 0 | D52: 521 | E52: NORTH ELKHORN RANCH UNIT 3302 | F52: 9585 | G52: MADISON | H52: 11130
A53: 33007008650000 | B53: 1970 | C53: 1400 | D53: 15315 | E53: FEDERAL 34-1 | F53: 9594 | G53: MADISON | H53: 9720
A54: 33007008690000 | B54: 0 | C54: 0 | D54: 0 | E54: USA 34-10 | F54: 9609 | G54: MADISON | H54: 11366
A55: 33007008710000 | B55: 9404 | C55: 13253 | D55: 72278 | E55: NORTH ELKHORN RANCH UNIT 1703 | F55: 9626 | G55: MADISON | H55: 12487
A56: 33007008740000 | B56: 3457 | C56: 4355 | D56: 5261 | E56: WHISKEY JOE 23-27 | F56: 9646 | G56: MADISON | H56: 11211
A57: 33007008780000 | B57: 2700 | C57: 136 | D57: 1017 | E57: LAUDIE BURIAN 1-23-3C | F57: 9691 | G57: MADISON | H57: 9870
A58: 33007008810000 | B58: 1004 | C58: 2347 | D58: 5748 | E58: NORTH ELKHORN RANCH UNIT 2103 | F58: 9743 | G58: MADISON | H58: 9755
A59: 33007008830000 | B59: 26619 | C59: 9235 | D59: 19086 | E59: STATE 5-16-2B | F59: 9760 | G59: MADISON | H59: 9945
A60: 33007008930000 | B60: 0 | C60: 0 | D60: 0 | E60: NORTH ELKHORN RANCH UNIT 1601 | F60: 9856 | G60: MADISON | H60: 9525
A61: 33007008990000 | B61: 1804 | C61: 3816 | D61: 57512 | E61: FEDERAL 3-4 | F61: 9889 | G61: MADISON | H61: 9650
A62: 33007009190000 | B62: 5323 | C62: 4209 | D62: 101387 | E62: DOROTHY OSADCHUK D 1 | F62: 10106 | G62: MADISON | H62: 9788
A63: 33007009200000 | B63: 0 | C63: 0 | D63: 0 | E63: NORTH ELKHORN RANCH UNIT 2703 | F63: 10114 | G63: MADISON | H63: 9475
A64: 33007009240000 | B64: 14243 | C64: 1858 | D64: 24801 | E64: 9210 JV-P BARLOW B 1 | F64: 10168 | G64: MADISON | H64: 9836
A65: 33007009260000 | B65: 0 | C65: 0 | D65: 0 | E65: NORTH ELKHORN RANCH UNIT 1804 | F65: 10178 | G65: MADISON | H65: 10950
A66: 33007009290000 | B66: 3561 | C66: 2948 | D66: 49471 | E66: FEDERAL 5-27 | F66: 10189 | G66: MADISON | H66: 9678
A67: 33007009300000 | B67: 216 | C67: 1361 | D67: 1193 | E67: LINDBO RANCH 1-6 1 | F67: 10191 | G67: MADISON | H67: 9420
A68: 33007009310000 | B68: 90 | C68: 36 | D68: 37 | E68: TEDROW 7-12-2A | F68: 10192 | G68: MADISON | H68: 10000
A69: 33007009350000 | B69: 10981 | C69: 1542 | D69: 26390 | E69: WIKE-FEDERAL 3-24-3C | F69: 10213 | G69: MADISON | H69: 9870
A70: 33007009370000 | B70: 0 | C70: 0 | D70: 0 | E70: RAMONA FEDERAL 21-6 | F70: 10220 | G70: MADISON | H70: 9335
A71: 33007009400000 | B71: 9490 | C71: 8241 | D71: 35919 | E71: UVI FEDERAL 1-33 | F71: 10229 | G71: MADISON | H71: 9481
A72: 33007009430000 | B72: 4593 | C72: 7505 | D72: 19425 | E72: FEDERAL 1-7 | F72: 10267 | G72: MADISON | H72: 9440
A73: 33007009460000 | B73: 6031 | C73: 7558 | D73: 20060 | E73: NORTH ELKHORN RANCH UNIT 1503 | F73: 10303 | G73: MADISON | H73: 9480
A74: 33007009560000 | B74: 4377 | C74: 4309 | D74: 103403 | E74: DSC STATE 13-34 | F74: 10398 | G74: MADISON | H74: 9390
A75: 33007009570000 | B75: 0 | C75: 0 | D75: 0 | E75: KEY FEDERAL 33-33 | F75: 10399 | G75: MADISON | H75: 9390
A76: 33007009620000 | B76: 14668 | C76: 4787 | D76: 613 | E76: MIKKELSON SE-SHORT 31-34 | F76: 10475 | G76: BIRDBEAR | H76: 14496
A77: 33007009680000 | B77: 1791 | C77: 7166 | D77: 2816 | E77: STAPP 1-12 | F77: 10516 | G77: MADISON | H77: 10975
A78: 33007009730000 | B78: 2401 | C78: 3819 | D78: 69152 | E78: FEDERAL 10-23 | F78: 10576 | G78: MADISON | H78: 11017
A79: 33007009880000 | B79: 366 | C79: 917 | D79: 2329 | E79: MPI 14-13 | F79: 10669 | G79: MADISON | H79: 9930
A80: 33007009900000 | B80: 2363 | C80: 3040 | D80: 40516 | E80: FEDERAL 1-26 | F80: 10713 | G80: MADISON | H80: 10710
A81: 33007009910000 | B81: 0 | C81: 4260 | D81: 107016 | E81: DSC STATE 11-34 | F81: 10755 | G81: MADISON | H81: 9312
A82: 33007009960000 | B82: 0 | C82: 0 | D82: 0 | E82: HARRIS FEDERAL 31-33 | F82: 10795 | G82: MADISON | H82: 12380
A83: 33007010000000 | B83: 0 | C83: 0 | D83: 0 | E83: B.N. AMOCO "C" 2-23 | F83: 10821 | G83: MADISON | H83: 9960
A84: 33007010020000 | B84: 17 | C84: 17 | D84: 520 | E84: FEDERAL 3-6 | F84: 10843 | G84: MADISON | H84: 11000
A85: 33007010030000 | B85: 4061 | C85: 3862 | D85: 11422 | E85: FEDERAL 5-1 | F85: 10852 | G85: MADISON | H85: 10940
A86: 33007010070000 | B86: 0 | C86: 0 | D86: 0 | E86: EDNA B. EGLY 1 | F86: 10877 | G86: BAKKEN | H86: 11450
A87: 33007010100000 | B87: 4168 | C87: 10503 | D87: 47437 | E87: NORTH ELKHORN RANCH UNIT 2003 | F87: 10915 | G87: MADISON | H87: 9390
A88: 33007010200000 | B88: 2121 | C88: 4939 | D88: 26515 | E88: NORTH ELKHORN RANCH UNIT 2104 | F88: 11079 | G88: MADISON | H88: 9600
A89: 33007010250000 | B89: 156 | C89: 3908 | D89: 17752 | E89: B.N. AMOCO D 3-23 | F89: 11171 | G89: MADISON | H89: 11630
A90: 33007010280000 | B90: 0 | C90: 2406 | D90: 87443 | E90: NORMA FEDERAL 31-6 | F90: 11186 | G90: MADISON | H90: 9322
A91: 33007010290000 | B91: 0 | C91: 5987 | D91: 133500 | E91: COREY FEDERAL 12-5 | F91: 11191 | G91: MADISON | H91: 9287
A92: 33007010310000 | B92: 6033 | C92: 4823 | D92: 9217 | E92: BERNEL ZABOLOTNY 2-4-2C | F92: 11225 | G92: MADISON | H92: 10035
A93: 33007010340000 | B93: 11779 | C93: 12202 | D93: 60438 | E93: NORTH ELKHORN RANCH UNIT 0901H | F93: 11240 | G93: MADISON | H93: 11475
A94: 33007010370000 | B94: 2 | C94: 23 | D94: 67 | E94: BEAVER CREEK FEE A11-5 | F94: 11285 | G94: BIRDBEAR | H94: 15101
A95: 33007010390000 | B95: 0 | C95: 0 | D95: 0 | E95: 9210 JV-P FEDERAL DL 1 | F95: 11292 | G95: BIRDBEAR | H95: 12600
A96: 33007010420000 | B96: 1500 | C96: 6794 | D96: 201692 | E96: MEDORA HEATH-MADISON UNIT 04X HR | F96: 11335 | G96: MADISON | H96: 12600
A97: 33007010450000 | B97: 110 | C97: 256 | D97: 0 | E97: JILEK STATE 1-22 | F97: 11357 | G97: BAKKEN | H97: 11626
A98: 33007010460000 | B98: 2252 | C98: 5038 | D98: 3910 | E98: KASPER 1-14-4C | F98: 11360 | G98: MADISON | H98: 9965
A99: 33007010620000 | B99: 11219 | C99: 14288 | D99: 577409 | E99: RAMONA FEE 23-6 | F99: 11511 | G99: MADISON | H99: 9320
A100: 33007010630000 | B100: 5627 | C100: 5764 | D100: 182541 | E100: NORMA FEE 43-6 | F100: 11512 | G100: MADISON | H100: 9351
